Workbook

Sheet Instructions
B7: This workbook sets out amended risk-free interest rate term structures:
B9: Worksheet "Scenario Data"
B10: Risk-free interest rate term structures based on the new alternative extrapolation method both with and without volatility adjustment, including shocked interest rate curves for the new interest rate risk submodule.
B13: Worksheet "RCS and Scaling Factors"
B14: Risk-corrected currency spreads and scaling factors for the calculation of the volatility adjustment.
B16: Inputs are provided for integer term maturities.
B18: Undertakings shall apply appropriate interpolation techniques for discounting inter-annual cash flows.

Sheet Scenario Data
J3: EUR
J4: =VLOOKUP($J$3,'RCS and Scaling Factors'!$B$2:$D$11,2,FALSE)*10000 -> 35.47
J5: =VLOOKUP($J$3,'RCS and Scaling Factors'!$B$2:$D$11,3,FALSE)*10000 -> 30.1495
J6: 1
J7: =$J$5*$J$6 -> 30.1495
A10: Curve | B10: without VA | C10: without VA | D10: without VA | F10: with VA | G10: with VA | H10: with VA
A11: Scenario | B11: Baseline | C11: Up | D11: Down | F11: Baseline | G11: Up | H11: Down
A12: Methodology | B12: Alternative Extrapolation Method RFR | C12: New Regime - Shock | D12: New Regime - Shock | F12: Alternative Extrapolation Method RFR | G12: New Regime - Shock | H12: New Regime - Shock
A13: 1 | B13: =_xlfn.XLOOKUP($A13,INDIRECT("'Curves "&B$10&"'!$A$14:$A$163"),_xlfn.XLOOKUP(B$11&$J$3,INDIRECT("'Curves "&B$10&"'!$11:$11")&INDIRECT("'Curves "&B$10&"'!$12:$12"),INDIRECT("'Curves "&B$10&"'!$14:$163"),,0,1),,0,1) -> 0.02076 | C13: =_xlfn.XLOOKUP($A13,INDIRECT("'Curves "&C$10&"'!$A$14:$A$163"),_xlfn.XLOOKUP(C$11&$J$3,INDIRECT("'Curves "&C$10&"'!$11:$11")&INDIRECT("'Curves "&C$10&"'!$12:$12"),INDIRECT("'Curves "&C$10&"'!$14:$163"),,0,1),,0,1) -> 0.0548236 | D13: =_xlfn.XLOOKUP($A13,INDIRECT("'Curves "&D$10&"'!$A$14:$A$163"),_xlfn.XLOOKUP(D$11&$J$3,INDIRECT("'Curves "&D$10&"'!$11:$11")&INDIRECT("'Curves "&D$10&"'!$12:$12"),INDIRECT("'Curves "&D$10&"'!$14:$163"),,0,1),,0,1) -> -0.0028808 | F13: =_xlfn.XLOOKUP($A13,INDIRECT("'Curves "&F$10&"'!$A$14:$A$163"),_xlfn.XLOOKUP(F$11&$J$3,INDIRECT("'Curves "&F$10&"'!$11:$11")&INDIRECT("'Curves "&F$10&"'!$12:$12"),INDIRECT("'Curves "&F$10&"'!$14:$163"),,0,1),,0,1) -> 0.02383754036 | G13: =_xlfn.XLOOKUP($A13,INDIRECT("'Curves "&G$10&"'!$A$14:$A$163"),_xlfn.XLOOKUP(G$11&$J$3,INDIRECT("'Curves "&G$10&"'!$11:$11")&INDIRECT("'Curves "&G$10&"'!$12:$12"),INDIRECT("'Curves "&G$10&"'!$14:$163"),,0,1),,0,1) -> 0.05800384041 | H13: =_xlfn.XLOOKUP($A13,INDIRECT("'Curves "&H$10&"'!$A$14:$A$163"),_xlfn.XLOOKUP(H$11&$J$3,INDIRECT("'Curves "&H$10&"'!$11:$11")&INDIRECT("'Curves "&H$10&"'!$12:$12"),INDIRECT("'Curves "&H$10&"'!$14:$163"),,0,1),,0,1) -> 0.000125464532 | U13: Czech Republic | V13: 1
A14: 2 | B14: =_xlfn.XLOOKUP($A14,INDIRECT("'Curves "&B$10&"'!$A$14:$A$163"),_xlfn.XLOOKUP(B$11&$J$3,INDIRECT("'Curves "&B$10&"'!$11:$11")&INDIRECT("'Curves "&B$10&"'!$12:$12"),INDIRECT("'Curves "&B$10&"'!$14:$163"),,0,1),,0,1) -> 0.02162930456 | C14: =_xlfn.XLOOKUP($A14,INDIRECT("'Curves "&C$10&"'!$A$14:$A$163"),_xlfn.XLOOKUP(C$11&$J$3,INDIRECT("'Curves "&C$10&"'!$11:$11")&INDIRECT("'Curves "&C$10&"'!$12:$12"),INDIRECT("'Curves "&C$10&"'!$14:$163"),,0,1),,0,1) -> 0.05169283598 | D14: =_xlfn.XLOOKUP($A14,INDIRECT("'Curves "&D$10&"'!$A$14:$A$163"),_xlfn.XLOOKUP(D$11&$J$3,INDIRECT("'Curves "&D$10&"'!$11:$11")&INDIRECT("'Curves "&D$10&"'!$12:$12"),INDIRECT("'Curves "&D$10&"'!$14:$163"),,0,1),,0,1) -> 0.0006983592342 | F14: =_xlfn.XLOOKUP($A14,INDIRECT("'Curves "&F$10&"'!$A$14:$A$163"),_xlfn.XLOOKUP(F$11&$J$3,INDIRECT("'Curves "&F$10&"'!$11:$11")&INDIRECT("'Curves "&F$10&"'!$12:$12"),INDIRECT("'Curves "&F$10&"'!$14:$163"),,0,1),,0,1) -> 0.02470946583 | G14: =_xlfn.XLOOKUP($A14,INDIRECT("'Curves "&G$10&"'!$A$14:$A$163"),_xlfn.XLOOKUP(G$11&$J$3,INDIRECT("'Curves "&G$10&"'!$11:$11")&INDIRECT("'Curves "&G$10&"'!$12:$12"),INDIRECT("'Curves "&G$10&"'!$14:$163"),,0,1),,0,1) -> 0.05486363729 | H14: =_xlfn.XLOOKUP($A14,INDIRECT("'Curves "&H$10&"'!$A$14:$A$163"),_xlfn.XLOOKUP(H$11&$J$3,INDIRECT("'Curves "&H$10&"'!$11:$11")&INDIRECT("'Curves "&H$10&"'!$12:$12"),INDIRECT("'Curves "&H$10&"'!$14:$163"),,0,1),,0,1) -> 0.003715414752 | U14: Hungary | V14: 2
A15: 3 | B15: =_xlfn.XLOOKUP($A15,INDIRECT("'Curves "&B$10&"'!$A$14:$A$163"),_xlfn.XLOOKUP(B$11&$J$3,INDIRECT("'Curves "&B$10&"'!$11:$11")&INDIRECT("'Curves "&B$10&"'!$12:$12"),INDIRECT("'Curves "&B$10&"'!$14:$163"),,0,1),,0,1) -> 0.02282859383 | C15: =_xlfn.XLOOKUP($A15,INDIRECT("'Curves "&C$10&"'!$A$14:$A$163"),_xlfn.XLOOKUP(C$11&$J$3,INDIRECT("'Curves "&C$10&"'!$11:$11")&INDIRECT("'Curves "&C$10&"'!$12:$12"),INDIRECT("'Curves "&C$10&"'!$14:$163"),,0,1),,0,1) -> 0.05121460481 | D15: =_xlfn.XLOOKUP($A15,INDIRECT("'Curves "&D$10&"'!$A$14:$A$163"),_xlfn.XLOOKUP(D$11&$J$3,INDIRECT("'Curves "&D$10&"'!$11:$11")&INDIRECT("'Curves "&D$10&"'!$12:$12"),INDIRECT("'Curves "&D$10&"'!$14:$163"),,0,1),,0,1) -> 0.004484012545 | F15: =_xlfn.XLOOKUP($A15,INDIRECT("'Curves "&F$10&"'!$A$14:$A$163"),_xlfn.XLOOKUP(F$11&$J$3,INDIRECT("'Curves "&F$10&"'!$11:$11")&INDIRECT("'Curves "&F$10&"'!$12:$12"),INDIRECT("'Curves "&F$10&"'!$14:$163"),,0,1),,0,1) -> 0.0259123709 | G15: =_xlfn.XLOOKUP($A15,INDIRECT("'Curves "&G$10&"'!$A$14:$A$163"),_xlfn.XLOOKUP(G$11&$J$3,INDIRECT("'Curves "&G$10&"'!$11:$11")&INDIRECT("'Curves "&G$10&"'!$12:$12"),INDIRECT("'Curves "&G$10&"'!$14:$163"),,0,1),,0,1) -> 0.05438396428 | H15: =_xlfn.XLOOKUP($A15,INDIRECT("'Curves "&H$10&"'!$A$14:$A$163"),_xlfn.XLOOKUP(H$11&$J$3,INDIRECT("'Curves "&H$10&"'!$11:$11")&INDIRECT("'Curves "&H$10&"'!$12:$12"),INDIRECT("'Curves "&H$10&"'!$14:$163"),,0,1),,0,1) -> 0.007512481618 | U15: Poland | V15: 3
A16: 4 | B16: =_xlfn.XLOOKUP($A16,INDIRECT("'Curves "&B$10&"'!$A$14:$A$163"),_xlfn.XLOOKUP(B$11&$J$3,INDIRECT("'Curves "&B$10&"'!$11:$11")&INDIRECT("'Curves "&B$10&"'!$12:$12"),INDIRECT("'Curves "&B$10&"'!$14:$163"),,0,1),,0,1) -> 0.02386292833 | C16: =_xlfn.XLOOKUP($A16,INDIRECT("'Curves "&C$10&"'!$A$14:$A$163"),_xlfn.XLOOKUP(C$11&$J$3,INDIRECT("'Curves "&C$10&"'!$11:$11")&INDIRECT("'Curves "&C$10&"'!$12:$12"),INDIRECT("'Curves "&C$10&"'!$14:$163"),,0,1),,0,1) -> 0.05093987536 | D16: =_xlfn.XLOOKUP($A16,INDIRECT("'Curves "&D$10&"'!$A$14:$A$163"),_xlfn.XLOOKUP(D$11&$J$3,INDIRECT("'Curves "&D$10&"'!$11:$11")&INDIRECT("'Curves "&D$10&"'!$12:$12"),INDIRECT("'Curves "&D$10&"'!$14:$163"),,0,1),,0,1) -> 0.006917756998 | F16: =_xlfn.XLOOKUP($A16,INDIRECT("'Curves "&F$10&"'!$A$14:$A$163"),_xlfn.XLOOKUP(F$11&$J$3,INDIRECT("'Curves "&F$10&"'!$11:$11")&INDIRECT("'Curves "&F$10&"'!$12:$12"),INDIRECT("'Curves "&F$10&"'!$14:$163"),,0,1),,0,1) -> 0.02694982387 | G16: =_xlfn.XLOOKUP($A16,INDIRECT("'Curves "&G$10&"'!$A$14:$A$163"),_xlfn.XLOOKUP(G$11&$J$3,INDIRECT("'Curves "&G$10&"'!$11:$11")&INDIRECT("'Curves "&G$10&"'!$12:$12"),INDIRECT("'Curves "&G$10&"'!$14:$163"),,0,1),,0,1) -> 0.05410840654 | H16: =_xlfn.XLOOKUP($A16,INDIRECT("'Curves "&H$10&"'!$A$14:$A$163"),_xlfn.XLOOKUP(H$11&$J$3,INDIRECT("'Curves "&H$10&"'!$11:$11")&INDIRECT("'Curves "&H$10&"'!$12:$12"),INDIRECT("'Curves "&H$10&"'!$14:$163"),,0,1),,0,1) -> 0.009953563689 | U16: Romania | V16: 4
A17: 5 | B17: =_xlfn.XLOOKUP($A17,INDIRECT("'Curves "&B$10&"'!$A$14:$A$163"),_xlfn.XLOOKUP(B$11&$J$3,INDIRECT("'Curves "&B$10&"'!$11:$11")&INDIRECT("'Curves "&B$10&"'!$12:$12"),INDIRECT("'Curves "&B$10&"'!$14:$163"),,0,1),,0,1) -> 0.02478759707 | C17: =_xlfn.XLOOKUP($A17,INDIRECT("'Curves "&C$10&"'!$A$14:$A$163"),_xlfn.XLOOKUP(C$11&$J$3,INDIRECT("'Curves "&C$10&"'!$11:$11")&INDIRECT("'Curves "&C$10&"'!$12:$12"),INDIRECT("'Curves "&C$10&"'!$14:$163"),,0,1),,0,1) -> 0.05174201576 | D17: =_xlfn.XLOOKUP($A17,INDIRECT("'Curves "&D$10&"'!$A$14:$A$163"),_xlfn.XLOOKUP(D$11&$J$3,INDIRECT("'Curves "&D$10&"'!$11:$11")&INDIRECT("'Curves "&D$10&"'!$12:$12"),INDIRECT("'Curves "&D$10&"'!$14:$163"),,0,1),,0,1) -> 0.007772558244 | F17: =_xlfn.XLOOKUP($A17,INDIRECT("'Curves "&F$10&"'!$A$14:$A$163"),_xlfn.XLOOKUP(F$11&$J$3,INDIRECT("'Curves "&F$10&"'!$11:$11")&INDIRECT("'Curves "&F$10&"'!$12:$12"),INDIRECT("'Curves "&F$10&"'!$14:$163"),,0,1),,0,1) -> 0.02787728044 | G17: =_xlfn.XLOOKUP($A17,INDIRECT("'Curves "&G$10&"'!$A$14:$A$163"),_xlfn.XLOOKUP(G$11&$J$3,INDIRECT("'Curves "&G$10&"'!$11:$11")&INDIRECT("'Curves "&G$10&"'!$12:$12"),INDIRECT("'Curves "&G$10&"'!$14:$163"),,0,1),,0,1) -> 0.05491296535 | H17: =_xlfn.XLOOKUP($A17,INDIRECT("'Curves "&H$10&"'!$A$14:$A$163"),_xlfn.XLOOKUP(H$11&$J$3,INDIRECT("'Curves "&H$10&"'!$11:$11")&INDIRECT("'Curves "&H$10&"'!$12:$12"),INDIRECT("'Curves "&H$10&"'!$14:$163"),,0,1),,0,1) -> 0.01081094212 | U17: Switzerland | V17: 5
A18: 6 | B18: =_xlfn.XLOOKUP($A18,INDIRECT("'Curves "&B$10&"'!$A$14:$A$163"),_xlfn.XLOOKUP(B$11&$J$3,INDIRECT("'Curves "&B$10&"'!$11:$11")&INDIRECT("'Curves "&B$10&"'!$12:$12"),INDIRECT("'Curves "&B$10&"'!$14:$163"),,0,1),,0,1) -> 0.02564868671 | C18: =_xlfn.XLOOKUP($A18,INDIRECT("'Curves "&C$10&"'!$A$14:$A$163"),_xlfn.XLOOKUP(C$11&$J$3,INDIRECT("'Curves "&C$10&"'!$11:$11")&INDIRECT("'Curves "&C$10&"'!$12:$12"),INDIRECT("'Curves "&C$10&"'!$14:$163"),,0,1),,0,1) -> 0.05056464826 | D18: =_xlfn.XLOOKUP($A18,INDIRECT("'Curves "&D$10&"'!$A$14:$A$163"),_xlfn.XLOOKUP(D$11&$J$3,INDIRECT("'Curves "&D$10&"'!$11:$11")&INDIRECT("'Curves "&D$10&"'!$12:$12"),INDIRECT("'Curves "&D$10&"'!$14:$163"),,0,1),,0,1) -> 0.009202185758 | F18: =_xlfn.XLOOKUP($A18,INDIRECT("'Curves "&F$10&"'!$A$14:$A$163"),_xlfn.XLOOKUP(F$11&$J$3,INDIRECT("'Curves "&F$10&"'!$11:$11")&INDIRECT("'Curves "&F$10&"'!$12:$12"),INDIRECT("'Curves "&F$10&"'!$14:$163"),,0,1),,0,1) -> 0.02874096621 | G18: =_xlfn.XLOOKUP($A18,INDIRECT("'Curves "&G$10&"'!$A$14:$A$163"),_xlfn.XLOOKUP(G$11&$J$3,INDIRECT("'Curves "&G$10&"'!$11:$11")&INDIRECT("'Curves "&G$10&"'!$12:$12"),INDIRECT("'Curves "&G$10&"'!$14:$163"),,0,1),,0,1) -> 0.05373204814 | H18: =_xlfn.XLOOKUP($A18,INDIRECT("'Curves "&H$10&"'!$A$14:$A$163"),_xlfn.XLOOKUP(H$11&$J$3,INDIRECT("'Curves "&H$10&"'!$11:$11")&INDIRECT("'Curves "&H$10&"'!$12:$12"),INDIRECT("'Curves "&H$10&"'!$14:$163"),,0,1),,0,1) -> 0.01224487989 | U18: United States | V18: 6
A19: 7 | B19: =_xlfn.XLOOKUP($A19,INDIRECT("'Curves "&B$10&"'!$A$14:$A$163"),_xlfn.XLOOKUP(B$11&$J$3,INDIRECT("'Curves "&B$10&"'!$11:$11")&INDIRECT("'Curves "&B$10&"'!$12:$12"),INDIRECT("'Curves "&B$10&"'!$14:$163"),,0,1),,0,1) -> 0.02651038902 | C19: =_xlfn.XLOOKUP($A19,INDIRECT("'Curves "&C$10&"'!$A$14:$A$163"),_xlfn.XLOOKUP(C$11&$J$3,INDIRECT("'Curves "&C$10&"'!$11:$11")&INDIRECT("'Curves "&C$10&"'!$12:$12"),INDIRECT("'Curves "&C$10&"'!$14:$163"),,0,1),,0,1) -> 0.04931923296 | D19: =_xlfn.XLOOKUP($A19,INDIRECT("'Curves "&D$10&"'!$A$14:$A$163"),_xlfn.XLOOKUP(D$11&$J$3,INDIRECT("'Curves "&D$10&"'!$11:$11")&INDIRECT("'Curves "&D$10&"'!$12:$12"),INDIRECT("'Curves "&D$10&"'!$14:$163"),,0,1),,0,1) -> 0.01040154508 | F19: =_xlfn.XLOOKUP($A19,INDIRECT("'Curves "&F$10&"'!$A$14:$A$163"),_xlfn.XLOOKUP(F$11&$J$3,INDIRECT("'Curves "&F$10&"'!$11:$11")&INDIRECT("'Curves "&F$10&"'!$12:$12"),INDIRECT("'Curves "&F$10&"'!$14:$163"),,0,1),,0,1) -> 0.02960526652 | G19: =_xlfn.XLOOKUP($A19,INDIRECT("'Curves "&G$10&"'!$A$14:$A$163"),_xlfn.XLOOKUP(G$11&$J$3,INDIRECT("'Curves "&G$10&"'!$11:$11")&INDIRECT("'Curves "&G$10&"'!$12:$12"),INDIRECT("'Curves "&G$10&"'!$14:$163"),,0,1),,0,1) -> 0.05248287798 | H19: =_xlfn.XLOOKUP($A19,INDIRECT("'Curves "&H$10&"'!$A$14:$A$163"),_xlfn.XLOOKUP(H$11&$J$3,INDIRECT("'Curves "&H$10&"'!$11:$11")&INDIRECT("'Curves "&H$10&"'!$12:$12"),INDIRECT("'Curves "&H$10&"'!$14:$163"),,0,1),,0,1) -> 0.01344785522
A20: 8 | B20: =_xlfn.XLOOKUP($A20,INDIRECT("'Curves "&B$10&"'!$A$14:$A$163"),_xlfn.XLOOKUP(B$11&$J$3,INDIRECT("'Curves "&B$10&"'!$11:$11")&INDIRECT("'Curves "&B$10&"'!$12:$12"),INDIRECT("'Curves "&B$10&"'!$14:$163"),,0,1),,0,1) -> 0.02723990981 | C20: =_xlfn.XLOOKUP($A20,INDIRECT("'Curves "&C$10&"'!$A$14:$A$163"),_xlfn.XLOOKUP(C$11&$J$3,INDIRECT("'Curves "&C$10&"'!$11:$11")&INDIRECT("'Curves "&C$10&"'!$12:$12"),INDIRECT("'Curves "&C$10&"'!$14:$163"),,0,1),,0,1) -> 0.04840147914 | D20: =_xlfn.XLOOKUP($A20,INDIRECT("'Curves "&D$10&"'!$A$14:$A$163"),_xlfn.XLOOKUP(D$11&$J$3,INDIRECT("'Curves "&D$10&"'!$11:$11")&INDIRECT("'Curves "&D$10&"'!$12:$12"),INDIRECT("'Curves "&D$10&"'!$14:$163"),,0,1),,0,1) -> 0.01068874408 | F20: =_xlfn.XLOOKUP($A20,INDIRECT("'Curves "&F$10&"'!$A$14:$A$163"),_xlfn.XLOOKUP(F$11&$J$3,INDIRECT("'Curves "&F$10&"'!$11:$11")&INDIRECT("'Curves "&F$10&"'!$12:$12"),INDIRECT("'Curves "&F$10&"'!$14:$163"),,0,1),,0,1) -> 0.03033698677 | G20: =_xlfn.XLOOKUP($A20,INDIRECT("'Curves "&G$10&"'!$A$14:$A$163"),_xlfn.XLOOKUP(G$11&$J$3,INDIRECT("'Curves "&G$10&"'!$11:$11")&INDIRECT("'Curves "&G$10&"'!$12:$12"),INDIRECT("'Curves "&G$10&"'!$14:$163"),,0,1),,0,1) -> 0.05156235718 | H20: =_xlfn.XLOOKUP($A20,INDIRECT("'Curves "&H$10&"'!$A$14:$A$163"),_xlfn.XLOOKUP(H$11&$J$3,INDIRECT("'Curves "&H$10&"'!$11:$11")&INDIRECT("'Curves "&H$10&"'!$12:$12"),INDIRECT("'Curves "&H$10&"'!$14:$163"),,0,1),,0,1) -> 0.01373592011
A21: 9 | B21: =_xlfn.XLOOKUP($A21,INDIRECT("'Curves "&B$10&"'!$A$14:$A$163"),_xlfn.XLOOKUP(B$11&$J$3,INDIRECT("'Curves "&B$10&"'!$11:$11")&INDIRECT("'Curves "&B$10&"'!$12:$12"),INDIRECT("'Curves "&B$10&"'!$14:$163"),,0,1),,0,1) -> 0.02792521567 | C21: =_xlfn.XLOOKUP($A21,INDIRECT("'Curves "&C$10&"'!$A$14:$A$163"),_xlfn.XLOOKUP(C$11&$J$3,INDIRECT("'Curves "&C$10&"'!$11:$11")&INDIRECT("'Curves "&C$10&"'!$12:$12"),INDIRECT("'Curves "&C$10&"'!$14:$163"),,0,1),,0,1) -> 0.04806128469 | D21: =_xlfn.XLOOKUP($A21,INDIRECT("'Curves "&D$10&"'!$A$14:$A$163"),_xlfn.XLOOKUP(D$11&$J$3,INDIRECT("'Curves "&D$10&"'!$11:$11")&INDIRECT("'Curves "&D$10&"'!$12:$12"),INDIRECT("'Curves "&D$10&"'!$14:$163"),,0,1),,0,1) -> 0.01093438156 | F21: =_xlfn.XLOOKUP($A21,INDIRECT("'Curves "&F$10&"'!$A$14:$A$163"),_xlfn.XLOOKUP(F$11&$J$3,INDIRECT("'Curves "&F$10&"'!$11:$11")&INDIRECT("'Curves "&F$10&"'!$12:$12"),INDIRECT("'Curves "&F$10&"'!$14:$163"),,0,1),,0,1) -> 0.0310243588 | G21: =_xlfn.XLOOKUP($A21,INDIRECT("'Curves "&G$10&"'!$A$14:$A$163"),_xlfn.XLOOKUP(G$11&$J$3,INDIRECT("'Curves "&G$10&"'!$11:$11")&INDIRECT("'Curves "&G$10&"'!$12:$12"),INDIRECT("'Curves "&G$10&"'!$14:$163"),,0,1),,0,1) -> 0.05122113706 | H21: =_xlfn.XLOOKUP($A21,INDIRECT("'Curves "&H$10&"'!$A$14:$A$163"),_xlfn.XLOOKUP(H$11&$J$3,INDIRECT("'Curves "&H$10&"'!$11:$11")&INDIRECT("'Curves "&H$10&"'!$12:$12"),INDIRECT("'Curves "&H$10&"'!$14:$163"),,0,1),,0,1) -> 0.01398229817
A22: 10 | B22: =_xlfn.XLOOKUP($A22,INDIRECT("'Curves "&B$10&"'!$A$14:$A$163"),_xlfn.XLOOKUP(B$11&$J$3,INDIRECT("'Curves "&B$10&"'!$11:$11")&INDIRECT("'Curves "&B$10&"'!$12:$12"),INDIRECT("'Curves "&B$10&"'!$14:$163"),,0,1),,0,1) -> 0.02863084156 | C22: =_xlfn.XLOOKUP($A22,INDIRECT("'Curves "&C$10&"'!$A$14:$A$163"),_xlfn.XLOOKUP(C$11&$J$3,INDIRECT("'Curves "&C$10&"'!$11:$11")&INDIRECT("'Curves "&C$10&"'!$12:$12"),INDIRECT("'Curves "&C$10&"'!$14:$163"),,0,1),,0,1) -> 0.04772009402 | D22: =_xlfn.XLOOKUP($A22,INDIRECT("'Curves "&D$10&"'!$A$14:$A$163"),_xlfn.XLOOKUP(D$11&$J$3,INDIRECT("'Curves "&D$10&"'!$11:$11")&INDIRECT("'Curves "&D$10&"'!$12:$12"),INDIRECT("'Curves "&D$10&"'!$14:$163"),,0,1),,0,1) -> 0.01107850493 | F22: =_xlfn.XLOOKUP($A22,INDIRECT("'Curves "&F$10&"'!$A$14:$A$163"),_xlfn.XLOOKUP(F$11&$J$3,INDIRECT("'Curves "&F$10&"'!$11:$11")&INDIRECT("'Curves "&F$10&"'!$12:$12"),INDIRECT("'Curves "&F$10&"'!$14:$163"),,0,1),,0,1) -> 0.03173211211 | G22: =_xlfn.XLOOKUP($A22,INDIRECT("'Curves "&G$10&"'!$A$14:$A$163"),_xlfn.XLOOKUP(G$11&$J$3,INDIRECT("'Curves "&G$10&"'!$11:$11")&INDIRECT("'Curves "&G$10&"'!$12:$12"),INDIRECT("'Curves "&G$10&"'!$14:$163"),,0,1),,0,1) -> 0.05087891772 | H22: =_xlfn.XLOOKUP($A22,INDIRECT("'Curves "&H$10&"'!$A$14:$A$163"),_xlfn.XLOOKUP(H$11&$J$3,INDIRECT("'Curves "&H$10&"'!$11:$11")&INDIRECT("'Curves "&H$10&"'!$12:$12"),INDIRECT("'Curves "&H$10&"'!$14:$163"),,0,1),,0,1) -> 0.01412685607
A23: 11 | B23: =_xlfn.XLOOKUP($A23,INDIRECT("'Curves "&B$10&"'!$A$14:$A$163"),_xlfn.XLOOKUP(B$11&$J$3,INDIRECT("'Curves "&B$10&"'!$11:$11")&INDIRECT("'Curves "&B$10&"'!$12:$12"),INDIRECT("'Curves "&B$10&"'!$14:$163"),,0,1),,0,1) -> 0.0292081741 | C23: =_xlfn.XLOOKUP($A23,INDIRECT("'Curves "&C$10&"'!$A$14:$A$163"),_xlfn.XLOOKUP(C$11&$J$3,INDIRECT("'Curves "&C$10&"'!$11:$11")&INDIRECT("'Curves "&C$10&"'!$12:$12"),INDIRECT("'Curves "&C$10&"'!$14:$163"),,0,1),,0,1) -> 0.04847062633 | D23: =_xlfn.XLOOKUP($A23,INDIRECT("'Curves "&D$10&"'!$A$14:$A$163"),_xlfn.XLOOKUP(D$11&$J$3,INDIRECT("'Curves "&D$10&"'!$11:$11")&INDIRECT("'Curves "&D$10&"'!$12:$12"),INDIRECT("'Curves "&D$10&"'!$14:$163"),,0,1),,0,1) -> 0.01123282272 | F23: =_xlfn.XLOOKUP($A23,INDIRECT("'Curves "&F$10&"'!$A$14:$A$163"),_xlfn.XLOOKUP(F$11&$J$3,INDIRECT("'Curves "&F$10&"'!$11:$11")&INDIRECT("'Curves "&F$10&"'!$12:$12"),INDIRECT("'Curves "&F$10&"'!$14:$163"),,0,1),,0,1) -> 0.03231118528 | G23: =_xlfn.XLOOKUP($A23,INDIRECT("'Curves "&G$10&"'!$A$14:$A$163"),_xlfn.XLOOKUP(G$11&$J$3,INDIRECT("'Curves "&G$10&"'!$11:$11")&INDIRECT("'Curves "&G$10&"'!$12:$12"),INDIRECT("'Curves "&G$10&"'!$14:$163"),,0,1),,0,1) -> 0.05163171284 | H23: =_xlfn.XLOOKUP($A23,INDIRECT("'Curves "&H$10&"'!$A$14:$A$163"),_xlfn.XLOOKUP(H$11&$J$3,INDIRECT("'Curves "&H$10&"'!$11:$11")&INDIRECT("'Curves "&H$10&"'!$12:$12"),INDIRECT("'Curves "&H$10&"'!$14:$163"),,0,1),,0,1) -> 0.01428163912
A24: 12 | B24: =_xlfn.XLOOKUP($A24,INDIRECT("'Curves "&B$10&"'!$A$14:$A$163"),_xlfn.XLOOKUP(B$11&$J$3,INDIRECT("'Curves "&B$10&"'!$11:$11")&INDIRECT("'Curves "&B$10&"'!$12:$12"),INDIRECT("'Curves "&B$10&"'!$14:$163"),,0,1),,0,1) -> 0.02974789095 | C24: =_xlfn.XLOOKUP($A24,INDIRECT("'Curves "&C$10&"'!$A$14:$A$163"),_xlfn.XLOOKUP(C$11&$J$3,INDIRECT("'Curves "&C$10&"'!$11:$11")&INDIRECT("'Curves "&C$10&"'!$12:$12"),INDIRECT("'Curves "&C$10&"'!$14:$163"),,0,1),,0,1) -> 0.04917225823 | D24: =_xlfn.XLOOKUP($A24,INDIRECT("'Curves "&D$10&"'!$A$14:$A$163"),_xlfn.XLOOKUP(D$11&$J$3,INDIRECT("'Curves "&D$10&"'!$11:$11")&INDIRECT("'Curves "&D$10&"'!$12:$12"),INDIRECT("'Curves "&D$10&"'!$14:$163"),,0,1),,0,1) -> 0.01125377675 | F24: =_xlfn.XLOOKUP($A24,INDIRECT("'Curves "&F$10&"'!$A$14:$A$163"),_xlfn.XLOOKUP(F$11&$J$3,INDIRECT("'Curves "&F$10&"'!$11:$11")&INDIRECT("'Curves "&F$10&"'!$12:$12"),INDIRECT("'Curves "&F$10&"'!$14:$163"),,0,1),,0,1) -> 0.03285252935 | G24: =_xlfn.XLOOKUP($A24,INDIRECT("'Curves "&G$10&"'!$A$14:$A$163"),_xlfn.XLOOKUP(G$11&$J$3,INDIRECT("'Curves "&G$10&"'!$11:$11")&INDIRECT("'Curves "&G$10&"'!$12:$12"),INDIRECT("'Curves "&G$10&"'!$14:$163"),,0,1),,0,1) -> 0.05233546013 | H24: =_xlfn.XLOOKUP($A24,INDIRECT("'Curves "&H$10&"'!$A$14:$A$163"),_xlfn.XLOOKUP(H$11&$J$3,INDIRECT("'Curves "&H$10&"'!$11:$11")&INDIRECT("'Curves "&H$10&"'!$12:$12"),INDIRECT("'Curves "&H$10&"'!$14:$163"),,0,1),,0,1) -> 0.01430265632
A25: 13 | B25: =_xlfn.XLOOKUP($A25,INDIRECT("'Curves "&B$10&"'!$A$14:$A$163"),_xlfn.XLOOKUP(B$11&$J$3,INDIRECT("'Curves "&B$10&"'!$11:$11")&INDIRECT("'Curves "&B$10&"'!$12:$12"),INDIRECT("'Curves "&B$10&"'!$14:$163"),,0,1),,0,1) -> 0.03033330213 | C25: =_xlfn.XLOOKUP($A25,INDIRECT("'Curves "&C$10&"'!$A$14:$A$163"),_xlfn.XLOOKUP(C$11&$J$3,INDIRECT("'Curves "&C$10&"'!$11:$11")&INDIRECT("'Curves "&C$10&"'!$12:$12"),INDIRECT("'Curves "&C$10&"'!$14:$163"),,0,1),,0,1) -> 0.04993329277 | D25: =_xlfn.XLOOKUP($A25,INDIRECT("'Curves "&D$10&"'!$A$14:$A$163"),_xlfn.XLOOKUP(D$11&$J$3,INDIRECT("'Curves "&D$10&"'!$11:$11")&INDIRECT("'Curves "&D$10&"'!$12:$12"),INDIRECT("'Curves "&D$10&"'!$14:$163"),,0,1),,0,1) -> 0.01138998221 | F25: =_xlfn.XLOOKUP($A25,INDIRECT("'Curves "&F$10&"'!$A$14:$A$163"),_xlfn.XLOOKUP(F$11&$J$3,INDIRECT("'Curves "&F$10&"'!$11:$11")&INDIRECT("'Curves "&F$10&"'!$12:$12"),INDIRECT("'Curves "&F$10&"'!$14:$163"),,0,1),,0,1) -> 0.03343970552 | G25: =_xlfn.XLOOKUP($A25,INDIRECT("'Curves "&G$10&"'!$A$14:$A$163"),_xlfn.XLOOKUP(G$11&$J$3,INDIRECT("'Curves "&G$10&"'!$11:$11")&INDIRECT("'Curves "&G$10&"'!$12:$12"),INDIRECT("'Curves "&G$10&"'!$14:$163"),,0,1),,0,1) -> 0.05309878915 | H25: =_xlfn.XLOOKUP($A25,INDIRECT("'Curves "&H$10&"'!$A$14:$A$163"),_xlfn.XLOOKUP(H$11&$J$3,INDIRECT("'Curves "&H$10&"'!$11:$11")&INDIRECT("'Curves "&H$10&"'!$12:$12"),INDIRECT("'Curves "&H$10&"'!$14:$163"),,0,1),,0,1) -> 0.01443927244
A26: 14 | B26: =_xlfn.XLOOKUP($A26,INDIRECT("'Curves "&B$10&"'!$A$14:$A$163"),_xlfn.XLOOKUP(B$11&$J$3,INDIRECT("'Curves "&B$10&"'!$11:$11")&INDIRECT("'Curves "&B$10&"'!$12:$12"),INDIRECT("'Curves "&B$10&"'!$14:$163"),,0,1),,0,1) -> 0.03072993256 | C26: =_xlfn.XLOOKUP($A26,INDIRECT("'Curves "&C$10&"'!$A$14:$A$163"),_xlfn.XLOOKUP(C$11&$J$3,INDIRECT("'Curves "&C$10&"'!$11:$11")&INDIRECT("'Curves "&C$10&"'!$12:$12"),INDIRECT("'Curves "&C$10&"'!$14:$163"),,0,1),,0,1) -> 0.049841613 | D26: =_xlfn.XLOOKUP($A26,INDIRECT("'Curves "&D$10&"'!$A$14:$A$163"),_xlfn.XLOOKUP(D$11&$J$3,INDIRECT("'Curves "&D$10&"'!$11:$11")&INDIRECT("'Curves "&D$10&"'!$12:$12"),INDIRECT("'Curves "&D$10&"'!$14:$163"),,0,1),,0,1) -> 0.01140876223 | F26: =_xlfn.XLOOKUP($A26,INDIRECT("'Curves "&F$10&"'!$A$14:$A$163"),_xlfn.XLOOKUP(F$11&$J$3,INDIRECT("'Curves "&F$10&"'!$11:$11")&INDIRECT("'Curves "&F$10&"'!$12:$12"),INDIRECT("'Curves "&F$10&"'!$14:$163"),,0,1),,0,1) -> 0.03383753177 | G26: =_xlfn.XLOOKUP($A26,INDIRECT("'Curves "&G$10&"'!$A$14:$A$163"),_xlfn.XLOOKUP(G$11&$J$3,INDIRECT("'Curves "&G$10&"'!$11:$11")&INDIRECT("'Curves "&G$10&"'!$12:$12"),INDIRECT("'Curves "&G$10&"'!$14:$163"),,0,1),,0,1) -> 0.05300683297 | H26: =_xlfn.XLOOKUP($A26,INDIRECT("'Curves "&H$10&"'!$A$14:$A$163"),_xlfn.XLOOKUP(H$11&$J$3,INDIRECT("'Curves "&H$10&"'!$11:$11")&INDIRECT("'Curves "&H$10&"'!$12:$12"),INDIRECT("'Curves "&H$10&"'!$14:$163"),,0,1),,0,1) -> 0.01445810908
A27: 15 | B27: =_xlfn.XLOOKUP($A27,INDIRECT("'Curves "&B$10&"'!$A$14:$A$163"),_xlfn.XLOOKUP(B$11&$J$3,INDIRECT("'Curves "&B$10&"'!$11:$11")&INDIRECT("'Curves "&B$10&"'!$12:$12"),INDIRECT("'Curves "&B$10&"'!$14:$163"),,0,1),,0,1) -> 0.03107380243 | C27: =_xlfn.XLOOKUP($A27,INDIRECT("'Curves "&C$10&"'!$A$14:$A$163"),_xlfn.XLOOKUP(C$11&$J$3,INDIRECT("'Curves "&C$10&"'!$11:$11")&INDIRECT("'Curves "&C$10&"'!$12:$12"),INDIRECT("'Curves "&C$10&"'!$14:$163"),,0,1),,0,1) -> 0.04957446712 | D27: =_xlfn.XLOOKUP($A27,INDIRECT("'Curves "&D$10&"'!$A$14:$A$163"),_xlfn.XLOOKUP(D$11&$J$3,INDIRECT("'Curves "&D$10&"'!$11:$11")&INDIRECT("'Curves "&D$10&"'!$12:$12"),INDIRECT("'Curves "&D$10&"'!$14:$163"),,0,1),,0,1) -> 0.01139059134 | F27: =_xlfn.XLOOKUP($A27,INDIRECT("'Curves "&F$10&"'!$A$14:$A$163"),_xlfn.XLOOKUP(F$11&$J$3,INDIRECT("'Curves "&F$10&"'!$11:$11")&INDIRECT("'Curves "&F$10&"'!$12:$12"),INDIRECT("'Curves "&F$10&"'!$14:$163"),,0,1),,0,1) -> 0.03418243839 | G27: =_xlfn.XLOOKUP($A27,INDIRECT("'Curves "&G$10&"'!$A$14:$A$163"),_xlfn.XLOOKUP(G$11&$J$3,INDIRECT("'Curves "&G$10&"'!$11:$11")&INDIRECT("'Curves "&G$10&"'!$12:$12"),INDIRECT("'Curves "&G$10&"'!$14:$163"),,0,1),,0,1) -> 0.05273888165 | H27: =_xlfn.XLOOKUP($A27,INDIRECT("'Curves "&H$10&"'!$A$14:$A$163"),_xlfn.XLOOKUP(H$11&$J$3,INDIRECT("'Curves "&H$10&"'!$11:$11")&INDIRECT("'Curves "&H$10&"'!$12:$12"),INDIRECT("'Curves "&H$10&"'!$14:$163"),,0,1),,0,1) -> 0.0144398834
A28: 16 | B28: =_xlfn.XLOOKUP($A28,INDIRECT("'Curves "&B$10&"'!$A$14:$A$163"),_xlfn.XLOOKUP(B$11&$J$3,INDIRECT("'Curves "&B$10&"'!$11:$11")&INDIRECT("'Curves "&B$10&"'!$12:$12"),INDIRECT("'Curves "&B$10&"'!$14:$163"),,0,1),,0,1) -> 0.03132792881 | C28: =_xlfn.XLOOKUP($A28,INDIRECT("'Curves "&C$10&"'!$A$14:$A$163"),_xlfn.XLOOKUP(C$11&$J$3,INDIRECT("'Curves "&C$10&"'!$11:$11")&INDIRECT("'Curves "&C$10&"'!$12:$12"),INDIRECT("'Curves "&C$10&"'!$14:$163"),,0,1),,0,1) -> 0.04989974887 | D28: =_xlfn.XLOOKUP($A28,INDIRECT("'Curves "&D$10&"'!$A$14:$A$163"),_xlfn.XLOOKUP(D$11&$J$3,INDIRECT("'Curves "&D$10&"'!$11:$11")&INDIRECT("'Curves "&D$10&"'!$12:$12"),INDIRECT("'Curves "&D$10&"'!$14:$163"),,0,1),,0,1) -> 0.01100380227 | F28: =_xlfn.XLOOKUP($A28,INDIRECT("'Curves "&F$10&"'!$A$14:$A$163"),_xlfn.XLOOKUP(F$11&$J$3,INDIRECT("'Curves "&F$10&"'!$11:$11")&INDIRECT("'Curves "&F$10&"'!$12:$12"),INDIRECT("'Curves "&F$10&"'!$14:$163"),,0,1),,0,1) -> 0.03443733095 | G28: =_xlfn.XLOOKUP($A28,INDIRECT("'Curves "&G$10&"'!$A$14:$A$163"),_xlfn.XLOOKUP(G$11&$J$3,INDIRECT("'Curves "&G$10&"'!$11:$11")&INDIRECT("'Curves "&G$10&"'!$12:$12"),INDIRECT("'Curves "&G$10&"'!$14:$163"),,0,1),,0,1) -> 0.05306514412 | H28: =_xlfn.XLOOKUP($A28,INDIRECT("'Curves "&H$10&"'!$A$14:$A$163"),_xlfn.XLOOKUP(H$11&$J$3,INDIRECT("'Curves "&H$10&"'!$11:$11")&INDIRECT("'Curves "&H$10&"'!$12:$12"),INDIRECT("'Curves "&H$10&"'!$14:$163"),,0,1),,0,1) -> 0.01405192818
A29: 17 | B29: =_xlfn.XLOOKUP($A29,INDIRECT("'Curves "&B$10&"'!$A$14:$A$163"),_xlfn.XLOOKUP(B$11&$J$3,INDIRECT("'Curves "&B$10&"'!$11:$11")&INDIRECT("'Curves "&B$10&"'!$12:$12"),INDIRECT("'Curves "&B$10&"'!$14:$163"),,0,1),,0,1) -> 0.03155220997 | C29: =_xlfn.XLOOKUP($A29,INDIRECT("'Curves "&C$10&"'!$A$14:$A$163"),_xlfn.XLOOKUP(C$11&$J$3,INDIRECT("'Curves "&C$10&"'!$11:$11")&INDIRECT("'Curves "&C$10&"'!$12:$12"),INDIRECT("'Curves "&C$10&"'!$14:$163"),,0,1),,0,1) -> 0.04957130667 | D29: =_xlfn.XLOOKUP($A29,INDIRECT("'Curves "&D$10&"'!$A$14:$A$163"),_xlfn.XLOOKUP(D$11&$J$3,INDIRECT("'Curves "&D$10&"'!$11:$11")&INDIRECT("'Curves "&D$10&"'!$12:$12"),INDIRECT("'Curves "&D$10&"'!$14:$163"),,0,1),,0,1) -> 0.01090714919 | F29: =_xlfn.XLOOKUP($A29,INDIRECT("'Curves "&F$10&"'!$A$14:$A$163"),_xlfn.XLOOKUP(F$11&$J$3,INDIRECT("'Curves "&F$10&"'!$11:$11")&INDIRECT("'Curves "&F$10&"'!$12:$12"),INDIRECT("'Curves "&F$10&"'!$14:$163"),,0,1),,0,1) -> 0.03466228831 | G29: =_xlfn.XLOOKUP($A29,INDIRECT("'Curves "&G$10&"'!$A$14:$A$163"),_xlfn.XLOOKUP(G$11&$J$3,INDIRECT("'Curves "&G$10&"'!$11:$11")&INDIRECT("'Curves "&G$10&"'!$12:$12"),INDIRECT("'Curves "&G$10&"'!$14:$163"),,0,1),,0,1) -> 0.05273571168 | H29: =_xlfn.XLOOKUP($A29,INDIRECT("'Curves "&H$10&"'!$A$14:$A$163"),_xlfn.XLOOKUP(H$11&$J$3,INDIRECT("'Curves "&H$10&"'!$11:$11")&INDIRECT("'Curves "&H$10&"'!$12:$12"),INDIRECT("'Curves "&H$10&"'!$14:$163"),,0,1),,0,1) -> 0.0139549837
A30: 18 | B30: =_xlfn.XLOOKUP($A30,INDIRECT("'Curves "&B$10&"'!$A$14:$A$163"),_xlfn.XLOOKUP(B$11&$J$3,INDIRECT("'Curves "&B$10&"'!$11:$11")&INDIRECT("'Curves "&B$10&"'!$12:$12"),INDIRECT("'Curves "&B$10&"'!$14:$163"),,0,1),,0,1) -> 0.03175161196 | C30: =_xlfn.XLOOKUP($A30,INDIRECT("'Curves "&C$10&"'!$A$14:$A$163"),_xlfn.XLOOKUP(C$11&$J$3,INDIRECT("'Curves "&C$10&"'!$11:$11")&INDIRECT("'Curves "&C$10&"'!$12:$12"),INDIRECT("'Curves "&C$10&"'!$14:$163"),,0,1),,0,1) -> 0.04910703107 | D30: =_xlfn.XLOOKUP($A30,INDIRECT("'Curves "&D$10&"'!$A$14:$A$163"),_xlfn.XLOOKUP(D$11&$J$3,INDIRECT("'Curves "&D$10&"'!$11:$11")&INDIRECT("'Curves "&D$10&"'!$12:$12"),INDIRECT("'Curves "&D$10&"'!$14:$163"),,0,1),,0,1) -> 0.0107933221 | F30: =_xlfn.XLOOKUP($A30,INDIRECT("'Curves "&F$10&"'!$A$14:$A$163"),_xlfn.XLOOKUP(F$11&$J$3,INDIRECT("'Curves "&F$10&"'!$11:$11")&INDIRECT("'Curves "&F$10&"'!$12:$12"),INDIRECT("'Curves "&F$10&"'!$14:$163"),,0,1),,0,1) -> 0.03486229148 | G30: =_xlfn.XLOOKUP($A30,INDIRECT("'Curves "&G$10&"'!$A$14:$A$163"),_xlfn.XLOOKUP(G$11&$J$3,INDIRECT("'Curves "&G$10&"'!$11:$11")&INDIRECT("'Curves "&G$10&"'!$12:$12"),INDIRECT("'Curves "&G$10&"'!$14:$163"),,0,1),,0,1) -> 0.05227003631 | H30: =_xlfn.XLOOKUP($A30,INDIRECT("'Curves "&H$10&"'!$A$14:$A$163"),_xlfn.XLOOKUP(H$11&$J$3,INDIRECT("'Curves "&H$10&"'!$11:$11")&INDIRECT("'Curves "&H$10&"'!$12:$12"),INDIRECT("'Curves "&H$10&"'!$14:$163"),,0,1),,0,1) -> 0.01384081343
A31: 19 | B31: =_xlfn.XLOOKUP($A31,INDIRECT("'Curves "&B$10&"'!$A$14:$A$163"),_xlfn.XLOOKUP(B$11&$J$3,INDIRECT("'Curves "&B$10&"'!$11:$11")&INDIRECT("'Curves "&B$10&"'!$12:$12"),INDIRECT("'Curves "&B$10&"'!$14:$163"),,0,1),,0,1) -> 0.03193005693 | C31: =_xlfn.XLOOKUP($A31,INDIRECT("'Curves "&C$10&"'!$A$14:$A$163"),_xlfn.XLOOKUP(C$11&$J$3,INDIRECT("'Curves "&C$10&"'!$11:$11")&INDIRECT("'Curves "&C$10&"'!$12:$12"),INDIRECT("'Curves "&C$10&"'!$14:$163"),,0,1),,0,1) -> 0.04933187173 | D31: =_xlfn.XLOOKUP($A31,INDIRECT("'Curves "&D$10&"'!$A$14:$A$163"),_xlfn.XLOOKUP(D$11&$J$3,INDIRECT("'Curves "&D$10&"'!$11:$11")&INDIRECT("'Curves "&D$10&"'!$12:$12"),INDIRECT("'Curves "&D$10&"'!$14:$163"),,0,1),,0,1) -> 0.01108432904 | F31: =_xlfn.XLOOKUP($A31,INDIRECT("'Curves "&F$10&"'!$A$14:$A$163"),_xlfn.XLOOKUP(F$11&$J$3,INDIRECT("'Curves "&F$10&"'!$11:$11")&INDIRECT("'Curves "&F$10&"'!$12:$12"),INDIRECT("'Curves "&F$10&"'!$14:$163"),,0,1),,0,1) -> 0.03504127446 | G31: =_xlfn.XLOOKUP($A31,INDIRECT("'Curves "&G$10&"'!$A$14:$A$163"),_xlfn.XLOOKUP(G$11&$J$3,INDIRECT("'Curves "&G$10&"'!$11:$11")&INDIRECT("'Curves "&G$10&"'!$12:$12"),INDIRECT("'Curves "&G$10&"'!$14:$163"),,0,1),,0,1) -> 0.05249555486 | H31: =_xlfn.XLOOKUP($A31,INDIRECT("'Curves "&H$10&"'!$A$14:$A$163"),_xlfn.XLOOKUP(H$11&$J$3,INDIRECT("'Curves "&H$10&"'!$11:$11")&INDIRECT("'Curves "&H$10&"'!$12:$12"),INDIRECT("'Curves "&H$10&"'!$14:$163"),,0,1),,0,1) -> 0.01413269773
A32: 20 | B32: =_xlfn.XLOOKUP($A32,INDIRECT("'Curves "&B$10&"'!$A$14:$A$163"),_xlfn.XLOOKUP(B$11&$J$3,INDIRECT("'Curves "&B$10&"'!$11:$11")&INDIRECT("'Curves "&B$10&"'!$12:$12"),INDIRECT("'Curves "&B$10&"'!$14:$163"),,0,1),,0,1) -> 0.03209068379 | C32: =_xlfn.XLOOKUP($A32,INDIRECT("'Curves "&C$10&"'!$A$14:$A$163"),_xlfn.XLOOKUP(C$11&$J$3,INDIRECT("'Curves "&C$10&"'!$11:$11")&INDIRECT("'Curves "&C$10&"'!$12:$12"),INDIRECT("'Curves "&C$10&"'!$14:$163"),,0,1),,0,1) -> 0.04891335474 | D32: =_xlfn.XLOOKUP($A32,INDIRECT("'Curves "&D$10&"'!$A$14:$A$163"),_xlfn.XLOOKUP(D$11&$J$3,INDIRECT("'Curves "&D$10&"'!$11:$11")&INDIRECT("'Curves "&D$10&"'!$12:$12"),INDIRECT("'Curves "&D$10&"'!$14:$163"),,0,1),,0,1) -> 0.0110453419 | F32: =_xlfn.XLOOKUP($A32,INDIRECT("'Curves "&F$10&"'!$A$14:$A$163"),_xlfn.XLOOKUP(F$11&$J$3,INDIRECT("'Curves "&F$10&"'!$11:$11")&INDIRECT("'Curves "&F$10&"'!$12:$12"),INDIRECT("'Curves "&F$10&"'!$14:$163"),,0,1),,0,1) -> 0.0352023856 | G32: =_xlfn.XLOOKUP($A32,INDIRECT("'Curves "&G$10&"'!$A$14:$A$163"),_xlfn.XLOOKUP(G$11&$J$3,INDIRECT("'Curves "&G$10&"'!$11:$11")&INDIRECT("'Curves "&G$10&"'!$12:$12"),INDIRECT("'Curves "&G$10&"'!$14:$163"),,0,1),,0,1) -> 0.05207577606 | H32: =_xlfn.XLOOKUP($A32,INDIRECT("'Curves "&H$10&"'!$A$14:$A$163"),_xlfn.XLOOKUP(H$11&$J$3,INDIRECT("'Curves "&H$10&"'!$11:$11")&INDIRECT("'Curves "&H$10&"'!$12:$12"),INDIRECT("'Curves "&H$10&"'!$14:$163"),,0,1),,0,1) -> 0.01409359305
A33: 21 | B33: =_xlfn.XLOOKUP($A33,INDIRECT("'Curves "&B$10&"'!$A$14:$A$163"),_xlfn.XLOOKUP(B$11&$J$3,INDIRECT("'Curves "&B$10&"'!$11:$11")&INDIRECT("'Curves "&B$10&"'!$12:$12"),INDIRECT("'Curves "&B$10&"'!$14:$163"),,0,1),,0,1) -> 0.03212370532 | C33: =_xlfn.XLOOKUP($A33,INDIRECT("'Curves "&C$10&"'!$A$14:$A$163"),_xlfn.XLOOKUP(C$11&$J$3,INDIRECT("'Curves "&C$10&"'!$11:$11")&INDIRECT("'Curves "&C$10&"'!$12:$12"),INDIRECT("'Curves "&C$10&"'!$14:$163"),,0,1),,0,1) -> 0.04853209862 | D33: =_xlfn.XLOOKUP($A33,INDIRECT("'Curves "&D$10&"'!$A$14:$A$163"),_xlfn.XLOOKUP(D$11&$J$3,INDIRECT("'Curves "&D$10&"'!$11:$11")&INDIRECT("'Curves "&D$10&"'!$12:$12"),INDIRECT("'Curves "&D$10&"'!$14:$163"),,0,1),,0,1) -> 0.01105712174 | F33: =_xlfn.XLOOKUP($A33,INDIRECT("'Curves "&F$10&"'!$A$14:$A$163"),_xlfn.XLOOKUP(F$11&$J$3,INDIRECT("'Curves "&F$10&"'!$11:$11")&INDIRECT("'Curves "&F$10&"'!$12:$12"),INDIRECT("'Curves "&F$10&"'!$14:$163"),,0,1),,0,1) -> 0.03513348349 | G33: =_xlfn.XLOOKUP($A33,INDIRECT("'Curves "&G$10&"'!$A$14:$A$163"),_xlfn.XLOOKUP(G$11&$J$3,INDIRECT("'Curves "&G$10&"'!$11:$11")&INDIRECT("'Curves "&G$10&"'!$12:$12"),INDIRECT("'Curves "&G$10&"'!$14:$163"),,0,1),,0,1) -> 0.05158972534 | H33: =_xlfn.XLOOKUP($A33,INDIRECT("'Curves "&H$10&"'!$A$14:$A$163"),_xlfn.XLOOKUP(H$11&$J$3,INDIRECT("'Curves "&H$10&"'!$11:$11")&INDIRECT("'Curves "&H$10&"'!$12:$12"),INDIRECT("'Curves "&H$10&"'!$14:$163"),,0,1),,0,1) -> 0.01400546759
A34: 22 | B34: =_xlfn.XLOOKUP($A34,INDIRECT("'Curves "&B$10&"'!$A$14:$A$163"),_xlfn.XLOOKUP(B$11&$J$3,INDIRECT("'Curves "&B$10&"'!$11:$11")&INDIRECT("'Curves "&B$10&"'!$12:$12"),INDIRECT("'Curves "&B$10&"'!$14:$163"),,0,1),,0,1) -> 0.0321547461 | C34: =_xlfn.XLOOKUP($A34,INDIRECT("'Curves "&C$10&"'!$A$14:$A$163"),_xlfn.XLOOKUP(C$11&$J$3,INDIRECT("'Curves "&C$10&"'!$11:$11")&INDIRECT("'Curves "&C$10&"'!$12:$12"),INDIRECT("'Curves "&C$10&"'!$14:$163"),,0,1),,0,1) -> 0.04815484206 | D34: =_xlfn.XLOOKUP($A34,INDIRECT("'Curves "&D$10&"'!$A$14:$A$163"),_xlfn.XLOOKUP(D$11&$J$3,INDIRECT("'Curves "&D$10&"'!$11:$11")&INDIRECT("'Curves "&D$10&"'!$12:$12"),INDIRECT("'Curves "&D$10&"'!$14:$163"),,0,1),,0,1) -> 0.01116254836 | F34: =_xlfn.XLOOKUP($A34,INDIRECT("'Curves "&F$10&"'!$A$14:$A$163"),_xlfn.XLOOKUP(F$11&$J$3,INDIRECT("'Curves "&F$10&"'!$11:$11")&INDIRECT("'Curves "&F$10&"'!$12:$12"),INDIRECT("'Curves "&F$10&"'!$14:$163"),,0,1),,0,1) -> 0.03506726189 | G34: =_xlfn.XLOOKUP($A34,INDIRECT("'Curves "&G$10&"'!$A$14:$A$163"),_xlfn.XLOOKUP(G$11&$J$3,INDIRECT("'Curves "&G$10&"'!$11:$11")&INDIRECT("'Curves "&G$10&"'!$12:$12"),INDIRECT("'Curves "&G$10&"'!$14:$163"),,0,1),,0,1) -> 0.05111250663 | H34: =_xlfn.XLOOKUP($A34,INDIRECT("'Curves "&H$10&"'!$A$14:$A$163"),_xlfn.XLOOKUP(H$11&$J$3,INDIRECT("'Curves "&H$10&"'!$11:$11")&INDIRECT("'Curves "&H$10&"'!$12:$12"),INDIRECT("'Curves "&H$10&"'!$14:$163"),,0,1),,0,1) -> 0.01401582874
A35: 23 | B35: =_xlfn.XLOOKUP($A35,INDIRECT("'Curves "&B$10&"'!$A$14:$A$163"),_xlfn.XLOOKUP(B$11&$J$3,INDIRECT("'Curves "&B$10&"'!$11:$11")&INDIRECT("'Curves "&B$10&"'!$12:$12"),INDIRECT("'Curves "&B$10&"'!$14:$163"),,0,1),,0,1) -> 0.0321839628 | C35: =_xlfn.XLOOKUP($A35,INDIRECT("'Curves "&C$10&"'!$A$14:$A$163"),_xlfn.XLOOKUP(C$11&$J$3,INDIRECT("'Curves "&C$10&"'!$11:$11")&INDIRECT("'Curves "&C$10&"'!$12:$12"),INDIRECT("'Curves "&C$10&"'!$14:$163"),,0,1),,0,1) -> 0.04778414315 | D35: =_xlfn.XLOOKUP($A35,INDIRECT("'Curves "&D$10&"'!$A$14:$A$163"),_xlfn.XLOOKUP(D$11&$J$3,INDIRECT("'Curves "&D$10&"'!$11:$11")&INDIRECT("'Curves "&D$10&"'!$12:$12"),INDIRECT("'Curves "&D$10&"'!$14:$163"),,0,1),,0,1) -> 0.01133999388 | F35: =_xlfn.XLOOKUP($A35,INDIRECT("'Curves "&F$10&"'!$A$14:$A$163"),_xlfn.XLOOKUP(F$11&$J$3,INDIRECT("'Curves "&F$10&"'!$11:$11")&INDIRECT("'Curves "&F$10&"'!$12:$12"),INDIRECT("'Curves "&F$10&"'!$14:$163"),,0,1),,0,1) -> 0.03500372869 | G35: =_xlfn.XLOOKUP($A35,INDIRECT("'Curves "&G$10&"'!$A$14:$A$163"),_xlfn.XLOOKUP(G$11&$J$3,INDIRECT("'Curves "&G$10&"'!$11:$11")&INDIRECT("'Curves "&G$10&"'!$12:$12"),INDIRECT("'Curves "&G$10&"'!$14:$163"),,0,1),,0,1) -> 0.0506465263 | H35: =_xlfn.XLOOKUP($A35,INDIRECT("'Curves "&H$10&"'!$A$14:$A$163"),_xlfn.XLOOKUP(H$11&$J$3,INDIRECT("'Curves "&H$10&"'!$11:$11")&INDIRECT("'Curves "&H$10&"'!$12:$12"),INDIRECT("'Curves "&H$10&"'!$14:$163"),,0,1),,0,1) -> 0.01410281729
A36: 24 | B36: =_xlfn.XLOOKUP($A36,INDIRECT("'Curves "&B$10&"'!$A$14:$A$163"),_xlfn.XLOOKUP(B$11&$J$3,INDIRECT("'Curves "&B$10&"'!$11:$11")&INDIRECT("'Curves "&B$10&"'!$12:$12"),INDIRECT("'Curves "&B$10&"'!$14:$163"),,0,1),,0,1) -> 0.03221149612 | C36: =_xlfn.XLOOKUP($A36,INDIRECT("'Curves "&C$10&"'!$A$14:$A$163"),_xlfn.XLOOKUP(C$11&$J$3,INDIRECT("'Curves "&C$10&"'!$11:$11")&INDIRECT("'Curves "&C$10&"'!$12:$12"),INDIRECT("'Curves "&C$10&"'!$14:$163"),,0,1),,0,1) -> 0.04742182359 | D36: =_xlfn.XLOOKUP($A36,INDIRECT("'Curves "&D$10&"'!$A$14:$A$163"),_xlfn.XLOOKUP(D$11&$J$3,INDIRECT("'Curves "&D$10&"'!$11:$11")&INDIRECT("'Curves "&D$10&"'!$12:$12"),INDIRECT("'Curves "&D$10&"'!$14:$163"),,0,1),,0,1) -> 0.01157238697 | F36: =_xlfn.XLOOKUP($A36,INDIRECT("'Curves "&F$10&"'!$A$14:$A$163"),_xlfn.XLOOKUP(F$11&$J$3,INDIRECT("'Curves "&F$10&"'!$11:$11")&INDIRECT("'Curves "&F$10&"'!$12:$12"),INDIRECT("'Curves "&F$10&"'!$14:$163"),,0,1),,0,1) -> 0.03494285471 | G36: =_xlfn.XLOOKUP($A36,INDIRECT("'Curves "&G$10&"'!$A$14:$A$163"),_xlfn.XLOOKUP(G$11&$J$3,INDIRECT("'Curves "&G$10&"'!$11:$11")&INDIRECT("'Curves "&G$10&"'!$12:$12"),INDIRECT("'Curves "&G$10&"'!$14:$163"),,0,1),,0,1) -> 0.05019343057 | H36: =_xlfn.XLOOKUP($A36,INDIRECT("'Curves "&H$10&"'!$A$14:$A$163"),_xlfn.XLOOKUP(H$11&$J$3,INDIRECT("'Curves "&H$10&"'!$11:$11")&INDIRECT("'Curves "&H$10&"'!$12:$12"),INDIRECT("'Curves "&H$10&"'!$14:$163"),,0,1),,0,1) -> 0.01424913194
A37: 25 | B37: =_xlfn.XLOOKUP($A37,INDIRECT("'Curves "&B$10&"'!$A$14:$A$163"),_xlfn.XLOOKUP(B$11&$J$3,INDIRECT("'Curves "&B$10&"'!$11:$11")&INDIRECT("'Curves "&B$10&"'!$12:$12"),INDIRECT("'Curves "&B$10&"'!$14:$163"),,0,1),,0,1) -> 0.03223747296 | C37: =_xlfn.XLOOKUP($A37,INDIRECT("'Curves "&C$10&"'!$A$14:$A$163"),_xlfn.XLOOKUP(C$11&$J$3,INDIRECT("'Curves "&C$10&"'!$11:$11")&INDIRECT("'Curves "&C$10&"'!$12:$12"),INDIRECT("'Curves "&C$10&"'!$14:$163"),,0,1),,0,1) -> 0.04706914726 | D37: =_xlfn.XLOOKUP($A37,INDIRECT("'Curves "&D$10&"'!$A$14:$A$163"),_xlfn.XLOOKUP(D$11&$J$3,INDIRECT("'Curves "&D$10&"'!$11:$11")&INDIRECT("'Curves "&D$10&"'!$12:$12"),INDIRECT("'Curves "&D$10&"'!$14:$163"),,0,1),,0,1) -> 0.01184620066 | F37: =_xlfn.XLOOKUP($A37,INDIRECT("'Curves "&F$10&"'!$A$14:$A$163"),_xlfn.XLOOKUP(F$11&$J$3,INDIRECT("'Curves "&F$10&"'!$11:$11")&INDIRECT("'Curves "&F$10&"'!$12:$12"),INDIRECT("'Curves "&F$10&"'!$14:$163"),,0,1),,0,1) -> 0.03488458469 | G37: =_xlfn.XLOOKUP($A37,INDIRECT("'Curves "&G$10&"'!$A$14:$A$163"),_xlfn.XLOOKUP(G$11&$J$3,INDIRECT("'Curves "&G$10&"'!$11:$11")&INDIRECT("'Curves "&G$10&"'!$12:$12"),INDIRECT("'Curves "&G$10&"'!$14:$163"),,0,1),,0,1) -> 0.04975429394 | H37: =_xlfn.XLOOKUP($A37,INDIRECT("'Curves "&H$10&"'!$A$14:$A$163"),_xlfn.XLOOKUP(H$11&$J$3,INDIRECT("'Curves "&H$10&"'!$11:$11")&INDIRECT("'Curves "&H$10&"'!$12:$12"),INDIRECT("'Curves "&H$10&"'!$14:$163"),,0,1),,0,1) -> 0.01444102018
A38: 26 | B38: =_xlfn.XLOOKUP($A38,INDIRECT("'Curves "&B$10&"'!$A$14:$A$163"),_xlfn.XLOOKUP(B$11&$J$3,INDIRECT("'Curves "&B$10&"'!$11:$11")&INDIRECT("'Curves "&B$10&"'!$12:$12"),INDIRECT("'Curves "&B$10&"'!$14:$163"),,0,1),,0,1) -> 0.03226200824 | C38: =_xlfn.XLOOKUP($A38,INDIRECT("'Curves "&C$10&"'!$A$14:$A$163"),_xlfn.XLOOKUP(C$11&$J$3,INDIRECT("'Curves "&C$10&"'!$11:$11")&INDIRECT("'Curves "&C$10&"'!$12:$12"),INDIRECT("'Curves "&C$10&"'!$14:$163"),,0,1),,0,1) -> 0.04672695438 | D38: =_xlfn.XLOOKUP($A38,INDIRECT("'Curves "&D$10&"'!$A$14:$A$163"),_xlfn.XLOOKUP(D$11&$J$3,INDIRECT("'Curves "&D$10&"'!$11:$11")&INDIRECT("'Curves "&D$10&"'!$12:$12"),INDIRECT("'Curves "&D$10&"'!$14:$163"),,0,1),,0,1) -> 0.01215068579 | F38: =_xlfn.XLOOKUP($A38,INDIRECT("'Curves "&F$10&"'!$A$14:$A$163"),_xlfn.XLOOKUP(F$11&$J$3,INDIRECT("'Curves "&F$10&"'!$11:$11")&INDIRECT("'Curves "&F$10&"'!$12:$12"),INDIRECT("'Curves "&F$10&"'!$14:$163"),,0,1),,0,1) -> 0.03482884545 | G38: =_xlfn.XLOOKUP($A38,INDIRECT("'Curves "&G$10&"'!$A$14:$A$163"),_xlfn.XLOOKUP(G$11&$J$3,INDIRECT("'Curves "&G$10&"'!$11:$11")&INDIRECT("'Curves "&G$10&"'!$12:$12"),INDIRECT("'Curves "&G$10&"'!$14:$163"),,0,1),,0,1) -> 0.04932976032 | H38: =_xlfn.XLOOKUP($A38,INDIRECT("'Curves "&H$10&"'!$A$14:$A$163"),_xlfn.XLOOKUP(H$11&$J$3,INDIRECT("'Curves "&H$10&"'!$11:$11")&INDIRECT("'Curves "&H$10&"'!$12:$12"),INDIRECT("'Curves "&H$10&"'!$14:$163"),,0,1),,0,1) -> 0.0146675139
A39: 27 | B39: =_xlfn.XLOOKUP($A39,INDIRECT("'Curves "&B$10&"'!$A$14:$A$163"),_xlfn.XLOOKUP(B$11&$J$3,INDIRECT("'Curves "&B$10&"'!$11:$11")&INDIRECT("'Curves "&B$10&"'!$12:$12"),INDIRECT("'Curves "&B$10&"'!$14:$163"),,0,1),,0,1) -> 0.03228520632 | C39: =_xlfn.XLOOKUP($A39,INDIRECT("'Curves "&C$10&"'!$A$14:$A$163"),_xlfn.XLOOKUP(C$11&$J$3,INDIRECT("'Curves "&C$10&"'!$11:$11")&INDIRECT("'Curves "&C$10&"'!$12:$12"),INDIRECT("'Curves "&C$10&"'!$14:$163"),,0,1),,0,1) -> 0.04639576317 | D39: =_xlfn.XLOOKUP($A39,INDIRECT("'Curves "&D$10&"'!$A$14:$A$163"),_xlfn.XLOOKUP(D$11&$J$3,INDIRECT("'Curves "&D$10&"'!$11:$11")&INDIRECT("'Curves "&D$10&"'!$12:$12"),INDIRECT("'Curves "&D$10&"'!$14:$163"),,0,1),,0,1) -> 0.01247728457 | F39: =_xlfn.XLOOKUP($A39,INDIRECT("'Curves "&F$10&"'!$A$14:$A$163"),_xlfn.XLOOKUP(F$11&$J$3,INDIRECT("'Curves "&F$10&"'!$11:$11")&INDIRECT("'Curves "&F$10&"'!$12:$12"),INDIRECT("'Curves "&F$10&"'!$14:$163"),,0,1),,0,1) -> 0.03477555177 | G39: =_xlfn.XLOOKUP($A39,INDIRECT("'Curves "&G$10&"'!$A$14:$A$163"),_xlfn.XLOOKUP(G$11&$J$3,INDIRECT("'Curves "&G$10&"'!$11:$11")&INDIRECT("'Curves "&G$10&"'!$12:$12"),INDIRECT("'Curves "&G$10&"'!$14:$163"),,0,1),,0,1) -> 0.04892014975 | H39: =_xlfn.XLOOKUP($A39,INDIRECT("'Curves "&H$10&"'!$A$14:$A$163"),_xlfn.XLOOKUP(H$11&$J$3,INDIRECT("'Curves "&H$10&"'!$11:$11")&INDIRECT("'Curves "&H$10&"'!$12:$12"),INDIRECT("'Curves "&H$10&"'!$14:$163"),,0,1),,0,1) -> 0.01491984423
A40: 28 | B40: =_xlfn.XLOOKUP($A40,INDIRECT("'Curves "&B$10&"'!$A$14:$A$163"),_xlfn.XLOOKUP(B$11&$J$3,INDIRECT("'Curves "&B$10&"'!$11:$11")&INDIRECT("'Curves "&B$10&"'!$12:$12"),INDIRECT("'Curves "&B$10&"'!$14:$163"),,0,1),,0,1) -> 0.03230716226 | C40: =_xlfn.XLOOKUP($A40,INDIRECT("'Curves "&C$10&"'!$A$14:$A$163"),_xlfn.XLOOKUP(C$11&$J$3,INDIRECT("'Curves "&C$10&"'!$11:$11")&INDIRECT("'Curves "&C$10&"'!$12:$12"),INDIRECT("'Curves "&C$10&"'!$14:$163"),,0,1),,0,1) -> 0.04607584739 | D40: =_xlfn.XLOOKUP($A40,INDIRECT("'Curves "&D$10&"'!$A$14:$A$163"),_xlfn.XLOOKUP(D$11&$J$3,INDIRECT("'Curves "&D$10&"'!$11:$11")&INDIRECT("'Curves "&D$10&"'!$12:$12"),INDIRECT("'Curves "&D$10&"'!$14:$163"),,0,1),,0,1) -> 0.01281917789 | F40: =_xlfn.XLOOKUP($A40,INDIRECT("'Curves "&F$10&"'!$A$14:$A$163"),_xlfn.XLOOKUP(F$11&$J$3,INDIRECT("'Curves "&F$10&"'!$11:$11")&INDIRECT("'Curves "&F$10&"'!$12:$12"),INDIRECT("'Curves "&F$10&"'!$14:$163"),,0,1),,0,1) -> 0.03472461094 | G40: =_xlfn.XLOOKUP($A40,INDIRECT("'Curves "&G$10&"'!$A$14:$A$163"),_xlfn.XLOOKUP(G$11&$J$3,INDIRECT("'Curves "&G$10&"'!$11:$11")&INDIRECT("'Curves "&G$10&"'!$12:$12"),INDIRECT("'Curves "&G$10&"'!$14:$163"),,0,1),,0,1) -> 0.04852553947 | H40: =_xlfn.XLOOKUP($A40,INDIRECT("'Curves "&H$10&"'!$A$14:$A$163"),_xlfn.XLOOKUP(H$11&$J$3,INDIRECT("'Curves "&H$10&"'!$11:$11")&INDIRECT("'Curves "&H$10&"'!$12:$12"),INDIRECT("'Curves "&H$10&"'!$14:$163"),,0,1),,0,1) -> 0.01519098976
A41: 29 | B41: =_xlfn.XLOOKUP($A41,INDIRECT("'Curves "&B$10&"'!$A$14:$A$163"),_xlfn.XLOOKUP(B$11&$J$3,INDIRECT("'Curves "&B$10&"'!$11:$11")&INDIRECT("'Curves "&B$10&"'!$12:$12"),INDIRECT("'Curves "&B$10&"'!$14:$163"),,0,1),,0,1) -> 0.03232796286 | C41: =_xlfn.XLOOKUP($A41,INDIRECT("'Curves "&C$10&"'!$A$14:$A$163"),_xlfn.XLOOKUP(C$11&$J$3,INDIRECT("'Curves "&C$10&"'!$11:$11")&INDIRECT("'Curves "&C$10&"'!$12:$12"),INDIRECT("'Curves "&C$10&"'!$14:$163"),,0,1),,0,1) -> 0.04576729579 | D41: =_xlfn.XLOOKUP($A41,INDIRECT("'Curves "&D$10&"'!$A$14:$A$163"),_xlfn.XLOOKUP(D$11&$J$3,INDIRECT("'Curves "&D$10&"'!$11:$11")&INDIRECT("'Curves "&D$10&"'!$12:$12"),INDIRECT("'Curves "&D$10&"'!$14:$163"),,0,1),,0,1) -> 0.01317093289 | F41: =_xlfn.XLOOKUP($A41,INDIRECT("'Curves "&F$10&"'!$A$14:$A$163"),_xlfn.XLOOKUP(F$11&$J$3,INDIRECT("'Curves "&F$10&"'!$11:$11")&INDIRECT("'Curves "&F$10&"'!$12:$12"),INDIRECT("'Curves "&F$10&"'!$14:$163"),,0,1),,0,1) -> 0.03467592596 | G41: =_xlfn.XLOOKUP($A41,INDIRECT("'Curves "&G$10&"'!$A$14:$A$163"),_xlfn.XLOOKUP(G$11&$J$3,INDIRECT("'Curves "&G$10&"'!$11:$11")&INDIRECT("'Curves "&G$10&"'!$12:$12"),INDIRECT("'Curves "&G$10&"'!$14:$163"),,0,1),,0,1) -> 0.04814582578 | H41: =_xlfn.XLOOKUP($A41,INDIRECT("'Curves "&H$10&"'!$A$14:$A$163"),_xlfn.XLOOKUP(H$11&$J$3,INDIRECT("'Curves "&H$10&"'!$11:$11")&INDIRECT("'Curves "&H$10&"'!$12:$12"),INDIRECT("'Curves "&H$10&"'!$14:$163"),,0,1),,0,1) -> 0.01547532457
A42: 30 | B42: =_xlfn.XLOOKUP($A42,INDIRECT("'Curves "&B$10&"'!$A$14:$A$163"),_xlfn.XLOOKUP(B$11&$J$3,INDIRECT("'Curves "&B$10&"'!$11:$11")&INDIRECT("'Curves "&B$10&"'!$12:$12"),INDIRECT("'Curves "&B$10&"'!$14:$163"),,0,1),,0,1) -> 0.03234768754 | C42: =_xlfn.XLOOKUP($A42,INDIRECT("'Curves "&C$10&"'!$A$14:$A$163"),_xlfn.XLOOKUP(C$11&$J$3,INDIRECT("'Curves "&C$10&"'!$11:$11")&INDIRECT("'Curves "&C$10&"'!$12:$12"),INDIRECT("'Curves "&C$10&"'!$14:$163"),,0,1),,0,1) -> 0.0454700579 | D42: =_xlfn.XLOOKUP($A42,INDIRECT("'Curves "&D$10&"'!$A$14:$A$163"),_xlfn.XLOOKUP(D$11&$J$3,INDIRECT("'Curves "&D$10&"'!$11:$11")&INDIRECT("'Curves "&D$10&"'!$12:$12"),INDIRECT("'Curves "&D$10&"'!$14:$163"),,0,1),,0,1) -> 0.01352822676 | F42: =_xlfn.XLOOKUP($A42,INDIRECT("'Curves "&F$10&"'!$A$14:$A$163"),_xlfn.XLOOKUP(F$11&$J$3,INDIRECT("'Curves "&F$10&"'!$11:$11")&INDIRECT("'Curves "&F$10&"'!$12:$12"),INDIRECT("'Curves "&F$10&"'!$14:$163"),,0,1),,0,1) -> 0.03462939802 | G42: =_xlfn.XLOOKUP($A42,INDIRECT("'Curves "&G$10&"'!$A$14:$A$163"),_xlfn.XLOOKUP(G$11&$J$3,INDIRECT("'Curves "&G$10&"'!$11:$11")&INDIRECT("'Curves "&G$10&"'!$12:$12"),INDIRECT("'Curves "&G$10&"'!$14:$163"),,0,1),,0,1) -> 0.04778077165 | H42: =_xlfn.XLOOKUP($A42,INDIRECT("'Curves "&H$10&"'!$A$14:$A$163"),_xlfn.XLOOKUP(H$11&$J$3,INDIRECT("'Curves "&H$10&"'!$11:$11")&INDIRECT("'Curves "&H$10&"'!$12:$12"),INDIRECT("'Curves "&H$10&"'!$14:$163"),,0,1),,0,1) -> 0.01576834219
A43: 31 | B43: =_xlfn.XLOOKUP($A43,INDIRECT("'Curves "&B$10&"'!$A$14:$A$163"),_xlfn.XLOOKUP(B$11&$J$3,INDIRECT("'Curves "&B$10&"'!$11:$11")&INDIRECT("'Curves "&B$10&"'!$12:$12"),INDIRECT("'Curves "&B$10&"'!$14:$163"),,0,1),,0,1) -> 0.0323664091 | C43: =_xlfn.XLOOKUP($A43,INDIRECT("'Curves "&C$10&"'!$A$14:$A$163"),_xlfn.XLOOKUP(C$11&$J$3,INDIRECT("'Curves "&C$10&"'!$11:$11")&INDIRECT("'Curves "&C$10&"'!$12:$12"),INDIRECT("'Curves "&C$10&"'!$14:$163"),,0,1),,0,1) -> 0.04518397947 | D43: =_xlfn.XLOOKUP($A43,INDIRECT("'Curves "&D$10&"'!$A$14:$A$163"),_xlfn.XLOOKUP(D$11&$J$3,INDIRECT("'Curves "&D$10&"'!$11:$11")&INDIRECT("'Curves "&D$10&"'!$12:$12"),INDIRECT("'Curves "&D$10&"'!$14:$163"),,0,1),,0,1) -> 0.01388762864 | F43: =_xlfn.XLOOKUP($A43,INDIRECT("'Curves "&F$10&"'!$A$14:$A$163"),_xlfn.XLOOKUP(F$11&$J$3,INDIRECT("'Curves "&F$10&"'!$11:$11")&INDIRECT("'Curves "&F$10&"'!$12:$12"),INDIRECT("'Curves "&F$10&"'!$14:$163"),,0,1),,0,1) -> 0.03458492825 | G43: =_xlfn.XLOOKUP($A43,INDIRECT("'Curves "&G$10&"'!$A$14:$A$163"),_xlfn.XLOOKUP(G$11&$J$3,INDIRECT("'Curves "&G$10&"'!$11:$11")&INDIRECT("'Curves "&G$10&"'!$12:$12"),INDIRECT("'Curves "&G$10&"'!$14:$163"),,0,1),,0,1) -> 0.04743004313 | H43: =_xlfn.XLOOKUP($A43,INDIRECT("'Curves "&H$10&"'!$A$14:$A$163"),_xlfn.XLOOKUP(H$11&$J$3,INDIRECT("'Curves "&H$10&"'!$11:$11")&INDIRECT("'Curves "&H$10&"'!$12:$12"),INDIRECT("'Curves "&H$10&"'!$14:$163"),,0,1),,0,1) -> 0.01606643754
A44: 32 | B44: =_xlfn.XLOOKUP($A44,INDIRECT("'Curves "&B$10&"'!$A$14:$A$163"),_xlfn.XLOOKUP(B$11&$J$3,INDIRECT("'Curves "&B$10&"'!$11:$11")&INDIRECT("'Curves "&B$10&"'!$12:$12"),INDIRECT("'Curves "&B$10&"'!$14:$163"),,0,1),,0,1) -> 0.03238419442 | C44: =_xlfn.XLOOKUP($A44,INDIRECT("'Curves "&C$10&"'!$A$14:$A$163"),_xlfn.XLOOKUP(C$11&$J$3,INDIRECT("'Curves "&C$10&"'!$11:$11")&INDIRECT("'Curves "&C$10&"'!$12:$12"),INDIRECT("'Curves "&C$10&"'!$14:$163"),,0,1),,0,1) -> 0.04490882988 | D44: =_xlfn.XLOOKUP($A44,INDIRECT("'Curves "&D$10&"'!$A$14:$A$163"),_xlfn.XLOOKUP(D$11&$J$3,INDIRECT("'Curves "&D$10&"'!$11:$11")&INDIRECT("'Curves "&D$10&"'!$12:$12"),INDIRECT("'Curves "&D$10&"'!$14:$163"),,0,1),,0,1) -> 0.01424642654 | F44: =_xlfn.XLOOKUP($A44,INDIRECT("'Curves "&F$10&"'!$A$14:$A$163"),_xlfn.XLOOKUP(F$11&$J$3,INDIRECT("'Curves "&F$10&"'!$11:$11")&INDIRECT("'Curves "&F$10&"'!$12:$12"),INDIRECT("'Curves "&F$10&"'!$14:$163"),,0,1),,0,1) -> 0.03454241904 | G44: =_xlfn.XLOOKUP($A44,INDIRECT("'Curves "&G$10&"'!$A$14:$A$163"),_xlfn.XLOOKUP(G$11&$J$3,INDIRECT("'Curves "&G$10&"'!$11:$11")&INDIRECT("'Curves "&G$10&"'!$12:$12"),INDIRECT("'Curves "&G$10&"'!$14:$163"),,0,1),,0,1) -> 0.04709323756 | H44: =_xlfn.XLOOKUP($A44,INDIRECT("'Curves "&H$10&"'!$A$14:$A$163"),_xlfn.XLOOKUP(H$11&$J$3,INDIRECT("'Curves "&H$10&"'!$11:$11")&INDIRECT("'Curves "&H$10&"'!$12:$12"),INDIRECT("'Curves "&H$10&"'!$14:$163"),,0,1),,0,1) -> 0.01636673371
A45: 33 | B45: =_xlfn.XLOOKUP($A45,INDIRECT("'Curves "&B$10&"'!$A$14:$A$163"),_xlfn.XLOOKUP(B$11&$J$3,INDIRECT("'Curves "&B$10&"'!$11:$11")&INDIRECT("'Curves "&B$10&"'!$12:$12"),INDIRECT("'Curves "&B$10&"'!$14:$163"),,0,1),,0,1) -> 0.03240110501 | C45: =_xlfn.XLOOKUP($A45,INDIRECT("'Curves "&C$10&"'!$A$14:$A$163"),_xlfn.XLOOKUP(C$11&$J$3,INDIRECT("'Curves "&C$10&"'!$11:$11")&INDIRECT("'Curves "&C$10&"'!$12:$12"),INDIRECT("'Curves "&C$10&"'!$14:$163"),,0,1),,0,1) -> 0.0446443235 | D45: =_xlfn.XLOOKUP($A45,INDIRECT("'Curves "&D$10&"'!$A$14:$A$163"),_xlfn.XLOOKUP(D$11&$J$3,INDIRECT("'Curves "&D$10&"'!$11:$11")&INDIRECT("'Curves "&D$10&"'!$12:$12"),INDIRECT("'Curves "&D$10&"'!$14:$163"),,0,1),,0,1) -> 0.01460248923 | F45: =_xlfn.XLOOKUP($A45,INDIRECT("'Curves "&F$10&"'!$A$14:$A$163"),_xlfn.XLOOKUP(F$11&$J$3,INDIRECT("'Curves "&F$10&"'!$11:$11")&INDIRECT("'Curves "&F$10&"'!$12:$12"),INDIRECT("'Curves "&F$10&"'!$14:$163"),,0,1),,0,1) -> 0.03450177499 | G45: =_xlfn.XLOOKUP($A45,INDIRECT("'Curves "&G$10&"'!$A$14:$A$163"),_xlfn.XLOOKUP(G$11&$J$3,INDIRECT("'Curves "&G$10&"'!$11:$11")&INDIRECT("'Curves "&G$10&"'!$12:$12"),INDIRECT("'Curves "&G$10&"'!$14:$163"),,0,1),,0,1) -> 0.04676990528 | H45: =_xlfn.XLOOKUP($A45,INDIRECT("'Curves "&H$10&"'!$A$14:$A$163"),_xlfn.XLOOKUP(H$11&$J$3,INDIRECT("'Curves "&H$10&"'!$11:$11")&INDIRECT("'Curves "&H$10&"'!$12:$12"),INDIRECT("'Curves "&H$10&"'!$14:$163"),,0,1),,0,1) -> 0.01666694362
A46: 34 | B46: =_xlfn.XLOOKUP($A46,INDIRECT("'Curves "&B$10&"'!$A$14:$A$163"),_xlfn.XLOOKUP(B$11&$J$3,INDIRECT("'Curves "&B$10&"'!$11:$11")&INDIRECT("'Curves "&B$10&"'!$12:$12"),INDIRECT("'Curves "&B$10&"'!$14:$163"),,0,1),,0,1) -> 0.03241719751 | C46: =_xlfn.XLOOKUP($A46,INDIRECT("'Curves "&C$10&"'!$A$14:$A$163"),_xlfn.XLOOKUP(C$11&$J$3,INDIRECT("'Curves "&C$10&"'!$11:$11")&INDIRECT("'Curves "&C$10&"'!$12:$12"),INDIRECT("'Curves "&C$10&"'!$14:$163"),,0,1),,0,1) -> 0.04439013621 | D46: =_xlfn.XLOOKUP($A46,INDIRECT("'Curves "&D$10&"'!$A$14:$A$163"),_xlfn.XLOOKUP(D$11&$J$3,INDIRECT("'Curves "&D$10&"'!$11:$11")&INDIRECT("'Curves "&D$10&"'!$12:$12"),INDIRECT("'Curves "&D$10&"'!$14:$163"),,0,1),,0,1) -> 0.01495415541 | F46: =_xlfn.XLOOKUP($A46,INDIRECT("'Curves "&F$10&"'!$A$14:$A$163"),_xlfn.XLOOKUP(F$11&$J$3,INDIRECT("'Curves "&F$10&"'!$11:$11")&INDIRECT("'Curves "&F$10&"'!$12:$12"),INDIRECT("'Curves "&F$10&"'!$14:$163"),,0,1),,0,1) -> 0.03446290351 | G46: =_xlfn.XLOOKUP($A46,INDIRECT("'Curves "&G$10&"'!$A$14:$A$163"),_xlfn.XLOOKUP(G$11&$J$3,INDIRECT("'Curves "&G$10&"'!$11:$11")&INDIRECT("'Curves "&G$10&"'!$12:$12"),INDIRECT("'Curves "&G$10&"'!$14:$163"),,0,1),,0,1) -> 0.04645956626 | H46: =_xlfn.XLOOKUP($A46,INDIRECT("'Curves "&H$10&"'!$A$14:$A$163"),_xlfn.XLOOKUP(H$11&$J$3,INDIRECT("'Curves "&H$10&"'!$11:$11")&INDIRECT("'Curves "&H$10&"'!$12:$12"),INDIRECT("'Curves "&H$10&"'!$14:$163"),,0,1),,0,1) -> 0.01696525888
A47: 35 | B47: =_xlfn.XLOOKUP($A47,INDIRECT("'Curves "&B$10&"'!$A$14:$A$163"),_xlfn.XLOOKUP(B$11&$J$3,INDIRECT("'Curves "&B$10&"'!$11:$11")&INDIRECT("'Curves "&B$10&"'!$12:$12"),INDIRECT("'Curves "&B$10&"'!$14:$163"),,0,1),,0,1) -> 0.03243252418 | C47: =_xlfn.XLOOKUP($A47,INDIRECT("'Curves "&C$10&"'!$A$14:$A$163"),_xlfn.XLOOKUP(C$11&$J$3,INDIRECT("'Curves "&C$10&"'!$11:$11")&INDIRECT("'Curves "&C$10&"'!$12:$12"),INDIRECT("'Curves "&C$10&"'!$14:$163"),,0,1),,0,1) -> 0.04414591826 | D47: =_xlfn.XLOOKUP($A47,INDIRECT("'Curves "&D$10&"'!$A$14:$A$163"),_xlfn.XLOOKUP(D$11&$J$3,INDIRECT("'Curves "&D$10&"'!$11:$11")&INDIRECT("'Curves "&D$10&"'!$12:$12"),INDIRECT("'Curves "&D$10&"'!$14:$163"),,0,1),,0,1) -> 0.01530014457 | F47: =_xlfn.XLOOKUP($A47,INDIRECT("'Curves "&F$10&"'!$A$14:$A$163"),_xlfn.XLOOKUP(F$11&$J$3,INDIRECT("'Curves "&F$10&"'!$11:$11")&INDIRECT("'Curves "&F$10&"'!$12:$12"),INDIRECT("'Curves "&F$10&"'!$14:$163"),,0,1),,0,1) -> 0.03442571532 | G47: =_xlfn.XLOOKUP($A47,INDIRECT("'Curves "&G$10&"'!$A$14:$A$163"),_xlfn.XLOOKUP(G$11&$J$3,INDIRECT("'Curves "&G$10&"'!$11:$11")&INDIRECT("'Curves "&G$10&"'!$12:$12"),INDIRECT("'Curves "&G$10&"'!$14:$163"),,0,1),,0,1) -> 0.04616172302 | H47: =_xlfn.XLOOKUP($A47,INDIRECT("'Curves "&H$10&"'!$A$14:$A$163"),_xlfn.XLOOKUP(H$11&$J$3,INDIRECT("'Curves "&H$10&"'!$11:$11")&INDIRECT("'Curves "&H$10&"'!$12:$12"),INDIRECT("'Curves "&H$10&"'!$14:$163"),,0,1),,0,1) -> 0.01726026032
A48: 36 | B48: =_xlfn.XLOOKUP($A48,INDIRECT("'Curves "&B$10&"'!$A$14:$A$163"),_xlfn.XLOOKUP(B$11&$J$3,INDIRECT("'Curves "&B$10&"'!$11:$11")&INDIRECT("'Curves "&B$10&"'!$12:$12"),INDIRECT("'Curves "&B$10&"'!$14:$163"),,0,1),,0,1) -> 0.03244713329 | C48: =_xlfn.XLOOKUP($A48,INDIRECT("'Curves "&C$10&"'!$A$14:$A$163"),_xlfn.XLOOKUP(C$11&$J$3,INDIRECT("'Curves "&C$10&"'!$11:$11")&INDIRECT("'Curves "&C$10&"'!$12:$12"),INDIRECT("'Curves "&C$10&"'!$14:$163"),,0,1),,0,1) -> 0.04391130424 | D48: =_xlfn.XLOOKUP($A48,INDIRECT("'Curves "&D$10&"'!$A$14:$A$163"),_xlfn.XLOOKUP(D$11&$J$3,INDIRECT("'Curves "&D$10&"'!$11:$11")&INDIRECT("'Curves "&D$10&"'!$12:$12"),INDIRECT("'Curves "&D$10&"'!$14:$163"),,0,1),,0,1) -> 0.01563948486 | F48: =_xlfn.XLOOKUP($A48,INDIRECT("'Curves "&F$10&"'!$A$14:$A$163"),_xlfn.XLOOKUP(F$11&$J$3,INDIRECT("'Curves "&F$10&"'!$11:$11")&INDIRECT("'Curves "&F$10&"'!$12:$12"),INDIRECT("'Curves "&F$10&"'!$14:$163"),,0,1),,0,1) -> 0.03439012471 | G48: =_xlfn.XLOOKUP($A48,INDIRECT("'Curves "&G$10&"'!$A$14:$A$163"),_xlfn.XLOOKUP(G$11&$J$3,INDIRECT("'Curves "&G$10&"'!$11:$11")&INDIRECT("'Curves "&G$10&"'!$12:$12"),INDIRECT("'Curves "&G$10&"'!$14:$163"),,0,1),,0,1) -> 0.0458758704 | H48: =_xlfn.XLOOKUP($A48,INDIRECT("'Curves "&H$10&"'!$A$14:$A$163"),_xlfn.XLOOKUP(H$11&$J$3,INDIRECT("'Curves "&H$10&"'!$11:$11")&INDIRECT("'Curves "&H$10&"'!$12:$12"),INDIRECT("'Curves "&H$10&"'!$14:$163"),,0,1),,0,1) -> 0.01755084548
A49: 37 | B49: =_xlfn.XLOOKUP($A49,INDIRECT("'Curves "&B$10&"'!$A$14:$A$163"),_xlfn.XLOOKUP(B$11&$J$3,INDIRECT("'Curves "&B$10&"'!$11:$11")&INDIRECT("'Curves "&B$10&"'!$12:$12"),INDIRECT("'Curves "&B$10&"'!$14:$163"),,0,1),,0,1) -> 0.03246106946 | C49: =_xlfn.XLOOKUP($A49,INDIRECT("'Curves "&C$10&"'!$A$14:$A$163"),_xlfn.XLOOKUP(C$11&$J$3,INDIRECT("'Curves "&C$10&"'!$11:$11")&INDIRECT("'Curves "&C$10&"'!$12:$12"),INDIRECT("'Curves "&C$10&"'!$14:$163"),,0,1),,0,1) -> 0.04368592074 | D49: =_xlfn.XLOOKUP($A49,INDIRECT("'Curves "&D$10&"'!$A$14:$A$163"),_xlfn.XLOOKUP(D$11&$J$3,INDIRECT("'Curves "&D$10&"'!$11:$11")&INDIRECT("'Curves "&D$10&"'!$12:$12"),INDIRECT("'Curves "&D$10&"'!$14:$163"),,0,1),,0,1) -> 0.01597145468 | F49: =_xlfn.XLOOKUP($A49,INDIRECT("'Curves "&F$10&"'!$A$14:$A$163"),_xlfn.XLOOKUP(F$11&$J$3,INDIRECT("'Curves "&F$10&"'!$11:$11")&INDIRECT("'Curves "&F$10&"'!$12:$12"),INDIRECT("'Curves "&F$10&"'!$14:$163"),,0,1),,0,1) -> 0.03435604968 | G49: =_xlfn.XLOOKUP($A49,INDIRECT("'Curves "&G$10&"'!$A$14:$A$163"),_xlfn.XLOOKUP(G$11&$J$3,INDIRECT("'Curves "&G$10&"'!$11:$11")&INDIRECT("'Curves "&G$10&"'!$12:$12"),INDIRECT("'Curves "&G$10&"'!$14:$163"),,0,1),,0,1) -> 0.04560150307 | H49: =_xlfn.XLOOKUP($A49,INDIRECT("'Curves "&H$10&"'!$A$14:$A$163"),_xlfn.XLOOKUP(H$11&$J$3,INDIRECT("'Curves "&H$10&"'!$11:$11")&INDIRECT("'Curves "&H$10&"'!$12:$12"),INDIRECT("'Curves "&H$10&"'!$14:$163"),,0,1),,0,1) -> 0.01783616984
A50: 38 | B50: =_xlfn.XLOOKUP($A50,INDIRECT("'Curves "&B$10&"'!$A$14:$A$163"),_xlfn.XLOOKUP(B$11&$J$3,INDIRECT("'Curves "&B$10&"'!$11:$11")&INDIRECT("'Curves "&B$10&"'!$12:$12"),INDIRECT("'Curves "&B$10&"'!$14:$163"),,0,1),,0,1) -> 0.03247437397 | C50: =_xlfn.XLOOKUP($A50,INDIRECT("'Curves "&C$10&"'!$A$14:$A$163"),_xlfn.XLOOKUP(C$11&$J$3,INDIRECT("'Curves "&C$10&"'!$11:$11")&INDIRECT("'Curves "&C$10&"'!$12:$12"),INDIRECT("'Curves "&C$10&"'!$14:$163"),,0,1),,0,1) -> 0.04346939229 | D50: =_xlfn.XLOOKUP($A50,INDIRECT("'Curves "&D$10&"'!$A$14:$A$163"),_xlfn.XLOOKUP(D$11&$J$3,INDIRECT("'Curves "&D$10&"'!$11:$11")&INDIRECT("'Curves "&D$10&"'!$12:$12"),INDIRECT("'Curves "&D$10&"'!$14:$163"),,0,1),,0,1) -> 0.01629553512 | F50: =_xlfn.XLOOKUP($A50,INDIRECT("'Curves "&F$10&"'!$A$14:$A$163"),_xlfn.XLOOKUP(F$11&$J$3,INDIRECT("'Curves "&F$10&"'!$11:$11")&INDIRECT("'Curves "&F$10&"'!$12:$12"),INDIRECT("'Curves "&F$10&"'!$14:$163"),,0,1),,0,1) -> 0.03432341206 | G50: =_xlfn.XLOOKUP($A50,INDIRECT("'Curves "&G$10&"'!$A$14:$A$163"),_xlfn.XLOOKUP(G$11&$J$3,INDIRECT("'Curves "&G$10&"'!$11:$11")&INDIRECT("'Curves "&G$10&"'!$12:$12"),INDIRECT("'Curves "&G$10&"'!$14:$163"),,0,1),,0,1) -> 0.04533812114 | H50: =_xlfn.XLOOKUP($A50,INDIRECT("'Curves "&H$10&"'!$A$14:$A$163"),_xlfn.XLOOKUP(H$11&$J$3,INDIRECT("'Curves "&H$10&"'!$11:$11")&INDIRECT("'Curves "&H$10&"'!$12:$12"),INDIRECT("'Curves "&H$10&"'!$14:$163"),,0,1),,0,1) -> 0.01811559884
A51: 39 | B51: =_xlfn.XLOOKUP($A51,INDIRECT("'Curves "&B$10&"'!$A$14:$A$163"),_xlfn.XLOOKUP(B$11&$J$3,INDIRECT("'Curves "&B$10&"'!$11:$11")&INDIRECT("'Curves "&B$10&"'!$12:$12"),INDIRECT("'Curves "&B$10&"'!$14:$163"),,0,1),,0,1) -> 0.03248708509 | C51: =_xlfn.XLOOKUP($A51,INDIRECT("'Curves "&C$10&"'!$A$14:$A$163"),_xlfn.XLOOKUP(C$11&$J$3,INDIRECT("'Curves "&C$10&"'!$11:$11")&INDIRECT("'Curves "&C$10&"'!$12:$12"),INDIRECT("'Curves "&C$10&"'!$14:$163"),,0,1),,0,1) -> 0.04326134583 | D51: =_xlfn.XLOOKUP($A51,INDIRECT("'Curves "&D$10&"'!$A$14:$A$163"),_xlfn.XLOOKUP(D$11&$J$3,INDIRECT("'Curves "&D$10&"'!$11:$11")&INDIRECT("'Curves "&D$10&"'!$12:$12"),INDIRECT("'Curves "&D$10&"'!$14:$163"),,0,1),,0,1) -> 0.01661137124 | F51: =_xlfn.XLOOKUP($A51,INDIRECT("'Curves "&F$10&"'!$A$14:$A$163"),_xlfn.XLOOKUP(F$11&$J$3,INDIRECT("'Curves "&F$10&"'!$11:$11")&INDIRECT("'Curves "&F$10&"'!$12:$12"),INDIRECT("'Curves "&F$10&"'!$14:$163"),,0,1),,0,1) -> 0.03429213746 | G51: =_xlfn.XLOOKUP($A51,INDIRECT("'Curves "&G$10&"'!$A$14:$A$163"),_xlfn.XLOOKUP(G$11&$J$3,INDIRECT("'Curves "&G$10&"'!$11:$11")&INDIRECT("'Curves "&G$10&"'!$12:$12"),INDIRECT("'Curves "&G$10&"'!$14:$163"),,0,1),,0,1) -> 0.04508523436 | H51: =_xlfn.XLOOKUP($A51,INDIRECT("'Curves "&H$10&"'!$A$14:$A$163"),_xlfn.XLOOKUP(H$11&$J$3,INDIRECT("'Curves "&H$10&"'!$11:$11")&INDIRECT("'Curves "&H$10&"'!$12:$12"),INDIRECT("'Curves "&H$10&"'!$14:$163"),,0,1),,0,1) -> 0.01838866878
A52: 40 | B52: =_xlfn.XLOOKUP($A52,INDIRECT("'Curves "&B$10&"'!$A$14:$A$163"),_xlfn.XLOOKUP(B$11&$J$3,INDIRECT("'Curves "&B$10&"'!$11:$11")&INDIRECT("'Curves "&B$10&"'!$12:$12"),INDIRECT("'Curves "&B$10&"'!$14:$163"),,0,1),,0,1) -> 0.03249923831 | C52: =_xlfn.XLOOKUP($A52,INDIRECT("'Curves "&C$10&"'!$A$14:$A$163"),_xlfn.XLOOKUP(C$11&$J$3,INDIRECT("'Curves "&C$10&"'!$11:$11")&INDIRECT("'Curves "&C$10&"'!$12:$12"),INDIRECT("'Curves "&C$10&"'!$14:$163"),,0,1),,0,1) -> 0.0430614141 | D52: =_xlfn.XLOOKUP($A52,INDIRECT("'Curves "&D$10&"'!$A$14:$A$163"),_xlfn.XLOOKUP(D$11&$J$3,INDIRECT("'Curves "&D$10&"'!$11:$11")&INDIRECT("'Curves "&D$10&"'!$12:$12"),INDIRECT("'Curves "&D$10&"'!$14:$163"),,0,1),,0,1) -> 0.01691874039 | F52: =_xlfn.XLOOKUP($A52,INDIRECT("'Curves "&F$10&"'!$A$14:$A$163"),_xlfn.XLOOKUP(F$11&$J$3,INDIRECT("'Curves "&F$10&"'!$11:$11")&INDIRECT("'Curves "&F$10&"'!$12:$12"),INDIRECT("'Curves "&F$10&"'!$14:$163"),,0,1),,0,1) -> 0.03426215526 | G52: =_xlfn.XLOOKUP($A52,INDIRECT("'Curves "&G$10&"'!$A$14:$A$163"),_xlfn.XLOOKUP(G$11&$J$3,INDIRECT("'Curves "&G$10&"'!$11:$11")&INDIRECT("'Curves "&G$10&"'!$12:$12"),INDIRECT("'Curves "&G$10&"'!$14:$163"),,0,1),,0,1) -> 0.0448423652 | H52: =_xlfn.XLOOKUP($A52,INDIRECT("'Curves "&H$10&"'!$A$14:$A$163"),_xlfn.XLOOKUP(H$11&$J$3,INDIRECT("'Curves "&H$10&"'!$11:$11")&INDIRECT("'Curves "&H$10&"'!$12:$12"),INDIRECT("'Curves "&H$10&"'!$14:$163"),,0,1),,0,1) -> 0.01865505478
A53: 41 | B53: =_xlfn.XLOOKUP($A53,INDIRECT("'Curves "&B$10&"'!$A$14:$A$163"),_xlfn.XLOOKUP(B$11&$J$3,INDIRECT("'Curves "&B$10&"'!$11:$11")&INDIRECT("'Curves "&B$10&"'!$12:$12"),INDIRECT("'Curves "&B$10&"'!$14:$163"),,0,1),,0,1) -> 0.03251086656 | C53: =_xlfn.XLOOKUP($A53,INDIRECT("'Curves "&C$10&"'!$A$14:$A$163"),_xlfn.XLOOKUP(C$11&$J$3,INDIRECT("'Curves "&C$10&"'!$11:$11")&INDIRECT("'Curves "&C$10&"'!$12:$12"),INDIRECT("'Curves "&C$10&"'!$14:$163"),,0,1),,0,1) -> 0.04286923818 | D53: =_xlfn.XLOOKUP($A53,INDIRECT("'Curves "&D$10&"'!$A$14:$A$163"),_xlfn.XLOOKUP(D$11&$J$3,INDIRECT("'Curves "&D$10&"'!$11:$11")&INDIRECT("'Curves "&D$10&"'!$12:$12"),INDIRECT("'Curves "&D$10&"'!$14:$163"),,0,1),,0,1) -> 0.01721752636 | F53: =_xlfn.XLOOKUP($A53,INDIRECT("'Curves "&F$10&"'!$A$14:$A$163"),_xlfn.XLOOKUP(F$11&$J$3,INDIRECT("'Curves "&F$10&"'!$11:$11")&INDIRECT("'Curves "&F$10&"'!$12:$12"),INDIRECT("'Curves "&F$10&"'!$14:$163"),,0,1),,0,1) -> 0.03423339853 | G53: =_xlfn.XLOOKUP($A53,INDIRECT("'Curves "&G$10&"'!$A$14:$A$163"),_xlfn.XLOOKUP(G$11&$J$3,INDIRECT("'Curves "&G$10&"'!$11:$11")&INDIRECT("'Curves "&G$10&"'!$12:$12"),INDIRECT("'Curves "&G$10&"'!$14:$163"),,0,1),,0,1) -> 0.04460905096 | H53: =_xlfn.XLOOKUP($A53,INDIRECT("'Curves "&H$10&"'!$A$14:$A$163"),_xlfn.XLOOKUP(H$11&$J$3,INDIRECT("'Curves "&H$10&"'!$11:$11")&INDIRECT("'Curves "&H$10&"'!$12:$12"),INDIRECT("'Curves "&H$10&"'!$14:$163"),,0,1),,0,1) -> 0.01891454454
A54: 42 | B54: =_xlfn.XLOOKUP($A54,INDIRECT("'Curves "&B$10&"'!$A$14:$A$163"),_xlfn.XLOOKUP(B$11&$J$3,INDIRECT("'Curves "&B$10&"'!$11:$11")&INDIRECT("'Curves "&B$10&"'!$12:$12"),INDIRECT("'Curves "&B$10&"'!$14:$163"),,0,1),,0,1) -> 0.03252200045 | C54: =_xlfn.XLOOKUP($A54,INDIRECT("'Curves "&C$10&"'!$A$14:$A$163"),_xlfn.XLOOKUP(C$11&$J$3,INDIRECT("'Curves "&C$10&"'!$11:$11")&INDIRECT("'Curves "&C$10&"'!$12:$12"),INDIRECT("'Curves "&C$10&"'!$14:$163"),,0,1),,0,1) -> 0.04268446927 | D54: =_xlfn.XLOOKUP($A54,INDIRECT("'Curves "&D$10&"'!$A$14:$A$163"),_xlfn.XLOOKUP(D$11&$J$3,INDIRECT("'Curves "&D$10&"'!$11:$11")&INDIRECT("'Curves "&D$10&"'!$12:$12"),INDIRECT("'Curves "&D$10&"'!$14:$163"),,0,1),,0,1) -> 0.01750769818 | F54: =_xlfn.XLOOKUP($A54,INDIRECT("'Curves "&F$10&"'!$A$14:$A$163"),_xlfn.XLOOKUP(F$11&$J$3,INDIRECT("'Curves "&F$10&"'!$11:$11")&INDIRECT("'Curves "&F$10&"'!$12:$12"),INDIRECT("'Curves "&F$10&"'!$14:$163"),,0,1),,0,1) -> 0.03420580388 | G54: =_xlfn.XLOOKUP($A54,INDIRECT("'Curves "&G$10&"'!$A$14:$A$163"),_xlfn.XLOOKUP(G$11&$J$3,INDIRECT("'Curves "&G$10&"'!$11:$11")&INDIRECT("'Curves "&G$10&"'!$12:$12"),INDIRECT("'Curves "&G$10&"'!$14:$163"),,0,1),,0,1) -> 0.04438484533 | H54: =_xlfn.XLOOKUP($A54,INDIRECT("'Curves "&H$10&"'!$A$14:$A$163"),_xlfn.XLOOKUP(H$11&$J$3,INDIRECT("'Curves "&H$10&"'!$11:$11")&INDIRECT("'Curves "&H$10&"'!$12:$12"),INDIRECT("'Curves "&H$10&"'!$14:$163"),,0,1),,0,1) -> 0.01916701677
A55: 43 | B55: =_xlfn.XLOOKUP($A55,INDIRECT("'Curves "&B$10&"'!$A$14:$A$163"),_xlfn.XLOOKUP(B$11&$J$3,INDIRECT("'Curves "&B$10&"'!$11:$11")&INDIRECT("'Curves "&B$10&"'!$12:$12"),INDIRECT("'Curves "&B$10&"'!$14:$163"),,0,1),,0,1) -> 0.03253266842 | C55: =_xlfn.XLOOKUP($A55,INDIRECT("'Curves "&C$10&"'!$A$14:$A$163"),_xlfn.XLOOKUP(C$11&$J$3,INDIRECT("'Curves "&C$10&"'!$11:$11")&INDIRECT("'Curves "&C$10&"'!$12:$12"),INDIRECT("'Curves "&C$10&"'!$14:$163"),,0,1),,0,1) -> 0.04250677003 | D55: =_xlfn.XLOOKUP($A55,INDIRECT("'Curves "&D$10&"'!$A$14:$A$163"),_xlfn.XLOOKUP(D$11&$J$3,INDIRECT("'Curves "&D$10&"'!$11:$11")&INDIRECT("'Curves "&D$10&"'!$12:$12"),INDIRECT("'Curves "&D$10&"'!$14:$163"),,0,1),,0,1) -> 0.01778929267 | F55: =_xlfn.XLOOKUP($A55,INDIRECT("'Curves "&F$10&"'!$A$14:$A$163"),_xlfn.XLOOKUP(F$11&$J$3,INDIRECT("'Curves "&F$10&"'!$11:$11")&INDIRECT("'Curves "&F$10&"'!$12:$12"),INDIRECT("'Curves "&F$10&"'!$14:$163"),,0,1),,0,1) -> 0.03417931136 | G55: =_xlfn.XLOOKUP($A55,INDIRECT("'Curves "&G$10&"'!$A$14:$A$163"),_xlfn.XLOOKUP(G$11&$J$3,INDIRECT("'Curves "&G$10&"'!$11:$11")&INDIRECT("'Curves "&G$10&"'!$12:$12"),INDIRECT("'Curves "&G$10&"'!$14:$163"),,0,1),,0,1) -> 0.04416931928 | H55: =_xlfn.XLOOKUP($A55,INDIRECT("'Curves "&H$10&"'!$A$14:$A$163"),_xlfn.XLOOKUP(H$11&$J$3,INDIRECT("'Curves "&H$10&"'!$11:$11")&INDIRECT("'Curves "&H$10&"'!$12:$12"),INDIRECT("'Curves "&H$10&"'!$14:$163"),,0,1),,0,1) -> 0.01941242345
A56: 44 | B56: =_xlfn.XLOOKUP($A56,INDIRECT("'Curves "&B$10&"'!$A$14:$A$163"),_xlfn.XLOOKUP(B$11&$J$3,INDIRECT("'Curves "&B$10&"'!$11:$11")&INDIRECT("'Curves "&B$10&"'!$12:$12"),INDIRECT("'Curves "&B$10&"'!$14:$163"),,0,1),,0,1) -> 0.03254289697 | C56: =_xlfn.XLOOKUP($A56,INDIRECT("'Curves "&C$10&"'!$A$14:$A$163"),_xlfn.XLOOKUP(C$11&$J$3,INDIRECT("'Curves "&C$10&"'!$11:$11")&INDIRECT("'Curves "&C$10&"'!$12:$12"),INDIRECT("'Curves "&C$10&"'!$14:$163"),,0,1),,0,1) -> 0.04233581537 | D56: =_xlfn.XLOOKUP($A56,INDIRECT("'Curves "&D$10&"'!$A$14:$A$163"),_xlfn.XLOOKUP(D$11&$J$3,INDIRECT("'Curves "&D$10&"'!$11:$11")&INDIRECT("'Curves "&D$10&"'!$12:$12"),INDIRECT("'Curves "&D$10&"'!$14:$163"),,0,1),,0,1) -> 0.01806240026 | F56: =_xlfn.XLOOKUP($A56,INDIRECT("'Curves "&F$10&"'!$A$14:$A$163"),_xlfn.XLOOKUP(F$11&$J$3,INDIRECT("'Curves "&F$10&"'!$11:$11")&INDIRECT("'Curves "&F$10&"'!$12:$12"),INDIRECT("'Curves "&F$10&"'!$14:$163"),,0,1),,0,1) -> 0.03415386433 | G56: =_xlfn.XLOOKUP($A56,INDIRECT("'Curves "&G$10&"'!$A$14:$A$163"),_xlfn.XLOOKUP(G$11&$J$3,INDIRECT("'Curves "&G$10&"'!$11:$11")&INDIRECT("'Curves "&G$10&"'!$12:$12"),INDIRECT("'Curves "&G$10&"'!$14:$163"),,0,1),,0,1) -> 0.04396206158 | H56: =_xlfn.XLOOKUP($A56,INDIRECT("'Curves "&H$10&"'!$A$14:$A$163"),_xlfn.XLOOKUP(H$11&$J$3,INDIRECT("'Curves "&H$10&"'!$11:$11")&INDIRECT("'Curves "&H$10&"'!$12:$12"),INDIRECT("'Curves "&H$10&"'!$14:$163"),,0,1),,0,1) -> 0.01965077523
A57: 45 | B57: =_xlfn.XLOOKUP($A57,INDIRECT("'Curves "&B$10&"'!$A$14:$A$163"),_xlfn.XLOOKUP(B$11&$J$3,INDIRECT("'Curves "&B$10&"'!$11:$11")&INDIRECT("'Curves "&B$10&"'!$12:$12"),INDIRECT("'Curves "&B$10&"'!$14:$163"),,0,1),,0,1) -> 0.03255271076 | C57: =_xlfn.XLOOKUP($A57,INDIRECT("'Curves "&C$10&"'!$A$14:$A$163"),_xlfn.XLOOKUP(C$11&$J$3,INDIRECT("'Curves "&C$10&"'!$11:$11")&INDIRECT("'Curves "&C$10&"'!$12:$12"),INDIRECT("'Curves "&C$10&"'!$14:$163"),,0,1),,0,1) -> 0.04217129303 | D57: =_xlfn.XLOOKUP($A57,INDIRECT("'Curves "&D$10&"'!$A$14:$A$163"),_xlfn.XLOOKUP(D$11&$J$3,INDIRECT("'Curves "&D$10&"'!$11:$11")&INDIRECT("'Curves "&D$10&"'!$12:$12"),INDIRECT("'Curves "&D$10&"'!$14:$163"),,0,1),,0,1) -> 0.01832715322 | F57: =_xlfn.XLOOKUP($A57,INDIRECT("'Curves "&F$10&"'!$A$14:$A$163"),_xlfn.XLOOKUP(F$11&$J$3,INDIRECT("'Curves "&F$10&"'!$11:$11")&INDIRECT("'Curves "&F$10&"'!$12:$12"),INDIRECT("'Curves "&F$10&"'!$14:$163"),,0,1),,0,1) -> 0.03412940929 | G57: =_xlfn.XLOOKUP($A57,INDIRECT("'Curves "&G$10&"'!$A$14:$A$163"),_xlfn.XLOOKUP(G$11&$J$3,INDIRECT("'Curves "&G$10&"'!$11:$11")&INDIRECT("'Curves "&G$10&"'!$12:$12"),INDIRECT("'Curves "&G$10&"'!$14:$163"),,0,1),,0,1) -> 0.04376267904 | H57: =_xlfn.XLOOKUP($A57,INDIRECT("'Curves "&H$10&"'!$A$14:$A$163"),_xlfn.XLOOKUP(H$11&$J$3,INDIRECT("'Curves "&H$10&"'!$11:$11")&INDIRECT("'Curves "&H$10&"'!$12:$12"),INDIRECT("'Curves "&H$10&"'!$14:$163"),,0,1),,0,1) -> 0.01988212945
A58: 46 | B58: =_xlfn.XLOOKUP($A58,INDIRECT("'Curves "&B$10&"'!$A$14:$A$163"),_xlfn.XLOOKUP(B$11&$J$3,INDIRECT("'Curves "&B$10&"'!$11:$11")&INDIRECT("'Curves "&B$10&"'!$12:$12"),INDIRECT("'Curves "&B$10&"'!$14:$163"),,0,1),,0,1) -> 0.03256213279 | C58: =_xlfn.XLOOKUP($A58,INDIRECT("'Curves "&C$10&"'!$A$14:$A$163"),_xlfn.XLOOKUP(C$11&$J$3,INDIRECT("'Curves "&C$10&"'!$11:$11")&INDIRECT("'Curves "&C$10&"'!$12:$12"),INDIRECT("'Curves "&C$10&"'!$14:$163"),,0,1),,0,1) -> 0.04201290379 | D58: =_xlfn.XLOOKUP($A58,INDIRECT("'Curves "&D$10&"'!$A$14:$A$163"),_xlfn.XLOOKUP(D$11&$J$3,INDIRECT("'Curves "&D$10&"'!$11:$11")&INDIRECT("'Curves "&D$10&"'!$12:$12"),INDIRECT("'Curves "&D$10&"'!$14:$163"),,0,1),,0,1) -> 0.01858371613 | F58: =_xlfn.XLOOKUP($A58,INDIRECT("'Curves "&F$10&"'!$A$14:$A$163"),_xlfn.XLOOKUP(F$11&$J$3,INDIRECT("'Curves "&F$10&"'!$11:$11")&INDIRECT("'Curves "&F$10&"'!$12:$12"),INDIRECT("'Curves "&F$10&"'!$14:$163"),,0,1),,0,1) -> 0.03410589573 | G58: =_xlfn.XLOOKUP($A58,INDIRECT("'Curves "&G$10&"'!$A$14:$A$163"),_xlfn.XLOOKUP(G$11&$J$3,INDIRECT("'Curves "&G$10&"'!$11:$11")&INDIRECT("'Curves "&G$10&"'!$12:$12"),INDIRECT("'Curves "&G$10&"'!$14:$163"),,0,1),,0,1) -> 0.04357079638 | H58: =_xlfn.XLOOKUP($A58,INDIRECT("'Curves "&H$10&"'!$A$14:$A$163"),_xlfn.XLOOKUP(H$11&$J$3,INDIRECT("'Curves "&H$10&"'!$11:$11")&INDIRECT("'Curves "&H$10&"'!$12:$12"),INDIRECT("'Curves "&H$10&"'!$14:$163"),,0,1),,0,1) -> 0.02010658021
A59: 47 | B59: =_xlfn.XLOOKUP($A59,INDIRECT("'Curves "&B$10&"'!$A$14:$A$163"),_xlfn.XLOOKUP(B$11&$J$3,INDIRECT("'Curves "&B$10&"'!$11:$11")&INDIRECT("'Curves "&B$10&"'!$12:$12"),INDIRECT("'Curves "&B$10&"'!$14:$163"),,0,1),,0,1) -> 0.03257118451 | C59: =_xlfn.XLOOKUP($A59,INDIRECT("'Curves "&C$10&"'!$A$14:$A$163"),_xlfn.XLOOKUP(C$11&$J$3,INDIRECT("'Curves "&C$10&"'!$11:$11")&INDIRECT("'Curves "&C$10&"'!$12:$12"),INDIRECT("'Curves "&C$10&"'!$14:$163"),,0,1),,0,1) -> 0.04186036156 | D59: =_xlfn.XLOOKUP($A59,INDIRECT("'Curves "&D$10&"'!$A$14:$A$163"),_xlfn.XLOOKUP(D$11&$J$3,INDIRECT("'Curves "&D$10&"'!$11:$11")&INDIRECT("'Curves "&D$10&"'!$12:$12"),INDIRECT("'Curves "&D$10&"'!$14:$163"),,0,1),,0,1) -> 0.01883227797 | F59: =_xlfn.XLOOKUP($A59,INDIRECT("'Curves "&F$10&"'!$A$14:$A$163"),_xlfn.XLOOKUP(F$11&$J$3,INDIRECT("'Curves "&F$10&"'!$11:$11")&INDIRECT("'Curves "&F$10&"'!$12:$12"),INDIRECT("'Curves "&F$10&"'!$14:$163"),,0,1),,0,1) -> 0.034083276 | G59: =_xlfn.XLOOKUP($A59,INDIRECT("'Curves "&G$10&"'!$A$14:$A$163"),_xlfn.XLOOKUP(G$11&$J$3,INDIRECT("'Curves "&G$10&"'!$11:$11")&INDIRECT("'Curves "&G$10&"'!$12:$12"),INDIRECT("'Curves "&G$10&"'!$14:$163"),,0,1),,0,1) -> 0.04338605607 | H59: =_xlfn.XLOOKUP($A59,INDIRECT("'Curves "&H$10&"'!$A$14:$A$163"),_xlfn.XLOOKUP(H$11&$J$3,INDIRECT("'Curves "&H$10&"'!$11:$11")&INDIRECT("'Curves "&H$10&"'!$12:$12"),INDIRECT("'Curves "&H$10&"'!$14:$163"),,0,1),,0,1) -> 0.02032425028
A60: 48 | B60: =_xlfn.XLOOKUP($A60,INDIRECT("'Curves "&B$10&"'!$A$14:$A$163"),_xlfn.XLOOKUP(B$11&$J$3,INDIRECT("'Curves "&B$10&"'!$11:$11")&INDIRECT("'Curves "&B$10&"'!$12:$12"),INDIRECT("'Curves "&B$10&"'!$14:$163"),,0,1),,0,1) -> 0.03257988594 | C60: =_xlfn.XLOOKUP($A60,INDIRECT("'Curves "&C$10&"'!$A$14:$A$163"),_xlfn.XLOOKUP(C$11&$J$3,INDIRECT("'Curves "&C$10&"'!$11:$11")&INDIRECT("'Curves "&C$10&"'!$12:$12"),INDIRECT("'Curves "&C$10&"'!$14:$163"),,0,1),,0,1) -> 0.04171339326 | D60: =_xlfn.XLOOKUP($A60,INDIRECT("'Curves "&D$10&"'!$A$14:$A$163"),_xlfn.XLOOKUP(D$11&$J$3,INDIRECT("'Curves "&D$10&"'!$11:$11")&INDIRECT("'Curves "&D$10&"'!$12:$12"),INDIRECT("'Curves "&D$10&"'!$14:$163"),,0,1),,0,1) -> 0.01907304571 | F60: =_xlfn.XLOOKUP($A60,INDIRECT("'Curves "&F$10&"'!$A$14:$A$163"),_xlfn.XLOOKUP(F$11&$J$3,INDIRECT("'Curves "&F$10&"'!$11:$11")&INDIRECT("'Curves "&F$10&"'!$12:$12"),INDIRECT("'Curves "&F$10&"'!$14:$163"),,0,1),,0,1) -> 0.03406150516 | G60: =_xlfn.XLOOKUP($A60,INDIRECT("'Curves "&G$10&"'!$A$14:$A$163"),_xlfn.XLOOKUP(G$11&$J$3,INDIRECT("'Curves "&G$10&"'!$11:$11")&INDIRECT("'Curves "&G$10&"'!$12:$12"),INDIRECT("'Curves "&G$10&"'!$14:$163"),,0,1),,0,1) -> 0.04320811789 | H60: =_xlfn.XLOOKUP($A60,INDIRECT("'Curves "&H$10&"'!$A$14:$A$163"),_xlfn.XLOOKUP(H$11&$J$3,INDIRECT("'Curves "&H$10&"'!$11:$11")&INDIRECT("'Curves "&H$10&"'!$12:$12"),INDIRECT("'Curves "&H$10&"'!$14:$163"),,0,1),,0,1) -> 0.02053528436
A61: 49 | B61: =_xlfn.XLOOKUP($A61,INDIRECT("'Curves "&B$10&"'!$A$14:$A$163"),_xlfn.XLOOKUP(B$11&$J$3,INDIRECT("'Curves "&B$10&"'!$11:$11")&INDIRECT("'Curves "&B$10&"'!$12:$12"),INDIRECT("'Curves "&B$10&"'!$14:$163"),,0,1),,0,1) -> 0.03258825578 | C61: =_xlfn.XLOOKUP($A61,INDIRECT("'Curves "&C$10&"'!$A$14:$A$163"),_xlfn.XLOOKUP(C$11&$J$3,INDIRECT("'Curves "&C$10&"'!$11:$11")&INDIRECT("'Curves "&C$10&"'!$12:$12"),INDIRECT("'Curves "&C$10&"'!$14:$163"),,0,1),,0,1) -> 0.04157173861 | D61: =_xlfn.XLOOKUP($A61,INDIRECT("'Curves "&D$10&"'!$A$14:$A$163"),_xlfn.XLOOKUP(D$11&$J$3,INDIRECT("'Curves "&D$10&"'!$11:$11")&INDIRECT("'Curves "&D$10&"'!$12:$12"),INDIRECT("'Curves "&D$10&"'!$14:$163"),,0,1),,0,1) -> 0.01930623906 | F61: =_xlfn.XLOOKUP($A61,INDIRECT("'Curves "&F$10&"'!$A$14:$A$163"),_xlfn.XLOOKUP(F$11&$J$3,INDIRECT("'Curves "&F$10&"'!$11:$11")&INDIRECT("'Curves "&F$10&"'!$12:$12"),INDIRECT("'Curves "&F$10&"'!$14:$163"),,0,1),,0,1) -> 0.03404054081 | G61: =_xlfn.XLOOKUP($A61,INDIRECT("'Curves "&G$10&"'!$A$14:$A$163"),_xlfn.XLOOKUP(G$11&$J$3,INDIRECT("'Curves "&G$10&"'!$11:$11")&INDIRECT("'Curves "&G$10&"'!$12:$12"),INDIRECT("'Curves "&G$10&"'!$14:$163"),,0,1),,0,1) -> 0.04303665847 | H61: =_xlfn.XLOOKUP($A61,INDIRECT("'Curves "&H$10&"'!$A$14:$A$163"),_xlfn.XLOOKUP(H$11&$J$3,INDIRECT("'Curves "&H$10&"'!$11:$11")&INDIRECT("'Curves "&H$10&"'!$12:$12"),INDIRECT("'Curves "&H$10&"'!$14:$163"),,0,1),,0,1) -> 0.02073984358
A62: 50 | B62: =_xlfn.XLOOKUP($A62,INDIRECT("'Curves "&B$10&"'!$A$14:$A$163"),_xlfn.XLOOKUP(B$11&$J$3,INDIRECT("'Curves "&B$10&"'!$11:$11")&INDIRECT("'Curves "&B$10&"'!$12:$12"),INDIRECT("'Curves "&B$10&"'!$14:$163"),,0,1),,0,1) -> 0.03259631154 | C62: =_xlfn.XLOOKUP($A62,INDIRECT("'Curves "&C$10&"'!$A$14:$A$163"),_xlfn.XLOOKUP(C$11&$J$3,INDIRECT("'Curves "&C$10&"'!$11:$11")&INDIRECT("'Curves "&C$10&"'!$12:$12"),INDIRECT("'Curves "&C$10&"'!$14:$163"),,0,1),,0,1) -> 0.04143514982 | D62: =_xlfn.XLOOKUP($A62,INDIRECT("'Curves "&D$10&"'!$A$14:$A$163"),_xlfn.XLOOKUP(D$11&$J$3,INDIRECT("'Curves "&D$10&"'!$11:$11")&INDIRECT("'Curves "&D$10&"'!$12:$12"),INDIRECT("'Curves "&D$10&"'!$14:$163"),,0,1),,0,1) -> 0.01953208621 | F62: =_xlfn.XLOOKUP($A62,INDIRECT("'Curves "&F$10&"'!$A$14:$A$163"),_xlfn.XLOOKUP(F$11&$J$3,INDIRECT("'Curves "&F$10&"'!$11:$11")&INDIRECT("'Curves "&F$10&"'!$12:$12"),INDIRECT("'Curves "&F$10&"'!$14:$163"),,0,1),,0,1) -> 0.03402034297 | G62: =_xlfn.XLOOKUP($A62,INDIRECT("'Curves "&G$10&"'!$A$14:$A$163"),_xlfn.XLOOKUP(G$11&$J$3,INDIRECT("'Curves "&G$10&"'!$11:$11")&INDIRECT("'Curves "&G$10&"'!$12:$12"),INDIRECT("'Curves "&G$10&"'!$14:$163"),,0,1),,0,1) -> 0.0428713707 | H62: =_xlfn.XLOOKUP($A62,INDIRECT("'Curves "&H$10&"'!$A$14:$A$163"),_xlfn.XLOOKUP(H$11&$J$3,INDIRECT("'Curves "&H$10&"'!$11:$11")&INDIRECT("'Curves "&H$10&"'!$12:$12"),INDIRECT("'Curves "&H$10&"'!$14:$163"),,0,1),,0,1) -> 0.02093810104
A63: 51 | B63: =_xlfn.XLOOKUP($A63,INDIRECT("'Curves "&B$10&"'!$A$14:$A$163"),_xlfn.XLOOKUP(B$11&$J$3,INDIRECT("'Curves "&B$10&"'!$11:$11")&INDIRECT("'Curves "&B$10&"'!$12:$12"),INDIRECT("'Curves "&B$10&"'!$14:$163"),,0,1),,0,1) -> 0.03260406958 | C63: =_xlfn.XLOOKUP($A63,INDIRECT("'Curves "&C$10&"'!$A$14:$A$163"),_xlfn.XLOOKUP(C$11&$J$3,INDIRECT("'Curves "&C$10&"'!$11:$11")&INDIRECT("'Curves "&C$10&"'!$12:$12"),INDIRECT("'Curves "&C$10&"'!$14:$163"),,0,1),,0,1) -> 0.04130339124 | D63: =_xlfn.XLOOKUP($A63,INDIRECT("'Curves "&D$10&"'!$A$14:$A$163"),_xlfn.XLOOKUP(D$11&$J$3,INDIRECT("'Curves "&D$10&"'!$11:$11")&INDIRECT("'Curves "&D$10&"'!$12:$12"),INDIRECT("'Curves "&D$10&"'!$14:$163"),,0,1),,0,1) -> 0.01975082033 | F63: =_xlfn.XLOOKUP($A63,INDIRECT("'Curves "&F$10&"'!$A$14:$A$163"),_xlfn.XLOOKUP(F$11&$J$3,INDIRECT("'Curves "&F$10&"'!$11:$11")&INDIRECT("'Curves "&F$10&"'!$12:$12"),INDIRECT("'Curves "&F$10&"'!$14:$163"),,0,1),,0,1) -> 0.03400087392 | G63: =_xlfn.XLOOKUP($A63,INDIRECT("'Curves "&G$10&"'!$A$14:$A$163"),_xlfn.XLOOKUP(G$11&$J$3,INDIRECT("'Curves "&G$10&"'!$11:$11")&INDIRECT("'Curves "&G$10&"'!$12:$12"),INDIRECT("'Curves "&G$10&"'!$14:$163"),,0,1),,0,1) -> 0.04271196316 | H63: =_xlfn.XLOOKUP($A63,INDIRECT("'Curves "&H$10&"'!$A$14:$A$163"),_xlfn.XLOOKUP(H$11&$J$3,INDIRECT("'Curves "&H$10&"'!$11:$11")&INDIRECT("'Curves "&H$10&"'!$12:$12"),INDIRECT("'Curves "&H$10&"'!$14:$163"),,0,1),,0,1) -> 0.02113023807
A64: 52 | B64: =_xlfn.XLOOKUP($A64,INDIRECT("'Curves "&B$10&"'!$A$14:$A$163"),_xlfn.XLOOKUP(B$11&$J$3,INDIRECT("'Curves "&B$10&"'!$11:$11")&INDIRECT("'Curves "&B$10&"'!$12:$12"),INDIRECT("'Curves "&B$10&"'!$14:$163"),,0,1),,0,1) -> 0.03261154521 | C64: =_xlfn.XLOOKUP($A64,INDIRECT("'Curves "&C$10&"'!$A$14:$A$163"),_xlfn.XLOOKUP(C$11&$J$3,INDIRECT("'Curves "&C$10&"'!$11:$11")&INDIRECT("'Curves "&C$10&"'!$12:$12"),INDIRECT("'Curves "&C$10&"'!$14:$163"),,0,1),,0,1) -> 0.04117623892 | D64: =_xlfn.XLOOKUP($A64,INDIRECT("'Curves "&D$10&"'!$A$14:$A$163"),_xlfn.XLOOKUP(D$11&$J$3,INDIRECT("'Curves "&D$10&"'!$11:$11")&INDIRECT("'Curves "&D$10&"'!$12:$12"),INDIRECT("'Curves "&D$10&"'!$14:$163"),,0,1),,0,1) -> 0.01996267681 | F64: =_xlfn.XLOOKUP($A64,INDIRECT("'Curves "&F$10&"'!$A$14:$A$163"),_xlfn.XLOOKUP(F$11&$J$3,INDIRECT("'Curves "&F$10&"'!$11:$11")&INDIRECT("'Curves "&F$10&"'!$12:$12"),INDIRECT("'Curves "&F$10&"'!$14:$163"),,0,1),,0,1) -> 0.03398209811 | G64: =_xlfn.XLOOKUP($A64,INDIRECT("'Curves "&G$10&"'!$A$14:$A$163"),_xlfn.XLOOKUP(G$11&$J$3,INDIRECT("'Curves "&G$10&"'!$11:$11")&INDIRECT("'Curves "&G$10&"'!$12:$12"),INDIRECT("'Curves "&G$10&"'!$14:$163"),,0,1),,0,1) -> 0.04255815946 | H64: =_xlfn.XLOOKUP($A64,INDIRECT("'Curves "&H$10&"'!$A$14:$A$163"),_xlfn.XLOOKUP(H$11&$J$3,INDIRECT("'Curves "&H$10&"'!$11:$11")&INDIRECT("'Curves "&H$10&"'!$12:$12"),INDIRECT("'Curves "&H$10&"'!$14:$163"),,0,1),,0,1) -> 0.02131644126
A65: 53 | B65: =_xlfn.XLOOKUP($A65,INDIRECT("'Curves "&B$10&"'!$A$14:$A$163"),_xlfn.XLOOKUP(B$11&$J$3,INDIRECT("'Curves "&B$10&"'!$11:$11")&INDIRECT("'Curves "&B$10&"'!$12:$12"),INDIRECT("'Curves "&B$10&"'!$14:$163"),,0,1),,0,1) -> 0.03261875279 | C65: =_xlfn.XLOOKUP($A65,INDIRECT("'Curves "&C$10&"'!$A$14:$A$163"),_xlfn.XLOOKUP(C$11&$J$3,INDIRECT("'Curves "&C$10&"'!$11:$11")&INDIRECT("'Curves "&C$10&"'!$12:$12"),INDIRECT("'Curves "&C$10&"'!$14:$163"),,0,1),,0,1) -> 0.04105348016 | D65: =_xlfn.XLOOKUP($A65,INDIRECT("'Curves "&D$10&"'!$A$14:$A$163"),_xlfn.XLOOKUP(D$11&$J$3,INDIRECT("'Curves "&D$10&"'!$11:$11")&INDIRECT("'Curves "&D$10&"'!$12:$12"),INDIRECT("'Curves "&D$10&"'!$14:$163"),,0,1),,0,1) -> 0.02016789095 | F65: =_xlfn.XLOOKUP($A65,INDIRECT("'Curves "&F$10&"'!$A$14:$A$163"),_xlfn.XLOOKUP(F$11&$J$3,INDIRECT("'Curves "&F$10&"'!$11:$11")&INDIRECT("'Curves "&F$10&"'!$12:$12"),INDIRECT("'Curves "&F$10&"'!$14:$163"),,0,1),,0,1) -> 0.03396398199 | G65: =_xlfn.XLOOKUP($A65,INDIRECT("'Curves "&G$10&"'!$A$14:$A$163"),_xlfn.XLOOKUP(G$11&$J$3,INDIRECT("'Curves "&G$10&"'!$11:$11")&INDIRECT("'Curves "&G$10&"'!$12:$12"),INDIRECT("'Curves "&G$10&"'!$14:$163"),,0,1),,0,1) -> 0.04240969757 | H65: =_xlfn.XLOOKUP($A65,INDIRECT("'Curves "&H$10&"'!$A$14:$A$163"),_xlfn.XLOOKUP(H$11&$J$3,INDIRECT("'Curves "&H$10&"'!$11:$11")&INDIRECT("'Curves "&H$10&"'!$12:$12"),INDIRECT("'Curves "&H$10&"'!$14:$163"),,0,1),,0,1) -> 0.02149689997
A66: 54 | B66: =_xlfn.XLOOKUP($A66,INDIRECT("'Curves "&B$10&"'!$A$14:$A$163"),_xlfn.XLOOKUP(B$11&$J$3,INDIRECT("'Curves "&B$10&"'!$11:$11")&INDIRECT("'Curves "&B$10&"'!$12:$12"),INDIRECT("'Curves "&B$10&"'!$14:$163"),,0,1),,0,1) -> 0.03262570579 | C66: =_xlfn.XLOOKUP($A66,INDIRECT("'Curves "&C$10&"'!$A$14:$A$163"),_xlfn.XLOOKUP(C$11&$J$3,INDIRECT("'Curves "&C$10&"'!$11:$11")&INDIRECT("'Curves "&C$10&"'!$12:$12"),INDIRECT("'Curves "&C$10&"'!$14:$163"),,0,1),,0,1) -> 0.04093491308 | D66: =_xlfn.XLOOKUP($A66,INDIRECT("'Curves "&D$10&"'!$A$14:$A$163"),_xlfn.XLOOKUP(D$11&$J$3,INDIRECT("'Curves "&D$10&"'!$11:$11")&INDIRECT("'Curves "&D$10&"'!$12:$12"),INDIRECT("'Curves "&D$10&"'!$14:$163"),,0,1),,0,1) -> 0.02036669625 | F66: =_xlfn.XLOOKUP($A66,INDIRECT("'Curves "&F$10&"'!$A$14:$A$163"),_xlfn.XLOOKUP(F$11&$J$3,INDIRECT("'Curves "&F$10&"'!$11:$11")&INDIRECT("'Curves "&F$10&"'!$12:$12"),INDIRECT("'Curves "&F$10&"'!$14:$163"),,0,1),,0,1) -> 0.03394649393 | G66: =_xlfn.XLOOKUP($A66,INDIRECT("'Curves "&G$10&"'!$A$14:$A$163"),_xlfn.XLOOKUP(G$11&$J$3,INDIRECT("'Curves "&G$10&"'!$11:$11")&INDIRECT("'Curves "&G$10&"'!$12:$12"),INDIRECT("'Curves "&G$10&"'!$14:$163"),,0,1),,0,1) -> 0.04226632918 | H66: =_xlfn.XLOOKUP($A66,INDIRECT("'Curves "&H$10&"'!$A$14:$A$163"),_xlfn.XLOOKUP(H$11&$J$3,INDIRECT("'Curves "&H$10&"'!$11:$11")&INDIRECT("'Curves "&H$10&"'!$12:$12"),INDIRECT("'Curves "&H$10&"'!$14:$163"),,0,1),,0,1) -> 0.02167180441
A67: 55 | B67: =_xlfn.XLOOKUP($A67,INDIRECT("'Curves "&B$10&"'!$A$14:$A$163"),_xlfn.XLOOKUP(B$11&$J$3,INDIRECT("'Curves "&B$10&"'!$11:$11")&INDIRECT("'Curves "&B$10&"'!$12:$12"),INDIRECT("'Curves "&B$10&"'!$14:$163"),,0,1),,0,1) -> 0.03263241681 | C67: =_xlfn.XLOOKUP($A67,INDIRECT("'Curves "&C$10&"'!$A$14:$A$163"),_xlfn.XLOOKUP(C$11&$J$3,INDIRECT("'Curves "&C$10&"'!$11:$11")&INDIRECT("'Curves "&C$10&"'!$12:$12"),INDIRECT("'Curves "&C$10&"'!$14:$163"),,0,1),,0,1) -> 0.04082034613 | D67: =_xlfn.XLOOKUP($A67,INDIRECT("'Curves "&D$10&"'!$A$14:$A$163"),_xlfn.XLOOKUP(D$11&$J$3,INDIRECT("'Curves "&D$10&"'!$11:$11")&INDIRECT("'Curves "&D$10&"'!$12:$12"),INDIRECT("'Curves "&D$10&"'!$14:$163"),,0,1),,0,1) -> 0.02055932292 | F67: =_xlfn.XLOOKUP($A67,INDIRECT("'Curves "&F$10&"'!$A$14:$A$163"),_xlfn.XLOOKUP(F$11&$J$3,INDIRECT("'Curves "&F$10&"'!$11:$11")&INDIRECT("'Curves "&F$10&"'!$12:$12"),INDIRECT("'Curves "&F$10&"'!$14:$163"),,0,1),,0,1) -> 0.03392960407 | G67: =_xlfn.XLOOKUP($A67,INDIRECT("'Curves "&G$10&"'!$A$14:$A$163"),_xlfn.XLOOKUP(G$11&$J$3,INDIRECT("'Curves "&G$10&"'!$11:$11")&INDIRECT("'Curves "&G$10&"'!$12:$12"),INDIRECT("'Curves "&G$10&"'!$14:$163"),,0,1),,0,1) -> 0.04212781901 | H67: =_xlfn.XLOOKUP($A67,INDIRECT("'Curves "&H$10&"'!$A$14:$A$163"),_xlfn.XLOOKUP(H$11&$J$3,INDIRECT("'Curves "&H$10&"'!$11:$11")&INDIRECT("'Curves "&H$10&"'!$12:$12"),INDIRECT("'Curves "&H$10&"'!$14:$163"),,0,1),,0,1) -> 0.02184134402
A68: 56 | B68: =_xlfn.XLOOKUP($A68,INDIRECT("'Curves "&B$10&"'!$A$14:$A$163"),_xlfn.XLOOKUP(B$11&$J$3,INDIRECT("'Curves "&B$10&"'!$11:$11")&INDIRECT("'Curves "&B$10&"'!$12:$12"),INDIRECT("'Curves "&B$10&"'!$14:$163"),,0,1),,0,1) -> 0.03263889773 | C68: =_xlfn.XLOOKUP($A68,INDIRECT("'Curves "&C$10&"'!$A$14:$A$163"),_xlfn.XLOOKUP(C$11&$J$3,INDIRECT("'Curves "&C$10&"'!$11:$11")&INDIRECT("'Curves "&C$10&"'!$12:$12"),INDIRECT("'Curves "&C$10&"'!$14:$163"),,0,1),,0,1) -> 0.0407095976 | D68: =_xlfn.XLOOKUP($A68,INDIRECT("'Curves "&D$10&"'!$A$14:$A$163"),_xlfn.XLOOKUP(D$11&$J$3,INDIRECT("'Curves "&D$10&"'!$11:$11")&INDIRECT("'Curves "&D$10&"'!$12:$12"),INDIRECT("'Curves "&D$10&"'!$14:$163"),,0,1),,0,1) -> 0.02074599682 | F68: =_xlfn.XLOOKUP($A68,INDIRECT("'Curves "&F$10&"'!$A$14:$A$163"),_xlfn.XLOOKUP(F$11&$J$3,INDIRECT("'Curves "&F$10&"'!$11:$11")&INDIRECT("'Curves "&F$10&"'!$12:$12"),INDIRECT("'Curves "&F$10&"'!$14:$163"),,0,1),,0,1) -> 0.03391328424 | G68: =_xlfn.XLOOKUP($A68,INDIRECT("'Curves "&G$10&"'!$A$14:$A$163"),_xlfn.XLOOKUP(G$11&$J$3,INDIRECT("'Curves "&G$10&"'!$11:$11")&INDIRECT("'Curves "&G$10&"'!$12:$12"),INDIRECT("'Curves "&G$10&"'!$14:$163"),,0,1),,0,1) -> 0.04199394421 | H68: =_xlfn.XLOOKUP($A68,INDIRECT("'Curves "&H$10&"'!$A$14:$A$163"),_xlfn.XLOOKUP(H$11&$J$3,INDIRECT("'Curves "&H$10&"'!$11:$11")&INDIRECT("'Curves "&H$10&"'!$12:$12"),INDIRECT("'Curves "&H$10&"'!$14:$163"),,0,1),,0,1) -> 0.02200570622
A69: 57 | B69: =_xlfn.XLOOKUP($A69,INDIRECT("'Curves "&B$10&"'!$A$14:$A$163"),_xlfn.XLOOKUP(B$11&$J$3,INDIRECT("'Curves "&B$10&"'!$11:$11")&INDIRECT("'Curves "&B$10&"'!$12:$12"),INDIRECT("'Curves "&B$10&"'!$14:$163"),,0,1),,0,1) -> 0.03264515967 | C69: =_xlfn.XLOOKUP($A69,INDIRECT("'Curves "&C$10&"'!$A$14:$A$163"),_xlfn.XLOOKUP(C$11&$J$3,INDIRECT("'Curves "&C$10&"'!$11:$11")&INDIRECT("'Curves "&C$10&"'!$12:$12"),INDIRECT("'Curves "&C$10&"'!$14:$163"),,0,1),,0,1) -> 0.04060249517 | D69: =_xlfn.XLOOKUP($A69,INDIRECT("'Curves "&D$10&"'!$A$14:$A$163"),_xlfn.XLOOKUP(D$11&$J$3,INDIRECT("'Curves "&D$10&"'!$11:$11")&INDIRECT("'Curves "&D$10&"'!$12:$12"),INDIRECT("'Curves "&D$10&"'!$14:$163"),,0,1),,0,1) -> 0.02092693862 | F69: =_xlfn.XLOOKUP($A69,INDIRECT("'Curves "&F$10&"'!$A$14:$A$163"),_xlfn.XLOOKUP(F$11&$J$3,INDIRECT("'Curves "&F$10&"'!$11:$11")&INDIRECT("'Curves "&F$10&"'!$12:$12"),INDIRECT("'Curves "&F$10&"'!$14:$163"),,0,1),,0,1) -> 0.03389750785 | G69: =_xlfn.XLOOKUP($A69,INDIRECT("'Curves "&G$10&"'!$A$14:$A$163"),_xlfn.XLOOKUP(G$11&$J$3,INDIRECT("'Curves "&G$10&"'!$11:$11")&INDIRECT("'Curves "&G$10&"'!$12:$12"),INDIRECT("'Curves "&G$10&"'!$14:$163"),,0,1),,0,1) -> 0.04186449367 | H69: =_xlfn.XLOOKUP($A69,INDIRECT("'Curves "&H$10&"'!$A$14:$A$163"),_xlfn.XLOOKUP(H$11&$J$3,INDIRECT("'Curves "&H$10&"'!$11:$11")&INDIRECT("'Curves "&H$10&"'!$12:$12"),INDIRECT("'Curves "&H$10&"'!$14:$163"),,0,1),,0,1) -> 0.02216507544
A70: 58 | B70: =_xlfn.XLOOKUP($A70,INDIRECT("'Curves "&B$10&"'!$A$14:$A$163"),_xlfn.XLOOKUP(B$11&$J$3,INDIRECT("'Curves "&B$10&"'!$11:$11")&INDIRECT("'Curves "&B$10&"'!$12:$12"),INDIRECT("'Curves "&B$10&"'!$14:$163"),,0,1),,0,1) -> 0.03265121309 | C70: =_xlfn.XLOOKUP($A70,INDIRECT("'Curves "&C$10&"'!$A$14:$A$163"),_xlfn.XLOOKUP(C$11&$J$3,INDIRECT("'Curves "&C$10&"'!$11:$11")&INDIRECT("'Curves "&C$10&"'!$12:$12"),INDIRECT("'Curves "&C$10&"'!$14:$163"),,0,1),,0,1) -> 0.04049887545 | D70: =_xlfn.XLOOKUP($A70,INDIRECT("'Curves "&D$10&"'!$A$14:$A$163"),_xlfn.XLOOKUP(D$11&$J$3,INDIRECT("'Curves "&D$10&"'!$11:$11")&INDIRECT("'Curves "&D$10&"'!$12:$12"),INDIRECT("'Curves "&D$10&"'!$14:$163"),,0,1),,0,1) -> 0.02110236313 | F70: =_xlfn.XLOOKUP($A70,INDIRECT("'Curves "&F$10&"'!$A$14:$A$163"),_xlfn.XLOOKUP(F$11&$J$3,INDIRECT("'Curves "&F$10&"'!$11:$11")&INDIRECT("'Curves "&F$10&"'!$12:$12"),INDIRECT("'Curves "&F$10&"'!$14:$163"),,0,1),,0,1) -> 0.0338822498 | G70: =_xlfn.XLOOKUP($A70,INDIRECT("'Curves "&G$10&"'!$A$14:$A$163"),_xlfn.XLOOKUP(G$11&$J$3,INDIRECT("'Curves "&G$10&"'!$11:$11")&INDIRECT("'Curves "&G$10&"'!$12:$12"),INDIRECT("'Curves "&G$10&"'!$14:$163"),,0,1),,0,1) -> 0.04173926745 | H70: =_xlfn.XLOOKUP($A70,INDIRECT("'Curves "&H$10&"'!$A$14:$A$163"),_xlfn.XLOOKUP(H$11&$J$3,INDIRECT("'Curves "&H$10&"'!$11:$11")&INDIRECT("'Curves "&H$10&"'!$12:$12"),INDIRECT("'Curves "&H$10&"'!$14:$163"),,0,1),,0,1) -> 0.0223196323
A71: 59 | B71: =_xlfn.XLOOKUP($A71,INDIRECT("'Curves "&B$10&"'!$A$14:$A$163"),_xlfn.XLOOKUP(B$11&$J$3,INDIRECT("'Curves "&B$10&"'!$11:$11")&INDIRECT("'Curves "&B$10&"'!$12:$12"),INDIRECT("'Curves "&B$10&"'!$14:$163"),,0,1),,0,1) -> 0.03265706785 | C71: =_xlfn.XLOOKUP($A71,INDIRECT("'Curves "&C$10&"'!$A$14:$A$163"),_xlfn.XLOOKUP(C$11&$J$3,INDIRECT("'Curves "&C$10&"'!$11:$11")&INDIRECT("'Curves "&C$10&"'!$12:$12"),INDIRECT("'Curves "&C$10&"'!$14:$163"),,0,1),,0,1) -> 0.04039858351 | D71: =_xlfn.XLOOKUP($A71,INDIRECT("'Curves "&D$10&"'!$A$14:$A$163"),_xlfn.XLOOKUP(D$11&$J$3,INDIRECT("'Curves "&D$10&"'!$11:$11")&INDIRECT("'Curves "&D$10&"'!$12:$12"),INDIRECT("'Curves "&D$10&"'!$14:$163"),,0,1),,0,1) -> 0.02127247888 | F71: =_xlfn.XLOOKUP($A71,INDIRECT("'Curves "&F$10&"'!$A$14:$A$163"),_xlfn.XLOOKUP(F$11&$J$3,INDIRECT("'Curves "&F$10&"'!$11:$11")&INDIRECT("'Curves "&F$10&"'!$12:$12"),INDIRECT("'Curves "&F$10&"'!$14:$163"),,0,1),,0,1) -> 0.03386748636 | G71: =_xlfn.XLOOKUP($A71,INDIRECT("'Curves "&G$10&"'!$A$14:$A$163"),_xlfn.XLOOKUP(G$11&$J$3,INDIRECT("'Curves "&G$10&"'!$11:$11")&INDIRECT("'Curves "&G$10&"'!$12:$12"),INDIRECT("'Curves "&G$10&"'!$14:$163"),,0,1),,0,1) -> 0.04161807616 | H71: =_xlfn.XLOOKUP($A71,INDIRECT("'Curves "&H$10&"'!$A$14:$A$163"),_xlfn.XLOOKUP(H$11&$J$3,INDIRECT("'Curves "&H$10&"'!$11:$11")&INDIRECT("'Curves "&H$10&"'!$12:$12"),INDIRECT("'Curves "&H$10&"'!$14:$163"),,0,1),,0,1) -> 0.02246955306
A72: 60 | B72: =_xlfn.XLOOKUP($A72,INDIRECT("'Curves "&B$10&"'!$A$14:$A$163"),_xlfn.XLOOKUP(B$11&$J$3,INDIRECT("'Curves "&B$10&"'!$11:$11")&INDIRECT("'Curves "&B$10&"'!$12:$12"),INDIRECT("'Curves "&B$10&"'!$14:$163"),,0,1),,0,1) -> 0.03266273321 | C72: =_xlfn.XLOOKUP($A72,INDIRECT("'Curves "&C$10&"'!$A$14:$A$163"),_xlfn.XLOOKUP(C$11&$J$3,INDIRECT("'Curves "&C$10&"'!$11:$11")&INDIRECT("'Curves "&C$10&"'!$12:$12"),INDIRECT("'Curves "&C$10&"'!$14:$163"),,0,1),,0,1) -> 0.04030147246 | D72: =_xlfn.XLOOKUP($A72,INDIRECT("'Curves "&D$10&"'!$A$14:$A$163"),_xlfn.XLOOKUP(D$11&$J$3,INDIRECT("'Curves "&D$10&"'!$11:$11")&INDIRECT("'Curves "&D$10&"'!$12:$12"),INDIRECT("'Curves "&D$10&"'!$14:$163"),,0,1),,0,1) -> 0.02143748778 | F72: =_xlfn.XLOOKUP($A72,INDIRECT("'Curves "&F$10&"'!$A$14:$A$163"),_xlfn.XLOOKUP(F$11&$J$3,INDIRECT("'Curves "&F$10&"'!$11:$11")&INDIRECT("'Curves "&F$10&"'!$12:$12"),INDIRECT("'Curves "&F$10&"'!$14:$163"),,0,1),,0,1) -> 0.03385319514 | G72: =_xlfn.XLOOKUP($A72,INDIRECT("'Curves "&G$10&"'!$A$14:$A$163"),_xlfn.XLOOKUP(G$11&$J$3,INDIRECT("'Curves "&G$10&"'!$11:$11")&INDIRECT("'Curves "&G$10&"'!$12:$12"),INDIRECT("'Curves "&G$10&"'!$14:$163"),,0,1),,0,1) -> 0.04150074039 | H72: =_xlfn.XLOOKUP($A72,INDIRECT("'Curves "&H$10&"'!$A$14:$A$163"),_xlfn.XLOOKUP(H$11&$J$3,INDIRECT("'Curves "&H$10&"'!$11:$11")&INDIRECT("'Curves "&H$10&"'!$12:$12"),INDIRECT("'Curves "&H$10&"'!$14:$163"),,0,1),,0,1) -> 0.02261500916
A73: 61 | B73: =_xlfn.XLOOKUP($A73,INDIRECT("'Curves "&B$10&"'!$A$14:$A$163"),_xlfn.XLOOKUP(B$11&$J$3,INDIRECT("'Curves "&B$10&"'!$11:$11")&INDIRECT("'Curves "&B$10&"'!$12:$12"),INDIRECT("'Curves "&B$10&"'!$14:$163"),,0,1),,0,1) -> 0.03266821789 | C73: =_xlfn.XLOOKUP($A73,INDIRECT("'Curves "&C$10&"'!$A$14:$A$163"),_xlfn.XLOOKUP(C$11&$J$3,INDIRECT("'Curves "&C$10&"'!$11:$11")&INDIRECT("'Curves "&C$10&"'!$12:$12"),INDIRECT("'Curves "&C$10&"'!$14:$163"),,0,1),,0,1) -> 0.04020740302 | D73: =_xlfn.XLOOKUP($A73,INDIRECT("'Curves "&D$10&"'!$A$14:$A$163"),_xlfn.XLOOKUP(D$11&$J$3,INDIRECT("'Curves "&D$10&"'!$11:$11")&INDIRECT("'Curves "&D$10&"'!$12:$12"),INDIRECT("'Curves "&D$10&"'!$14:$163"),,0,1),,0,1) -> 0.02159758494 | F73: =_xlfn.XLOOKUP($A73,INDIRECT("'Curves "&F$10&"'!$A$14:$A$163"),_xlfn.XLOOKUP(F$11&$J$3,INDIRECT("'Curves "&F$10&"'!$11:$11")&INDIRECT("'Curves "&F$10&"'!$12:$12"),INDIRECT("'Curves "&F$10&"'!$14:$163"),,0,1),,0,1) -> 0.03383935496 | G73: =_xlfn.XLOOKUP($A73,INDIRECT("'Curves "&G$10&"'!$A$14:$A$163"),_xlfn.XLOOKUP(G$11&$J$3,INDIRECT("'Curves "&G$10&"'!$11:$11")&INDIRECT("'Curves "&G$10&"'!$12:$12"),INDIRECT("'Curves "&G$10&"'!$14:$163"),,0,1),,0,1) -> 0.04138709019 | H73: =_xlfn.XLOOKUP($A73,INDIRECT("'Curves "&H$10&"'!$A$14:$A$163"),_xlfn.XLOOKUP(H$11&$J$3,INDIRECT("'Curves "&H$10&"'!$11:$11")&INDIRECT("'Curves "&H$10&"'!$12:$12"),INDIRECT("'Curves "&H$10&"'!$14:$163"),,0,1),,0,1) -> 0.02275616694
A74: 62 | B74: =_xlfn.XLOOKUP($A74,INDIRECT("'Curves "&B$10&"'!$A$14:$A$163"),_xlfn.XLOOKUP(B$11&$J$3,INDIRECT("'Curves "&B$10&"'!$11:$11")&INDIRECT("'Curves "&B$10&"'!$12:$12"),INDIRECT("'Curves "&B$10&"'!$14:$163"),,0,1),,0,1) -> 0.03267353012 | C74: =_xlfn.XLOOKUP($A74,INDIRECT("'Curves "&C$10&"'!$A$14:$A$163"),_xlfn.XLOOKUP(C$11&$J$3,INDIRECT("'Curves "&C$10&"'!$11:$11")&INDIRECT("'Curves "&C$10&"'!$12:$12"),INDIRECT("'Curves "&C$10&"'!$14:$163"),,0,1),,0,1) -> 0.04011624311 | D74: =_xlfn.XLOOKUP($A74,INDIRECT("'Curves "&D$10&"'!$A$14:$A$163"),_xlfn.XLOOKUP(D$11&$J$3,INDIRECT("'Curves "&D$10&"'!$11:$11")&INDIRECT("'Curves "&D$10&"'!$12:$12"),INDIRECT("'Curves "&D$10&"'!$14:$163"),,0,1),,0,1) -> 0.02175295854 | F74: =_xlfn.XLOOKUP($A74,INDIRECT("'Curves "&F$10&"'!$A$14:$A$163"),_xlfn.XLOOKUP(F$11&$J$3,INDIRECT("'Curves "&F$10&"'!$11:$11")&INDIRECT("'Curves "&F$10&"'!$12:$12"),INDIRECT("'Curves "&F$10&"'!$14:$163"),,0,1),,0,1) -> 0.03382594581 | G74: =_xlfn.XLOOKUP($A74,INDIRECT("'Curves "&G$10&"'!$A$14:$A$163"),_xlfn.XLOOKUP(G$11&$J$3,INDIRECT("'Curves "&G$10&"'!$11:$11")&INDIRECT("'Curves "&G$10&"'!$12:$12"),INDIRECT("'Curves "&G$10&"'!$14:$163"),,0,1),,0,1) -> 0.04127696452 | H74: =_xlfn.XLOOKUP($A74,INDIRECT("'Curves "&H$10&"'!$A$14:$A$163"),_xlfn.XLOOKUP(H$11&$J$3,INDIRECT("'Curves "&H$10&"'!$11:$11")&INDIRECT("'Curves "&H$10&"'!$12:$12"),INDIRECT("'Curves "&H$10&"'!$14:$163"),,0,1),,0,1) -> 0.02289318738
A75: 63 | B75: =_xlfn.XLOOKUP($A75,INDIRECT("'Curves "&B$10&"'!$A$14:$A$163"),_xlfn.XLOOKUP(B$11&$J$3,INDIRECT("'Curves "&B$10&"'!$11:$11")&INDIRECT("'Curves "&B$10&"'!$12:$12"),INDIRECT("'Curves "&B$10&"'!$14:$163"),,0,1),,0,1) -> 0.03267867766 | C75: =_xlfn.XLOOKUP($A75,INDIRECT("'Curves "&C$10&"'!$A$14:$A$163"),_xlfn.XLOOKUP(C$11&$J$3,INDIRECT("'Curves "&C$10&"'!$11:$11")&INDIRECT("'Curves "&C$10&"'!$12:$12"),INDIRECT("'Curves "&C$10&"'!$14:$163"),,0,1),,0,1) -> 0.04002786748 | D75: =_xlfn.XLOOKUP($A75,INDIRECT("'Curves "&D$10&"'!$A$14:$A$163"),_xlfn.XLOOKUP(D$11&$J$3,INDIRECT("'Curves "&D$10&"'!$11:$11")&INDIRECT("'Curves "&D$10&"'!$12:$12"),INDIRECT("'Curves "&D$10&"'!$14:$163"),,0,1),,0,1) -> 0.02190378983 | F75: =_xlfn.XLOOKUP($A75,INDIRECT("'Curves "&F$10&"'!$A$14:$A$163"),_xlfn.XLOOKUP(F$11&$J$3,INDIRECT("'Curves "&F$10&"'!$11:$11")&INDIRECT("'Curves "&F$10&"'!$12:$12"),INDIRECT("'Curves "&F$10&"'!$14:$163"),,0,1),,0,1) -> 0.03381294875 | G75: =_xlfn.XLOOKUP($A75,INDIRECT("'Curves "&G$10&"'!$A$14:$A$163"),_xlfn.XLOOKUP(G$11&$J$3,INDIRECT("'Curves "&G$10&"'!$11:$11")&INDIRECT("'Curves "&G$10&"'!$12:$12"),INDIRECT("'Curves "&G$10&"'!$14:$163"),,0,1),,0,1) -> 0.04117021075 | H75: =_xlfn.XLOOKUP($A75,INDIRECT("'Curves "&H$10&"'!$A$14:$A$163"),_xlfn.XLOOKUP(H$11&$J$3,INDIRECT("'Curves "&H$10&"'!$11:$11")&INDIRECT("'Curves "&H$10&"'!$12:$12"),INDIRECT("'Curves "&H$10&"'!$14:$163"),,0,1),,0,1) -> 0.02302622603
A76: 64 | B76: =_xlfn.XLOOKUP($A76,INDIRECT("'Curves "&B$10&"'!$A$14:$A$163"),_xlfn.XLOOKUP(B$11&$J$3,INDIRECT("'Curves "&B$10&"'!$11:$11")&INDIRECT("'Curves "&B$10&"'!$12:$12"),INDIRECT("'Curves "&B$10&"'!$14:$163"),,0,1),,0,1) -> 0.03268366782 | C76: =_xlfn.XLOOKUP($A76,INDIRECT("'Curves "&C$10&"'!$A$14:$A$163"),_xlfn.XLOOKUP(C$11&$J$3,INDIRECT("'Curves "&C$10&"'!$11:$11")&INDIRECT("'Curves "&C$10&"'!$12:$12"),INDIRECT("'Curves "&C$10&"'!$14:$163"),,0,1),,0,1) -> 0.03994215732 | D76: =_xlfn.XLOOKUP($A76,INDIRECT("'Curves "&D$10&"'!$A$14:$A$163"),_xlfn.XLOOKUP(D$11&$J$3,INDIRECT("'Curves "&D$10&"'!$11:$11")&INDIRECT("'Curves "&D$10&"'!$12:$12"),INDIRECT("'Curves "&D$10&"'!$14:$163"),,0,1),,0,1) -> 0.02205025315 | F76: =_xlfn.XLOOKUP($A76,INDIRECT("'Curves "&F$10&"'!$A$14:$A$163"),_xlfn.XLOOKUP(F$11&$J$3,INDIRECT("'Curves "&F$10&"'!$11:$11")&INDIRECT("'Curves "&F$10&"'!$12:$12"),INDIRECT("'Curves "&F$10&"'!$14:$163"),,0,1),,0,1) -> 0.03380034587 | G76: =_xlfn.XLOOKUP($A76,INDIRECT("'Curves "&G$10&"'!$A$14:$A$163"),_xlfn.XLOOKUP(G$11&$J$3,INDIRECT("'Curves "&G$10&"'!$11:$11")&INDIRECT("'Curves "&G$10&"'!$12:$12"),INDIRECT("'Curves "&G$10&"'!$14:$163"),,0,1),,0,1) -> 0.04106668423 | H76: =_xlfn.XLOOKUP($A76,INDIRECT("'Curves "&H$10&"'!$A$14:$A$163"),_xlfn.XLOOKUP(H$11&$J$3,INDIRECT("'Curves "&H$10&"'!$11:$11")&INDIRECT("'Curves "&H$10&"'!$12:$12"),INDIRECT("'Curves "&H$10&"'!$14:$163"),,0,1),,0,1) -> 0.0231554329
A77: 65 | B77: =_xlfn.XLOOKUP($A77,INDIRECT("'Curves "&B$10&"'!$A$14:$A$163"),_xlfn.XLOOKUP(B$11&$J$3,INDIRECT("'Curves "&B$10&"'!$11:$11")&INDIRECT("'Curves "&B$10&"'!$12:$12"),INDIRECT("'Curves "&B$10&"'!$14:$163"),,0,1),,0,1) -> 0.03268850751 | C77: =_xlfn.XLOOKUP($A77,INDIRECT("'Curves "&C$10&"'!$A$14:$A$163"),_xlfn.XLOOKUP(C$11&$J$3,INDIRECT("'Curves "&C$10&"'!$11:$11")&INDIRECT("'Curves "&C$10&"'!$12:$12"),INDIRECT("'Curves "&C$10&"'!$14:$163"),,0,1),,0,1) -> 0.03985899991 | D77: =_xlfn.XLOOKUP($A77,INDIRECT("'Curves "&D$10&"'!$A$14:$A$163"),_xlfn.XLOOKUP(D$11&$J$3,INDIRECT("'Curves "&D$10&"'!$11:$11")&INDIRECT("'Curves "&D$10&"'!$12:$12"),INDIRECT("'Curves "&D$10&"'!$14:$163"),,0,1),,0,1) -> 0.02219251599 | F77: =_xlfn.XLOOKUP($A77,INDIRECT("'Curves "&F$10&"'!$A$14:$A$163"),_xlfn.XLOOKUP(F$11&$J$3,INDIRECT("'Curves "&F$10&"'!$11:$11")&INDIRECT("'Curves "&F$10&"'!$12:$12"),INDIRECT("'Curves "&F$10&"'!$14:$163"),,0,1),,0,1) -> 0.03378812021 | G77: =_xlfn.XLOOKUP($A77,INDIRECT("'Curves "&G$10&"'!$A$14:$A$163"),_xlfn.XLOOKUP(G$11&$J$3,INDIRECT("'Curves "&G$10&"'!$11:$11")&INDIRECT("'Curves "&G$10&"'!$12:$12"),INDIRECT("'Curves "&G$10&"'!$14:$163"),,0,1),,0,1) -> 0.04096624779 | H77: =_xlfn.XLOOKUP($A77,INDIRECT("'Curves "&H$10&"'!$A$14:$A$163"),_xlfn.XLOOKUP(H$11&$J$3,INDIRECT("'Curves "&H$10&"'!$11:$11")&INDIRECT("'Curves "&H$10&"'!$12:$12"),INDIRECT("'Curves "&H$10&"'!$14:$163"),,0,1),,0,1) -> 0.0232809525
A78: 66 | B78: =_xlfn.XLOOKUP($A78,INDIRECT("'Curves "&B$10&"'!$A$14:$A$163"),_xlfn.XLOOKUP(B$11&$J$3,INDIRECT("'Curves "&B$10&"'!$11:$11")&INDIRECT("'Curves "&B$10&"'!$12:$12"),INDIRECT("'Curves "&B$10&"'!$14:$163"),,0,1),,0,1) -> 0.03269320325 | C78: =_xlfn.XLOOKUP($A78,INDIRECT("'Curves "&C$10&"'!$A$14:$A$163"),_xlfn.XLOOKUP(C$11&$J$3,INDIRECT("'Curves "&C$10&"'!$11:$11")&INDIRECT("'Curves "&C$10&"'!$12:$12"),INDIRECT("'Curves "&C$10&"'!$14:$163"),,0,1),,0,1) -> 0.03977828829 | D78: =_xlfn.XLOOKUP($A78,INDIRECT("'Curves "&D$10&"'!$A$14:$A$163"),_xlfn.XLOOKUP(D$11&$J$3,INDIRECT("'Curves "&D$10&"'!$11:$11")&INDIRECT("'Curves "&D$10&"'!$12:$12"),INDIRECT("'Curves "&D$10&"'!$14:$163"),,0,1),,0,1) -> 0.02233073917 | F78: =_xlfn.XLOOKUP($A78,INDIRECT("'Curves "&F$10&"'!$A$14:$A$163"),_xlfn.XLOOKUP(F$11&$J$3,INDIRECT("'Curves "&F$10&"'!$11:$11")&INDIRECT("'Curves "&F$10&"'!$12:$12"),INDIRECT("'Curves "&F$10&"'!$14:$163"),,0,1),,0,1) -> 0.03377625572 | G78: =_xlfn.XLOOKUP($A78,INDIRECT("'Curves "&G$10&"'!$A$14:$A$163"),_xlfn.XLOOKUP(G$11&$J$3,INDIRECT("'Curves "&G$10&"'!$11:$11")&INDIRECT("'Curves "&G$10&"'!$12:$12"),INDIRECT("'Curves "&G$10&"'!$14:$163"),,0,1),,0,1) -> 0.04086877135 | H78: =_xlfn.XLOOKUP($A78,INDIRECT("'Curves "&H$10&"'!$A$14:$A$163"),_xlfn.XLOOKUP(H$11&$J$3,INDIRECT("'Curves "&H$10&"'!$11:$11")&INDIRECT("'Curves "&H$10&"'!$12:$12"),INDIRECT("'Curves "&H$10&"'!$14:$163"),,0,1),,0,1) -> 0.02340292385
A79: 67 | B79: =_xlfn.XLOOKUP($A79,INDIRECT("'Curves "&B$10&"'!$A$14:$A$163"),_xlfn.XLOOKUP(B$11&$J$3,INDIRECT("'Curves "&B$10&"'!$11:$11")&INDIRECT("'Curves "&B$10&"'!$12:$12"),INDIRECT("'Curves "&B$10&"'!$14:$163"),,0,1),,0,1) -> 0.03269776122 | C79: =_xlfn.XLOOKUP($A79,INDIRECT("'Curves "&C$10&"'!$A$14:$A$163"),_xlfn.XLOOKUP(C$11&$J$3,INDIRECT("'Curves "&C$10&"'!$11:$11")&INDIRECT("'Curves "&C$10&"'!$12:$12"),INDIRECT("'Curves "&C$10&"'!$14:$163"),,0,1),,0,1) -> 0.03969992095 | D79: =_xlfn.XLOOKUP($A79,INDIRECT("'Curves "&D$10&"'!$A$14:$A$163"),_xlfn.XLOOKUP(D$11&$J$3,INDIRECT("'Curves "&D$10&"'!$11:$11")&INDIRECT("'Curves "&D$10&"'!$12:$12"),INDIRECT("'Curves "&D$10&"'!$14:$163"),,0,1),,0,1) -> 0.02246507691 | F79: =_xlfn.XLOOKUP($A79,INDIRECT("'Curves "&F$10&"'!$A$14:$A$163"),_xlfn.XLOOKUP(F$11&$J$3,INDIRECT("'Curves "&F$10&"'!$11:$11")&INDIRECT("'Curves "&F$10&"'!$12:$12"),INDIRECT("'Curves "&F$10&"'!$14:$163"),,0,1),,0,1) -> 0.03376473719 | G79: =_xlfn.XLOOKUP($A79,INDIRECT("'Curves "&G$10&"'!$A$14:$A$163"),_xlfn.XLOOKUP(G$11&$J$3,INDIRECT("'Curves "&G$10&"'!$11:$11")&INDIRECT("'Curves "&G$10&"'!$12:$12"),INDIRECT("'Curves "&G$10&"'!$14:$163"),,0,1),,0,1) -> 0.0407741315 | H79: =_xlfn.XLOOKUP($A79,INDIRECT("'Curves "&H$10&"'!$A$14:$A$163"),_xlfn.XLOOKUP(H$11&$J$3,INDIRECT("'Curves "&H$10&"'!$11:$11")&INDIRECT("'Curves "&H$10&"'!$12:$12"),INDIRECT("'Curves "&H$10&"'!$14:$163"),,0,1),,0,1) -> 0.02352148055
A80: 68 | B80: =_xlfn.XLOOKUP($A80,INDIRECT("'Curves "&B$10&"'!$A$14:$A$163"),_xlfn.XLOOKUP(B$11&$J$3,INDIRECT("'Curves "&B$10&"'!$11:$11")&INDIRECT("'Curves "&B$10&"'!$12:$12"),INDIRECT("'Curves "&B$10&"'!$14:$163"),,0,1),,0,1) -> 0.03270218724 | C80: =_xlfn.XLOOKUP($A80,INDIRECT("'Curves "&C$10&"'!$A$14:$A$163"),_xlfn.XLOOKUP(C$11&$J$3,INDIRECT("'Curves "&C$10&"'!$11:$11")&INDIRECT("'Curves "&C$10&"'!$12:$12"),INDIRECT("'Curves "&C$10&"'!$14:$163"),,0,1),,0,1) -> 0.0396238015 | D80: =_xlfn.XLOOKUP($A80,INDIRECT("'Curves "&D$10&"'!$A$14:$A$163"),_xlfn.XLOOKUP(D$11&$J$3,INDIRECT("'Curves "&D$10&"'!$11:$11")&INDIRECT("'Curves "&D$10&"'!$12:$12"),INDIRECT("'Curves "&D$10&"'!$14:$163"),,0,1),,0,1) -> 0.02259567709 | F80: =_xlfn.XLOOKUP($A80,INDIRECT("'Curves "&F$10&"'!$A$14:$A$163"),_xlfn.XLOOKUP(F$11&$J$3,INDIRECT("'Curves "&F$10&"'!$11:$11")&INDIRECT("'Curves "&F$10&"'!$12:$12"),INDIRECT("'Curves "&F$10&"'!$14:$163"),,0,1),,0,1) -> 0.03375355021 | G80: =_xlfn.XLOOKUP($A80,INDIRECT("'Curves "&G$10&"'!$A$14:$A$163"),_xlfn.XLOOKUP(G$11&$J$3,INDIRECT("'Curves "&G$10&"'!$11:$11")&INDIRECT("'Curves "&G$10&"'!$12:$12"),INDIRECT("'Curves "&G$10&"'!$14:$163"),,0,1),,0,1) -> 0.04068221116 | H80: =_xlfn.XLOOKUP($A80,INDIRECT("'Curves "&H$10&"'!$A$14:$A$163"),_xlfn.XLOOKUP(H$11&$J$3,INDIRECT("'Curves "&H$10&"'!$11:$11")&INDIRECT("'Curves "&H$10&"'!$12:$12"),INDIRECT("'Curves "&H$10&"'!$14:$163"),,0,1),,0,1) -> 0.02363675093
A81: 69 | B81: =_xlfn.XLOOKUP($A81,INDIRECT("'Curves "&B$10&"'!$A$14:$A$163"),_xlfn.XLOOKUP(B$11&$J$3,INDIRECT("'Curves "&B$10&"'!$11:$11")&INDIRECT("'Curves "&B$10&"'!$12:$12"),INDIRECT("'Curves "&B$10&"'!$14:$163"),,0,1),,0,1) -> 0.03270648684 | C81: =_xlfn.XLOOKUP($A81,INDIRECT("'Curves "&C$10&"'!$A$14:$A$163"),_xlfn.XLOOKUP(C$11&$J$3,INDIRECT("'Curves "&C$10&"'!$11:$11")&INDIRECT("'Curves "&C$10&"'!$12:$12"),INDIRECT("'Curves "&C$10&"'!$14:$163"),,0,1),,0,1) -> 0.03954983842 | D81: =_xlfn.XLOOKUP($A81,INDIRECT("'Curves "&D$10&"'!$A$14:$A$163"),_xlfn.XLOOKUP(D$11&$J$3,INDIRECT("'Curves "&D$10&"'!$11:$11")&INDIRECT("'Curves "&D$10&"'!$12:$12"),INDIRECT("'Curves "&D$10&"'!$14:$163"),,0,1),,0,1) -> 0.02272268137 | F81: =_xlfn.XLOOKUP($A81,INDIRECT("'Curves "&F$10&"'!$A$14:$A$163"),_xlfn.XLOOKUP(F$11&$J$3,INDIRECT("'Curves "&F$10&"'!$11:$11")&INDIRECT("'Curves "&F$10&"'!$12:$12"),INDIRECT("'Curves "&F$10&"'!$14:$163"),,0,1),,0,1) -> 0.03374268112 | G81: =_xlfn.XLOOKUP($A81,INDIRECT("'Curves "&G$10&"'!$A$14:$A$163"),_xlfn.XLOOKUP(G$11&$J$3,INDIRECT("'Curves "&G$10&"'!$11:$11")&INDIRECT("'Curves "&G$10&"'!$12:$12"),INDIRECT("'Curves "&G$10&"'!$14:$163"),,0,1),,0,1) -> 0.04059289915 | H81: =_xlfn.XLOOKUP($A81,INDIRECT("'Curves "&H$10&"'!$A$14:$A$163"),_xlfn.XLOOKUP(H$11&$J$3,INDIRECT("'Curves "&H$10&"'!$11:$11")&INDIRECT("'Curves "&H$10&"'!$12:$12"),INDIRECT("'Curves "&H$10&"'!$14:$163"),,0,1),,0,1) -> 0.02374885812
A82: 70 | B82: =_xlfn.XLOOKUP($A82,INDIRECT("'Curves "&B$10&"'!$A$14:$A$163"),_xlfn.XLOOKUP(B$11&$J$3,INDIRECT("'Curves "&B$10&"'!$11:$11")&INDIRECT("'Curves "&B$10&"'!$12:$12"),INDIRECT("'Curves "&B$10&"'!$14:$163"),,0,1),,0,1) -> 0.03271066525 | C82: =_xlfn.XLOOKUP($A82,INDIRECT("'Curves "&C$10&"'!$A$14:$A$163"),_xlfn.XLOOKUP(C$11&$J$3,INDIRECT("'Curves "&C$10&"'!$11:$11")&INDIRECT("'Curves "&C$10&"'!$12:$12"),INDIRECT("'Curves "&C$10&"'!$14:$163"),,0,1),,0,1) -> 0.03947794475 | D82: =_xlfn.XLOOKUP($A82,INDIRECT("'Curves "&D$10&"'!$A$14:$A$163"),_xlfn.XLOOKUP(D$11&$J$3,INDIRECT("'Curves "&D$10&"'!$11:$11")&INDIRECT("'Curves "&D$10&"'!$12:$12"),INDIRECT("'Curves "&D$10&"'!$14:$163"),,0,1),,0,1) -> 0.0228462254 | F82: =_xlfn.XLOOKUP($A82,INDIRECT("'Curves "&F$10&"'!$A$14:$A$163"),_xlfn.XLOOKUP(F$11&$J$3,INDIRECT("'Curves "&F$10&"'!$11:$11")&INDIRECT("'Curves "&F$10&"'!$12:$12"),INDIRECT("'Curves "&F$10&"'!$14:$163"),,0,1),,0,1) -> 0.03373211694 | G82: =_xlfn.XLOOKUP($A82,INDIRECT("'Curves "&G$10&"'!$A$14:$A$163"),_xlfn.XLOOKUP(G$11&$J$3,INDIRECT("'Curves "&G$10&"'!$11:$11")&INDIRECT("'Curves "&G$10&"'!$12:$12"),INDIRECT("'Curves "&G$10&"'!$14:$163"),,0,1),,0,1) -> 0.04050608994 | H82: =_xlfn.XLOOKUP($A82,INDIRECT("'Curves "&H$10&"'!$A$14:$A$163"),_xlfn.XLOOKUP(H$11&$J$3,INDIRECT("'Curves "&H$10&"'!$11:$11")&INDIRECT("'Curves "&H$10&"'!$12:$12"),INDIRECT("'Curves "&H$10&"'!$14:$163"),,0,1),,0,1) -> 0.0238579202
A83: 71 | B83: =_xlfn.XLOOKUP($A83,INDIRECT("'Curves "&B$10&"'!$A$14:$A$163"),_xlfn.XLOOKUP(B$11&$J$3,INDIRECT("'Curves "&B$10&"'!$11:$11")&INDIRECT("'Curves "&B$10&"'!$12:$12"),INDIRECT("'Curves "&B$10&"'!$14:$163"),,0,1),,0,1) -> 0.03271472741 | C83: =_xlfn.XLOOKUP($A83,INDIRECT("'Curves "&C$10&"'!$A$14:$A$163"),_xlfn.XLOOKUP(C$11&$J$3,INDIRECT("'Curves "&C$10&"'!$11:$11")&INDIRECT("'Curves "&C$10&"'!$12:$12"),INDIRECT("'Curves "&C$10&"'!$14:$163"),,0,1),,0,1) -> 0.03940803787 | D83: =_xlfn.XLOOKUP($A83,INDIRECT("'Curves "&D$10&"'!$A$14:$A$163"),_xlfn.XLOOKUP(D$11&$J$3,INDIRECT("'Curves "&D$10&"'!$11:$11")&INDIRECT("'Curves "&D$10&"'!$12:$12"),INDIRECT("'Curves "&D$10&"'!$14:$163"),,0,1),,0,1) -> 0.02296643909 | F83: =_xlfn.XLOOKUP($A83,INDIRECT("'Curves "&F$10&"'!$A$14:$A$163"),_xlfn.XLOOKUP(F$11&$J$3,INDIRECT("'Curves "&F$10&"'!$11:$11")&INDIRECT("'Curves "&F$10&"'!$12:$12"),INDIRECT("'Curves "&F$10&"'!$14:$163"),,0,1),,0,1) -> 0.03372184538 | G83: =_xlfn.XLOOKUP($A83,INDIRECT("'Curves "&G$10&"'!$A$14:$A$163"),_xlfn.XLOOKUP(G$11&$J$3,INDIRECT("'Curves "&G$10&"'!$11:$11")&INDIRECT("'Curves "&G$10&"'!$12:$12"),INDIRECT("'Curves "&G$10&"'!$14:$163"),,0,1),,0,1) -> 0.04042168325 | H83: =_xlfn.XLOOKUP($A83,INDIRECT("'Curves "&H$10&"'!$A$14:$A$163"),_xlfn.XLOOKUP(H$11&$J$3,INDIRECT("'Curves "&H$10&"'!$11:$11")&INDIRECT("'Curves "&H$10&"'!$12:$12"),INDIRECT("'Curves "&H$10&"'!$14:$163"),,0,1),,0,1) -> 0.02396405039
A84: 72 | B84: =_xlfn.XLOOKUP($A84,INDIRECT("'Curves "&B$10&"'!$A$14:$A$163"),_xlfn.XLOOKUP(B$11&$J$3,INDIRECT("'Curves "&B$10&"'!$11:$11")&INDIRECT("'Curves "&B$10&"'!$12:$12"),INDIRECT("'Curves "&B$10&"'!$14:$163"),,0,1),,0,1) -> 0.03271867803 | C84: =_xlfn.XLOOKUP($A84,INDIRECT("'Curves "&C$10&"'!$A$14:$A$163"),_xlfn.XLOOKUP(C$11&$J$3,INDIRECT("'Curves "&C$10&"'!$11:$11")&INDIRECT("'Curves "&C$10&"'!$12:$12"),INDIRECT("'Curves "&C$10&"'!$14:$163"),,0,1),,0,1) -> 0.03934003925 | D84: =_xlfn.XLOOKUP($A84,INDIRECT("'Curves "&D$10&"'!$A$14:$A$163"),_xlfn.XLOOKUP(D$11&$J$3,INDIRECT("'Curves "&D$10&"'!$11:$11")&INDIRECT("'Curves "&D$10&"'!$12:$12"),INDIRECT("'Curves "&D$10&"'!$14:$163"),,0,1),,0,1) -> 0.02308344672 | F84: =_xlfn.XLOOKUP($A84,INDIRECT("'Curves "&F$10&"'!$A$14:$A$163"),_xlfn.XLOOKUP(F$11&$J$3,INDIRECT("'Curves "&F$10&"'!$11:$11")&INDIRECT("'Curves "&F$10&"'!$12:$12"),INDIRECT("'Curves "&F$10&"'!$14:$163"),,0,1),,0,1) -> 0.03371185478 | G84: =_xlfn.XLOOKUP($A84,INDIRECT("'Curves "&G$10&"'!$A$14:$A$163"),_xlfn.XLOOKUP(G$11&$J$3,INDIRECT("'Curves "&G$10&"'!$11:$11")&INDIRECT("'Curves "&G$10&"'!$12:$12"),INDIRECT("'Curves "&G$10&"'!$14:$163"),,0,1),,0,1) -> 0.04033958383 | H84: =_xlfn.XLOOKUP($A84,INDIRECT("'Curves "&H$10&"'!$A$14:$A$163"),_xlfn.XLOOKUP(H$11&$J$3,INDIRECT("'Curves "&H$10&"'!$11:$11")&INDIRECT("'Curves "&H$10&"'!$12:$12"),INDIRECT("'Curves "&H$10&"'!$14:$163"),,0,1),,0,1) -> 0.02406735716
A85: 73 | B85: =_xlfn.XLOOKUP($A85,INDIRECT("'Curves "&B$10&"'!$A$14:$A$163"),_xlfn.XLOOKUP(B$11&$J$3,INDIRECT("'Curves "&B$10&"'!$11:$11")&INDIRECT("'Curves "&B$10&"'!$12:$12"),INDIRECT("'Curves "&B$10&"'!$14:$163"),,0,1),,0,1) -> 0.03272252155 | C85: =_xlfn.XLOOKUP($A85,INDIRECT("'Curves "&C$10&"'!$A$14:$A$163"),_xlfn.XLOOKUP(C$11&$J$3,INDIRECT("'Curves "&C$10&"'!$11:$11")&INDIRECT("'Curves "&C$10&"'!$12:$12"),INDIRECT("'Curves "&C$10&"'!$14:$163"),,0,1),,0,1) -> 0.03927387419 | D85: =_xlfn.XLOOKUP($A85,INDIRECT("'Curves "&D$10&"'!$A$14:$A$163"),_xlfn.XLOOKUP(D$11&$J$3,INDIRECT("'Curves "&D$10&"'!$11:$11")&INDIRECT("'Curves "&D$10&"'!$12:$12"),INDIRECT("'Curves "&D$10&"'!$14:$163"),,0,1),,0,1) -> 0.02319736726 | F85: =_xlfn.XLOOKUP($A85,INDIRECT("'Curves "&F$10&"'!$A$14:$A$163"),_xlfn.XLOOKUP(F$11&$J$3,INDIRECT("'Curves "&F$10&"'!$11:$11")&INDIRECT("'Curves "&F$10&"'!$12:$12"),INDIRECT("'Curves "&F$10&"'!$14:$163"),,0,1),,0,1) -> 0.03370213402 | G85: =_xlfn.XLOOKUP($A85,INDIRECT("'Curves "&G$10&"'!$A$14:$A$163"),_xlfn.XLOOKUP(G$11&$J$3,INDIRECT("'Curves "&G$10&"'!$11:$11")&INDIRECT("'Curves "&G$10&"'!$12:$12"),INDIRECT("'Curves "&G$10&"'!$14:$163"),,0,1),,0,1) -> 0.0402597011 | H85: =_xlfn.XLOOKUP($A85,INDIRECT("'Curves "&H$10&"'!$A$14:$A$163"),_xlfn.XLOOKUP(H$11&$J$3,INDIRECT("'Curves "&H$10&"'!$11:$11")&INDIRECT("'Curves "&H$10&"'!$12:$12"),INDIRECT("'Curves "&H$10&"'!$14:$163"),,0,1),,0,1) -> 0.02416794443
A86: 74 | B86: =_xlfn.XLOOKUP($A86,INDIRECT("'Curves "&B$10&"'!$A$14:$A$163"),_xlfn.XLOOKUP(B$11&$J$3,INDIRECT("'Curves "&B$10&"'!$11:$11")&INDIRECT("'Curves "&B$10&"'!$12:$12"),INDIRECT("'Curves "&B$10&"'!$14:$163"),,0,1),,0,1) -> 0.0327262622 | C86: =_xlfn.XLOOKUP($A86,INDIRECT("'Curves "&C$10&"'!$A$14:$A$163"),_xlfn.XLOOKUP(C$11&$J$3,INDIRECT("'Curves "&C$10&"'!$11:$11")&INDIRECT("'Curves "&C$10&"'!$12:$12"),INDIRECT("'Curves "&C$10&"'!$14:$163"),,0,1),,0,1) -> 0.03920947167 | D86: =_xlfn.XLOOKUP($A86,INDIRECT("'Curves "&D$10&"'!$A$14:$A$163"),_xlfn.XLOOKUP(D$11&$J$3,INDIRECT("'Curves "&D$10&"'!$11:$11")&INDIRECT("'Curves "&D$10&"'!$12:$12"),INDIRECT("'Curves "&D$10&"'!$14:$163"),,0,1),,0,1) -> 0.02330831451 | F86: =_xlfn.XLOOKUP($A86,INDIRECT("'Curves "&F$10&"'!$A$14:$A$163"),_xlfn.XLOOKUP(F$11&$J$3,INDIRECT("'Curves "&F$10&"'!$11:$11")&INDIRECT("'Curves "&F$10&"'!$12:$12"),INDIRECT("'Curves "&F$10&"'!$14:$163"),,0,1),,0,1) -> 0.03369267258 | G86: =_xlfn.XLOOKUP($A86,INDIRECT("'Curves "&G$10&"'!$A$14:$A$163"),_xlfn.XLOOKUP(G$11&$J$3,INDIRECT("'Curves "&G$10&"'!$11:$11")&INDIRECT("'Curves "&G$10&"'!$12:$12"),INDIRECT("'Curves "&G$10&"'!$14:$163"),,0,1),,0,1) -> 0.04018194895 | H86: =_xlfn.XLOOKUP($A86,INDIRECT("'Curves "&H$10&"'!$A$14:$A$163"),_xlfn.XLOOKUP(H$11&$J$3,INDIRECT("'Curves "&H$10&"'!$11:$11")&INDIRECT("'Curves "&H$10&"'!$12:$12"),INDIRECT("'Curves "&H$10&"'!$14:$163"),,0,1),,0,1) -> 0.02426591171
A87: 75 | B87: =_xlfn.XLOOKUP($A87,INDIRECT("'Curves "&B$10&"'!$A$14:$A$163"),_xlfn.XLOOKUP(B$11&$J$3,INDIRECT("'Curves "&B$10&"'!$11:$11")&INDIRECT("'Curves "&B$10&"'!$12:$12"),INDIRECT("'Curves "&B$10&"'!$14:$163"),,0,1),,0,1) -> 0.032729904 | C87: =_xlfn.XLOOKUP($A87,INDIRECT("'Curves "&C$10&"'!$A$14:$A$163"),_xlfn.XLOOKUP(C$11&$J$3,INDIRECT("'Curves "&C$10&"'!$11:$11")&INDIRECT("'Curves "&C$10&"'!$12:$12"),INDIRECT("'Curves "&C$10&"'!$14:$163"),,0,1),,0,1) -> 0.03914676408 | D87: =_xlfn.XLOOKUP($A87,INDIRECT("'Curves "&D$10&"'!$A$14:$A$163"),_xlfn.XLOOKUP(D$11&$J$3,INDIRECT("'Curves "&D$10&"'!$11:$11")&INDIRECT("'Curves "&D$10&"'!$12:$12"),INDIRECT("'Curves "&D$10&"'!$14:$163"),,0,1),,0,1) -> 0.02341639734 | F87: =_xlfn.XLOOKUP($A87,INDIRECT("'Curves "&F$10&"'!$A$14:$A$163"),_xlfn.XLOOKUP(F$11&$J$3,INDIRECT("'Curves "&F$10&"'!$11:$11")&INDIRECT("'Curves "&F$10&"'!$12:$12"),INDIRECT("'Curves "&F$10&"'!$14:$163"),,0,1),,0,1) -> 0.03368346045 | G87: =_xlfn.XLOOKUP($A87,INDIRECT("'Curves "&G$10&"'!$A$14:$A$163"),_xlfn.XLOOKUP(G$11&$J$3,INDIRECT("'Curves "&G$10&"'!$11:$11")&INDIRECT("'Curves "&G$10&"'!$12:$12"),INDIRECT("'Curves "&G$10&"'!$14:$163"),,0,1),,0,1) -> 0.04010624545 | H87: =_xlfn.XLOOKUP($A87,INDIRECT("'Curves "&H$10&"'!$A$14:$A$163"),_xlfn.XLOOKUP(H$11&$J$3,INDIRECT("'Curves "&H$10&"'!$11:$11")&INDIRECT("'Curves "&H$10&"'!$12:$12"),INDIRECT("'Curves "&H$10&"'!$14:$163"),,0,1),,0,1) -> 0.0243613543
A88: 76 | B88: =_xlfn.XLOOKUP($A88,INDIRECT("'Curves "&B$10&"'!$A$14:$A$163"),_xlfn.XLOOKUP(B$11&$J$3,INDIRECT("'Curves "&B$10&"'!$11:$11")&INDIRECT("'Curves "&B$10&"'!$12:$12"),INDIRECT("'Curves "&B$10&"'!$14:$163"),,0,1),,0,1) -> 0.03273345074 | C88: =_xlfn.XLOOKUP($A88,INDIRECT("'Curves "&C$10&"'!$A$14:$A$163"),_xlfn.XLOOKUP(C$11&$J$3,INDIRECT("'Curves "&C$10&"'!$11:$11")&INDIRECT("'Curves "&C$10&"'!$12:$12"),INDIRECT("'Curves "&C$10&"'!$14:$163"),,0,1),,0,1) -> 0.03908568708 | D88: =_xlfn.XLOOKUP($A88,INDIRECT("'Curves "&D$10&"'!$A$14:$A$163"),_xlfn.XLOOKUP(D$11&$J$3,INDIRECT("'Curves "&D$10&"'!$11:$11")&INDIRECT("'Curves "&D$10&"'!$12:$12"),INDIRECT("'Curves "&D$10&"'!$14:$163"),,0,1),,0,1) -> 0.02352171991 | F88: =_xlfn.XLOOKUP($A88,INDIRECT("'Curves "&F$10&"'!$A$14:$A$163"),_xlfn.XLOOKUP(F$11&$J$3,INDIRECT("'Curves "&F$10&"'!$11:$11")&INDIRECT("'Curves "&F$10&"'!$12:$12"),INDIRECT("'Curves "&F$10&"'!$14:$163"),,0,1),,0,1) -> 0.03367448809 | G88: =_xlfn.XLOOKUP($A88,INDIRECT("'Curves "&G$10&"'!$A$14:$A$163"),_xlfn.XLOOKUP(G$11&$J$3,INDIRECT("'Curves "&G$10&"'!$11:$11")&INDIRECT("'Curves "&G$10&"'!$12:$12"),INDIRECT("'Curves "&G$10&"'!$14:$163"),,0,1),,0,1) -> 0.04003251265 | H88: =_xlfn.XLOOKUP($A88,INDIRECT("'Curves "&H$10&"'!$A$14:$A$163"),_xlfn.XLOOKUP(H$11&$J$3,INDIRECT("'Curves "&H$10&"'!$11:$11")&INDIRECT("'Curves "&H$10&"'!$12:$12"),INDIRECT("'Curves "&H$10&"'!$14:$163"),,0,1),,0,1) -> 0.02445436343
A89: 77 | B89: =_xlfn.XLOOKUP($A89,INDIRECT("'Curves "&B$10&"'!$A$14:$A$163"),_xlfn.XLOOKUP(B$11&$J$3,INDIRECT("'Curves "&B$10&"'!$11:$11")&INDIRECT("'Curves "&B$10&"'!$12:$12"),INDIRECT("'Curves "&B$10&"'!$14:$163"),,0,1),,0,1) -> 0.03273690607 | C89: =_xlfn.XLOOKUP($A89,INDIRECT("'Curves "&C$10&"'!$A$14:$A$163"),_xlfn.XLOOKUP(C$11&$J$3,INDIRECT("'Curves "&C$10&"'!$11:$11")&INDIRECT("'Curves "&C$10&"'!$12:$12"),INDIRECT("'Curves "&C$10&"'!$14:$163"),,0,1),,0,1) -> 0.03902617939 | D89: =_xlfn.XLOOKUP($A89,INDIRECT("'Curves "&D$10&"'!$A$14:$A$163"),_xlfn.XLOOKUP(D$11&$J$3,INDIRECT("'Curves "&D$10&"'!$11:$11")&INDIRECT("'Curves "&D$10&"'!$12:$12"),INDIRECT("'Curves "&D$10&"'!$14:$163"),,0,1),,0,1) -> 0.02362438185 | F89: =_xlfn.XLOOKUP($A89,INDIRECT("'Curves "&F$10&"'!$A$14:$A$163"),_xlfn.XLOOKUP(F$11&$J$3,INDIRECT("'Curves "&F$10&"'!$11:$11")&INDIRECT("'Curves "&F$10&"'!$12:$12"),INDIRECT("'Curves "&F$10&"'!$14:$163"),,0,1),,0,1) -> 0.03366574643 | G89: =_xlfn.XLOOKUP($A89,INDIRECT("'Curves "&G$10&"'!$A$14:$A$163"),_xlfn.XLOOKUP(G$11&$J$3,INDIRECT("'Curves "&G$10&"'!$11:$11")&INDIRECT("'Curves "&G$10&"'!$12:$12"),INDIRECT("'Curves "&G$10&"'!$14:$163"),,0,1),,0,1) -> 0.03996067631 | H89: =_xlfn.XLOOKUP($A89,INDIRECT("'Curves "&H$10&"'!$A$14:$A$163"),_xlfn.XLOOKUP(H$11&$J$3,INDIRECT("'Curves "&H$10&"'!$11:$11")&INDIRECT("'Curves "&H$10&"'!$12:$12"),INDIRECT("'Curves "&H$10&"'!$14:$163"),,0,1),,0,1) -> 0.02454502644
A90: 78 | B90: =_xlfn.XLOOKUP($A90,INDIRECT("'Curves "&B$10&"'!$A$14:$A$163"),_xlfn.XLOOKUP(B$11&$J$3,INDIRECT("'Curves "&B$10&"'!$11:$11")&INDIRECT("'Curves "&B$10&"'!$12:$12"),INDIRECT("'Curves "&B$10&"'!$14:$163"),,0,1),,0,1) -> 0.03274027341 | C90: =_xlfn.XLOOKUP($A90,INDIRECT("'Curves "&C$10&"'!$A$14:$A$163"),_xlfn.XLOOKUP(C$11&$J$3,INDIRECT("'Curves "&C$10&"'!$11:$11")&INDIRECT("'Curves "&C$10&"'!$12:$12"),INDIRECT("'Curves "&C$10&"'!$14:$163"),,0,1),,0,1) -> 0.03896818264 | D90: =_xlfn.XLOOKUP($A90,INDIRECT("'Curves "&D$10&"'!$A$14:$A$163"),_xlfn.XLOOKUP(D$11&$J$3,INDIRECT("'Curves "&D$10&"'!$11:$11")&INDIRECT("'Curves "&D$10&"'!$12:$12"),INDIRECT("'Curves "&D$10&"'!$14:$163"),,0,1),,0,1) -> 0.02372447846 | F90: =_xlfn.XLOOKUP($A90,INDIRECT("'Curves "&F$10&"'!$A$14:$A$163"),_xlfn.XLOOKUP(F$11&$J$3,INDIRECT("'Curves "&F$10&"'!$11:$11")&INDIRECT("'Curves "&F$10&"'!$12:$12"),INDIRECT("'Curves "&F$10&"'!$14:$163"),,0,1),,0,1) -> 0.03365722686 | G90: =_xlfn.XLOOKUP($A90,INDIRECT("'Curves "&G$10&"'!$A$14:$A$163"),_xlfn.XLOOKUP(G$11&$J$3,INDIRECT("'Curves "&G$10&"'!$11:$11")&INDIRECT("'Curves "&G$10&"'!$12:$12"),INDIRECT("'Curves "&G$10&"'!$14:$163"),,0,1),,0,1) -> 0.03989066576 | H90: =_xlfn.XLOOKUP($A90,INDIRECT("'Curves "&H$10&"'!$A$14:$A$163"),_xlfn.XLOOKUP(H$11&$J$3,INDIRECT("'Curves "&H$10&"'!$11:$11")&INDIRECT("'Curves "&H$10&"'!$12:$12"),INDIRECT("'Curves "&H$10&"'!$14:$163"),,0,1),,0,1) -> 0.02463342693
A91: 79 | B91: =_xlfn.XLOOKUP($A91,INDIRECT("'Curves "&B$10&"'!$A$14:$A$163"),_xlfn.XLOOKUP(B$11&$J$3,INDIRECT("'Curves "&B$10&"'!$11:$11")&INDIRECT("'Curves "&B$10&"'!$12:$12"),INDIRECT("'Curves "&B$10&"'!$14:$163"),,0,1),,0,1) -> 0.03274355606 | C91: =_xlfn.XLOOKUP($A91,INDIRECT("'Curves "&C$10&"'!$A$14:$A$163"),_xlfn.XLOOKUP(C$11&$J$3,INDIRECT("'Curves "&C$10&"'!$11:$11")&INDIRECT("'Curves "&C$10&"'!$12:$12"),INDIRECT("'Curves "&C$10&"'!$14:$163"),,0,1),,0,1) -> 0.03891164121 | D91: =_xlfn.XLOOKUP($A91,INDIRECT("'Curves "&D$10&"'!$A$14:$A$163"),_xlfn.XLOOKUP(D$11&$J$3,INDIRECT("'Curves "&D$10&"'!$11:$11")&INDIRECT("'Curves "&D$10&"'!$12:$12"),INDIRECT("'Curves "&D$10&"'!$14:$163"),,0,1),,0,1) -> 0.02382210094 | F91: =_xlfn.XLOOKUP($A91,INDIRECT("'Curves "&F$10&"'!$A$14:$A$163"),_xlfn.XLOOKUP(F$11&$J$3,INDIRECT("'Curves "&F$10&"'!$11:$11")&INDIRECT("'Curves "&F$10&"'!$12:$12"),INDIRECT("'Curves "&F$10&"'!$14:$163"),,0,1),,0,1) -> 0.03364892116 | G91: =_xlfn.XLOOKUP($A91,INDIRECT("'Curves "&G$10&"'!$A$14:$A$163"),_xlfn.XLOOKUP(G$11&$J$3,INDIRECT("'Curves "&G$10&"'!$11:$11")&INDIRECT("'Curves "&G$10&"'!$12:$12"),INDIRECT("'Curves "&G$10&"'!$14:$163"),,0,1),,0,1) -> 0.03982241362 | H91: =_xlfn.XLOOKUP($A91,INDIRECT("'Curves "&H$10&"'!$A$14:$A$163"),_xlfn.XLOOKUP(H$11&$J$3,INDIRECT("'Curves "&H$10&"'!$11:$11")&INDIRECT("'Curves "&H$10&"'!$12:$12"),INDIRECT("'Curves "&H$10&"'!$14:$163"),,0,1),,0,1) -> 0.02471964496
A92: 80 | B92: =_xlfn.XLOOKUP($A92,INDIRECT("'Curves "&B$10&"'!$A$14:$A$163"),_xlfn.XLOOKUP(B$11&$J$3,INDIRECT("'Curves "&B$10&"'!$11:$11")&INDIRECT("'Curves "&B$10&"'!$12:$12"),INDIRECT("'Curves "&B$10&"'!$14:$163"),,0,1),,0,1) -> 0.03274675712 | C92: =_xlfn.XLOOKUP($A92,INDIRECT("'Curves "&C$10&"'!$A$14:$A$163"),_xlfn.XLOOKUP(C$11&$J$3,INDIRECT("'Curves "&C$10&"'!$11:$11")&INDIRECT("'Curves "&C$10&"'!$12:$12"),INDIRECT("'Curves "&C$10&"'!$14:$163"),,0,1),,0,1) -> 0.03885650204 | D92: =_xlfn.XLOOKUP($A92,INDIRECT("'Curves "&D$10&"'!$A$14:$A$163"),_xlfn.XLOOKUP(D$11&$J$3,INDIRECT("'Curves "&D$10&"'!$11:$11")&INDIRECT("'Curves "&D$10&"'!$12:$12"),INDIRECT("'Curves "&D$10&"'!$14:$163"),,0,1),,0,1) -> 0.02391733654 | F92: =_xlfn.XLOOKUP($A92,INDIRECT("'Curves "&F$10&"'!$A$14:$A$163"),_xlfn.XLOOKUP(F$11&$J$3,INDIRECT("'Curves "&F$10&"'!$11:$11")&INDIRECT("'Curves "&F$10&"'!$12:$12"),INDIRECT("'Curves "&F$10&"'!$14:$163"),,0,1),,0,1) -> 0.03364082149 | G92: =_xlfn.XLOOKUP($A92,INDIRECT("'Curves "&G$10&"'!$A$14:$A$163"),_xlfn.XLOOKUP(G$11&$J$3,INDIRECT("'Curves "&G$10&"'!$11:$11")&INDIRECT("'Curves "&G$10&"'!$12:$12"),INDIRECT("'Curves "&G$10&"'!$14:$163"),,0,1),,0,1) -> 0.03975585571 | H92: =_xlfn.XLOOKUP($A92,INDIRECT("'Curves "&H$10&"'!$A$14:$A$163"),_xlfn.XLOOKUP(H$11&$J$3,INDIRECT("'Curves "&H$10&"'!$11:$11")&INDIRECT("'Curves "&H$10&"'!$12:$12"),INDIRECT("'Curves "&H$10&"'!$14:$163"),,0,1),,0,1) -> 0.02480375715
A93: 81 | B93: =_xlfn.XLOOKUP($A93,INDIRECT("'Curves "&B$10&"'!$A$14:$A$163"),_xlfn.XLOOKUP(B$11&$J$3,INDIRECT("'Curves "&B$10&"'!$11:$11")&INDIRECT("'Curves "&B$10&"'!$12:$12"),INDIRECT("'Curves "&B$10&"'!$14:$163"),,0,1),,0,1) -> 0.03274987958 | C93: =_xlfn.XLOOKUP($A93,INDIRECT("'Curves "&C$10&"'!$A$14:$A$163"),_xlfn.XLOOKUP(C$11&$J$3,INDIRECT("'Curves "&C$10&"'!$11:$11")&INDIRECT("'Curves "&C$10&"'!$12:$12"),INDIRECT("'Curves "&C$10&"'!$14:$163"),,0,1),,0,1) -> 0.03880271458 | D93: =_xlfn.XLOOKUP($A93,INDIRECT("'Curves "&D$10&"'!$A$14:$A$163"),_xlfn.XLOOKUP(D$11&$J$3,INDIRECT("'Curves "&D$10&"'!$11:$11")&INDIRECT("'Curves "&D$10&"'!$12:$12"),INDIRECT("'Curves "&D$10&"'!$14:$163"),,0,1),,0,1) -> 0.02401026874 | F93: =_xlfn.XLOOKUP($A93,INDIRECT("'Curves "&F$10&"'!$A$14:$A$163"),_xlfn.XLOOKUP(F$11&$J$3,INDIRECT("'Curves "&F$10&"'!$11:$11")&INDIRECT("'Curves "&F$10&"'!$12:$12"),INDIRECT("'Curves "&F$10&"'!$14:$163"),,0,1),,0,1) -> 0.0336329204 | G93: =_xlfn.XLOOKUP($A93,INDIRECT("'Curves "&G$10&"'!$A$14:$A$163"),_xlfn.XLOOKUP(G$11&$J$3,INDIRECT("'Curves "&G$10&"'!$11:$11")&INDIRECT("'Curves "&G$10&"'!$12:$12"),INDIRECT("'Curves "&G$10&"'!$14:$163"),,0,1),,0,1) -> 0.03969093081 | H93: =_xlfn.XLOOKUP($A93,INDIRECT("'Curves "&H$10&"'!$A$14:$A$163"),_xlfn.XLOOKUP(H$11&$J$3,INDIRECT("'Curves "&H$10&"'!$11:$11")&INDIRECT("'Curves "&H$10&"'!$12:$12"),INDIRECT("'Curves "&H$10&"'!$14:$163"),,0,1),,0,1) -> 0.02488583686
A94: 82 | B94: =_xlfn.XLOOKUP($A94,INDIRECT("'Curves "&B$10&"'!$A$14:$A$163"),_xlfn.XLOOKUP(B$11&$J$3,INDIRECT("'Curves "&B$10&"'!$11:$11")&INDIRECT("'Curves "&B$10&"'!$12:$12"),INDIRECT("'Curves "&B$10&"'!$14:$163"),,0,1),,0,1) -> 0.03275292625 | C94: =_xlfn.XLOOKUP($A94,INDIRECT("'Curves "&C$10&"'!$A$14:$A$163"),_xlfn.XLOOKUP(C$11&$J$3,INDIRECT("'Curves "&C$10&"'!$11:$11")&INDIRECT("'Curves "&C$10&"'!$12:$12"),INDIRECT("'Curves "&C$10&"'!$14:$163"),,0,1),,0,1) -> 0.03875023056 | D94: =_xlfn.XLOOKUP($A94,INDIRECT("'Curves "&D$10&"'!$A$14:$A$163"),_xlfn.XLOOKUP(D$11&$J$3,INDIRECT("'Curves "&D$10&"'!$11:$11")&INDIRECT("'Curves "&D$10&"'!$12:$12"),INDIRECT("'Curves "&D$10&"'!$14:$163"),,0,1),,0,1) -> 0.02410097744 | F94: =_xlfn.XLOOKUP($A94,INDIRECT("'Curves "&F$10&"'!$A$14:$A$163"),_xlfn.XLOOKUP(F$11&$J$3,INDIRECT("'Curves "&F$10&"'!$11:$11")&INDIRECT("'Curves "&F$10&"'!$12:$12"),INDIRECT("'Curves "&F$10&"'!$14:$163"),,0,1),,0,1) -> 0.03362521076 | G94: =_xlfn.XLOOKUP($A94,INDIRECT("'Curves "&G$10&"'!$A$14:$A$163"),_xlfn.XLOOKUP(G$11&$J$3,INDIRECT("'Curves "&G$10&"'!$11:$11")&INDIRECT("'Curves "&G$10&"'!$12:$12"),INDIRECT("'Curves "&G$10&"'!$14:$163"),,0,1),,0,1) -> 0.03962758052 | H94: =_xlfn.XLOOKUP($A94,INDIRECT("'Curves "&H$10&"'!$A$14:$A$163"),_xlfn.XLOOKUP(H$11&$J$3,INDIRECT("'Curves "&H$10&"'!$11:$11")&INDIRECT("'Curves "&H$10&"'!$12:$12"),INDIRECT("'Curves "&H$10&"'!$14:$163"),,0,1),,0,1) -> 0.02496595433
A95: 83 | B95: =_xlfn.XLOOKUP($A95,INDIRECT("'Curves "&B$10&"'!$A$14:$A$163"),_xlfn.XLOOKUP(B$11&$J$3,INDIRECT("'Curves "&B$10&"'!$11:$11")&INDIRECT("'Curves "&B$10&"'!$12:$12"),INDIRECT("'Curves "&B$10&"'!$14:$163"),,0,1),,0,1) -> 0.03275589986 | C95: =_xlfn.XLOOKUP($A95,INDIRECT("'Curves "&C$10&"'!$A$14:$A$163"),_xlfn.XLOOKUP(C$11&$J$3,INDIRECT("'Curves "&C$10&"'!$11:$11")&INDIRECT("'Curves "&C$10&"'!$12:$12"),INDIRECT("'Curves "&C$10&"'!$14:$163"),,0,1),,0,1) -> 0.03869900391 | D95: =_xlfn.XLOOKUP($A95,INDIRECT("'Curves "&D$10&"'!$A$14:$A$163"),_xlfn.XLOOKUP(D$11&$J$3,INDIRECT("'Curves "&D$10&"'!$11:$11")&INDIRECT("'Curves "&D$10&"'!$12:$12"),INDIRECT("'Curves "&D$10&"'!$14:$163"),,0,1),,0,1) -> 0.02418953913 | F95: =_xlfn.XLOOKUP($A95,INDIRECT("'Curves "&F$10&"'!$A$14:$A$163"),_xlfn.XLOOKUP(F$11&$J$3,INDIRECT("'Curves "&F$10&"'!$11:$11")&INDIRECT("'Curves "&F$10&"'!$12:$12"),INDIRECT("'Curves "&F$10&"'!$14:$163"),,0,1),,0,1) -> 0.0336176858 | G95: =_xlfn.XLOOKUP($A95,INDIRECT("'Curves "&G$10&"'!$A$14:$A$163"),_xlfn.XLOOKUP(G$11&$J$3,INDIRECT("'Curves "&G$10&"'!$11:$11")&INDIRECT("'Curves "&G$10&"'!$12:$12"),INDIRECT("'Curves "&G$10&"'!$14:$163"),,0,1),,0,1) -> 0.0395657491 | H95: =_xlfn.XLOOKUP($A95,INDIRECT("'Curves "&H$10&"'!$A$14:$A$163"),_xlfn.XLOOKUP(H$11&$J$3,INDIRECT("'Curves "&H$10&"'!$11:$11")&INDIRECT("'Curves "&H$10&"'!$12:$12"),INDIRECT("'Curves "&H$10&"'!$14:$163"),,0,1),,0,1) -> 0.02504417685
A96: 84 | B96: =_xlfn.XLOOKUP($A96,INDIRECT("'Curves "&B$10&"'!$A$14:$A$163"),_xlfn.XLOOKUP(B$11&$J$3,INDIRECT("'Curves "&B$10&"'!$11:$11")&INDIRECT("'Curves "&B$10&"'!$12:$12"),INDIRECT("'Curves "&B$10&"'!$14:$163"),,0,1),,0,1) -> 0.03275880296 | C96: =_xlfn.XLOOKUP($A96,INDIRECT("'Curves "&C$10&"'!$A$14:$A$163"),_xlfn.XLOOKUP(C$11&$J$3,INDIRECT("'Curves "&C$10&"'!$11:$11")&INDIRECT("'Curves "&C$10&"'!$12:$12"),INDIRECT("'Curves "&C$10&"'!$14:$163"),,0,1),,0,1) -> 0.03864899067 | D96: =_xlfn.XLOOKUP($A96,INDIRECT("'Curves "&D$10&"'!$A$14:$A$163"),_xlfn.XLOOKUP(D$11&$J$3,INDIRECT("'Curves "&D$10&"'!$11:$11")&INDIRECT("'Curves "&D$10&"'!$12:$12"),INDIRECT("'Curves "&D$10&"'!$14:$163"),,0,1),,0,1) -> 0.02427602702 | F96: =_xlfn.XLOOKUP($A96,INDIRECT("'Curves "&F$10&"'!$A$14:$A$163"),_xlfn.XLOOKUP(F$11&$J$3,INDIRECT("'Curves "&F$10&"'!$11:$11")&INDIRECT("'Curves "&F$10&"'!$12:$12"),INDIRECT("'Curves "&F$10&"'!$14:$163"),,0,1),,0,1) -> 0.03361033904 | G96: =_xlfn.XLOOKUP($A96,INDIRECT("'Curves "&G$10&"'!$A$14:$A$163"),_xlfn.XLOOKUP(G$11&$J$3,INDIRECT("'Curves "&G$10&"'!$11:$11")&INDIRECT("'Curves "&G$10&"'!$12:$12"),INDIRECT("'Curves "&G$10&"'!$14:$163"),,0,1),,0,1) -> 0.03950538335 | H96: =_xlfn.XLOOKUP($A96,INDIRECT("'Curves "&H$10&"'!$A$14:$A$163"),_xlfn.XLOOKUP(H$11&$J$3,INDIRECT("'Curves "&H$10&"'!$11:$11")&INDIRECT("'Curves "&H$10&"'!$12:$12"),INDIRECT("'Curves "&H$10&"'!$14:$163"),,0,1),,0,1) -> 0.02512056883
A97: 85 | B97: =_xlfn.XLOOKUP($A97,INDIRECT("'Curves "&B$10&"'!$A$14:$A$163"),_xlfn.XLOOKUP(B$11&$J$3,INDIRECT("'Curves "&B$10&"'!$11:$11")&INDIRECT("'Curves "&B$10&"'!$12:$12"),INDIRECT("'Curves "&B$10&"'!$14:$163"),,0,1),,0,1) -> 0.03276163803 | C97: =_xlfn.XLOOKUP($A97,INDIRECT("'Curves "&C$10&"'!$A$14:$A$163"),_xlfn.XLOOKUP(C$11&$J$3,INDIRECT("'Curves "&C$10&"'!$11:$11")&INDIRECT("'Curves "&C$10&"'!$12:$12"),INDIRECT("'Curves "&C$10&"'!$14:$163"),,0,1),,0,1) -> 0.03860014881 | D97: =_xlfn.XLOOKUP($A97,INDIRECT("'Curves "&D$10&"'!$A$14:$A$163"),_xlfn.XLOOKUP(D$11&$J$3,INDIRECT("'Curves "&D$10&"'!$11:$11")&INDIRECT("'Curves "&D$10&"'!$12:$12"),INDIRECT("'Curves "&D$10&"'!$14:$163"),,0,1),,0,1) -> 0.02436051125 | F97: =_xlfn.XLOOKUP($A97,INDIRECT("'Curves "&F$10&"'!$A$14:$A$163"),_xlfn.XLOOKUP(F$11&$J$3,INDIRECT("'Curves "&F$10&"'!$11:$11")&INDIRECT("'Curves "&F$10&"'!$12:$12"),INDIRECT("'Curves "&F$10&"'!$14:$163"),,0,1),,0,1) -> 0.03360316428 | G97: =_xlfn.XLOOKUP($A97,INDIRECT("'Curves "&G$10&"'!$A$14:$A$163"),_xlfn.XLOOKUP(G$11&$J$3,INDIRECT("'Curves "&G$10&"'!$11:$11")&INDIRECT("'Curves "&G$10&"'!$12:$12"),INDIRECT("'Curves "&G$10&"'!$14:$163"),,0,1),,0,1) -> 0.03944643246 | H97: =_xlfn.XLOOKUP($A97,INDIRECT("'Curves "&H$10&"'!$A$14:$A$163"),_xlfn.XLOOKUP(H$11&$J$3,INDIRECT("'Curves "&H$10&"'!$11:$11")&INDIRECT("'Curves "&H$10&"'!$12:$12"),INDIRECT("'Curves "&H$10&"'!$14:$163"),,0,1),,0,1) -> 0.02519519201
A98: 86 | B98: =_xlfn.XLOOKUP($A98,INDIRECT("'Curves "&B$10&"'!$A$14:$A$163"),_xlfn.XLOOKUP(B$11&$J$3,INDIRECT("'Curves "&B$10&"'!$11:$11")&INDIRECT("'Curves "&B$10&"'!$12:$12"),INDIRECT("'Curves "&B$10&"'!$14:$163"),,0,1),,0,1) -> 0.03276440739 | C98: =_xlfn.XLOOKUP($A98,INDIRECT("'Curves "&C$10&"'!$A$14:$A$163"),_xlfn.XLOOKUP(C$11&$J$3,INDIRECT("'Curves "&C$10&"'!$11:$11")&INDIRECT("'Curves "&C$10&"'!$12:$12"),INDIRECT("'Curves "&C$10&"'!$14:$163"),,0,1),,0,1) -> 0.03855243819 | D98: =_xlfn.XLOOKUP($A98,INDIRECT("'Curves "&D$10&"'!$A$14:$A$163"),_xlfn.XLOOKUP(D$11&$J$3,INDIRECT("'Curves "&D$10&"'!$11:$11")&INDIRECT("'Curves "&D$10&"'!$12:$12"),INDIRECT("'Curves "&D$10&"'!$14:$163"),,0,1),,0,1) -> 0.02444305896 | F98: =_xlfn.XLOOKUP($A98,INDIRECT("'Curves "&F$10&"'!$A$14:$A$163"),_xlfn.XLOOKUP(F$11&$J$3,INDIRECT("'Curves "&F$10&"'!$11:$11")&INDIRECT("'Curves "&F$10&"'!$12:$12"),INDIRECT("'Curves "&F$10&"'!$14:$163"),,0,1),,0,1) -> 0.03359615563 | G98: =_xlfn.XLOOKUP($A98,INDIRECT("'Curves "&G$10&"'!$A$14:$A$163"),_xlfn.XLOOKUP(G$11&$J$3,INDIRECT("'Curves "&G$10&"'!$11:$11")&INDIRECT("'Curves "&G$10&"'!$12:$12"),INDIRECT("'Curves "&G$10&"'!$14:$163"),,0,1),,0,1) -> 0.03938884787 | H98: =_xlfn.XLOOKUP($A98,INDIRECT("'Curves "&H$10&"'!$A$14:$A$163"),_xlfn.XLOOKUP(H$11&$J$3,INDIRECT("'Curves "&H$10&"'!$11:$11")&INDIRECT("'Curves "&H$10&"'!$12:$12"),INDIRECT("'Curves "&H$10&"'!$14:$163"),,0,1),,0,1) -> 0.0252681055
A99: 87 | B99: =_xlfn.XLOOKUP($A99,INDIRECT("'Curves "&B$10&"'!$A$14:$A$163"),_xlfn.XLOOKUP(B$11&$J$3,INDIRECT("'Curves "&B$10&"'!$11:$11")&INDIRECT("'Curves "&B$10&"'!$12:$12"),INDIRECT("'Curves "&B$10&"'!$14:$163"),,0,1),,0,1) -> 0.03276711331 | C99: =_xlfn.XLOOKUP($A99,INDIRECT("'Curves "&C$10&"'!$A$14:$A$163"),_xlfn.XLOOKUP(C$11&$J$3,INDIRECT("'Curves "&C$10&"'!$11:$11")&INDIRECT("'Curves "&C$10&"'!$12:$12"),INDIRECT("'Curves "&C$10&"'!$14:$163"),,0,1),,0,1) -> 0.03850582042 | D99: =_xlfn.XLOOKUP($A99,INDIRECT("'Curves "&D$10&"'!$A$14:$A$163"),_xlfn.XLOOKUP(D$11&$J$3,INDIRECT("'Curves "&D$10&"'!$11:$11")&INDIRECT("'Curves "&D$10&"'!$12:$12"),INDIRECT("'Curves "&D$10&"'!$14:$163"),,0,1),,0,1) -> 0.0245237345 | F99: =_xlfn.XLOOKUP($A99,INDIRECT("'Curves "&F$10&"'!$A$14:$A$163"),_xlfn.XLOOKUP(F$11&$J$3,INDIRECT("'Curves "&F$10&"'!$11:$11")&INDIRECT("'Curves "&F$10&"'!$12:$12"),INDIRECT("'Curves "&F$10&"'!$14:$163"),,0,1),,0,1) -> 0.03358930742 | G99: =_xlfn.XLOOKUP($A99,INDIRECT("'Curves "&G$10&"'!$A$14:$A$163"),_xlfn.XLOOKUP(G$11&$J$3,INDIRECT("'Curves "&G$10&"'!$11:$11")&INDIRECT("'Curves "&G$10&"'!$12:$12"),INDIRECT("'Curves "&G$10&"'!$14:$163"),,0,1),,0,1) -> 0.03933258317 | H99: =_xlfn.XLOOKUP($A99,INDIRECT("'Curves "&H$10&"'!$A$14:$A$163"),_xlfn.XLOOKUP(H$11&$J$3,INDIRECT("'Curves "&H$10&"'!$11:$11")&INDIRECT("'Curves "&H$10&"'!$12:$12"),INDIRECT("'Curves "&H$10&"'!$14:$163"),,0,1),,0,1) -> 0.02533936599
A100: 88 | B100: =_xlfn.XLOOKUP($A100,INDIRECT("'Curves "&B$10&"'!$A$14:$A$163"),_xlfn.XLOOKUP(B$11&$J$3,INDIRECT("'Curves "&B$10&"'!$11:$11")&INDIRECT("'Curves "&B$10&"'!$12:$12"),INDIRECT("'Curves "&B$10&"'!$14:$163"),,0,1),,0,1) -> 0.03276975791 | C100: =_xlfn.XLOOKUP($A100,INDIRECT("'Curves "&C$10&"'!$A$14:$A$163"),_xlfn.XLOOKUP(C$11&$J$3,INDIRECT("'Curves "&C$10&"'!$11:$11")&INDIRECT("'Curves "&C$10&"'!$12:$12"),INDIRECT("'Curves "&C$10&"'!$14:$163"),,0,1),,0,1) -> 0.03846025882 | D100: =_xlfn.XLOOKUP($A100,INDIRECT("'Curves "&D$10&"'!$A$14:$A$163"),_xlfn.XLOOKUP(D$11&$J$3,INDIRECT("'Curves "&D$10&"'!$11:$11")&INDIRECT("'Curves "&D$10&"'!$12:$12"),INDIRECT("'Curves "&D$10&"'!$14:$163"),,0,1),,0,1) -> 0.02460259951 | F100: =_xlfn.XLOOKUP($A100,INDIRECT("'Curves "&F$10&"'!$A$14:$A$163"),_xlfn.XLOOKUP(F$11&$J$3,INDIRECT("'Curves "&F$10&"'!$11:$11")&INDIRECT("'Curves "&F$10&"'!$12:$12"),INDIRECT("'Curves "&F$10&"'!$14:$163"),,0,1),,0,1) -> 0.03358261427 | G100: =_xlfn.XLOOKUP($A100,INDIRECT("'Curves "&G$10&"'!$A$14:$A$163"),_xlfn.XLOOKUP(G$11&$J$3,INDIRECT("'Curves "&G$10&"'!$11:$11")&INDIRECT("'Curves "&G$10&"'!$12:$12"),INDIRECT("'Curves "&G$10&"'!$14:$163"),,0,1),,0,1) -> 0.03927759398 | H100: =_xlfn.XLOOKUP($A100,INDIRECT("'Curves "&H$10&"'!$A$14:$A$163"),_xlfn.XLOOKUP(H$11&$J$3,INDIRECT("'Curves "&H$10&"'!$11:$11")&INDIRECT("'Curves "&H$10&"'!$12:$12"),INDIRECT("'Curves "&H$10&"'!$14:$163"),,0,1),,0,1) -> 0.02540902779
A101: 89 | B101: =_xlfn.XLOOKUP($A101,INDIRECT("'Curves "&B$10&"'!$A$14:$A$163"),_xlfn.XLOOKUP(B$11&$J$3,INDIRECT("'Curves "&B$10&"'!$11:$11")&INDIRECT("'Curves "&B$10&"'!$12:$12"),INDIRECT("'Curves "&B$10&"'!$14:$163"),,0,1),,0,1) -> 0.03277234325 | C101: =_xlfn.XLOOKUP($A101,INDIRECT("'Curves "&C$10&"'!$A$14:$A$163"),_xlfn.XLOOKUP(C$11&$J$3,INDIRECT("'Curves "&C$10&"'!$11:$11")&INDIRECT("'Curves "&C$10&"'!$12:$12"),INDIRECT("'Curves "&C$10&"'!$14:$163"),,0,1),,0,1) -> 0.03841571825 | D101: =_xlfn.XLOOKUP($A101,INDIRECT("'Curves "&D$10&"'!$A$14:$A$163"),_xlfn.XLOOKUP(D$11&$J$3,INDIRECT("'Curves "&D$10&"'!$11:$11")&INDIRECT("'Curves "&D$10&"'!$12:$12"),INDIRECT("'Curves "&D$10&"'!$14:$163"),,0,1),,0,1) -> 0.02467971308 | F101: =_xlfn.XLOOKUP($A101,INDIRECT("'Curves "&F$10&"'!$A$14:$A$163"),_xlfn.XLOOKUP(F$11&$J$3,INDIRECT("'Curves "&F$10&"'!$11:$11")&INDIRECT("'Curves "&F$10&"'!$12:$12"),INDIRECT("'Curves "&F$10&"'!$14:$163"),,0,1),,0,1) -> 0.03357607102 | G101: =_xlfn.XLOOKUP($A101,INDIRECT("'Curves "&G$10&"'!$A$14:$A$163"),_xlfn.XLOOKUP(G$11&$J$3,INDIRECT("'Curves "&G$10&"'!$11:$11")&INDIRECT("'Curves "&G$10&"'!$12:$12"),INDIRECT("'Curves "&G$10&"'!$14:$163"),,0,1),,0,1) -> 0.03922383783 | H101: =_xlfn.XLOOKUP($A101,INDIRECT("'Curves "&H$10&"'!$A$14:$A$163"),_xlfn.XLOOKUP(H$11&$J$3,INDIRECT("'Curves "&H$10&"'!$11:$11")&INDIRECT("'Curves "&H$10&"'!$12:$12"),INDIRECT("'Curves "&H$10&"'!$14:$163"),,0,1),,0,1) -> 0.02547714298
A102: 90 | B102: =_xlfn.XLOOKUP($A102,INDIRECT("'Curves "&B$10&"'!$A$14:$A$163"),_xlfn.XLOOKUP(B$11&$J$3,INDIRECT("'Curves "&B$10&"'!$11:$11")&INDIRECT("'Curves "&B$10&"'!$12:$12"),INDIRECT("'Curves "&B$10&"'!$14:$163"),,0,1),,0,1) -> 0.03277487128 | C102: =_xlfn.XLOOKUP($A102,INDIRECT("'Curves "&C$10&"'!$A$14:$A$163"),_xlfn.XLOOKUP(C$11&$J$3,INDIRECT("'Curves "&C$10&"'!$11:$11")&INDIRECT("'Curves "&C$10&"'!$12:$12"),INDIRECT("'Curves "&C$10&"'!$14:$163"),,0,1),,0,1) -> 0.03837216512 | D102: =_xlfn.XLOOKUP($A102,INDIRECT("'Curves "&D$10&"'!$A$14:$A$163"),_xlfn.XLOOKUP(D$11&$J$3,INDIRECT("'Curves "&D$10&"'!$11:$11")&INDIRECT("'Curves "&D$10&"'!$12:$12"),INDIRECT("'Curves "&D$10&"'!$14:$163"),,0,1),,0,1) -> 0.02475513188 | F102: =_xlfn.XLOOKUP($A102,INDIRECT("'Curves "&F$10&"'!$A$14:$A$163"),_xlfn.XLOOKUP(F$11&$J$3,INDIRECT("'Curves "&F$10&"'!$11:$11")&INDIRECT("'Curves "&F$10&"'!$12:$12"),INDIRECT("'Curves "&F$10&"'!$14:$163"),,0,1),,0,1) -> 0.03356967271 | G102: =_xlfn.XLOOKUP($A102,INDIRECT("'Curves "&G$10&"'!$A$14:$A$163"),_xlfn.XLOOKUP(G$11&$J$3,INDIRECT("'Curves "&G$10&"'!$11:$11")&INDIRECT("'Curves "&G$10&"'!$12:$12"),INDIRECT("'Curves "&G$10&"'!$14:$163"),,0,1),,0,1) -> 0.03917127411 | H102: =_xlfn.XLOOKUP($A102,INDIRECT("'Curves "&H$10&"'!$A$14:$A$163"),_xlfn.XLOOKUP(H$11&$J$3,INDIRECT("'Curves "&H$10&"'!$11:$11")&INDIRECT("'Curves "&H$10&"'!$12:$12"),INDIRECT("'Curves "&H$10&"'!$14:$163"),,0,1),,0,1) -> 0.02554376149
A103: 91 | B103: =_xlfn.XLOOKUP($A103,INDIRECT("'Curves "&B$10&"'!$A$14:$A$163"),_xlfn.XLOOKUP(B$11&$J$3,INDIRECT("'Curves "&B$10&"'!$11:$11")&INDIRECT("'Curves "&B$10&"'!$12:$12"),INDIRECT("'Curves "&B$10&"'!$14:$163"),,0,1),,0,1) -> 0.03277734388 | C103: =_xlfn.XLOOKUP($A103,INDIRECT("'Curves "&C$10&"'!$A$14:$A$163"),_xlfn.XLOOKUP(C$11&$J$3,INDIRECT("'Curves "&C$10&"'!$11:$11")&INDIRECT("'Curves "&C$10&"'!$12:$12"),INDIRECT("'Curves "&C$10&"'!$14:$163"),,0,1),,0,1) -> 0.03832956724 | D103: =_xlfn.XLOOKUP($A103,INDIRECT("'Curves "&D$10&"'!$A$14:$A$163"),_xlfn.XLOOKUP(D$11&$J$3,INDIRECT("'Curves "&D$10&"'!$11:$11")&INDIRECT("'Curves "&D$10&"'!$12:$12"),INDIRECT("'Curves "&D$10&"'!$14:$163"),,0,1),,0,1) -> 0.02482891021 | F103: =_xlfn.XLOOKUP($A103,INDIRECT("'Curves "&F$10&"'!$A$14:$A$163"),_xlfn.XLOOKUP(F$11&$J$3,INDIRECT("'Curves "&F$10&"'!$11:$11")&INDIRECT("'Curves "&F$10&"'!$12:$12"),INDIRECT("'Curves "&F$10&"'!$14:$163"),,0,1),,0,1) -> 0.03356341463 | G103: =_xlfn.XLOOKUP($A103,INDIRECT("'Curves "&G$10&"'!$A$14:$A$163"),_xlfn.XLOOKUP(G$11&$J$3,INDIRECT("'Curves "&G$10&"'!$11:$11")&INDIRECT("'Curves "&G$10&"'!$12:$12"),INDIRECT("'Curves "&G$10&"'!$14:$163"),,0,1),,0,1) -> 0.03911986392 | H103: =_xlfn.XLOOKUP($A103,INDIRECT("'Curves "&H$10&"'!$A$14:$A$163"),_xlfn.XLOOKUP(H$11&$J$3,INDIRECT("'Curves "&H$10&"'!$11:$11")&INDIRECT("'Curves "&H$10&"'!$12:$12"),INDIRECT("'Curves "&H$10&"'!$14:$163"),,0,1),,0,1) -> 0.02560893123
A104: 92 | B104: =_xlfn.XLOOKUP($A104,INDIRECT("'Curves "&B$10&"'!$A$14:$A$163"),_xlfn.XLOOKUP(B$11&$J$3,INDIRECT("'Curves "&B$10&"'!$11:$11")&INDIRECT("'Curves "&B$10&"'!$12:$12"),INDIRECT("'Curves "&B$10&"'!$14:$163"),,0,1),,0,1) -> 0.03277976285 | C104: =_xlfn.XLOOKUP($A104,INDIRECT("'Curves "&C$10&"'!$A$14:$A$163"),_xlfn.XLOOKUP(C$11&$J$3,INDIRECT("'Curves "&C$10&"'!$11:$11")&INDIRECT("'Curves "&C$10&"'!$12:$12"),INDIRECT("'Curves "&C$10&"'!$14:$163"),,0,1),,0,1) -> 0.03828789379 | D104: =_xlfn.XLOOKUP($A104,INDIRECT("'Curves "&D$10&"'!$A$14:$A$163"),_xlfn.XLOOKUP(D$11&$J$3,INDIRECT("'Curves "&D$10&"'!$11:$11")&INDIRECT("'Curves "&D$10&"'!$12:$12"),INDIRECT("'Curves "&D$10&"'!$14:$163"),,0,1),,0,1) -> 0.02490110021 | F104: =_xlfn.XLOOKUP($A104,INDIRECT("'Curves "&F$10&"'!$A$14:$A$163"),_xlfn.XLOOKUP(F$11&$J$3,INDIRECT("'Curves "&F$10&"'!$11:$11")&INDIRECT("'Curves "&F$10&"'!$12:$12"),INDIRECT("'Curves "&F$10&"'!$14:$163"),,0,1),,0,1) -> 0.03355729224 | G104: =_xlfn.XLOOKUP($A104,INDIRECT("'Curves "&G$10&"'!$A$14:$A$163"),_xlfn.XLOOKUP(G$11&$J$3,INDIRECT("'Curves "&G$10&"'!$11:$11")&INDIRECT("'Curves "&G$10&"'!$12:$12"),INDIRECT("'Curves "&G$10&"'!$14:$163"),,0,1),,0,1) -> 0.03906956999 | H104: =_xlfn.XLOOKUP($A104,INDIRECT("'Curves "&H$10&"'!$A$14:$A$163"),_xlfn.XLOOKUP(H$11&$J$3,INDIRECT("'Curves "&H$10&"'!$11:$11")&INDIRECT("'Curves "&H$10&"'!$12:$12"),INDIRECT("'Curves "&H$10&"'!$14:$163"),,0,1),,0,1) -> 0.02567269815
A105: 93 | B105: =_xlfn.XLOOKUP($A105,INDIRECT("'Curves "&B$10&"'!$A$14:$A$163"),_xlfn.XLOOKUP(B$11&$J$3,INDIRECT("'Curves "&B$10&"'!$11:$11")&INDIRECT("'Curves "&B$10&"'!$12:$12"),INDIRECT("'Curves "&B$10&"'!$14:$163"),,0,1),,0,1) -> 0.0327821299 | C105: =_xlfn.XLOOKUP($A105,INDIRECT("'Curves "&C$10&"'!$A$14:$A$163"),_xlfn.XLOOKUP(C$11&$J$3,INDIRECT("'Curves "&C$10&"'!$11:$11")&INDIRECT("'Curves "&C$10&"'!$12:$12"),INDIRECT("'Curves "&C$10&"'!$14:$163"),,0,1),,0,1) -> 0.03824711524 | D105: =_xlfn.XLOOKUP($A105,INDIRECT("'Curves "&D$10&"'!$A$14:$A$163"),_xlfn.XLOOKUP(D$11&$J$3,INDIRECT("'Curves "&D$10&"'!$11:$11")&INDIRECT("'Curves "&D$10&"'!$12:$12"),INDIRECT("'Curves "&D$10&"'!$14:$163"),,0,1),,0,1) -> 0.02497175187 | F105: =_xlfn.XLOOKUP($A105,INDIRECT("'Curves "&F$10&"'!$A$14:$A$163"),_xlfn.XLOOKUP(F$11&$J$3,INDIRECT("'Curves "&F$10&"'!$11:$11")&INDIRECT("'Curves "&F$10&"'!$12:$12"),INDIRECT("'Curves "&F$10&"'!$14:$163"),,0,1),,0,1) -> 0.03355130121 | G105: =_xlfn.XLOOKUP($A105,INDIRECT("'Curves "&G$10&"'!$A$14:$A$163"),_xlfn.XLOOKUP(G$11&$J$3,INDIRECT("'Curves "&G$10&"'!$11:$11")&INDIRECT("'Curves "&G$10&"'!$12:$12"),INDIRECT("'Curves "&G$10&"'!$14:$163"),,0,1),,0,1) -> 0.03902035663 | H105: =_xlfn.XLOOKUP($A105,INDIRECT("'Curves "&H$10&"'!$A$14:$A$163"),_xlfn.XLOOKUP(H$11&$J$3,INDIRECT("'Curves "&H$10&"'!$11:$11")&INDIRECT("'Curves "&H$10&"'!$12:$12"),INDIRECT("'Curves "&H$10&"'!$14:$163"),,0,1),,0,1) -> 0.02573510636
A106: 94 | B106: =_xlfn.XLOOKUP($A106,INDIRECT("'Curves "&B$10&"'!$A$14:$A$163"),_xlfn.XLOOKUP(B$11&$J$3,INDIRECT("'Curves "&B$10&"'!$11:$11")&INDIRECT("'Curves "&B$10&"'!$12:$12"),INDIRECT("'Curves "&B$10&"'!$14:$163"),,0,1),,0,1) -> 0.03278444667 | C106: =_xlfn.XLOOKUP($A106,INDIRECT("'Curves "&C$10&"'!$A$14:$A$163"),_xlfn.XLOOKUP(C$11&$J$3,INDIRECT("'Curves "&C$10&"'!$11:$11")&INDIRECT("'Curves "&C$10&"'!$12:$12"),INDIRECT("'Curves "&C$10&"'!$14:$163"),,0,1),,0,1) -> 0.03820720327 | D106: =_xlfn.XLOOKUP($A106,INDIRECT("'Curves "&D$10&"'!$A$14:$A$163"),_xlfn.XLOOKUP(D$11&$J$3,INDIRECT("'Curves "&D$10&"'!$11:$11")&INDIRECT("'Curves "&D$10&"'!$12:$12"),INDIRECT("'Curves "&D$10&"'!$14:$163"),,0,1),,0,1) -> 0.02504091319 | F106: =_xlfn.XLOOKUP($A106,INDIRECT("'Curves "&F$10&"'!$A$14:$A$163"),_xlfn.XLOOKUP(F$11&$J$3,INDIRECT("'Curves "&F$10&"'!$11:$11")&INDIRECT("'Curves "&F$10&"'!$12:$12"),INDIRECT("'Curves "&F$10&"'!$14:$163"),,0,1),,0,1) -> 0.03354543738 | G106: =_xlfn.XLOOKUP($A106,INDIRECT("'Curves "&G$10&"'!$A$14:$A$163"),_xlfn.XLOOKUP(G$11&$J$3,INDIRECT("'Curves "&G$10&"'!$11:$11")&INDIRECT("'Curves "&G$10&"'!$12:$12"),INDIRECT("'Curves "&G$10&"'!$14:$163"),,0,1),,0,1) -> 0.03897218964 | H106: =_xlfn.XLOOKUP($A106,INDIRECT("'Curves "&H$10&"'!$A$14:$A$163"),_xlfn.XLOOKUP(H$11&$J$3,INDIRECT("'Curves "&H$10&"'!$11:$11")&INDIRECT("'Curves "&H$10&"'!$12:$12"),INDIRECT("'Curves "&H$10&"'!$14:$163"),,0,1),,0,1) -> 0.02579619819
A107: 95 | B107: =_xlfn.XLOOKUP($A107,INDIRECT("'Curves "&B$10&"'!$A$14:$A$163"),_xlfn.XLOOKUP(B$11&$J$3,INDIRECT("'Curves "&B$10&"'!$11:$11")&INDIRECT("'Curves "&B$10&"'!$12:$12"),INDIRECT("'Curves "&B$10&"'!$14:$163"),,0,1),,0,1) -> 0.03278671476 | C107: =_xlfn.XLOOKUP($A107,INDIRECT("'Curves "&C$10&"'!$A$14:$A$163"),_xlfn.XLOOKUP(C$11&$J$3,INDIRECT("'Curves "&C$10&"'!$11:$11")&INDIRECT("'Curves "&C$10&"'!$12:$12"),INDIRECT("'Curves "&C$10&"'!$14:$163"),,0,1),,0,1) -> 0.03816813074 | D107: =_xlfn.XLOOKUP($A107,INDIRECT("'Curves "&D$10&"'!$A$14:$A$163"),_xlfn.XLOOKUP(D$11&$J$3,INDIRECT("'Curves "&D$10&"'!$11:$11")&INDIRECT("'Curves "&D$10&"'!$12:$12"),INDIRECT("'Curves "&D$10&"'!$14:$163"),,0,1),,0,1) -> 0.02510863024 | F107: =_xlfn.XLOOKUP($A107,INDIRECT("'Curves "&F$10&"'!$A$14:$A$163"),_xlfn.XLOOKUP(F$11&$J$3,INDIRECT("'Curves "&F$10&"'!$11:$11")&INDIRECT("'Curves "&F$10&"'!$12:$12"),INDIRECT("'Curves "&F$10&"'!$14:$163"),,0,1),,0,1) -> 0.03353969675 | G107: =_xlfn.XLOOKUP($A107,INDIRECT("'Curves "&G$10&"'!$A$14:$A$163"),_xlfn.XLOOKUP(G$11&$J$3,INDIRECT("'Curves "&G$10&"'!$11:$11")&INDIRECT("'Curves "&G$10&"'!$12:$12"),INDIRECT("'Curves "&G$10&"'!$14:$163"),,0,1),,0,1) -> 0.0389250362 | H107: =_xlfn.XLOOKUP($A107,INDIRECT("'Curves "&H$10&"'!$A$14:$A$163"),_xlfn.XLOOKUP(H$11&$J$3,INDIRECT("'Curves "&H$10&"'!$11:$11")&INDIRECT("'Curves "&H$10&"'!$12:$12"),INDIRECT("'Curves "&H$10&"'!$14:$163"),,0,1),,0,1) -> 0.02585601431
A108: 96 | B108: =_xlfn.XLOOKUP($A108,INDIRECT("'Curves "&B$10&"'!$A$14:$A$163"),_xlfn.XLOOKUP(B$11&$J$3,INDIRECT("'Curves "&B$10&"'!$11:$11")&INDIRECT("'Curves "&B$10&"'!$12:$12"),INDIRECT("'Curves "&B$10&"'!$14:$163"),,0,1),,0,1) -> 0.03278893567 | C108: =_xlfn.XLOOKUP($A108,INDIRECT("'Curves "&C$10&"'!$A$14:$A$163"),_xlfn.XLOOKUP(C$11&$J$3,INDIRECT("'Curves "&C$10&"'!$11:$11")&INDIRECT("'Curves "&C$10&"'!$12:$12"),INDIRECT("'Curves "&C$10&"'!$14:$163"),,0,1),,0,1) -> 0.03812987161 | D108: =_xlfn.XLOOKUP($A108,INDIRECT("'Curves "&D$10&"'!$A$14:$A$163"),_xlfn.XLOOKUP(D$11&$J$3,INDIRECT("'Curves "&D$10&"'!$11:$11")&INDIRECT("'Curves "&D$10&"'!$12:$12"),INDIRECT("'Curves "&D$10&"'!$14:$163"),,0,1),,0,1) -> 0.02517494727 | F108: =_xlfn.XLOOKUP($A108,INDIRECT("'Curves "&F$10&"'!$A$14:$A$163"),_xlfn.XLOOKUP(F$11&$J$3,INDIRECT("'Curves "&F$10&"'!$11:$11")&INDIRECT("'Curves "&F$10&"'!$12:$12"),INDIRECT("'Curves "&F$10&"'!$14:$163"),,0,1),,0,1) -> 0.03353407552 | G108: =_xlfn.XLOOKUP($A108,INDIRECT("'Curves "&G$10&"'!$A$14:$A$163"),_xlfn.XLOOKUP(G$11&$J$3,INDIRECT("'Curves "&G$10&"'!$11:$11")&INDIRECT("'Curves "&G$10&"'!$12:$12"),INDIRECT("'Curves "&G$10&"'!$14:$163"),,0,1),,0,1) -> 0.03887886486 | H108: =_xlfn.XLOOKUP($A108,INDIRECT("'Curves "&H$10&"'!$A$14:$A$163"),_xlfn.XLOOKUP(H$11&$J$3,INDIRECT("'Curves "&H$10&"'!$11:$11")&INDIRECT("'Curves "&H$10&"'!$12:$12"),INDIRECT("'Curves "&H$10&"'!$14:$163"),,0,1),,0,1) -> 0.02591459375
A109: 97 | B109: =_xlfn.XLOOKUP($A109,INDIRECT("'Curves "&B$10&"'!$A$14:$A$163"),_xlfn.XLOOKUP(B$11&$J$3,INDIRECT("'Curves "&B$10&"'!$11:$11")&INDIRECT("'Curves "&B$10&"'!$12:$12"),INDIRECT("'Curves "&B$10&"'!$14:$163"),,0,1),,0,1) -> 0.03279111085 | C109: =_xlfn.XLOOKUP($A109,INDIRECT("'Curves "&C$10&"'!$A$14:$A$163"),_xlfn.XLOOKUP(C$11&$J$3,INDIRECT("'Curves "&C$10&"'!$11:$11")&INDIRECT("'Curves "&C$10&"'!$12:$12"),INDIRECT("'Curves "&C$10&"'!$14:$163"),,0,1),,0,1) -> 0.03809240089 | D109: =_xlfn.XLOOKUP($A109,INDIRECT("'Curves "&D$10&"'!$A$14:$A$163"),_xlfn.XLOOKUP(D$11&$J$3,INDIRECT("'Curves "&D$10&"'!$11:$11")&INDIRECT("'Curves "&D$10&"'!$12:$12"),INDIRECT("'Curves "&D$10&"'!$14:$163"),,0,1),,0,1) -> 0.02523990679 | F109: =_xlfn.XLOOKUP($A109,INDIRECT("'Curves "&F$10&"'!$A$14:$A$163"),_xlfn.XLOOKUP(F$11&$J$3,INDIRECT("'Curves "&F$10&"'!$11:$11")&INDIRECT("'Curves "&F$10&"'!$12:$12"),INDIRECT("'Curves "&F$10&"'!$14:$163"),,0,1),,0,1) -> 0.03352857 | G109: =_xlfn.XLOOKUP($A109,INDIRECT("'Curves "&G$10&"'!$A$14:$A$163"),_xlfn.XLOOKUP(G$11&$J$3,INDIRECT("'Curves "&G$10&"'!$11:$11")&INDIRECT("'Curves "&G$10&"'!$12:$12"),INDIRECT("'Curves "&G$10&"'!$14:$163"),,0,1),,0,1) -> 0.0388336454 | H109: =_xlfn.XLOOKUP($A109,INDIRECT("'Curves "&H$10&"'!$A$14:$A$163"),_xlfn.XLOOKUP(H$11&$J$3,INDIRECT("'Curves "&H$10&"'!$11:$11")&INDIRECT("'Curves "&H$10&"'!$12:$12"),INDIRECT("'Curves "&H$10&"'!$14:$163"),,0,1),,0,1) -> 0.02597197404
A110: 98 | B110: =_xlfn.XLOOKUP($A110,INDIRECT("'Curves "&B$10&"'!$A$14:$A$163"),_xlfn.XLOOKUP(B$11&$J$3,INDIRECT("'Curves "&B$10&"'!$11:$11")&INDIRECT("'Curves "&B$10&"'!$12:$12"),INDIRECT("'Curves "&B$10&"'!$14:$163"),,0,1),,0,1) -> 0.0327932417 | C110: =_xlfn.XLOOKUP($A110,INDIRECT("'Curves "&C$10&"'!$A$14:$A$163"),_xlfn.XLOOKUP(C$11&$J$3,INDIRECT("'Curves "&C$10&"'!$11:$11")&INDIRECT("'Curves "&C$10&"'!$12:$12"),INDIRECT("'Curves "&C$10&"'!$14:$163"),,0,1),,0,1) -> 0.03805569459 | D110: =_xlfn.XLOOKUP($A110,INDIRECT("'Curves "&D$10&"'!$A$14:$A$163"),_xlfn.XLOOKUP(D$11&$J$3,INDIRECT("'Curves "&D$10&"'!$11:$11")&INDIRECT("'Curves "&D$10&"'!$12:$12"),INDIRECT("'Curves "&D$10&"'!$14:$163"),,0,1),,0,1) -> 0.02530354964 | F110: =_xlfn.XLOOKUP($A110,INDIRECT("'Curves "&F$10&"'!$A$14:$A$163"),_xlfn.XLOOKUP(F$11&$J$3,INDIRECT("'Curves "&F$10&"'!$11:$11")&INDIRECT("'Curves "&F$10&"'!$12:$12"),INDIRECT("'Curves "&F$10&"'!$14:$163"),,0,1),,0,1) -> 0.03352317668 | G110: =_xlfn.XLOOKUP($A110,INDIRECT("'Curves "&G$10&"'!$A$14:$A$163"),_xlfn.XLOOKUP(G$11&$J$3,INDIRECT("'Curves "&G$10&"'!$11:$11")&INDIRECT("'Curves "&G$10&"'!$12:$12"),INDIRECT("'Curves "&G$10&"'!$14:$163"),,0,1),,0,1) -> 0.03878934886 | H110: =_xlfn.XLOOKUP($A110,INDIRECT("'Curves "&H$10&"'!$A$14:$A$163"),_xlfn.XLOOKUP(H$11&$J$3,INDIRECT("'Curves "&H$10&"'!$11:$11")&INDIRECT("'Curves "&H$10&"'!$12:$12"),INDIRECT("'Curves "&H$10&"'!$14:$163"),,0,1),,0,1) -> 0.02602819122
A111: 99 | B111: =_xlfn.XLOOKUP($A111,INDIRECT("'Curves "&B$10&"'!$A$14:$A$163"),_xlfn.XLOOKUP(B$11&$J$3,INDIRECT("'Curves "&B$10&"'!$11:$11")&INDIRECT("'Curves "&B$10&"'!$12:$12"),INDIRECT("'Curves "&B$10&"'!$14:$163"),,0,1),,0,1) -> 0.03279532955 | C111: =_xlfn.XLOOKUP($A111,INDIRECT("'Curves "&C$10&"'!$A$14:$A$163"),_xlfn.XLOOKUP(C$11&$J$3,INDIRECT("'Curves "&C$10&"'!$11:$11")&INDIRECT("'Curves "&C$10&"'!$12:$12"),INDIRECT("'Curves "&C$10&"'!$14:$163"),,0,1),,0,1) -> 0.03801972966 | D111: =_xlfn.XLOOKUP($A111,INDIRECT("'Curves "&D$10&"'!$A$14:$A$163"),_xlfn.XLOOKUP(D$11&$J$3,INDIRECT("'Curves "&D$10&"'!$11:$11")&INDIRECT("'Curves "&D$10&"'!$12:$12"),INDIRECT("'Curves "&D$10&"'!$14:$163"),,0,1),,0,1) -> 0.02536591508 | F111: =_xlfn.XLOOKUP($A111,INDIRECT("'Curves "&F$10&"'!$A$14:$A$163"),_xlfn.XLOOKUP(F$11&$J$3,INDIRECT("'Curves "&F$10&"'!$11:$11")&INDIRECT("'Curves "&F$10&"'!$12:$12"),INDIRECT("'Curves "&F$10&"'!$14:$163"),,0,1),,0,1) -> 0.03351789218 | G111: =_xlfn.XLOOKUP($A111,INDIRECT("'Curves "&G$10&"'!$A$14:$A$163"),_xlfn.XLOOKUP(G$11&$J$3,INDIRECT("'Curves "&G$10&"'!$11:$11")&INDIRECT("'Curves "&G$10&"'!$12:$12"),INDIRECT("'Curves "&G$10&"'!$14:$163"),,0,1),,0,1) -> 0.03874594738 | H111: =_xlfn.XLOOKUP($A111,INDIRECT("'Curves "&H$10&"'!$A$14:$A$163"),_xlfn.XLOOKUP(H$11&$J$3,INDIRECT("'Curves "&H$10&"'!$11:$11")&INDIRECT("'Curves "&H$10&"'!$12:$12"),INDIRECT("'Curves "&H$10&"'!$14:$163"),,0,1),,0,1) -> 0.02608327996
A112: 100 | B112: =_xlfn.XLOOKUP($A112,INDIRECT("'Curves "&B$10&"'!$A$14:$A$163"),_xlfn.XLOOKUP(B$11&$J$3,INDIRECT("'Curves "&B$10&"'!$11:$11")&INDIRECT("'Curves "&B$10&"'!$12:$12"),INDIRECT("'Curves "&B$10&"'!$14:$163"),,0,1),,0,1) -> 0.03279737569 | C112: =_xlfn.XLOOKUP($A112,INDIRECT("'Curves "&C$10&"'!$A$14:$A$163"),_xlfn.XLOOKUP(C$11&$J$3,INDIRECT("'Curves "&C$10&"'!$11:$11")&INDIRECT("'Curves "&C$10&"'!$12:$12"),INDIRECT("'Curves "&C$10&"'!$14:$163"),,0,1),,0,1) -> 0.03798448399 | D112: =_xlfn.XLOOKUP($A112,INDIRECT("'Curves "&D$10&"'!$A$14:$A$163"),_xlfn.XLOOKUP(D$11&$J$3,INDIRECT("'Curves "&D$10&"'!$11:$11")&INDIRECT("'Curves "&D$10&"'!$12:$12"),INDIRECT("'Curves "&D$10&"'!$14:$163"),,0,1),,0,1) -> 0.02542704087 | F112: =_xlfn.XLOOKUP($A112,INDIRECT("'Curves "&F$10&"'!$A$14:$A$163"),_xlfn.XLOOKUP(F$11&$J$3,INDIRECT("'Curves "&F$10&"'!$11:$11")&INDIRECT("'Curves "&F$10&"'!$12:$12"),INDIRECT("'Curves "&F$10&"'!$14:$163"),,0,1),,0,1) -> 0.03351271325 | G112: =_xlfn.XLOOKUP($A112,INDIRECT("'Curves "&G$10&"'!$A$14:$A$163"),_xlfn.XLOOKUP(G$11&$J$3,INDIRECT("'Curves "&G$10&"'!$11:$11")&INDIRECT("'Curves "&G$10&"'!$12:$12"),INDIRECT("'Curves "&G$10&"'!$14:$163"),,0,1),,0,1) -> 0.03870341425 | H112: =_xlfn.XLOOKUP($A112,INDIRECT("'Curves "&H$10&"'!$A$14:$A$163"),_xlfn.XLOOKUP(H$11&$J$3,INDIRECT("'Curves "&H$10&"'!$11:$11")&INDIRECT("'Curves "&H$10&"'!$12:$12"),INDIRECT("'Curves "&H$10&"'!$14:$163"),,0,1),,0,1) -> 0.02613727357
A113: 101 | B113: =_xlfn.XLOOKUP($A113,INDIRECT("'Curves "&B$10&"'!$A$14:$A$163"),_xlfn.XLOOKUP(B$11&$J$3,INDIRECT("'Curves "&B$10&"'!$11:$11")&INDIRECT("'Curves "&B$10&"'!$12:$12"),INDIRECT("'Curves "&B$10&"'!$14:$163"),,0,1),,0,1) -> 0.03279938135 | C113: =_xlfn.XLOOKUP($A113,INDIRECT("'Curves "&C$10&"'!$A$14:$A$163"),_xlfn.XLOOKUP(C$11&$J$3,INDIRECT("'Curves "&C$10&"'!$11:$11")&INDIRECT("'Curves "&C$10&"'!$12:$12"),INDIRECT("'Curves "&C$10&"'!$14:$163"),,0,1),,0,1) -> 0.03794993629 | D113: =_xlfn.XLOOKUP($A113,INDIRECT("'Curves "&D$10&"'!$A$14:$A$163"),_xlfn.XLOOKUP(D$11&$J$3,INDIRECT("'Curves "&D$10&"'!$11:$11")&INDIRECT("'Curves "&D$10&"'!$12:$12"),INDIRECT("'Curves "&D$10&"'!$14:$163"),,0,1),,0,1) -> 0.0254869633 | F113: =_xlfn.XLOOKUP($A113,INDIRECT("'Curves "&F$10&"'!$A$14:$A$163"),_xlfn.XLOOKUP(F$11&$J$3,INDIRECT("'Curves "&F$10&"'!$11:$11")&INDIRECT("'Curves "&F$10&"'!$12:$12"),INDIRECT("'Curves "&F$10&"'!$14:$163"),,0,1),,0,1) -> 0.03350763676 | G113: =_xlfn.XLOOKUP($A113,INDIRECT("'Curves "&G$10&"'!$A$14:$A$163"),_xlfn.XLOOKUP(G$11&$J$3,INDIRECT("'Curves "&G$10&"'!$11:$11")&INDIRECT("'Curves "&G$10&"'!$12:$12"),INDIRECT("'Curves "&G$10&"'!$14:$163"),,0,1),,0,1) -> 0.03866172376 | H113: =_xlfn.XLOOKUP($A113,INDIRECT("'Curves "&H$10&"'!$A$14:$A$163"),_xlfn.XLOOKUP(H$11&$J$3,INDIRECT("'Curves "&H$10&"'!$11:$11")&INDIRECT("'Curves "&H$10&"'!$12:$12"),INDIRECT("'Curves "&H$10&"'!$14:$163"),,0,1),,0,1) -> 0.02619020412
A114: 102 | B114: =_xlfn.XLOOKUP($A114,INDIRECT("'Curves "&B$10&"'!$A$14:$A$163"),_xlfn.XLOOKUP(B$11&$J$3,INDIRECT("'Curves "&B$10&"'!$11:$11")&INDIRECT("'Curves "&B$10&"'!$12:$12"),INDIRECT("'Curves "&B$10&"'!$14:$163"),,0,1),,0,1) -> 0.03280134773 | C114: =_xlfn.XLOOKUP($A114,INDIRECT("'Curves "&C$10&"'!$A$14:$A$163"),_xlfn.XLOOKUP(C$11&$J$3,INDIRECT("'Curves "&C$10&"'!$11:$11")&INDIRECT("'Curves "&C$10&"'!$12:$12"),INDIRECT("'Curves "&C$10&"'!$14:$163"),,0,1),,0,1) -> 0.03791606613 | D114: =_xlfn.XLOOKUP($A114,INDIRECT("'Curves "&D$10&"'!$A$14:$A$163"),_xlfn.XLOOKUP(D$11&$J$3,INDIRECT("'Curves "&D$10&"'!$11:$11")&INDIRECT("'Curves "&D$10&"'!$12:$12"),INDIRECT("'Curves "&D$10&"'!$14:$163"),,0,1),,0,1) -> 0.0255457173 | F114: =_xlfn.XLOOKUP($A114,INDIRECT("'Curves "&F$10&"'!$A$14:$A$163"),_xlfn.XLOOKUP(F$11&$J$3,INDIRECT("'Curves "&F$10&"'!$11:$11")&INDIRECT("'Curves "&F$10&"'!$12:$12"),INDIRECT("'Curves "&F$10&"'!$14:$163"),,0,1),,0,1) -> 0.03350265972 | G114: =_xlfn.XLOOKUP($A114,INDIRECT("'Curves "&G$10&"'!$A$14:$A$163"),_xlfn.XLOOKUP(G$11&$J$3,INDIRECT("'Curves "&G$10&"'!$11:$11")&INDIRECT("'Curves "&G$10&"'!$12:$12"),INDIRECT("'Curves "&G$10&"'!$14:$163"),,0,1),,0,1) -> 0.03862085121 | H114: =_xlfn.XLOOKUP($A114,INDIRECT("'Curves "&H$10&"'!$A$14:$A$163"),_xlfn.XLOOKUP(H$11&$J$3,INDIRECT("'Curves "&H$10&"'!$11:$11")&INDIRECT("'Curves "&H$10&"'!$12:$12"),INDIRECT("'Curves "&H$10&"'!$14:$163"),,0,1),,0,1) -> 0.02624210244
A115: 103 | B115: =_xlfn.XLOOKUP($A115,INDIRECT("'Curves "&B$10&"'!$A$14:$A$163"),_xlfn.XLOOKUP(B$11&$J$3,INDIRECT("'Curves "&B$10&"'!$11:$11")&INDIRECT("'Curves "&B$10&"'!$12:$12"),INDIRECT("'Curves "&B$10&"'!$14:$163"),,0,1),,0,1) -> 0.03280327595 | C115: =_xlfn.XLOOKUP($A115,INDIRECT("'Curves "&C$10&"'!$A$14:$A$163"),_xlfn.XLOOKUP(C$11&$J$3,INDIRECT("'Curves "&C$10&"'!$11:$11")&INDIRECT("'Curves "&C$10&"'!$12:$12"),INDIRECT("'Curves "&C$10&"'!$14:$163"),,0,1),,0,1) -> 0.03788285383 | D115: =_xlfn.XLOOKUP($A115,INDIRECT("'Curves "&D$10&"'!$A$14:$A$163"),_xlfn.XLOOKUP(D$11&$J$3,INDIRECT("'Curves "&D$10&"'!$11:$11")&INDIRECT("'Curves "&D$10&"'!$12:$12"),INDIRECT("'Curves "&D$10&"'!$14:$163"),,0,1),,0,1) -> 0.02560333649 | F115: =_xlfn.XLOOKUP($A115,INDIRECT("'Curves "&F$10&"'!$A$14:$A$163"),_xlfn.XLOOKUP(F$11&$J$3,INDIRECT("'Curves "&F$10&"'!$11:$11")&INDIRECT("'Curves "&F$10&"'!$12:$12"),INDIRECT("'Curves "&F$10&"'!$14:$163"),,0,1),,0,1) -> 0.03349777924 | G115: =_xlfn.XLOOKUP($A115,INDIRECT("'Curves "&G$10&"'!$A$14:$A$163"),_xlfn.XLOOKUP(G$11&$J$3,INDIRECT("'Curves "&G$10&"'!$11:$11")&INDIRECT("'Curves "&G$10&"'!$12:$12"),INDIRECT("'Curves "&G$10&"'!$14:$163"),,0,1),,0,1) -> 0.03858077285 | H115: =_xlfn.XLOOKUP($A115,INDIRECT("'Curves "&H$10&"'!$A$14:$A$163"),_xlfn.XLOOKUP(H$11&$J$3,INDIRECT("'Curves "&H$10&"'!$11:$11")&INDIRECT("'Curves "&H$10&"'!$12:$12"),INDIRECT("'Curves "&H$10&"'!$14:$163"),,0,1),,0,1) -> 0.02629299821
A116: 104 | B116: =_xlfn.XLOOKUP($A116,INDIRECT("'Curves "&B$10&"'!$A$14:$A$163"),_xlfn.XLOOKUP(B$11&$J$3,INDIRECT("'Curves "&B$10&"'!$11:$11")&INDIRECT("'Curves "&B$10&"'!$12:$12"),INDIRECT("'Curves "&B$10&"'!$14:$163"),,0,1),,0,1) -> 0.03280516713 | C116: =_xlfn.XLOOKUP($A116,INDIRECT("'Curves "&C$10&"'!$A$14:$A$163"),_xlfn.XLOOKUP(C$11&$J$3,INDIRECT("'Curves "&C$10&"'!$11:$11")&INDIRECT("'Curves "&C$10&"'!$12:$12"),INDIRECT("'Curves "&C$10&"'!$14:$163"),,0,1),,0,1) -> 0.03785028048 | D116: =_xlfn.XLOOKUP($A116,INDIRECT("'Curves "&D$10&"'!$A$14:$A$163"),_xlfn.XLOOKUP(D$11&$J$3,INDIRECT("'Curves "&D$10&"'!$11:$11")&INDIRECT("'Curves "&D$10&"'!$12:$12"),INDIRECT("'Curves "&D$10&"'!$14:$163"),,0,1),,0,1) -> 0.02565985322 | F116: =_xlfn.XLOOKUP($A116,INDIRECT("'Curves "&F$10&"'!$A$14:$A$163"),_xlfn.XLOOKUP(F$11&$J$3,INDIRECT("'Curves "&F$10&"'!$11:$11")&INDIRECT("'Curves "&F$10&"'!$12:$12"),INDIRECT("'Curves "&F$10&"'!$14:$163"),,0,1),,0,1) -> 0.03349299255 | G116: =_xlfn.XLOOKUP($A116,INDIRECT("'Curves "&G$10&"'!$A$14:$A$163"),_xlfn.XLOOKUP(G$11&$J$3,INDIRECT("'Curves "&G$10&"'!$11:$11")&INDIRECT("'Curves "&G$10&"'!$12:$12"),INDIRECT("'Curves "&G$10&"'!$14:$163"),,0,1),,0,1) -> 0.03854146584 | H116: =_xlfn.XLOOKUP($A116,INDIRECT("'Curves "&H$10&"'!$A$14:$A$163"),_xlfn.XLOOKUP(H$11&$J$3,INDIRECT("'Curves "&H$10&"'!$11:$11")&INDIRECT("'Curves "&H$10&"'!$12:$12"),INDIRECT("'Curves "&H$10&"'!$14:$163"),,0,1),,0,1) -> 0.02634292002
A117: 105 | B117: =_xlfn.XLOOKUP($A117,INDIRECT("'Curves "&B$10&"'!$A$14:$A$163"),_xlfn.XLOOKUP(B$11&$J$3,INDIRECT("'Curves "&B$10&"'!$11:$11")&INDIRECT("'Curves "&B$10&"'!$12:$12"),INDIRECT("'Curves "&B$10&"'!$14:$163"),,0,1),,0,1) -> 0.03280702231 | C117: =_xlfn.XLOOKUP($A117,INDIRECT("'Curves "&C$10&"'!$A$14:$A$163"),_xlfn.XLOOKUP(C$11&$J$3,INDIRECT("'Curves "&C$10&"'!$11:$11")&INDIRECT("'Curves "&C$10&"'!$12:$12"),INDIRECT("'Curves "&C$10&"'!$14:$163"),,0,1),,0,1) -> 0.03781832788 | D117: =_xlfn.XLOOKUP($A117,INDIRECT("'Curves "&D$10&"'!$A$14:$A$163"),_xlfn.XLOOKUP(D$11&$J$3,INDIRECT("'Curves "&D$10&"'!$11:$11")&INDIRECT("'Curves "&D$10&"'!$12:$12"),INDIRECT("'Curves "&D$10&"'!$14:$163"),,0,1),,0,1) -> 0.02571529865 | F117: =_xlfn.XLOOKUP($A117,INDIRECT("'Curves "&F$10&"'!$A$14:$A$163"),_xlfn.XLOOKUP(F$11&$J$3,INDIRECT("'Curves "&F$10&"'!$11:$11")&INDIRECT("'Curves "&F$10&"'!$12:$12"),INDIRECT("'Curves "&F$10&"'!$14:$163"),,0,1),,0,1) -> 0.03348829697 | G117: =_xlfn.XLOOKUP($A117,INDIRECT("'Curves "&G$10&"'!$A$14:$A$163"),_xlfn.XLOOKUP(G$11&$J$3,INDIRECT("'Curves "&G$10&"'!$11:$11")&INDIRECT("'Curves "&G$10&"'!$12:$12"),INDIRECT("'Curves "&G$10&"'!$14:$163"),,0,1),,0,1) -> 0.03850290817 | H117: =_xlfn.XLOOKUP($A117,INDIRECT("'Curves "&H$10&"'!$A$14:$A$163"),_xlfn.XLOOKUP(H$11&$J$3,INDIRECT("'Curves "&H$10&"'!$11:$11")&INDIRECT("'Curves "&H$10&"'!$12:$12"),INDIRECT("'Curves "&H$10&"'!$14:$163"),,0,1),,0,1) -> 0.02639189537
A118: 106 | B118: =_xlfn.XLOOKUP($A118,INDIRECT("'Curves "&B$10&"'!$A$14:$A$163"),_xlfn.XLOOKUP(B$11&$J$3,INDIRECT("'Curves "&B$10&"'!$11:$11")&INDIRECT("'Curves "&B$10&"'!$12:$12"),INDIRECT("'Curves "&B$10&"'!$14:$163"),,0,1),,0,1) -> 0.03280884251 | C118: =_xlfn.XLOOKUP($A118,INDIRECT("'Curves "&C$10&"'!$A$14:$A$163"),_xlfn.XLOOKUP(C$11&$J$3,INDIRECT("'Curves "&C$10&"'!$11:$11")&INDIRECT("'Curves "&C$10&"'!$12:$12"),INDIRECT("'Curves "&C$10&"'!$14:$163"),,0,1),,0,1) -> 0.0377869785 | D118: =_xlfn.XLOOKUP($A118,INDIRECT("'Curves "&D$10&"'!$A$14:$A$163"),_xlfn.XLOOKUP(D$11&$J$3,INDIRECT("'Curves "&D$10&"'!$11:$11")&INDIRECT("'Curves "&D$10&"'!$12:$12"),INDIRECT("'Curves "&D$10&"'!$14:$163"),,0,1),,0,1) -> 0.02576970279 | F118: =_xlfn.XLOOKUP($A118,INDIRECT("'Curves "&F$10&"'!$A$14:$A$163"),_xlfn.XLOOKUP(F$11&$J$3,INDIRECT("'Curves "&F$10&"'!$11:$11")&INDIRECT("'Curves "&F$10&"'!$12:$12"),INDIRECT("'Curves "&F$10&"'!$14:$163"),,0,1),,0,1) -> 0.03348368994 | G118: =_xlfn.XLOOKUP($A118,INDIRECT("'Curves "&G$10&"'!$A$14:$A$163"),_xlfn.XLOOKUP(G$11&$J$3,INDIRECT("'Curves "&G$10&"'!$11:$11")&INDIRECT("'Curves "&G$10&"'!$12:$12"),INDIRECT("'Curves "&G$10&"'!$14:$163"),,0,1),,0,1) -> 0.0384650787 | H118: =_xlfn.XLOOKUP($A118,INDIRECT("'Curves "&H$10&"'!$A$14:$A$163"),_xlfn.XLOOKUP(H$11&$J$3,INDIRECT("'Curves "&H$10&"'!$11:$11")&INDIRECT("'Curves "&H$10&"'!$12:$12"),INDIRECT("'Curves "&H$10&"'!$14:$163"),,0,1),,0,1) -> 0.02643995078
A119: 107 | B119: =_xlfn.XLOOKUP($A119,INDIRECT("'Curves "&B$10&"'!$A$14:$A$163"),_xlfn.XLOOKUP(B$11&$J$3,INDIRECT("'Curves "&B$10&"'!$11:$11")&INDIRECT("'Curves "&B$10&"'!$12:$12"),INDIRECT("'Curves "&B$10&"'!$14:$163"),,0,1),,0,1) -> 0.0328106287 | C119: =_xlfn.XLOOKUP($A119,INDIRECT("'Curves "&C$10&"'!$A$14:$A$163"),_xlfn.XLOOKUP(C$11&$J$3,INDIRECT("'Curves "&C$10&"'!$11:$11")&INDIRECT("'Curves "&C$10&"'!$12:$12"),INDIRECT("'Curves "&C$10&"'!$14:$163"),,0,1),,0,1) -> 0.03775621547 | D119: =_xlfn.XLOOKUP($A119,INDIRECT("'Curves "&D$10&"'!$A$14:$A$163"),_xlfn.XLOOKUP(D$11&$J$3,INDIRECT("'Curves "&D$10&"'!$11:$11")&INDIRECT("'Curves "&D$10&"'!$12:$12"),INDIRECT("'Curves "&D$10&"'!$14:$163"),,0,1),,0,1) -> 0.02582309455 | F119: =_xlfn.XLOOKUP($A119,INDIRECT("'Curves "&F$10&"'!$A$14:$A$163"),_xlfn.XLOOKUP(F$11&$J$3,INDIRECT("'Curves "&F$10&"'!$11:$11")&INDIRECT("'Curves "&F$10&"'!$12:$12"),INDIRECT("'Curves "&F$10&"'!$14:$163"),,0,1),,0,1) -> 0.03347916897 | G119: =_xlfn.XLOOKUP($A119,INDIRECT("'Curves "&G$10&"'!$A$14:$A$163"),_xlfn.XLOOKUP(G$11&$J$3,INDIRECT("'Curves "&G$10&"'!$11:$11")&INDIRECT("'Curves "&G$10&"'!$12:$12"),INDIRECT("'Curves "&G$10&"'!$14:$163"),,0,1),,0,1) -> 0.03842795703 | H119: =_xlfn.XLOOKUP($A119,INDIRECT("'Curves "&H$10&"'!$A$14:$A$163"),_xlfn.XLOOKUP(H$11&$J$3,INDIRECT("'Curves "&H$10&"'!$11:$11")&INDIRECT("'Curves "&H$10&"'!$12:$12"),INDIRECT("'Curves "&H$10&"'!$14:$163"),,0,1),,0,1) -> 0.02648711177
A120: 108 | B120: =_xlfn.XLOOKUP($A120,INDIRECT("'Curves "&B$10&"'!$A$14:$A$163"),_xlfn.XLOOKUP(B$11&$J$3,INDIRECT("'Curves "&B$10&"'!$11:$11")&INDIRECT("'Curves "&B$10&"'!$12:$12"),INDIRECT("'Curves "&B$10&"'!$14:$163"),,0,1),,0,1) -> 0.03281238184 | C120: =_xlfn.XLOOKUP($A120,INDIRECT("'Curves "&C$10&"'!$A$14:$A$163"),_xlfn.XLOOKUP(C$11&$J$3,INDIRECT("'Curves "&C$10&"'!$11:$11")&INDIRECT("'Curves "&C$10&"'!$12:$12"),INDIRECT("'Curves "&C$10&"'!$14:$163"),,0,1),,0,1) -> 0.03772602252 | D120: =_xlfn.XLOOKUP($A120,INDIRECT("'Curves "&D$10&"'!$A$14:$A$163"),_xlfn.XLOOKUP(D$11&$J$3,INDIRECT("'Curves "&D$10&"'!$11:$11")&INDIRECT("'Curves "&D$10&"'!$12:$12"),INDIRECT("'Curves "&D$10&"'!$14:$163"),,0,1),,0,1) -> 0.0258755018 | F120: =_xlfn.XLOOKUP($A120,INDIRECT("'Curves "&F$10&"'!$A$14:$A$163"),_xlfn.XLOOKUP(F$11&$J$3,INDIRECT("'Curves "&F$10&"'!$11:$11")&INDIRECT("'Curves "&F$10&"'!$12:$12"),INDIRECT("'Curves "&F$10&"'!$14:$163"),,0,1),,0,1) -> 0.03347473169 | G120: =_xlfn.XLOOKUP($A120,INDIRECT("'Curves "&G$10&"'!$A$14:$A$163"),_xlfn.XLOOKUP(G$11&$J$3,INDIRECT("'Curves "&G$10&"'!$11:$11")&INDIRECT("'Curves "&G$10&"'!$12:$12"),INDIRECT("'Curves "&G$10&"'!$14:$163"),,0,1),,0,1) -> 0.03839152352 | H120: =_xlfn.XLOOKUP($A120,INDIRECT("'Curves "&H$10&"'!$A$14:$A$163"),_xlfn.XLOOKUP(H$11&$J$3,INDIRECT("'Curves "&H$10&"'!$11:$11")&INDIRECT("'Curves "&H$10&"'!$12:$12"),INDIRECT("'Curves "&H$10&"'!$14:$163"),,0,1),,0,1) -> 0.02653340298
A121: 109 | B121: =_xlfn.XLOOKUP($A121,INDIRECT("'Curves "&B$10&"'!$A$14:$A$163"),_xlfn.XLOOKUP(B$11&$J$3,INDIRECT("'Curves "&B$10&"'!$11:$11")&INDIRECT("'Curves "&B$10&"'!$12:$12"),INDIRECT("'Curves "&B$10&"'!$14:$163"),,0,1),,0,1) -> 0.03281410283 | C121: =_xlfn.XLOOKUP($A121,INDIRECT("'Curves "&C$10&"'!$A$14:$A$163"),_xlfn.XLOOKUP(C$11&$J$3,INDIRECT("'Curves "&C$10&"'!$11:$11")&INDIRECT("'Curves "&C$10&"'!$12:$12"),INDIRECT("'Curves "&C$10&"'!$14:$163"),,0,1),,0,1) -> 0.037696384 | D121: =_xlfn.XLOOKUP($A121,INDIRECT("'Curves "&D$10&"'!$A$14:$A$163"),_xlfn.XLOOKUP(D$11&$J$3,INDIRECT("'Curves "&D$10&"'!$11:$11")&INDIRECT("'Curves "&D$10&"'!$12:$12"),INDIRECT("'Curves "&D$10&"'!$14:$163"),,0,1),,0,1) -> 0.02592695141 | F121: =_xlfn.XLOOKUP($A121,INDIRECT("'Curves "&F$10&"'!$A$14:$A$163"),_xlfn.XLOOKUP(F$11&$J$3,INDIRECT("'Curves "&F$10&"'!$11:$11")&INDIRECT("'Curves "&F$10&"'!$12:$12"),INDIRECT("'Curves "&F$10&"'!$14:$163"),,0,1),,0,1) -> 0.0334703758 | G121: =_xlfn.XLOOKUP($A121,INDIRECT("'Curves "&G$10&"'!$A$14:$A$163"),_xlfn.XLOOKUP(G$11&$J$3,INDIRECT("'Curves "&G$10&"'!$11:$11")&INDIRECT("'Curves "&G$10&"'!$12:$12"),INDIRECT("'Curves "&G$10&"'!$14:$163"),,0,1),,0,1) -> 0.03835575928 | H121: =_xlfn.XLOOKUP($A121,INDIRECT("'Curves "&H$10&"'!$A$14:$A$163"),_xlfn.XLOOKUP(H$11&$J$3,INDIRECT("'Curves "&H$10&"'!$11:$11")&INDIRECT("'Curves "&H$10&"'!$12:$12"),INDIRECT("'Curves "&H$10&"'!$14:$163"),,0,1),,0,1) -> 0.02657884813
A122: 110 | B122: =_xlfn.XLOOKUP($A122,INDIRECT("'Curves "&B$10&"'!$A$14:$A$163"),_xlfn.XLOOKUP(B$11&$J$3,INDIRECT("'Curves "&B$10&"'!$11:$11")&INDIRECT("'Curves "&B$10&"'!$12:$12"),INDIRECT("'Curves "&B$10&"'!$14:$163"),,0,1),,0,1) -> 0.03281579255 | C122: =_xlfn.XLOOKUP($A122,INDIRECT("'Curves "&C$10&"'!$A$14:$A$163"),_xlfn.XLOOKUP(C$11&$J$3,INDIRECT("'Curves "&C$10&"'!$11:$11")&INDIRECT("'Curves "&C$10&"'!$12:$12"),INDIRECT("'Curves "&C$10&"'!$14:$163"),,0,1),,0,1) -> 0.0376672848 | D122: =_xlfn.XLOOKUP($A122,INDIRECT("'Curves "&D$10&"'!$A$14:$A$163"),_xlfn.XLOOKUP(D$11&$J$3,INDIRECT("'Curves "&D$10&"'!$11:$11")&INDIRECT("'Curves "&D$10&"'!$12:$12"),INDIRECT("'Curves "&D$10&"'!$14:$163"),,0,1),,0,1) -> 0.02597746929 | F122: =_xlfn.XLOOKUP($A122,INDIRECT("'Curves "&F$10&"'!$A$14:$A$163"),_xlfn.XLOOKUP(F$11&$J$3,INDIRECT("'Curves "&F$10&"'!$11:$11")&INDIRECT("'Curves "&F$10&"'!$12:$12"),INDIRECT("'Curves "&F$10&"'!$14:$163"),,0,1),,0,1) -> 0.03346609908 | G122: =_xlfn.XLOOKUP($A122,INDIRECT("'Curves "&G$10&"'!$A$14:$A$163"),_xlfn.XLOOKUP(G$11&$J$3,INDIRECT("'Curves "&G$10&"'!$11:$11")&INDIRECT("'Curves "&G$10&"'!$12:$12"),INDIRECT("'Curves "&G$10&"'!$14:$163"),,0,1),,0,1) -> 0.03832064605 | H122: =_xlfn.XLOOKUP($A122,INDIRECT("'Curves "&H$10&"'!$A$14:$A$163"),_xlfn.XLOOKUP(H$11&$J$3,INDIRECT("'Curves "&H$10&"'!$11:$11")&INDIRECT("'Curves "&H$10&"'!$12:$12"),INDIRECT("'Curves "&H$10&"'!$14:$163"),,0,1),,0,1) -> 0.02662347011
A123: 111 | B123: =_xlfn.XLOOKUP($A123,INDIRECT("'Curves "&B$10&"'!$A$14:$A$163"),_xlfn.XLOOKUP(B$11&$J$3,INDIRECT("'Curves "&B$10&"'!$11:$11")&INDIRECT("'Curves "&B$10&"'!$12:$12"),INDIRECT("'Curves "&B$10&"'!$14:$163"),,0,1),,0,1) -> 0.03281745183 | C123: =_xlfn.XLOOKUP($A123,INDIRECT("'Curves "&C$10&"'!$A$14:$A$163"),_xlfn.XLOOKUP(C$11&$J$3,INDIRECT("'Curves "&C$10&"'!$11:$11")&INDIRECT("'Curves "&C$10&"'!$12:$12"),INDIRECT("'Curves "&C$10&"'!$14:$163"),,0,1),,0,1) -> 0.03763871037 | D123: =_xlfn.XLOOKUP($A123,INDIRECT("'Curves "&D$10&"'!$A$14:$A$163"),_xlfn.XLOOKUP(D$11&$J$3,INDIRECT("'Curves "&D$10&"'!$11:$11")&INDIRECT("'Curves "&D$10&"'!$12:$12"),INDIRECT("'Curves "&D$10&"'!$14:$163"),,0,1),,0,1) -> 0.02602708042 | F123: =_xlfn.XLOOKUP($A123,INDIRECT("'Curves "&F$10&"'!$A$14:$A$163"),_xlfn.XLOOKUP(F$11&$J$3,INDIRECT("'Curves "&F$10&"'!$11:$11")&INDIRECT("'Curves "&F$10&"'!$12:$12"),INDIRECT("'Curves "&F$10&"'!$14:$163"),,0,1),,0,1) -> 0.03346189939 | G123: =_xlfn.XLOOKUP($A123,INDIRECT("'Curves "&G$10&"'!$A$14:$A$163"),_xlfn.XLOOKUP(G$11&$J$3,INDIRECT("'Curves "&G$10&"'!$11:$11")&INDIRECT("'Curves "&G$10&"'!$12:$12"),INDIRECT("'Curves "&G$10&"'!$14:$163"),,0,1),,0,1) -> 0.03828616626 | H123: =_xlfn.XLOOKUP($A123,INDIRECT("'Curves "&H$10&"'!$A$14:$A$163"),_xlfn.XLOOKUP(H$11&$J$3,INDIRECT("'Curves "&H$10&"'!$11:$11")&INDIRECT("'Curves "&H$10&"'!$12:$12"),INDIRECT("'Curves "&H$10&"'!$14:$163"),,0,1),,0,1) -> 0.02666729098
A124: 112 | B124: =_xlfn.XLOOKUP($A124,INDIRECT("'Curves "&B$10&"'!$A$14:$A$163"),_xlfn.XLOOKUP(B$11&$J$3,INDIRECT("'Curves "&B$10&"'!$11:$11")&INDIRECT("'Curves "&B$10&"'!$12:$12"),INDIRECT("'Curves "&B$10&"'!$14:$163"),,0,1),,0,1) -> 0.03281908149 | C124: =_xlfn.XLOOKUP($A124,INDIRECT("'Curves "&C$10&"'!$A$14:$A$163"),_xlfn.XLOOKUP(C$11&$J$3,INDIRECT("'Curves "&C$10&"'!$11:$11")&INDIRECT("'Curves "&C$10&"'!$12:$12"),INDIRECT("'Curves "&C$10&"'!$14:$163"),,0,1),,0,1) -> 0.03761064666 | D124: =_xlfn.XLOOKUP($A124,INDIRECT("'Curves "&D$10&"'!$A$14:$A$163"),_xlfn.XLOOKUP(D$11&$J$3,INDIRECT("'Curves "&D$10&"'!$11:$11")&INDIRECT("'Curves "&D$10&"'!$12:$12"),INDIRECT("'Curves "&D$10&"'!$14:$163"),,0,1),,0,1) -> 0.02607580891 | F124: =_xlfn.XLOOKUP($A124,INDIRECT("'Curves "&F$10&"'!$A$14:$A$163"),_xlfn.XLOOKUP(F$11&$J$3,INDIRECT("'Curves "&F$10&"'!$11:$11")&INDIRECT("'Curves "&F$10&"'!$12:$12"),INDIRECT("'Curves "&F$10&"'!$14:$163"),,0,1),,0,1) -> 0.03345777468 | G124: =_xlfn.XLOOKUP($A124,INDIRECT("'Curves "&G$10&"'!$A$14:$A$163"),_xlfn.XLOOKUP(G$11&$J$3,INDIRECT("'Curves "&G$10&"'!$11:$11")&INDIRECT("'Curves "&G$10&"'!$12:$12"),INDIRECT("'Curves "&G$10&"'!$14:$163"),,0,1),,0,1) -> 0.03825230294 | H124: =_xlfn.XLOOKUP($A124,INDIRECT("'Curves "&H$10&"'!$A$14:$A$163"),_xlfn.XLOOKUP(H$11&$J$3,INDIRECT("'Curves "&H$10&"'!$11:$11")&INDIRECT("'Curves "&H$10&"'!$12:$12"),INDIRECT("'Curves "&H$10&"'!$14:$163"),,0,1),,0,1) -> 0.02671033207
A125: 113 | B125: =_xlfn.XLOOKUP($A125,INDIRECT("'Curves "&B$10&"'!$A$14:$A$163"),_xlfn.XLOOKUP(B$11&$J$3,INDIRECT("'Curves "&B$10&"'!$11:$11")&INDIRECT("'Curves "&B$10&"'!$12:$12"),INDIRECT("'Curves "&B$10&"'!$14:$163"),,0,1),,0,1) -> 0.03282068233 | C125: =_xlfn.XLOOKUP($A125,INDIRECT("'Curves "&C$10&"'!$A$14:$A$163"),_xlfn.XLOOKUP(C$11&$J$3,INDIRECT("'Curves "&C$10&"'!$11:$11")&INDIRECT("'Curves "&C$10&"'!$12:$12"),INDIRECT("'Curves "&C$10&"'!$14:$163"),,0,1),,0,1) -> 0.03758308013 | D125: =_xlfn.XLOOKUP($A125,INDIRECT("'Curves "&D$10&"'!$A$14:$A$163"),_xlfn.XLOOKUP(D$11&$J$3,INDIRECT("'Curves "&D$10&"'!$11:$11")&INDIRECT("'Curves "&D$10&"'!$12:$12"),INDIRECT("'Curves "&D$10&"'!$14:$163"),,0,1),,0,1) -> 0.02612367806 | F125: =_xlfn.XLOOKUP($A125,INDIRECT("'Curves "&F$10&"'!$A$14:$A$163"),_xlfn.XLOOKUP(F$11&$J$3,INDIRECT("'Curves "&F$10&"'!$11:$11")&INDIRECT("'Curves "&F$10&"'!$12:$12"),INDIRECT("'Curves "&F$10&"'!$14:$163"),,0,1),,0,1) -> 0.03345372295 | G125: =_xlfn.XLOOKUP($A125,INDIRECT("'Curves "&G$10&"'!$A$14:$A$163"),_xlfn.XLOOKUP(G$11&$J$3,INDIRECT("'Curves "&G$10&"'!$11:$11")&INDIRECT("'Curves "&G$10&"'!$12:$12"),INDIRECT("'Curves "&G$10&"'!$14:$163"),,0,1),,0,1) -> 0.03821903975 | H125: =_xlfn.XLOOKUP($A125,INDIRECT("'Curves "&H$10&"'!$A$14:$A$163"),_xlfn.XLOOKUP(H$11&$J$3,INDIRECT("'Curves "&H$10&"'!$11:$11")&INDIRECT("'Curves "&H$10&"'!$12:$12"),INDIRECT("'Curves "&H$10&"'!$14:$163"),,0,1),,0,1) -> 0.02675261393
A126: 114 | B126: =_xlfn.XLOOKUP($A126,INDIRECT("'Curves "&B$10&"'!$A$14:$A$163"),_xlfn.XLOOKUP(B$11&$J$3,INDIRECT("'Curves "&B$10&"'!$11:$11")&INDIRECT("'Curves "&B$10&"'!$12:$12"),INDIRECT("'Curves "&B$10&"'!$14:$163"),,0,1),,0,1) -> 0.03282225509 | C126: =_xlfn.XLOOKUP($A126,INDIRECT("'Curves "&C$10&"'!$A$14:$A$163"),_xlfn.XLOOKUP(C$11&$J$3,INDIRECT("'Curves "&C$10&"'!$11:$11")&INDIRECT("'Curves "&C$10&"'!$12:$12"),INDIRECT("'Curves "&C$10&"'!$14:$163"),,0,1),,0,1) -> 0.0375559977 | D126: =_xlfn.XLOOKUP($A126,INDIRECT("'Curves "&D$10&"'!$A$14:$A$163"),_xlfn.XLOOKUP(D$11&$J$3,INDIRECT("'Curves "&D$10&"'!$11:$11")&INDIRECT("'Curves "&D$10&"'!$12:$12"),INDIRECT("'Curves "&D$10&"'!$14:$163"),,0,1),,0,1) -> 0.02617071031 | F126: =_xlfn.XLOOKUP($A126,INDIRECT("'Curves "&F$10&"'!$A$14:$A$163"),_xlfn.XLOOKUP(F$11&$J$3,INDIRECT("'Curves "&F$10&"'!$11:$11")&INDIRECT("'Curves "&F$10&"'!$12:$12"),INDIRECT("'Curves "&F$10&"'!$14:$163"),,0,1),,0,1) -> 0.0334497423 | G126: =_xlfn.XLOOKUP($A126,INDIRECT("'Curves "&G$10&"'!$A$14:$A$163"),_xlfn.XLOOKUP(G$11&$J$3,INDIRECT("'Curves "&G$10&"'!$11:$11")&INDIRECT("'Curves "&G$10&"'!$12:$12"),INDIRECT("'Curves "&G$10&"'!$14:$163"),,0,1),,0,1) -> 0.03818636088 | H126: =_xlfn.XLOOKUP($A126,INDIRECT("'Curves "&H$10&"'!$A$14:$A$163"),_xlfn.XLOOKUP(H$11&$J$3,INDIRECT("'Curves "&H$10&"'!$11:$11")&INDIRECT("'Curves "&H$10&"'!$12:$12"),INDIRECT("'Curves "&H$10&"'!$14:$163"),,0,1),,0,1) -> 0.02679415641
A127: 115 | B127: =_xlfn.XLOOKUP($A127,INDIRECT("'Curves "&B$10&"'!$A$14:$A$163"),_xlfn.XLOOKUP(B$11&$J$3,INDIRECT("'Curves "&B$10&"'!$11:$11")&INDIRECT("'Curves "&B$10&"'!$12:$12"),INDIRECT("'Curves "&B$10&"'!$14:$163"),,0,1),,0,1) -> 0.0328238005 | C127: =_xlfn.XLOOKUP($A127,INDIRECT("'Curves "&C$10&"'!$A$14:$A$163"),_xlfn.XLOOKUP(C$11&$J$3,INDIRECT("'Curves "&C$10&"'!$11:$11")&INDIRECT("'Curves "&C$10&"'!$12:$12"),INDIRECT("'Curves "&C$10&"'!$14:$163"),,0,1),,0,1) -> 0.03752938674 | D127: =_xlfn.XLOOKUP($A127,INDIRECT("'Curves "&D$10&"'!$A$14:$A$163"),_xlfn.XLOOKUP(D$11&$J$3,INDIRECT("'Curves "&D$10&"'!$11:$11")&INDIRECT("'Curves "&D$10&"'!$12:$12"),INDIRECT("'Curves "&D$10&"'!$14:$163"),,0,1),,0,1) -> 0.02621692738 | F127: =_xlfn.XLOOKUP($A127,INDIRECT("'Curves "&F$10&"'!$A$14:$A$163"),_xlfn.XLOOKUP(F$11&$J$3,INDIRECT("'Curves "&F$10&"'!$11:$11")&INDIRECT("'Curves "&F$10&"'!$12:$12"),INDIRECT("'Curves "&F$10&"'!$14:$163"),,0,1),,0,1) -> 0.03344583087 | G127: =_xlfn.XLOOKUP($A127,INDIRECT("'Curves "&G$10&"'!$A$14:$A$163"),_xlfn.XLOOKUP(G$11&$J$3,INDIRECT("'Curves "&G$10&"'!$11:$11")&INDIRECT("'Curves "&G$10&"'!$12:$12"),INDIRECT("'Curves "&G$10&"'!$14:$163"),,0,1),,0,1) -> 0.03815425111 | H127: =_xlfn.XLOOKUP($A127,INDIRECT("'Curves "&H$10&"'!$A$14:$A$163"),_xlfn.XLOOKUP(H$11&$J$3,INDIRECT("'Curves "&H$10&"'!$11:$11")&INDIRECT("'Curves "&H$10&"'!$12:$12"),INDIRECT("'Curves "&H$10&"'!$14:$163"),,0,1),,0,1) -> 0.02683497868
A128: 116 | B128: =_xlfn.XLOOKUP($A128,INDIRECT("'Curves "&B$10&"'!$A$14:$A$163"),_xlfn.XLOOKUP(B$11&$J$3,INDIRECT("'Curves "&B$10&"'!$11:$11")&INDIRECT("'Curves "&B$10&"'!$12:$12"),INDIRECT("'Curves "&B$10&"'!$14:$163"),,0,1),,0,1) -> 0.03282531928 | C128: =_xlfn.XLOOKUP($A128,INDIRECT("'Curves "&C$10&"'!$A$14:$A$163"),_xlfn.XLOOKUP(C$11&$J$3,INDIRECT("'Curves "&C$10&"'!$11:$11")&INDIRECT("'Curves "&C$10&"'!$12:$12"),INDIRECT("'Curves "&C$10&"'!$14:$163"),,0,1),,0,1) -> 0.03750323508 | D128: =_xlfn.XLOOKUP($A128,INDIRECT("'Curves "&D$10&"'!$A$14:$A$163"),_xlfn.XLOOKUP(D$11&$J$3,INDIRECT("'Curves "&D$10&"'!$11:$11")&INDIRECT("'Curves "&D$10&"'!$12:$12"),INDIRECT("'Curves "&D$10&"'!$14:$163"),,0,1),,0,1) -> 0.02626235021 | F128: =_xlfn.XLOOKUP($A128,INDIRECT("'Curves "&F$10&"'!$A$14:$A$163"),_xlfn.XLOOKUP(F$11&$J$3,INDIRECT("'Curves "&F$10&"'!$11:$11")&INDIRECT("'Curves "&F$10&"'!$12:$12"),INDIRECT("'Curves "&F$10&"'!$14:$163"),,0,1),,0,1) -> 0.03344198686 | G128: =_xlfn.XLOOKUP($A128,INDIRECT("'Curves "&G$10&"'!$A$14:$A$163"),_xlfn.XLOOKUP(G$11&$J$3,INDIRECT("'Curves "&G$10&"'!$11:$11")&INDIRECT("'Curves "&G$10&"'!$12:$12"),INDIRECT("'Curves "&G$10&"'!$14:$163"),,0,1),,0,1) -> 0.0381226957 | H128: =_xlfn.XLOOKUP($A128,INDIRECT("'Curves "&H$10&"'!$A$14:$A$163"),_xlfn.XLOOKUP(H$11&$J$3,INDIRECT("'Curves "&H$10&"'!$11:$11")&INDIRECT("'Curves "&H$10&"'!$12:$12"),INDIRECT("'Curves "&H$10&"'!$14:$163"),,0,1),,0,1) -> 0.02687509926
A129: 117 | B129: =_xlfn.XLOOKUP($A129,INDIRECT("'Curves "&B$10&"'!$A$14:$A$163"),_xlfn.XLOOKUP(B$11&$J$3,INDIRECT("'Curves "&B$10&"'!$11:$11")&INDIRECT("'Curves "&B$10&"'!$12:$12"),INDIRECT("'Curves "&B$10&"'!$14:$163"),,0,1),,0,1) -> 0.0328268121 | C129: =_xlfn.XLOOKUP($A129,INDIRECT("'Curves "&C$10&"'!$A$14:$A$163"),_xlfn.XLOOKUP(C$11&$J$3,INDIRECT("'Curves "&C$10&"'!$11:$11")&INDIRECT("'Curves "&C$10&"'!$12:$12"),INDIRECT("'Curves "&C$10&"'!$14:$163"),,0,1),,0,1) -> 0.03747753092 | D129: =_xlfn.XLOOKUP($A129,INDIRECT("'Curves "&D$10&"'!$A$14:$A$163"),_xlfn.XLOOKUP(D$11&$J$3,INDIRECT("'Curves "&D$10&"'!$11:$11")&INDIRECT("'Curves "&D$10&"'!$12:$12"),INDIRECT("'Curves "&D$10&"'!$14:$163"),,0,1),,0,1) -> 0.02630699907 | F129: =_xlfn.XLOOKUP($A129,INDIRECT("'Curves "&F$10&"'!$A$14:$A$163"),_xlfn.XLOOKUP(F$11&$J$3,INDIRECT("'Curves "&F$10&"'!$11:$11")&INDIRECT("'Curves "&F$10&"'!$12:$12"),INDIRECT("'Curves "&F$10&"'!$14:$163"),,0,1),,0,1) -> 0.03343820857 | G129: =_xlfn.XLOOKUP($A129,INDIRECT("'Curves "&G$10&"'!$A$14:$A$163"),_xlfn.XLOOKUP(G$11&$J$3,INDIRECT("'Curves "&G$10&"'!$11:$11")&INDIRECT("'Curves "&G$10&"'!$12:$12"),INDIRECT("'Curves "&G$10&"'!$14:$163"),,0,1),,0,1) -> 0.03809168044 | H129: =_xlfn.XLOOKUP($A129,INDIRECT("'Curves "&H$10&"'!$A$14:$A$163"),_xlfn.XLOOKUP(H$11&$J$3,INDIRECT("'Curves "&H$10&"'!$11:$11")&INDIRECT("'Curves "&H$10&"'!$12:$12"),INDIRECT("'Curves "&H$10&"'!$14:$163"),,0,1),,0,1) -> 0.02691453604
A130: 118 | B130: =_xlfn.XLOOKUP($A130,INDIRECT("'Curves "&B$10&"'!$A$14:$A$163"),_xlfn.XLOOKUP(B$11&$J$3,INDIRECT("'Curves "&B$10&"'!$11:$11")&INDIRECT("'Curves "&B$10&"'!$12:$12"),INDIRECT("'Curves "&B$10&"'!$14:$163"),,0,1),,0,1) -> 0.03282827963 | C130: =_xlfn.XLOOKUP($A130,INDIRECT("'Curves "&C$10&"'!$A$14:$A$163"),_xlfn.XLOOKUP(C$11&$J$3,INDIRECT("'Curves "&C$10&"'!$11:$11")&INDIRECT("'Curves "&C$10&"'!$12:$12"),INDIRECT("'Curves "&C$10&"'!$14:$163"),,0,1),,0,1) -> 0.0374522629 | D130: =_xlfn.XLOOKUP($A130,INDIRECT("'Curves "&D$10&"'!$A$14:$A$163"),_xlfn.XLOOKUP(D$11&$J$3,INDIRECT("'Curves "&D$10&"'!$11:$11")&INDIRECT("'Curves "&D$10&"'!$12:$12"),INDIRECT("'Curves "&D$10&"'!$14:$163"),,0,1),,0,1) -> 0.02635089353 | F130: =_xlfn.XLOOKUP($A130,INDIRECT("'Curves "&F$10&"'!$A$14:$A$163"),_xlfn.XLOOKUP(F$11&$J$3,INDIRECT("'Curves "&F$10&"'!$11:$11")&INDIRECT("'Curves "&F$10&"'!$12:$12"),INDIRECT("'Curves "&F$10&"'!$14:$163"),,0,1),,0,1) -> 0.0334344943 | G130: =_xlfn.XLOOKUP($A130,INDIRECT("'Curves "&G$10&"'!$A$14:$A$163"),_xlfn.XLOOKUP(G$11&$J$3,INDIRECT("'Curves "&G$10&"'!$11:$11")&INDIRECT("'Curves "&G$10&"'!$12:$12"),INDIRECT("'Curves "&G$10&"'!$14:$163"),,0,1),,0,1) -> 0.0380611916 | H130: =_xlfn.XLOOKUP($A130,INDIRECT("'Curves "&H$10&"'!$A$14:$A$163"),_xlfn.XLOOKUP(H$11&$J$3,INDIRECT("'Curves "&H$10&"'!$11:$11")&INDIRECT("'Curves "&H$10&"'!$12:$12"),INDIRECT("'Curves "&H$10&"'!$14:$163"),,0,1),,0,1) -> 0.02695330632
A131: 119 | B131: =_xlfn.XLOOKUP($A131,INDIRECT("'Curves "&B$10&"'!$A$14:$A$163"),_xlfn.XLOOKUP(B$11&$J$3,INDIRECT("'Curves "&B$10&"'!$11:$11")&INDIRECT("'Curves "&B$10&"'!$12:$12"),INDIRECT("'Curves "&B$10&"'!$14:$163"),,0,1),,0,1) -> 0.03282972251 | C131: =_xlfn.XLOOKUP($A131,INDIRECT("'Curves "&C$10&"'!$A$14:$A$163"),_xlfn.XLOOKUP(C$11&$J$3,INDIRECT("'Curves "&C$10&"'!$11:$11")&INDIRECT("'Curves "&C$10&"'!$12:$12"),INDIRECT("'Curves "&C$10&"'!$14:$163"),,0,1),,0,1) -> 0.03742742003 | D131: =_xlfn.XLOOKUP($A131,INDIRECT("'Curves "&D$10&"'!$A$14:$A$163"),_xlfn.XLOOKUP(D$11&$J$3,INDIRECT("'Curves "&D$10&"'!$11:$11")&INDIRECT("'Curves "&D$10&"'!$12:$12"),INDIRECT("'Curves "&D$10&"'!$14:$163"),,0,1),,0,1) -> 0.02639405251 | F131: =_xlfn.XLOOKUP($A131,INDIRECT("'Curves "&F$10&"'!$A$14:$A$163"),_xlfn.XLOOKUP(F$11&$J$3,INDIRECT("'Curves "&F$10&"'!$11:$11")&INDIRECT("'Curves "&F$10&"'!$12:$12"),INDIRECT("'Curves "&F$10&"'!$14:$163"),,0,1),,0,1) -> 0.03343084246 | G131: =_xlfn.XLOOKUP($A131,INDIRECT("'Curves "&G$10&"'!$A$14:$A$163"),_xlfn.XLOOKUP(G$11&$J$3,INDIRECT("'Curves "&G$10&"'!$11:$11")&INDIRECT("'Curves "&G$10&"'!$12:$12"),INDIRECT("'Curves "&G$10&"'!$14:$163"),,0,1),,0,1) -> 0.0380312159 | H131: =_xlfn.XLOOKUP($A131,INDIRECT("'Curves "&H$10&"'!$A$14:$A$163"),_xlfn.XLOOKUP(H$11&$J$3,INDIRECT("'Curves "&H$10&"'!$11:$11")&INDIRECT("'Curves "&H$10&"'!$12:$12"),INDIRECT("'Curves "&H$10&"'!$14:$163"),,0,1),,0,1) -> 0.02699142683
A132: 120 | B132: =_xlfn.XLOOKUP($A132,INDIRECT("'Curves "&B$10&"'!$A$14:$A$163"),_xlfn.XLOOKUP(B$11&$J$3,INDIRECT("'Curves "&B$10&"'!$11:$11")&INDIRECT("'Curves "&B$10&"'!$12:$12"),INDIRECT("'Curves "&B$10&"'!$14:$163"),,0,1),,0,1) -> 0.03283114134 | C132: =_xlfn.XLOOKUP($A132,INDIRECT("'Curves "&C$10&"'!$A$14:$A$163"),_xlfn.XLOOKUP(C$11&$J$3,INDIRECT("'Curves "&C$10&"'!$11:$11")&INDIRECT("'Curves "&C$10&"'!$12:$12"),INDIRECT("'Curves "&C$10&"'!$14:$163"),,0,1),,0,1) -> 0.03740299166 | D132: =_xlfn.XLOOKUP($A132,INDIRECT("'Curves "&D$10&"'!$A$14:$A$163"),_xlfn.XLOOKUP(D$11&$J$3,INDIRECT("'Curves "&D$10&"'!$11:$11")&INDIRECT("'Curves "&D$10&"'!$12:$12"),INDIRECT("'Curves "&D$10&"'!$14:$163"),,0,1),,0,1) -> 0.02643649431 | F132: =_xlfn.XLOOKUP($A132,INDIRECT("'Curves "&F$10&"'!$A$14:$A$163"),_xlfn.XLOOKUP(F$11&$J$3,INDIRECT("'Curves "&F$10&"'!$11:$11")&INDIRECT("'Curves "&F$10&"'!$12:$12"),INDIRECT("'Curves "&F$10&"'!$14:$163"),,0,1),,0,1) -> 0.03342725148 | G132: =_xlfn.XLOOKUP($A132,INDIRECT("'Curves "&G$10&"'!$A$14:$A$163"),_xlfn.XLOOKUP(G$11&$J$3,INDIRECT("'Curves "&G$10&"'!$11:$11")&INDIRECT("'Curves "&G$10&"'!$12:$12"),INDIRECT("'Curves "&G$10&"'!$14:$163"),,0,1),,0,1) -> 0.03800174051 | H132: =_xlfn.XLOOKUP($A132,INDIRECT("'Curves "&H$10&"'!$A$14:$A$163"),_xlfn.XLOOKUP(H$11&$J$3,INDIRECT("'Curves "&H$10&"'!$11:$11")&INDIRECT("'Curves "&H$10&"'!$12:$12"),INDIRECT("'Curves "&H$10&"'!$14:$163"),,0,1),,0,1) -> 0.02702891372
A133: 121 | B133: =_xlfn.XLOOKUP($A133,INDIRECT("'Curves "&B$10&"'!$A$14:$A$163"),_xlfn.XLOOKUP(B$11&$J$3,INDIRECT("'Curves "&B$10&"'!$11:$11")&INDIRECT("'Curves "&B$10&"'!$12:$12"),INDIRECT("'Curves "&B$10&"'!$14:$163"),,0,1),,0,1) -> 0.03283253672 | C133: =_xlfn.XLOOKUP($A133,INDIRECT("'Curves "&C$10&"'!$A$14:$A$163"),_xlfn.XLOOKUP(C$11&$J$3,INDIRECT("'Curves "&C$10&"'!$11:$11")&INDIRECT("'Curves "&C$10&"'!$12:$12"),INDIRECT("'Curves "&C$10&"'!$14:$163"),,0,1),,0,1) -> 0.03737896753 | D133: =_xlfn.XLOOKUP($A133,INDIRECT("'Curves "&D$10&"'!$A$14:$A$163"),_xlfn.XLOOKUP(D$11&$J$3,INDIRECT("'Curves "&D$10&"'!$11:$11")&INDIRECT("'Curves "&D$10&"'!$12:$12"),INDIRECT("'Curves "&D$10&"'!$14:$163"),,0,1),,0,1) -> 0.02647823663 | F133: =_xlfn.XLOOKUP($A133,INDIRECT("'Curves "&F$10&"'!$A$14:$A$163"),_xlfn.XLOOKUP(F$11&$J$3,INDIRECT("'Curves "&F$10&"'!$11:$11")&INDIRECT("'Curves "&F$10&"'!$12:$12"),INDIRECT("'Curves "&F$10&"'!$14:$163"),,0,1),,0,1) -> 0.03342371986 | G133: =_xlfn.XLOOKUP($A133,INDIRECT("'Curves "&G$10&"'!$A$14:$A$163"),_xlfn.XLOOKUP(G$11&$J$3,INDIRECT("'Curves "&G$10&"'!$11:$11")&INDIRECT("'Curves "&G$10&"'!$12:$12"),INDIRECT("'Curves "&G$10&"'!$14:$163"),,0,1),,0,1) -> 0.037972753 | H133: =_xlfn.XLOOKUP($A133,INDIRECT("'Curves "&H$10&"'!$A$14:$A$163"),_xlfn.XLOOKUP(H$11&$J$3,INDIRECT("'Curves "&H$10&"'!$11:$11")&INDIRECT("'Curves "&H$10&"'!$12:$12"),INDIRECT("'Curves "&H$10&"'!$14:$163"),,0,1),,0,1) -> 0.02706578263
A134: 122 | B134: =_xlfn.XLOOKUP($A134,INDIRECT("'Curves "&B$10&"'!$A$14:$A$163"),_xlfn.XLOOKUP(B$11&$J$3,INDIRECT("'Curves "&B$10&"'!$11:$11")&INDIRECT("'Curves "&B$10&"'!$12:$12"),INDIRECT("'Curves "&B$10&"'!$14:$163"),,0,1),,0,1) -> 0.03283390923 | C134: =_xlfn.XLOOKUP($A134,INDIRECT("'Curves "&C$10&"'!$A$14:$A$163"),_xlfn.XLOOKUP(C$11&$J$3,INDIRECT("'Curves "&C$10&"'!$11:$11")&INDIRECT("'Curves "&C$10&"'!$12:$12"),INDIRECT("'Curves "&C$10&"'!$14:$163"),,0,1),,0,1) -> 0.03735533769 | D134: =_xlfn.XLOOKUP($A134,INDIRECT("'Curves "&D$10&"'!$A$14:$A$163"),_xlfn.XLOOKUP(D$11&$J$3,INDIRECT("'Curves "&D$10&"'!$11:$11")&INDIRECT("'Curves "&D$10&"'!$12:$12"),INDIRECT("'Curves "&D$10&"'!$14:$163"),,0,1),,0,1) -> 0.0265192966 | F134: =_xlfn.XLOOKUP($A134,INDIRECT("'Curves "&F$10&"'!$A$14:$A$163"),_xlfn.XLOOKUP(F$11&$J$3,INDIRECT("'Curves "&F$10&"'!$11:$11")&INDIRECT("'Curves "&F$10&"'!$12:$12"),INDIRECT("'Curves "&F$10&"'!$14:$163"),,0,1),,0,1) -> 0.03342024613 | G134: =_xlfn.XLOOKUP($A134,INDIRECT("'Curves "&G$10&"'!$A$14:$A$163"),_xlfn.XLOOKUP(G$11&$J$3,INDIRECT("'Curves "&G$10&"'!$11:$11")&INDIRECT("'Curves "&G$10&"'!$12:$12"),INDIRECT("'Curves "&G$10&"'!$14:$163"),,0,1),,0,1) -> 0.03794424139 | H134: =_xlfn.XLOOKUP($A134,INDIRECT("'Curves "&H$10&"'!$A$14:$A$163"),_xlfn.XLOOKUP(H$11&$J$3,INDIRECT("'Curves "&H$10&"'!$11:$11")&INDIRECT("'Curves "&H$10&"'!$12:$12"),INDIRECT("'Curves "&H$10&"'!$14:$163"),,0,1),,0,1) -> 0.02710204871
A135: 123 | B135: =_xlfn.XLOOKUP($A135,INDIRECT("'Curves "&B$10&"'!$A$14:$A$163"),_xlfn.XLOOKUP(B$11&$J$3,INDIRECT("'Curves "&B$10&"'!$11:$11")&INDIRECT("'Curves "&B$10&"'!$12:$12"),INDIRECT("'Curves "&B$10&"'!$14:$163"),,0,1),,0,1) -> 0.03283525943 | C135: =_xlfn.XLOOKUP($A135,INDIRECT("'Curves "&C$10&"'!$A$14:$A$163"),_xlfn.XLOOKUP(C$11&$J$3,INDIRECT("'Curves "&C$10&"'!$11:$11")&INDIRECT("'Curves "&C$10&"'!$12:$12"),INDIRECT("'Curves "&C$10&"'!$14:$163"),,0,1),,0,1) -> 0.03733209252 | D135: =_xlfn.XLOOKUP($A135,INDIRECT("'Curves "&D$10&"'!$A$14:$A$163"),_xlfn.XLOOKUP(D$11&$J$3,INDIRECT("'Curves "&D$10&"'!$11:$11")&INDIRECT("'Curves "&D$10&"'!$12:$12"),INDIRECT("'Curves "&D$10&"'!$14:$163"),,0,1),,0,1) -> 0.02655969078 | F135: =_xlfn.XLOOKUP($A135,INDIRECT("'Curves "&F$10&"'!$A$14:$A$163"),_xlfn.XLOOKUP(F$11&$J$3,INDIRECT("'Curves "&F$10&"'!$11:$11")&INDIRECT("'Curves "&F$10&"'!$12:$12"),INDIRECT("'Curves "&F$10&"'!$14:$163"),,0,1),,0,1) -> 0.03341682889 | G135: =_xlfn.XLOOKUP($A135,INDIRECT("'Curves "&G$10&"'!$A$14:$A$163"),_xlfn.XLOOKUP(G$11&$J$3,INDIRECT("'Curves "&G$10&"'!$11:$11")&INDIRECT("'Curves "&G$10&"'!$12:$12"),INDIRECT("'Curves "&G$10&"'!$14:$163"),,0,1),,0,1) -> 0.03791619405 | H135: =_xlfn.XLOOKUP($A135,INDIRECT("'Curves "&H$10&"'!$A$14:$A$163"),_xlfn.XLOOKUP(H$11&$J$3,INDIRECT("'Curves "&H$10&"'!$11:$11")&INDIRECT("'Curves "&H$10&"'!$12:$12"),INDIRECT("'Curves "&H$10&"'!$14:$163"),,0,1),,0,1) -> 0.02713772659
A136: 124 | B136: =_xlfn.XLOOKUP($A136,INDIRECT("'Curves "&B$10&"'!$A$14:$A$163"),_xlfn.XLOOKUP(B$11&$J$3,INDIRECT("'Curves "&B$10&"'!$11:$11")&INDIRECT("'Curves "&B$10&"'!$12:$12"),INDIRECT("'Curves "&B$10&"'!$14:$163"),,0,1),,0,1) -> 0.03283658786 | C136: =_xlfn.XLOOKUP($A136,INDIRECT("'Curves "&C$10&"'!$A$14:$A$163"),_xlfn.XLOOKUP(C$11&$J$3,INDIRECT("'Curves "&C$10&"'!$11:$11")&INDIRECT("'Curves "&C$10&"'!$12:$12"),INDIRECT("'Curves "&C$10&"'!$14:$163"),,0,1),,0,1) -> 0.0373092227 | D136: =_xlfn.XLOOKUP($A136,INDIRECT("'Curves "&D$10&"'!$A$14:$A$163"),_xlfn.XLOOKUP(D$11&$J$3,INDIRECT("'Curves "&D$10&"'!$11:$11")&INDIRECT("'Curves "&D$10&"'!$12:$12"),INDIRECT("'Curves "&D$10&"'!$14:$163"),,0,1),,0,1) -> 0.02659943523 | F136: =_xlfn.XLOOKUP($A136,INDIRECT("'Curves "&F$10&"'!$A$14:$A$163"),_xlfn.XLOOKUP(F$11&$J$3,INDIRECT("'Curves "&F$10&"'!$11:$11")&INDIRECT("'Curves "&F$10&"'!$12:$12"),INDIRECT("'Curves "&F$10&"'!$14:$163"),,0,1),,0,1) -> 0.03341346677 | G136: =_xlfn.XLOOKUP($A136,INDIRECT("'Curves "&G$10&"'!$A$14:$A$163"),_xlfn.XLOOKUP(G$11&$J$3,INDIRECT("'Curves "&G$10&"'!$11:$11")&INDIRECT("'Curves "&G$10&"'!$12:$12"),INDIRECT("'Curves "&G$10&"'!$14:$163"),,0,1),,0,1) -> 0.03788859975 | H136: =_xlfn.XLOOKUP($A136,INDIRECT("'Curves "&H$10&"'!$A$14:$A$163"),_xlfn.XLOOKUP(H$11&$J$3,INDIRECT("'Curves "&H$10&"'!$11:$11")&INDIRECT("'Curves "&H$10&"'!$12:$12"),INDIRECT("'Curves "&H$10&"'!$14:$163"),,0,1),,0,1) -> 0.02717283045
A137: 125 | B137: =_xlfn.XLOOKUP($A137,INDIRECT("'Curves "&B$10&"'!$A$14:$A$163"),_xlfn.XLOOKUP(B$11&$J$3,INDIRECT("'Curves "&B$10&"'!$11:$11")&INDIRECT("'Curves "&B$10&"'!$12:$12"),INDIRECT("'Curves "&B$10&"'!$14:$163"),,0,1),,0,1) -> 0.03283789503 | C137: =_xlfn.XLOOKUP($A137,INDIRECT("'Curves "&C$10&"'!$A$14:$A$163"),_xlfn.XLOOKUP(C$11&$J$3,INDIRECT("'Curves "&C$10&"'!$11:$11")&INDIRECT("'Curves "&C$10&"'!$12:$12"),INDIRECT("'Curves "&C$10&"'!$14:$163"),,0,1),,0,1) -> 0.03728671923 | D137: =_xlfn.XLOOKUP($A137,INDIRECT("'Curves "&D$10&"'!$A$14:$A$163"),_xlfn.XLOOKUP(D$11&$J$3,INDIRECT("'Curves "&D$10&"'!$11:$11")&INDIRECT("'Curves "&D$10&"'!$12:$12"),INDIRECT("'Curves "&D$10&"'!$14:$163"),,0,1),,0,1) -> 0.02663854547 | F137: =_xlfn.XLOOKUP($A137,INDIRECT("'Curves "&F$10&"'!$A$14:$A$163"),_xlfn.XLOOKUP(F$11&$J$3,INDIRECT("'Curves "&F$10&"'!$11:$11")&INDIRECT("'Curves "&F$10&"'!$12:$12"),INDIRECT("'Curves "&F$10&"'!$14:$163"),,0,1),,0,1) -> 0.03341015844 | G137: =_xlfn.XLOOKUP($A137,INDIRECT("'Curves "&G$10&"'!$A$14:$A$163"),_xlfn.XLOOKUP(G$11&$J$3,INDIRECT("'Curves "&G$10&"'!$11:$11")&INDIRECT("'Curves "&G$10&"'!$12:$12"),INDIRECT("'Curves "&G$10&"'!$14:$163"),,0,1),,0,1) -> 0.03786144759 | H137: =_xlfn.XLOOKUP($A137,INDIRECT("'Curves "&H$10&"'!$A$14:$A$163"),_xlfn.XLOOKUP(H$11&$J$3,INDIRECT("'Curves "&H$10&"'!$11:$11")&INDIRECT("'Curves "&H$10&"'!$12:$12"),INDIRECT("'Curves "&H$10&"'!$14:$163"),,0,1),,0,1) -> 0.02720737401
A138: 126 | B138: =_xlfn.XLOOKUP($A138,INDIRECT("'Curves "&B$10&"'!$A$14:$A$163"),_xlfn.XLOOKUP(B$11&$J$3,INDIRECT("'Curves "&B$10&"'!$11:$11")&INDIRECT("'Curves "&B$10&"'!$12:$12"),INDIRECT("'Curves "&B$10&"'!$14:$163"),,0,1),,0,1) -> 0.03283918147 | C138: =_xlfn.XLOOKUP($A138,INDIRECT("'Curves "&C$10&"'!$A$14:$A$163"),_xlfn.XLOOKUP(C$11&$J$3,INDIRECT("'Curves "&C$10&"'!$11:$11")&INDIRECT("'Curves "&C$10&"'!$12:$12"),INDIRECT("'Curves "&C$10&"'!$14:$163"),,0,1),,0,1) -> 0.03726457338 | D138: =_xlfn.XLOOKUP($A138,INDIRECT("'Curves "&D$10&"'!$A$14:$A$163"),_xlfn.XLOOKUP(D$11&$J$3,INDIRECT("'Curves "&D$10&"'!$11:$11")&INDIRECT("'Curves "&D$10&"'!$12:$12"),INDIRECT("'Curves "&D$10&"'!$14:$163"),,0,1),,0,1) -> 0.02667703654 | F138: =_xlfn.XLOOKUP($A138,INDIRECT("'Curves "&F$10&"'!$A$14:$A$163"),_xlfn.XLOOKUP(F$11&$J$3,INDIRECT("'Curves "&F$10&"'!$11:$11")&INDIRECT("'Curves "&F$10&"'!$12:$12"),INDIRECT("'Curves "&F$10&"'!$14:$163"),,0,1),,0,1) -> 0.03340690263 | G138: =_xlfn.XLOOKUP($A138,INDIRECT("'Curves "&G$10&"'!$A$14:$A$163"),_xlfn.XLOOKUP(G$11&$J$3,INDIRECT("'Curves "&G$10&"'!$11:$11")&INDIRECT("'Curves "&G$10&"'!$12:$12"),INDIRECT("'Curves "&G$10&"'!$14:$163"),,0,1),,0,1) -> 0.03783472705 | H138: =_xlfn.XLOOKUP($A138,INDIRECT("'Curves "&H$10&"'!$A$14:$A$163"),_xlfn.XLOOKUP(H$11&$J$3,INDIRECT("'Curves "&H$10&"'!$11:$11")&INDIRECT("'Curves "&H$10&"'!$12:$12"),INDIRECT("'Curves "&H$10&"'!$14:$163"),,0,1),,0,1) -> 0.02724137056
A139: 127 | B139: =_xlfn.XLOOKUP($A139,INDIRECT("'Curves "&B$10&"'!$A$14:$A$163"),_xlfn.XLOOKUP(B$11&$J$3,INDIRECT("'Curves "&B$10&"'!$11:$11")&INDIRECT("'Curves "&B$10&"'!$12:$12"),INDIRECT("'Curves "&B$10&"'!$14:$163"),,0,1),,0,1) -> 0.03284044764 | C139: =_xlfn.XLOOKUP($A139,INDIRECT("'Curves "&C$10&"'!$A$14:$A$163"),_xlfn.XLOOKUP(C$11&$J$3,INDIRECT("'Curves "&C$10&"'!$11:$11")&INDIRECT("'Curves "&C$10&"'!$12:$12"),INDIRECT("'Curves "&C$10&"'!$14:$163"),,0,1),,0,1) -> 0.03724277669 | D139: =_xlfn.XLOOKUP($A139,INDIRECT("'Curves "&D$10&"'!$A$14:$A$163"),_xlfn.XLOOKUP(D$11&$J$3,INDIRECT("'Curves "&D$10&"'!$11:$11")&INDIRECT("'Curves "&D$10&"'!$12:$12"),INDIRECT("'Curves "&D$10&"'!$14:$163"),,0,1),,0,1) -> 0.02671492303 | F139: =_xlfn.XLOOKUP($A139,INDIRECT("'Curves "&F$10&"'!$A$14:$A$163"),_xlfn.XLOOKUP(F$11&$J$3,INDIRECT("'Curves "&F$10&"'!$11:$11")&INDIRECT("'Curves "&F$10&"'!$12:$12"),INDIRECT("'Curves "&F$10&"'!$14:$163"),,0,1),,0,1) -> 0.0334036981 | G139: =_xlfn.XLOOKUP($A139,INDIRECT("'Curves "&G$10&"'!$A$14:$A$163"),_xlfn.XLOOKUP(G$11&$J$3,INDIRECT("'Curves "&G$10&"'!$11:$11")&INDIRECT("'Curves "&G$10&"'!$12:$12"),INDIRECT("'Curves "&G$10&"'!$14:$163"),,0,1),,0,1) -> 0.03780842792 | H139: =_xlfn.XLOOKUP($A139,INDIRECT("'Curves "&H$10&"'!$A$14:$A$163"),_xlfn.XLOOKUP(H$11&$J$3,INDIRECT("'Curves "&H$10&"'!$11:$11")&INDIRECT("'Curves "&H$10&"'!$12:$12"),INDIRECT("'Curves "&H$10&"'!$14:$163"),,0,1),,0,1) -> 0.02727483299
A140: 128 | B140: =_xlfn.XLOOKUP($A140,INDIRECT("'Curves "&B$10&"'!$A$14:$A$163"),_xlfn.XLOOKUP(B$11&$J$3,INDIRECT("'Curves "&B$10&"'!$11:$11")&INDIRECT("'Curves "&B$10&"'!$12:$12"),INDIRECT("'Curves "&B$10&"'!$14:$163"),,0,1),,0,1) -> 0.03284169403 | C140: =_xlfn.XLOOKUP($A140,INDIRECT("'Curves "&C$10&"'!$A$14:$A$163"),_xlfn.XLOOKUP(C$11&$J$3,INDIRECT("'Curves "&C$10&"'!$11:$11")&INDIRECT("'Curves "&C$10&"'!$12:$12"),INDIRECT("'Curves "&C$10&"'!$14:$163"),,0,1),,0,1) -> 0.03722132098 | D140: =_xlfn.XLOOKUP($A140,INDIRECT("'Curves "&D$10&"'!$A$14:$A$163"),_xlfn.XLOOKUP(D$11&$J$3,INDIRECT("'Curves "&D$10&"'!$11:$11")&INDIRECT("'Curves "&D$10&"'!$12:$12"),INDIRECT("'Curves "&D$10&"'!$14:$163"),,0,1),,0,1) -> 0.02675221905 | F140: =_xlfn.XLOOKUP($A140,INDIRECT("'Curves "&F$10&"'!$A$14:$A$163"),_xlfn.XLOOKUP(F$11&$J$3,INDIRECT("'Curves "&F$10&"'!$11:$11")&INDIRECT("'Curves "&F$10&"'!$12:$12"),INDIRECT("'Curves "&F$10&"'!$14:$163"),,0,1),,0,1) -> 0.03340054364 | G140: =_xlfn.XLOOKUP($A140,INDIRECT("'Curves "&G$10&"'!$A$14:$A$163"),_xlfn.XLOOKUP(G$11&$J$3,INDIRECT("'Curves "&G$10&"'!$11:$11")&INDIRECT("'Curves "&G$10&"'!$12:$12"),INDIRECT("'Curves "&G$10&"'!$14:$163"),,0,1),,0,1) -> 0.03778254031 | H140: =_xlfn.XLOOKUP($A140,INDIRECT("'Curves "&H$10&"'!$A$14:$A$163"),_xlfn.XLOOKUP(H$11&$J$3,INDIRECT("'Curves "&H$10&"'!$11:$11")&INDIRECT("'Curves "&H$10&"'!$12:$12"),INDIRECT("'Curves "&H$10&"'!$14:$163"),,0,1),,0,1) -> 0.02730777377
A141: 129 | B141: =_xlfn.XLOOKUP($A141,INDIRECT("'Curves "&B$10&"'!$A$14:$A$163"),_xlfn.XLOOKUP(B$11&$J$3,INDIRECT("'Curves "&B$10&"'!$11:$11")&INDIRECT("'Curves "&B$10&"'!$12:$12"),INDIRECT("'Curves "&B$10&"'!$14:$163"),,0,1),,0,1) -> 0.03284292111 | C141: =_xlfn.XLOOKUP($A141,INDIRECT("'Curves "&C$10&"'!$A$14:$A$163"),_xlfn.XLOOKUP(C$11&$J$3,INDIRECT("'Curves "&C$10&"'!$11:$11")&INDIRECT("'Curves "&C$10&"'!$12:$12"),INDIRECT("'Curves "&C$10&"'!$14:$163"),,0,1),,0,1) -> 0.0372001983 | D141: =_xlfn.XLOOKUP($A141,INDIRECT("'Curves "&D$10&"'!$A$14:$A$163"),_xlfn.XLOOKUP(D$11&$J$3,INDIRECT("'Curves "&D$10&"'!$11:$11")&INDIRECT("'Curves "&D$10&"'!$12:$12"),INDIRECT("'Curves "&D$10&"'!$14:$163"),,0,1),,0,1) -> 0.02678893829 | F141: =_xlfn.XLOOKUP($A141,INDIRECT("'Curves "&F$10&"'!$A$14:$A$163"),_xlfn.XLOOKUP(F$11&$J$3,INDIRECT("'Curves "&F$10&"'!$11:$11")&INDIRECT("'Curves "&F$10&"'!$12:$12"),INDIRECT("'Curves "&F$10&"'!$14:$163"),,0,1),,0,1) -> 0.0333974381 | G141: =_xlfn.XLOOKUP($A141,INDIRECT("'Curves "&G$10&"'!$A$14:$A$163"),_xlfn.XLOOKUP(G$11&$J$3,INDIRECT("'Curves "&G$10&"'!$11:$11")&INDIRECT("'Curves "&G$10&"'!$12:$12"),INDIRECT("'Curves "&G$10&"'!$14:$163"),,0,1),,0,1) -> 0.03775705464 | H141: =_xlfn.XLOOKUP($A141,INDIRECT("'Curves "&H$10&"'!$A$14:$A$163"),_xlfn.XLOOKUP(H$11&$J$3,INDIRECT("'Curves "&H$10&"'!$11:$11")&INDIRECT("'Curves "&H$10&"'!$12:$12"),INDIRECT("'Curves "&H$10&"'!$14:$163"),,0,1),,0,1) -> 0.02734020499
A142: 130 | B142: =_xlfn.XLOOKUP($A142,INDIRECT("'Curves "&B$10&"'!$A$14:$A$163"),_xlfn.XLOOKUP(B$11&$J$3,INDIRECT("'Curves "&B$10&"'!$11:$11")&INDIRECT("'Curves "&B$10&"'!$12:$12"),INDIRECT("'Curves "&B$10&"'!$14:$163"),,0,1),,0,1) -> 0.03284412931 | C142: =_xlfn.XLOOKUP($A142,INDIRECT("'Curves "&C$10&"'!$A$14:$A$163"),_xlfn.XLOOKUP(C$11&$J$3,INDIRECT("'Curves "&C$10&"'!$11:$11")&INDIRECT("'Curves "&C$10&"'!$12:$12"),INDIRECT("'Curves "&C$10&"'!$14:$163"),,0,1),,0,1) -> 0.03717940098 | D142: =_xlfn.XLOOKUP($A142,INDIRECT("'Curves "&D$10&"'!$A$14:$A$163"),_xlfn.XLOOKUP(D$11&$J$3,INDIRECT("'Curves "&D$10&"'!$11:$11")&INDIRECT("'Curves "&D$10&"'!$12:$12"),INDIRECT("'Curves "&D$10&"'!$14:$163"),,0,1),,0,1) -> 0.02682509401 | F142: =_xlfn.XLOOKUP($A142,INDIRECT("'Curves "&F$10&"'!$A$14:$A$163"),_xlfn.XLOOKUP(F$11&$J$3,INDIRECT("'Curves "&F$10&"'!$11:$11")&INDIRECT("'Curves "&F$10&"'!$12:$12"),INDIRECT("'Curves "&F$10&"'!$14:$163"),,0,1),,0,1) -> 0.03339438033 | G142: =_xlfn.XLOOKUP($A142,INDIRECT("'Curves "&G$10&"'!$A$14:$A$163"),_xlfn.XLOOKUP(G$11&$J$3,INDIRECT("'Curves "&G$10&"'!$11:$11")&INDIRECT("'Curves "&G$10&"'!$12:$12"),INDIRECT("'Curves "&G$10&"'!$14:$163"),,0,1),,0,1) -> 0.03773196164 | H142: =_xlfn.XLOOKUP($A142,INDIRECT("'Curves "&H$10&"'!$A$14:$A$163"),_xlfn.XLOOKUP(H$11&$J$3,INDIRECT("'Curves "&H$10&"'!$11:$11")&INDIRECT("'Curves "&H$10&"'!$12:$12"),INDIRECT("'Curves "&H$10&"'!$14:$163"),,0,1),,0,1) -> 0.02737213838
A143: 131 | B143: =_xlfn.XLOOKUP($A143,INDIRECT("'Curves "&B$10&"'!$A$14:$A$163"),_xlfn.XLOOKUP(B$11&$J$3,INDIRECT("'Curves "&B$10&"'!$11:$11")&INDIRECT("'Curves "&B$10&"'!$12:$12"),INDIRECT("'Curves "&B$10&"'!$14:$163"),,0,1),,0,1) -> 0.03284531906 | C143: =_xlfn.XLOOKUP($A143,INDIRECT("'Curves "&C$10&"'!$A$14:$A$163"),_xlfn.XLOOKUP(C$11&$J$3,INDIRECT("'Curves "&C$10&"'!$11:$11")&INDIRECT("'Curves "&C$10&"'!$12:$12"),INDIRECT("'Curves "&C$10&"'!$14:$163"),,0,1),,0,1) -> 0.03715892155 | D143: =_xlfn.XLOOKUP($A143,INDIRECT("'Curves "&D$10&"'!$A$14:$A$163"),_xlfn.XLOOKUP(D$11&$J$3,INDIRECT("'Curves "&D$10&"'!$11:$11")&INDIRECT("'Curves "&D$10&"'!$12:$12"),INDIRECT("'Curves "&D$10&"'!$14:$163"),,0,1),,0,1) -> 0.02686069908 | F143: =_xlfn.XLOOKUP($A143,INDIRECT("'Curves "&F$10&"'!$A$14:$A$163"),_xlfn.XLOOKUP(F$11&$J$3,INDIRECT("'Curves "&F$10&"'!$11:$11")&INDIRECT("'Curves "&F$10&"'!$12:$12"),INDIRECT("'Curves "&F$10&"'!$14:$163"),,0,1),,0,1) -> 0.03339136926 | G143: =_xlfn.XLOOKUP($A143,INDIRECT("'Curves "&G$10&"'!$A$14:$A$163"),_xlfn.XLOOKUP(G$11&$J$3,INDIRECT("'Curves "&G$10&"'!$11:$11")&INDIRECT("'Curves "&G$10&"'!$12:$12"),INDIRECT("'Curves "&G$10&"'!$14:$163"),,0,1),,0,1) -> 0.03770725228 | H143: =_xlfn.XLOOKUP($A143,INDIRECT("'Curves "&H$10&"'!$A$14:$A$163"),_xlfn.XLOOKUP(H$11&$J$3,INDIRECT("'Curves "&H$10&"'!$11:$11")&INDIRECT("'Curves "&H$10&"'!$12:$12"),INDIRECT("'Curves "&H$10&"'!$14:$163"),,0,1),,0,1) -> 0.0274035853
A144: 132 | B144: =_xlfn.XLOOKUP($A144,INDIRECT("'Curves "&B$10&"'!$A$14:$A$163"),_xlfn.XLOOKUP(B$11&$J$3,INDIRECT("'Curves "&B$10&"'!$11:$11")&INDIRECT("'Curves "&B$10&"'!$12:$12"),INDIRECT("'Curves "&B$10&"'!$14:$163"),,0,1),,0,1) -> 0.03284649079 | C144: =_xlfn.XLOOKUP($A144,INDIRECT("'Curves "&C$10&"'!$A$14:$A$163"),_xlfn.XLOOKUP(C$11&$J$3,INDIRECT("'Curves "&C$10&"'!$11:$11")&INDIRECT("'Curves "&C$10&"'!$12:$12"),INDIRECT("'Curves "&C$10&"'!$14:$163"),,0,1),,0,1) -> 0.03713875278 | D144: =_xlfn.XLOOKUP($A144,INDIRECT("'Curves "&D$10&"'!$A$14:$A$163"),_xlfn.XLOOKUP(D$11&$J$3,INDIRECT("'Curves "&D$10&"'!$11:$11")&INDIRECT("'Curves "&D$10&"'!$12:$12"),INDIRECT("'Curves "&D$10&"'!$14:$163"),,0,1),,0,1) -> 0.02689576598 | F144: =_xlfn.XLOOKUP($A144,INDIRECT("'Curves "&F$10&"'!$A$14:$A$163"),_xlfn.XLOOKUP(F$11&$J$3,INDIRECT("'Curves "&F$10&"'!$11:$11")&INDIRECT("'Curves "&F$10&"'!$12:$12"),INDIRECT("'Curves "&F$10&"'!$14:$163"),,0,1),,0,1) -> 0.03338840381 | G144: =_xlfn.XLOOKUP($A144,INDIRECT("'Curves "&G$10&"'!$A$14:$A$163"),_xlfn.XLOOKUP(G$11&$J$3,INDIRECT("'Curves "&G$10&"'!$11:$11")&INDIRECT("'Curves "&G$10&"'!$12:$12"),INDIRECT("'Curves "&G$10&"'!$14:$163"),,0,1),,0,1) -> 0.03768291786 | H144: =_xlfn.XLOOKUP($A144,INDIRECT("'Curves "&H$10&"'!$A$14:$A$163"),_xlfn.XLOOKUP(H$11&$J$3,INDIRECT("'Curves "&H$10&"'!$11:$11")&INDIRECT("'Curves "&H$10&"'!$12:$12"),INDIRECT("'Curves "&H$10&"'!$14:$163"),,0,1),,0,1) -> 0.02743455677
A145: 133 | B145: =_xlfn.XLOOKUP($A145,INDIRECT("'Curves "&B$10&"'!$A$14:$A$163"),_xlfn.XLOOKUP(B$11&$J$3,INDIRECT("'Curves "&B$10&"'!$11:$11")&INDIRECT("'Curves "&B$10&"'!$12:$12"),INDIRECT("'Curves "&B$10&"'!$14:$163"),,0,1),,0,1) -> 0.0328476449 | C145: =_xlfn.XLOOKUP($A145,INDIRECT("'Curves "&C$10&"'!$A$14:$A$163"),_xlfn.XLOOKUP(C$11&$J$3,INDIRECT("'Curves "&C$10&"'!$11:$11")&INDIRECT("'Curves "&C$10&"'!$12:$12"),INDIRECT("'Curves "&C$10&"'!$14:$163"),,0,1),,0,1) -> 0.03711888765 | D145: =_xlfn.XLOOKUP($A145,INDIRECT("'Curves "&D$10&"'!$A$14:$A$163"),_xlfn.XLOOKUP(D$11&$J$3,INDIRECT("'Curves "&D$10&"'!$11:$11")&INDIRECT("'Curves "&D$10&"'!$12:$12"),INDIRECT("'Curves "&D$10&"'!$14:$163"),,0,1),,0,1) -> 0.0269303068 | F145: =_xlfn.XLOOKUP($A145,INDIRECT("'Curves "&F$10&"'!$A$14:$A$163"),_xlfn.XLOOKUP(F$11&$J$3,INDIRECT("'Curves "&F$10&"'!$11:$11")&INDIRECT("'Curves "&F$10&"'!$12:$12"),INDIRECT("'Curves "&F$10&"'!$14:$163"),,0,1),,0,1) -> 0.03338548296 | G145: =_xlfn.XLOOKUP($A145,INDIRECT("'Curves "&G$10&"'!$A$14:$A$163"),_xlfn.XLOOKUP(G$11&$J$3,INDIRECT("'Curves "&G$10&"'!$11:$11")&INDIRECT("'Curves "&G$10&"'!$12:$12"),INDIRECT("'Curves "&G$10&"'!$14:$163"),,0,1),,0,1) -> 0.03765894989 | H145: =_xlfn.XLOOKUP($A145,INDIRECT("'Curves "&H$10&"'!$A$14:$A$163"),_xlfn.XLOOKUP(H$11&$J$3,INDIRECT("'Curves "&H$10&"'!$11:$11")&INDIRECT("'Curves "&H$10&"'!$12:$12"),INDIRECT("'Curves "&H$10&"'!$14:$163"),,0,1),,0,1) -> 0.0274650635
A146: 134 | B146: =_xlfn.XLOOKUP($A146,INDIRECT("'Curves "&B$10&"'!$A$14:$A$163"),_xlfn.XLOOKUP(B$11&$J$3,INDIRECT("'Curves "&B$10&"'!$11:$11")&INDIRECT("'Curves "&B$10&"'!$12:$12"),INDIRECT("'Curves "&B$10&"'!$14:$163"),,0,1),,0,1) -> 0.03284878179 | C146: =_xlfn.XLOOKUP($A146,INDIRECT("'Curves "&C$10&"'!$A$14:$A$163"),_xlfn.XLOOKUP(C$11&$J$3,INDIRECT("'Curves "&C$10&"'!$11:$11")&INDIRECT("'Curves "&C$10&"'!$12:$12"),INDIRECT("'Curves "&C$10&"'!$14:$163"),,0,1),,0,1) -> 0.03709931937 | D146: =_xlfn.XLOOKUP($A146,INDIRECT("'Curves "&D$10&"'!$A$14:$A$163"),_xlfn.XLOOKUP(D$11&$J$3,INDIRECT("'Curves "&D$10&"'!$11:$11")&INDIRECT("'Curves "&D$10&"'!$12:$12"),INDIRECT("'Curves "&D$10&"'!$14:$163"),,0,1),,0,1) -> 0.02696433329 | F146: =_xlfn.XLOOKUP($A146,INDIRECT("'Curves "&F$10&"'!$A$14:$A$163"),_xlfn.XLOOKUP(F$11&$J$3,INDIRECT("'Curves "&F$10&"'!$11:$11")&INDIRECT("'Curves "&F$10&"'!$12:$12"),INDIRECT("'Curves "&F$10&"'!$14:$163"),,0,1),,0,1) -> 0.03338260571 | G146: =_xlfn.XLOOKUP($A146,INDIRECT("'Curves "&G$10&"'!$A$14:$A$163"),_xlfn.XLOOKUP(G$11&$J$3,INDIRECT("'Curves "&G$10&"'!$11:$11")&INDIRECT("'Curves "&G$10&"'!$12:$12"),INDIRECT("'Curves "&G$10&"'!$14:$163"),,0,1),,0,1) -> 0.03763534017 | H146: =_xlfn.XLOOKUP($A146,INDIRECT("'Curves "&H$10&"'!$A$14:$A$163"),_xlfn.XLOOKUP(H$11&$J$3,INDIRECT("'Curves "&H$10&"'!$11:$11")&INDIRECT("'Curves "&H$10&"'!$12:$12"),INDIRECT("'Curves "&H$10&"'!$14:$163"),,0,1),,0,1) -> 0.02749511586
A147: 135 | B147: =_xlfn.XLOOKUP($A147,INDIRECT("'Curves "&B$10&"'!$A$14:$A$163"),_xlfn.XLOOKUP(B$11&$J$3,INDIRECT("'Curves "&B$10&"'!$11:$11")&INDIRECT("'Curves "&B$10&"'!$12:$12"),INDIRECT("'Curves "&B$10&"'!$14:$163"),,0,1),,0,1) -> 0.03284990184 | C147: =_xlfn.XLOOKUP($A147,INDIRECT("'Curves "&C$10&"'!$A$14:$A$163"),_xlfn.XLOOKUP(C$11&$J$3,INDIRECT("'Curves "&C$10&"'!$11:$11")&INDIRECT("'Curves "&C$10&"'!$12:$12"),INDIRECT("'Curves "&C$10&"'!$14:$163"),,0,1),,0,1) -> 0.03708004134 | D147: =_xlfn.XLOOKUP($A147,INDIRECT("'Curves "&D$10&"'!$A$14:$A$163"),_xlfn.XLOOKUP(D$11&$J$3,INDIRECT("'Curves "&D$10&"'!$11:$11")&INDIRECT("'Curves "&D$10&"'!$12:$12"),INDIRECT("'Curves "&D$10&"'!$14:$163"),,0,1),,0,1) -> 0.02699785686 | F147: =_xlfn.XLOOKUP($A147,INDIRECT("'Curves "&F$10&"'!$A$14:$A$163"),_xlfn.XLOOKUP(F$11&$J$3,INDIRECT("'Curves "&F$10&"'!$11:$11")&INDIRECT("'Curves "&F$10&"'!$12:$12"),INDIRECT("'Curves "&F$10&"'!$14:$163"),,0,1),,0,1) -> 0.0333797711 | G147: =_xlfn.XLOOKUP($A147,INDIRECT("'Curves "&G$10&"'!$A$14:$A$163"),_xlfn.XLOOKUP(G$11&$J$3,INDIRECT("'Curves "&G$10&"'!$11:$11")&INDIRECT("'Curves "&G$10&"'!$12:$12"),INDIRECT("'Curves "&G$10&"'!$14:$163"),,0,1),,0,1) -> 0.03761208073 | H147: =_xlfn.XLOOKUP($A147,INDIRECT("'Curves "&H$10&"'!$A$14:$A$163"),_xlfn.XLOOKUP(H$11&$J$3,INDIRECT("'Curves "&H$10&"'!$11:$11")&INDIRECT("'Curves "&H$10&"'!$12:$12"),INDIRECT("'Curves "&H$10&"'!$14:$163"),,0,1),,0,1) -> 0.02752472392
A148: 136 | B148: =_xlfn.XLOOKUP($A148,INDIRECT("'Curves "&B$10&"'!$A$14:$A$163"),_xlfn.XLOOKUP(B$11&$J$3,INDIRECT("'Curves "&B$10&"'!$11:$11")&INDIRECT("'Curves "&B$10&"'!$12:$12"),INDIRECT("'Curves "&B$10&"'!$14:$163"),,0,1),,0,1) -> 0.03285100542 | C148: =_xlfn.XLOOKUP($A148,INDIRECT("'Curves "&C$10&"'!$A$14:$A$163"),_xlfn.XLOOKUP(C$11&$J$3,INDIRECT("'Curves "&C$10&"'!$11:$11")&INDIRECT("'Curves "&C$10&"'!$12:$12"),INDIRECT("'Curves "&C$10&"'!$14:$163"),,0,1),,0,1) -> 0.03706104713 | D148: =_xlfn.XLOOKUP($A148,INDIRECT("'Curves "&D$10&"'!$A$14:$A$163"),_xlfn.XLOOKUP(D$11&$J$3,INDIRECT("'Curves "&D$10&"'!$11:$11")&INDIRECT("'Curves "&D$10&"'!$12:$12"),INDIRECT("'Curves "&D$10&"'!$14:$163"),,0,1),,0,1) -> 0.02703088855 | F148: =_xlfn.XLOOKUP($A148,INDIRECT("'Curves "&F$10&"'!$A$14:$A$163"),_xlfn.XLOOKUP(F$11&$J$3,INDIRECT("'Curves "&F$10&"'!$11:$11")&INDIRECT("'Curves "&F$10&"'!$12:$12"),INDIRECT("'Curves "&F$10&"'!$14:$163"),,0,1),,0,1) -> 0.03337697817 | G148: =_xlfn.XLOOKUP($A148,INDIRECT("'Curves "&G$10&"'!$A$14:$A$163"),_xlfn.XLOOKUP(G$11&$J$3,INDIRECT("'Curves "&G$10&"'!$11:$11")&INDIRECT("'Curves "&G$10&"'!$12:$12"),INDIRECT("'Curves "&G$10&"'!$14:$163"),,0,1),,0,1) -> 0.03758916382 | H148: =_xlfn.XLOOKUP($A148,INDIRECT("'Curves "&H$10&"'!$A$14:$A$163"),_xlfn.XLOOKUP(H$11&$J$3,INDIRECT("'Curves "&H$10&"'!$11:$11")&INDIRECT("'Curves "&H$10&"'!$12:$12"),INDIRECT("'Curves "&H$10&"'!$14:$163"),,0,1),,0,1) -> 0.02755389745
A149: 137 | B149: =_xlfn.XLOOKUP($A149,INDIRECT("'Curves "&B$10&"'!$A$14:$A$163"),_xlfn.XLOOKUP(B$11&$J$3,INDIRECT("'Curves "&B$10&"'!$11:$11")&INDIRECT("'Curves "&B$10&"'!$12:$12"),INDIRECT("'Curves "&B$10&"'!$14:$163"),,0,1),,0,1) -> 0.03285209289 | C149: =_xlfn.XLOOKUP($A149,INDIRECT("'Curves "&C$10&"'!$A$14:$A$163"),_xlfn.XLOOKUP(C$11&$J$3,INDIRECT("'Curves "&C$10&"'!$11:$11")&INDIRECT("'Curves "&C$10&"'!$12:$12"),INDIRECT("'Curves "&C$10&"'!$14:$163"),,0,1),,0,1) -> 0.03704233054 | D149: =_xlfn.XLOOKUP($A149,INDIRECT("'Curves "&D$10&"'!$A$14:$A$163"),_xlfn.XLOOKUP(D$11&$J$3,INDIRECT("'Curves "&D$10&"'!$11:$11")&INDIRECT("'Curves "&D$10&"'!$12:$12"),INDIRECT("'Curves "&D$10&"'!$14:$163"),,0,1),,0,1) -> 0.02706343913 | F149: =_xlfn.XLOOKUP($A149,INDIRECT("'Curves "&F$10&"'!$A$14:$A$163"),_xlfn.XLOOKUP(F$11&$J$3,INDIRECT("'Curves "&F$10&"'!$11:$11")&INDIRECT("'Curves "&F$10&"'!$12:$12"),INDIRECT("'Curves "&F$10&"'!$14:$163"),,0,1),,0,1) -> 0.03337422602 | G149: =_xlfn.XLOOKUP($A149,INDIRECT("'Curves "&G$10&"'!$A$14:$A$163"),_xlfn.XLOOKUP(G$11&$J$3,INDIRECT("'Curves "&G$10&"'!$11:$11")&INDIRECT("'Curves "&G$10&"'!$12:$12"),INDIRECT("'Curves "&G$10&"'!$14:$163"),,0,1),,0,1) -> 0.03756658195 | H149: =_xlfn.XLOOKUP($A149,INDIRECT("'Curves "&H$10&"'!$A$14:$A$163"),_xlfn.XLOOKUP(H$11&$J$3,INDIRECT("'Curves "&H$10&"'!$11:$11")&INDIRECT("'Curves "&H$10&"'!$12:$12"),INDIRECT("'Curves "&H$10&"'!$14:$163"),,0,1),,0,1) -> 0.02758264595
A150: 138 | B150: =_xlfn.XLOOKUP($A150,INDIRECT("'Curves "&B$10&"'!$A$14:$A$163"),_xlfn.XLOOKUP(B$11&$J$3,INDIRECT("'Curves "&B$10&"'!$11:$11")&INDIRECT("'Curves "&B$10&"'!$12:$12"),INDIRECT("'Curves "&B$10&"'!$14:$163"),,0,1),,0,1) -> 0.0328531646 | C150: =_xlfn.XLOOKUP($A150,INDIRECT("'Curves "&C$10&"'!$A$14:$A$163"),_xlfn.XLOOKUP(C$11&$J$3,INDIRECT("'Curves "&C$10&"'!$11:$11")&INDIRECT("'Curves "&C$10&"'!$12:$12"),INDIRECT("'Curves "&C$10&"'!$14:$163"),,0,1),,0,1) -> 0.03702388552 | D150: =_xlfn.XLOOKUP($A150,INDIRECT("'Curves "&D$10&"'!$A$14:$A$163"),_xlfn.XLOOKUP(D$11&$J$3,INDIRECT("'Curves "&D$10&"'!$11:$11")&INDIRECT("'Curves "&D$10&"'!$12:$12"),INDIRECT("'Curves "&D$10&"'!$14:$163"),,0,1),,0,1) -> 0.027095519 | F150: =_xlfn.XLOOKUP($A150,INDIRECT("'Curves "&F$10&"'!$A$14:$A$163"),_xlfn.XLOOKUP(F$11&$J$3,INDIRECT("'Curves "&F$10&"'!$11:$11")&INDIRECT("'Curves "&F$10&"'!$12:$12"),INDIRECT("'Curves "&F$10&"'!$14:$163"),,0,1),,0,1) -> 0.03337151376 | G150: =_xlfn.XLOOKUP($A150,INDIRECT("'Curves "&G$10&"'!$A$14:$A$163"),_xlfn.XLOOKUP(G$11&$J$3,INDIRECT("'Curves "&G$10&"'!$11:$11")&INDIRECT("'Curves "&G$10&"'!$12:$12"),INDIRECT("'Curves "&G$10&"'!$14:$163"),,0,1),,0,1) -> 0.03754432781 | H150: =_xlfn.XLOOKUP($A150,INDIRECT("'Curves "&H$10&"'!$A$14:$A$163"),_xlfn.XLOOKUP(H$11&$J$3,INDIRECT("'Curves "&H$10&"'!$11:$11")&INDIRECT("'Curves "&H$10&"'!$12:$12"),INDIRECT("'Curves "&H$10&"'!$14:$163"),,0,1),,0,1) -> 0.02761097863
A151: 139 | B151: =_xlfn.XLOOKUP($A151,INDIRECT("'Curves "&B$10&"'!$A$14:$A$163"),_xlfn.XLOOKUP(B$11&$J$3,INDIRECT("'Curves "&B$10&"'!$11:$11")&INDIRECT("'Curves "&B$10&"'!$12:$12"),INDIRECT("'Curves "&B$10&"'!$14:$163"),,0,1),,0,1) -> 0.03285422089 | C151: =_xlfn.XLOOKUP($A151,INDIRECT("'Curves "&C$10&"'!$A$14:$A$163"),_xlfn.XLOOKUP(C$11&$J$3,INDIRECT("'Curves "&C$10&"'!$11:$11")&INDIRECT("'Curves "&C$10&"'!$12:$12"),INDIRECT("'Curves "&C$10&"'!$14:$163"),,0,1),,0,1) -> 0.03700570621 | D151: =_xlfn.XLOOKUP($A151,INDIRECT("'Curves "&D$10&"'!$A$14:$A$163"),_xlfn.XLOOKUP(D$11&$J$3,INDIRECT("'Curves "&D$10&"'!$11:$11")&INDIRECT("'Curves "&D$10&"'!$12:$12"),INDIRECT("'Curves "&D$10&"'!$14:$163"),,0,1),,0,1) -> 0.02712713832 | F151: =_xlfn.XLOOKUP($A151,INDIRECT("'Curves "&F$10&"'!$A$14:$A$163"),_xlfn.XLOOKUP(F$11&$J$3,INDIRECT("'Curves "&F$10&"'!$11:$11")&INDIRECT("'Curves "&F$10&"'!$12:$12"),INDIRECT("'Curves "&F$10&"'!$14:$163"),,0,1),,0,1) -> 0.03336884054 | G151: =_xlfn.XLOOKUP($A151,INDIRECT("'Curves "&G$10&"'!$A$14:$A$163"),_xlfn.XLOOKUP(G$11&$J$3,INDIRECT("'Curves "&G$10&"'!$11:$11")&INDIRECT("'Curves "&G$10&"'!$12:$12"),INDIRECT("'Curves "&G$10&"'!$14:$163"),,0,1),,0,1) -> 0.03752239434 | H151: =_xlfn.XLOOKUP($A151,INDIRECT("'Curves "&H$10&"'!$A$14:$A$163"),_xlfn.XLOOKUP(H$11&$J$3,INDIRECT("'Curves "&H$10&"'!$11:$11")&INDIRECT("'Curves "&H$10&"'!$12:$12"),INDIRECT("'Curves "&H$10&"'!$14:$163"),,0,1),,0,1) -> 0.02763890445
A152: 140 | B152: =_xlfn.XLOOKUP($A152,INDIRECT("'Curves "&B$10&"'!$A$14:$A$163"),_xlfn.XLOOKUP(B$11&$J$3,INDIRECT("'Curves "&B$10&"'!$11:$11")&INDIRECT("'Curves "&B$10&"'!$12:$12"),INDIRECT("'Curves "&B$10&"'!$14:$163"),,0,1),,0,1) -> 0.03285526209 | C152: =_xlfn.XLOOKUP($A152,INDIRECT("'Curves "&C$10&"'!$A$14:$A$163"),_xlfn.XLOOKUP(C$11&$J$3,INDIRECT("'Curves "&C$10&"'!$11:$11")&INDIRECT("'Curves "&C$10&"'!$12:$12"),INDIRECT("'Curves "&C$10&"'!$14:$163"),,0,1),,0,1) -> 0.0369877869 | D152: =_xlfn.XLOOKUP($A152,INDIRECT("'Curves "&D$10&"'!$A$14:$A$163"),_xlfn.XLOOKUP(D$11&$J$3,INDIRECT("'Curves "&D$10&"'!$11:$11")&INDIRECT("'Curves "&D$10&"'!$12:$12"),INDIRECT("'Curves "&D$10&"'!$14:$163"),,0,1),,0,1) -> 0.02715830692 | F152: =_xlfn.XLOOKUP($A152,INDIRECT("'Curves "&F$10&"'!$A$14:$A$163"),_xlfn.XLOOKUP(F$11&$J$3,INDIRECT("'Curves "&F$10&"'!$11:$11")&INDIRECT("'Curves "&F$10&"'!$12:$12"),INDIRECT("'Curves "&F$10&"'!$14:$163"),,0,1),,0,1) -> 0.03336620551 | G152: =_xlfn.XLOOKUP($A152,INDIRECT("'Curves "&G$10&"'!$A$14:$A$163"),_xlfn.XLOOKUP(G$11&$J$3,INDIRECT("'Curves "&G$10&"'!$11:$11")&INDIRECT("'Curves "&G$10&"'!$12:$12"),INDIRECT("'Curves "&G$10&"'!$14:$163"),,0,1),,0,1) -> 0.03750077463 | H152: =_xlfn.XLOOKUP($A152,INDIRECT("'Curves "&H$10&"'!$A$14:$A$163"),_xlfn.XLOOKUP(H$11&$J$3,INDIRECT("'Curves "&H$10&"'!$11:$11")&INDIRECT("'Curves "&H$10&"'!$12:$12"),INDIRECT("'Curves "&H$10&"'!$14:$163"),,0,1),,0,1) -> 0.0276664321
A153: 141 | B153: =_xlfn.XLOOKUP($A153,INDIRECT("'Curves "&B$10&"'!$A$14:$A$163"),_xlfn.XLOOKUP(B$11&$J$3,INDIRECT("'Curves "&B$10&"'!$11:$11")&INDIRECT("'Curves "&B$10&"'!$12:$12"),INDIRECT("'Curves "&B$10&"'!$14:$163"),,0,1),,0,1) -> 0.03285628853 | C153: =_xlfn.XLOOKUP($A153,INDIRECT("'Curves "&C$10&"'!$A$14:$A$163"),_xlfn.XLOOKUP(C$11&$J$3,INDIRECT("'Curves "&C$10&"'!$11:$11")&INDIRECT("'Curves "&C$10&"'!$12:$12"),INDIRECT("'Curves "&C$10&"'!$14:$163"),,0,1),,0,1) -> 0.03697012206 | D153: =_xlfn.XLOOKUP($A153,INDIRECT("'Curves "&D$10&"'!$A$14:$A$163"),_xlfn.XLOOKUP(D$11&$J$3,INDIRECT("'Curves "&D$10&"'!$11:$11")&INDIRECT("'Curves "&D$10&"'!$12:$12"),INDIRECT("'Curves "&D$10&"'!$14:$163"),,0,1),,0,1) -> 0.02718903436 | F153: =_xlfn.XLOOKUP($A153,INDIRECT("'Curves "&F$10&"'!$A$14:$A$163"),_xlfn.XLOOKUP(F$11&$J$3,INDIRECT("'Curves "&F$10&"'!$11:$11")&INDIRECT("'Curves "&F$10&"'!$12:$12"),INDIRECT("'Curves "&F$10&"'!$14:$163"),,0,1),,0,1) -> 0.03336360786 | G153: =_xlfn.XLOOKUP($A153,INDIRECT("'Curves "&G$10&"'!$A$14:$A$163"),_xlfn.XLOOKUP(G$11&$J$3,INDIRECT("'Curves "&G$10&"'!$11:$11")&INDIRECT("'Curves "&G$10&"'!$12:$12"),INDIRECT("'Curves "&G$10&"'!$14:$163"),,0,1),,0,1) -> 0.03747946202 | H153: =_xlfn.XLOOKUP($A153,INDIRECT("'Curves "&H$10&"'!$A$14:$A$163"),_xlfn.XLOOKUP(H$11&$J$3,INDIRECT("'Curves "&H$10&"'!$11:$11")&INDIRECT("'Curves "&H$10&"'!$12:$12"),INDIRECT("'Curves "&H$10&"'!$14:$163"),,0,1),,0,1) -> 0.02769357005
A154: 142 | B154: =_xlfn.XLOOKUP($A154,INDIRECT("'Curves "&B$10&"'!$A$14:$A$163"),_xlfn.XLOOKUP(B$11&$J$3,INDIRECT("'Curves "&B$10&"'!$11:$11")&INDIRECT("'Curves "&B$10&"'!$12:$12"),INDIRECT("'Curves "&B$10&"'!$14:$163"),,0,1),,0,1) -> 0.03285730051 | C154: =_xlfn.XLOOKUP($A154,INDIRECT("'Curves "&C$10&"'!$A$14:$A$163"),_xlfn.XLOOKUP(C$11&$J$3,INDIRECT("'Curves "&C$10&"'!$11:$11")&INDIRECT("'Curves "&C$10&"'!$12:$12"),INDIRECT("'Curves "&C$10&"'!$14:$163"),,0,1),,0,1) -> 0.0369527063 | D154: =_xlfn.XLOOKUP($A154,INDIRECT("'Curves "&D$10&"'!$A$14:$A$163"),_xlfn.XLOOKUP(D$11&$J$3,INDIRECT("'Curves "&D$10&"'!$11:$11")&INDIRECT("'Curves "&D$10&"'!$12:$12"),INDIRECT("'Curves "&D$10&"'!$14:$163"),,0,1),,0,1) -> 0.02721932996 | F154: =_xlfn.XLOOKUP($A154,INDIRECT("'Curves "&F$10&"'!$A$14:$A$163"),_xlfn.XLOOKUP(F$11&$J$3,INDIRECT("'Curves "&F$10&"'!$11:$11")&INDIRECT("'Curves "&F$10&"'!$12:$12"),INDIRECT("'Curves "&F$10&"'!$14:$163"),,0,1),,0,1) -> 0.0333610468 | G154: =_xlfn.XLOOKUP($A154,INDIRECT("'Curves "&G$10&"'!$A$14:$A$163"),_xlfn.XLOOKUP(G$11&$J$3,INDIRECT("'Curves "&G$10&"'!$11:$11")&INDIRECT("'Curves "&G$10&"'!$12:$12"),INDIRECT("'Curves "&G$10&"'!$14:$163"),,0,1),,0,1) -> 0.03745845001 | H154: =_xlfn.XLOOKUP($A154,INDIRECT("'Curves "&H$10&"'!$A$14:$A$163"),_xlfn.XLOOKUP(H$11&$J$3,INDIRECT("'Curves "&H$10&"'!$11:$11")&INDIRECT("'Curves "&H$10&"'!$12:$12"),INDIRECT("'Curves "&H$10&"'!$14:$163"),,0,1),,0,1) -> 0.02772032649
A155: 143 | B155: =_xlfn.XLOOKUP($A155,INDIRECT("'Curves "&B$10&"'!$A$14:$A$163"),_xlfn.XLOOKUP(B$11&$J$3,INDIRECT("'Curves "&B$10&"'!$11:$11")&INDIRECT("'Curves "&B$10&"'!$12:$12"),INDIRECT("'Curves "&B$10&"'!$14:$163"),,0,1),,0,1) -> 0.03285829834 | C155: =_xlfn.XLOOKUP($A155,INDIRECT("'Curves "&C$10&"'!$A$14:$A$163"),_xlfn.XLOOKUP(C$11&$J$3,INDIRECT("'Curves "&C$10&"'!$11:$11")&INDIRECT("'Curves "&C$10&"'!$12:$12"),INDIRECT("'Curves "&C$10&"'!$14:$163"),,0,1),,0,1) -> 0.0369355344 | D155: =_xlfn.XLOOKUP($A155,INDIRECT("'Curves "&D$10&"'!$A$14:$A$163"),_xlfn.XLOOKUP(D$11&$J$3,INDIRECT("'Curves "&D$10&"'!$11:$11")&INDIRECT("'Curves "&D$10&"'!$12:$12"),INDIRECT("'Curves "&D$10&"'!$14:$163"),,0,1),,0,1) -> 0.02724920274 | F155: =_xlfn.XLOOKUP($A155,INDIRECT("'Curves "&F$10&"'!$A$14:$A$163"),_xlfn.XLOOKUP(F$11&$J$3,INDIRECT("'Curves "&F$10&"'!$11:$11")&INDIRECT("'Curves "&F$10&"'!$12:$12"),INDIRECT("'Curves "&F$10&"'!$14:$163"),,0,1),,0,1) -> 0.03335852157 | G155: =_xlfn.XLOOKUP($A155,INDIRECT("'Curves "&G$10&"'!$A$14:$A$163"),_xlfn.XLOOKUP(G$11&$J$3,INDIRECT("'Curves "&G$10&"'!$11:$11")&INDIRECT("'Curves "&G$10&"'!$12:$12"),INDIRECT("'Curves "&G$10&"'!$14:$163"),,0,1),,0,1) -> 0.03743773228 | H155: =_xlfn.XLOOKUP($A155,INDIRECT("'Curves "&H$10&"'!$A$14:$A$163"),_xlfn.XLOOKUP(H$11&$J$3,INDIRECT("'Curves "&H$10&"'!$11:$11")&INDIRECT("'Curves "&H$10&"'!$12:$12"),INDIRECT("'Curves "&H$10&"'!$14:$163"),,0,1),,0,1) -> 0.02774670943
A156: 144 | B156: =_xlfn.XLOOKUP($A156,INDIRECT("'Curves "&B$10&"'!$A$14:$A$163"),_xlfn.XLOOKUP(B$11&$J$3,INDIRECT("'Curves "&B$10&"'!$11:$11")&INDIRECT("'Curves "&B$10&"'!$12:$12"),INDIRECT("'Curves "&B$10&"'!$14:$163"),,0,1),,0,1) -> 0.03285928231 | C156: =_xlfn.XLOOKUP($A156,INDIRECT("'Curves "&C$10&"'!$A$14:$A$163"),_xlfn.XLOOKUP(C$11&$J$3,INDIRECT("'Curves "&C$10&"'!$11:$11")&INDIRECT("'Curves "&C$10&"'!$12:$12"),INDIRECT("'Curves "&C$10&"'!$14:$163"),,0,1),,0,1) -> 0.03691860127 | D156: =_xlfn.XLOOKUP($A156,INDIRECT("'Curves "&D$10&"'!$A$14:$A$163"),_xlfn.XLOOKUP(D$11&$J$3,INDIRECT("'Curves "&D$10&"'!$11:$11")&INDIRECT("'Curves "&D$10&"'!$12:$12"),INDIRECT("'Curves "&D$10&"'!$14:$163"),,0,1),,0,1) -> 0.02727866149 | F156: =_xlfn.XLOOKUP($A156,INDIRECT("'Curves "&F$10&"'!$A$14:$A$163"),_xlfn.XLOOKUP(F$11&$J$3,INDIRECT("'Curves "&F$10&"'!$11:$11")&INDIRECT("'Curves "&F$10&"'!$12:$12"),INDIRECT("'Curves "&F$10&"'!$14:$163"),,0,1),,0,1) -> 0.03335603141 | G156: =_xlfn.XLOOKUP($A156,INDIRECT("'Curves "&G$10&"'!$A$14:$A$163"),_xlfn.XLOOKUP(G$11&$J$3,INDIRECT("'Curves "&G$10&"'!$11:$11")&INDIRECT("'Curves "&G$10&"'!$12:$12"),INDIRECT("'Curves "&G$10&"'!$14:$163"),,0,1),,0,1) -> 0.03741730269 | H156: =_xlfn.XLOOKUP($A156,INDIRECT("'Curves "&H$10&"'!$A$14:$A$163"),_xlfn.XLOOKUP(H$11&$J$3,INDIRECT("'Curves "&H$10&"'!$11:$11")&INDIRECT("'Curves "&H$10&"'!$12:$12"),INDIRECT("'Curves "&H$10&"'!$14:$163"),,0,1),,0,1) -> 0.02777272662
A157: 145 | B157: =_xlfn.XLOOKUP($A157,INDIRECT("'Curves "&B$10&"'!$A$14:$A$163"),_xlfn.XLOOKUP(B$11&$J$3,INDIRECT("'Curves "&B$10&"'!$11:$11")&INDIRECT("'Curves "&B$10&"'!$12:$12"),INDIRECT("'Curves "&B$10&"'!$14:$163"),,0,1),,0,1) -> 0.03286025271 | C157: =_xlfn.XLOOKUP($A157,INDIRECT("'Curves "&C$10&"'!$A$14:$A$163"),_xlfn.XLOOKUP(C$11&$J$3,INDIRECT("'Curves "&C$10&"'!$11:$11")&INDIRECT("'Curves "&C$10&"'!$12:$12"),INDIRECT("'Curves "&C$10&"'!$14:$163"),,0,1),,0,1) -> 0.03690190197 | D157: =_xlfn.XLOOKUP($A157,INDIRECT("'Curves "&D$10&"'!$A$14:$A$163"),_xlfn.XLOOKUP(D$11&$J$3,INDIRECT("'Curves "&D$10&"'!$11:$11")&INDIRECT("'Curves "&D$10&"'!$12:$12"),INDIRECT("'Curves "&D$10&"'!$14:$163"),,0,1),,0,1) -> 0.02730771476 | F157: =_xlfn.XLOOKUP($A157,INDIRECT("'Curves "&F$10&"'!$A$14:$A$163"),_xlfn.XLOOKUP(F$11&$J$3,INDIRECT("'Curves "&F$10&"'!$11:$11")&INDIRECT("'Curves "&F$10&"'!$12:$12"),INDIRECT("'Curves "&F$10&"'!$14:$163"),,0,1),,0,1) -> 0.03335357561 | G157: =_xlfn.XLOOKUP($A157,INDIRECT("'Curves "&G$10&"'!$A$14:$A$163"),_xlfn.XLOOKUP(G$11&$J$3,INDIRECT("'Curves "&G$10&"'!$11:$11")&INDIRECT("'Curves "&G$10&"'!$12:$12"),INDIRECT("'Curves "&G$10&"'!$14:$163"),,0,1),,0,1) -> 0.03739715528 | H157: =_xlfn.XLOOKUP($A157,INDIRECT("'Curves "&H$10&"'!$A$14:$A$163"),_xlfn.XLOOKUP(H$11&$J$3,INDIRECT("'Curves "&H$10&"'!$11:$11")&INDIRECT("'Curves "&H$10&"'!$12:$12"),INDIRECT("'Curves "&H$10&"'!$14:$163"),,0,1),,0,1) -> 0.02779838562
A158: 146 | B158: =_xlfn.XLOOKUP($A158,INDIRECT("'Curves "&B$10&"'!$A$14:$A$163"),_xlfn.XLOOKUP(B$11&$J$3,INDIRECT("'Curves "&B$10&"'!$11:$11")&INDIRECT("'Curves "&B$10&"'!$12:$12"),INDIRECT("'Curves "&B$10&"'!$14:$163"),,0,1),,0,1) -> 0.03286120981 | C158: =_xlfn.XLOOKUP($A158,INDIRECT("'Curves "&C$10&"'!$A$14:$A$163"),_xlfn.XLOOKUP(C$11&$J$3,INDIRECT("'Curves "&C$10&"'!$11:$11")&INDIRECT("'Curves "&C$10&"'!$12:$12"),INDIRECT("'Curves "&C$10&"'!$14:$163"),,0,1),,0,1) -> 0.03688543168 | D158: =_xlfn.XLOOKUP($A158,INDIRECT("'Curves "&D$10&"'!$A$14:$A$163"),_xlfn.XLOOKUP(D$11&$J$3,INDIRECT("'Curves "&D$10&"'!$11:$11")&INDIRECT("'Curves "&D$10&"'!$12:$12"),INDIRECT("'Curves "&D$10&"'!$14:$163"),,0,1),,0,1) -> 0.02733637086 | F158: =_xlfn.XLOOKUP($A158,INDIRECT("'Curves "&F$10&"'!$A$14:$A$163"),_xlfn.XLOOKUP(F$11&$J$3,INDIRECT("'Curves "&F$10&"'!$11:$11")&INDIRECT("'Curves "&F$10&"'!$12:$12"),INDIRECT("'Curves "&F$10&"'!$14:$163"),,0,1),,0,1) -> 0.03335115345 | G158: =_xlfn.XLOOKUP($A158,INDIRECT("'Curves "&G$10&"'!$A$14:$A$163"),_xlfn.XLOOKUP(G$11&$J$3,INDIRECT("'Curves "&G$10&"'!$11:$11")&INDIRECT("'Curves "&G$10&"'!$12:$12"),INDIRECT("'Curves "&G$10&"'!$14:$163"),,0,1),,0,1) -> 0.03737728423 | H158: =_xlfn.XLOOKUP($A158,INDIRECT("'Curves "&H$10&"'!$A$14:$A$163"),_xlfn.XLOOKUP(H$11&$J$3,INDIRECT("'Curves "&H$10&"'!$11:$11")&INDIRECT("'Curves "&H$10&"'!$12:$12"),INDIRECT("'Curves "&H$10&"'!$14:$163"),,0,1),,0,1) -> 0.02782369376
A159: 147 | B159: =_xlfn.XLOOKUP($A159,INDIRECT("'Curves "&B$10&"'!$A$14:$A$163"),_xlfn.XLOOKUP(B$11&$J$3,INDIRECT("'Curves "&B$10&"'!$11:$11")&INDIRECT("'Curves "&B$10&"'!$12:$12"),INDIRECT("'Curves "&B$10&"'!$14:$163"),,0,1),,0,1) -> 0.0328621539 | C159: =_xlfn.XLOOKUP($A159,INDIRECT("'Curves "&C$10&"'!$A$14:$A$163"),_xlfn.XLOOKUP(C$11&$J$3,INDIRECT("'Curves "&C$10&"'!$11:$11")&INDIRECT("'Curves "&C$10&"'!$12:$12"),INDIRECT("'Curves "&C$10&"'!$14:$163"),,0,1),,0,1) -> 0.03686918572 | D159: =_xlfn.XLOOKUP($A159,INDIRECT("'Curves "&D$10&"'!$A$14:$A$163"),_xlfn.XLOOKUP(D$11&$J$3,INDIRECT("'Curves "&D$10&"'!$11:$11")&INDIRECT("'Curves "&D$10&"'!$12:$12"),INDIRECT("'Curves "&D$10&"'!$14:$163"),,0,1),,0,1) -> 0.02736463789 | F159: =_xlfn.XLOOKUP($A159,INDIRECT("'Curves "&F$10&"'!$A$14:$A$163"),_xlfn.XLOOKUP(F$11&$J$3,INDIRECT("'Curves "&F$10&"'!$11:$11")&INDIRECT("'Curves "&F$10&"'!$12:$12"),INDIRECT("'Curves "&F$10&"'!$14:$163"),,0,1),,0,1) -> 0.03334876426 | G159: =_xlfn.XLOOKUP($A159,INDIRECT("'Curves "&G$10&"'!$A$14:$A$163"),_xlfn.XLOOKUP(G$11&$J$3,INDIRECT("'Curves "&G$10&"'!$11:$11")&INDIRECT("'Curves "&G$10&"'!$12:$12"),INDIRECT("'Curves "&G$10&"'!$14:$163"),,0,1),,0,1) -> 0.03735768391 | H159: =_xlfn.XLOOKUP($A159,INDIRECT("'Curves "&H$10&"'!$A$14:$A$163"),_xlfn.XLOOKUP(H$11&$J$3,INDIRECT("'Curves "&H$10&"'!$11:$11")&INDIRECT("'Curves "&H$10&"'!$12:$12"),INDIRECT("'Curves "&H$10&"'!$14:$163"),,0,1),,0,1) -> 0.02784865821
A160: 148 | B160: =_xlfn.XLOOKUP($A160,INDIRECT("'Curves "&B$10&"'!$A$14:$A$163"),_xlfn.XLOOKUP(B$11&$J$3,INDIRECT("'Curves "&B$10&"'!$11:$11")&INDIRECT("'Curves "&B$10&"'!$12:$12"),INDIRECT("'Curves "&B$10&"'!$14:$163"),,0,1),,0,1) -> 0.03286308523 | C160: =_xlfn.XLOOKUP($A160,INDIRECT("'Curves "&C$10&"'!$A$14:$A$163"),_xlfn.XLOOKUP(C$11&$J$3,INDIRECT("'Curves "&C$10&"'!$11:$11")&INDIRECT("'Curves "&C$10&"'!$12:$12"),INDIRECT("'Curves "&C$10&"'!$14:$163"),,0,1),,0,1) -> 0.03685315956 | D160: =_xlfn.XLOOKUP($A160,INDIRECT("'Curves "&D$10&"'!$A$14:$A$163"),_xlfn.XLOOKUP(D$11&$J$3,INDIRECT("'Curves "&D$10&"'!$11:$11")&INDIRECT("'Curves "&D$10&"'!$12:$12"),INDIRECT("'Curves "&D$10&"'!$14:$163"),,0,1),,0,1) -> 0.0273925237 | F160: =_xlfn.XLOOKUP($A160,INDIRECT("'Curves "&F$10&"'!$A$14:$A$163"),_xlfn.XLOOKUP(F$11&$J$3,INDIRECT("'Curves "&F$10&"'!$11:$11")&INDIRECT("'Curves "&F$10&"'!$12:$12"),INDIRECT("'Curves "&F$10&"'!$14:$163"),,0,1),,0,1) -> 0.03334640735 | G160: =_xlfn.XLOOKUP($A160,INDIRECT("'Curves "&G$10&"'!$A$14:$A$163"),_xlfn.XLOOKUP(G$11&$J$3,INDIRECT("'Curves "&G$10&"'!$11:$11")&INDIRECT("'Curves "&G$10&"'!$12:$12"),INDIRECT("'Curves "&G$10&"'!$14:$163"),,0,1),,0,1) -> 0.03733834881 | H160: =_xlfn.XLOOKUP($A160,INDIRECT("'Curves "&H$10&"'!$A$14:$A$163"),_xlfn.XLOOKUP(H$11&$J$3,INDIRECT("'Curves "&H$10&"'!$11:$11")&INDIRECT("'Curves "&H$10&"'!$12:$12"),INDIRECT("'Curves "&H$10&"'!$14:$163"),,0,1),,0,1) -> 0.0278732859
A161: 149 | B161: =_xlfn.XLOOKUP($A161,INDIRECT("'Curves "&B$10&"'!$A$14:$A$163"),_xlfn.XLOOKUP(B$11&$J$3,INDIRECT("'Curves "&B$10&"'!$11:$11")&INDIRECT("'Curves "&B$10&"'!$12:$12"),INDIRECT("'Curves "&B$10&"'!$14:$163"),,0,1),,0,1) -> 0.03286400406 | C161: =_xlfn.XLOOKUP($A161,INDIRECT("'Curves "&C$10&"'!$A$14:$A$163"),_xlfn.XLOOKUP(C$11&$J$3,INDIRECT("'Curves "&C$10&"'!$11:$11")&INDIRECT("'Curves "&C$10&"'!$12:$12"),INDIRECT("'Curves "&C$10&"'!$14:$163"),,0,1),,0,1) -> 0.03683734875 | D161: =_xlfn.XLOOKUP($A161,INDIRECT("'Curves "&D$10&"'!$A$14:$A$163"),_xlfn.XLOOKUP(D$11&$J$3,INDIRECT("'Curves "&D$10&"'!$11:$11")&INDIRECT("'Curves "&D$10&"'!$12:$12"),INDIRECT("'Curves "&D$10&"'!$14:$163"),,0,1),,0,1) -> 0.02742003596 | F161: =_xlfn.XLOOKUP($A161,INDIRECT("'Curves "&F$10&"'!$A$14:$A$163"),_xlfn.XLOOKUP(F$11&$J$3,INDIRECT("'Curves "&F$10&"'!$11:$11")&INDIRECT("'Curves "&F$10&"'!$12:$12"),INDIRECT("'Curves "&F$10&"'!$14:$163"),,0,1),,0,1) -> 0.03334408209 | G161: =_xlfn.XLOOKUP($A161,INDIRECT("'Curves "&G$10&"'!$A$14:$A$163"),_xlfn.XLOOKUP(G$11&$J$3,INDIRECT("'Curves "&G$10&"'!$11:$11")&INDIRECT("'Curves "&G$10&"'!$12:$12"),INDIRECT("'Curves "&G$10&"'!$14:$163"),,0,1),,0,1) -> 0.03731927359 | H161: =_xlfn.XLOOKUP($A161,INDIRECT("'Curves "&H$10&"'!$A$14:$A$163"),_xlfn.XLOOKUP(H$11&$J$3,INDIRECT("'Curves "&H$10&"'!$11:$11")&INDIRECT("'Curves "&H$10&"'!$12:$12"),INDIRECT("'Curves "&H$10&"'!$14:$163"),,0,1),,0,1) -> 0.02789758361
A162: 150 | B162: =_xlfn.XLOOKUP($A162,INDIRECT("'Curves "&B$10&"'!$A$14:$A$163"),_xlfn.XLOOKUP(B$11&$J$3,INDIRECT("'Curves "&B$10&"'!$11:$11")&INDIRECT("'Curves "&B$10&"'!$12:$12"),INDIRECT("'Curves "&B$10&"'!$14:$163"),,0,1),,0,1) -> 0.03286491064 | C162: =_xlfn.XLOOKUP($A162,INDIRECT("'Curves "&C$10&"'!$A$14:$A$163"),_xlfn.XLOOKUP(C$11&$J$3,INDIRECT("'Curves "&C$10&"'!$11:$11")&INDIRECT("'Curves "&C$10&"'!$12:$12"),INDIRECT("'Curves "&C$10&"'!$14:$163"),,0,1),,0,1) -> 0.03682174898 | D162: =_xlfn.XLOOKUP($A162,INDIRECT("'Curves "&D$10&"'!$A$14:$A$163"),_xlfn.XLOOKUP(D$11&$J$3,INDIRECT("'Curves "&D$10&"'!$11:$11")&INDIRECT("'Curves "&D$10&"'!$12:$12"),INDIRECT("'Curves "&D$10&"'!$14:$163"),,0,1),,0,1) -> 0.02744718212 | F162: =_xlfn.XLOOKUP($A162,INDIRECT("'Curves "&F$10&"'!$A$14:$A$163"),_xlfn.XLOOKUP(F$11&$J$3,INDIRECT("'Curves "&F$10&"'!$11:$11")&INDIRECT("'Curves "&F$10&"'!$12:$12"),INDIRECT("'Curves "&F$10&"'!$14:$163"),,0,1),,0,1) -> 0.03334178783 | G162: =_xlfn.XLOOKUP($A162,INDIRECT("'Curves "&G$10&"'!$A$14:$A$163"),_xlfn.XLOOKUP(G$11&$J$3,INDIRECT("'Curves "&G$10&"'!$11:$11")&INDIRECT("'Curves "&G$10&"'!$12:$12"),INDIRECT("'Curves "&G$10&"'!$14:$163"),,0,1),,0,1) -> 0.03730045305 | H162: =_xlfn.XLOOKUP($A162,INDIRECT("'Curves "&H$10&"'!$A$14:$A$163"),_xlfn.XLOOKUP(H$11&$J$3,INDIRECT("'Curves "&H$10&"'!$11:$11")&INDIRECT("'Curves "&H$10&"'!$12:$12"),INDIRECT("'Curves "&H$10&"'!$14:$163"),,0,1),,0,1) -> 0.02792155793

Sheet RCS and Scaling Factors
B2: Currency | C2: Scaled Risk Corrected Currency Spread | D2: VA With CSSR=1
B3: AUD | C3: 0.004275 | D3: =Table5[[#This Row],[Scaled Risk Corrected Currency Spread]]*0.85 -> 0.00363375
B4: CZK | C4: 0.003719 | D4: =Table5[[#This Row],[Scaled Risk Corrected Currency Spread]]*0.85 -> 0.00316115
B5: EUR | C5: 0.003547 | D5: =Table5[[#This Row],[Scaled Risk Corrected Currency Spread]]*0.85 -> 0.00301495
B6: GBP | C6: 0.006376 | D6: =Table5[[#This Row],[Scaled Risk Corrected Currency Spread]]*0.85 -> 0.0054196
B7: HUF | C7: 0.001925 | D7: =Table5[[#This Row],[Scaled Risk Corrected Currency Spread]]*0.85 -> 0.00163625
B8: JPY | C8: 0.002237 | D8: =Table5[[#This Row],[Scaled Risk Corrected Currency Spread]]*0.85 -> 0.00190145
B9: PLN | C9: 0.00191 | D9: =Table5[[#This Row],[Scaled Risk Corrected Currency Spread]]*0.85 -> 0.0016235
B10: RON | C10: 0.001754 | D10: =Table5[[#This Row],[Scaled Risk Corrected Currency Spread]]*0.85 -> 0.0014909
B11: USD | C11: 0.00721 | D11: =Table5[[#This Row],[Scaled Risk Corrected Currency Spread]]*0.85 -> 0.0061285

Sheet Curves without VA
A1: LLP before FSP
A2: FSP
A3: First weight
A4: First fw LLFR
A5: VA
A6: LLFR
A7: UFR
A8: LLFRVA
A9: Mean Rev
A10: Compounding
A11: Scenario | B11: Baseline | C11: Baseline | D11: Baseline | E11: Baseline | F11: Baseline | G11: Baseline | H11: Baseline | I11: Baseline | J11: Baseline | K11: Up | L11: Up | M11: Up | N11: Up | O11: Up | P11: Up | Q11: Up | R11: Up | S11: Up | T11: Down | U11: Down | V11: Down | W11: Down | X11: Down | Y11: Down | Z11: Down | AA11: Down | AB11: Down
A12: Currency | B12: EUR | C12: CZK | D12: JPY | E12: USD | F12: GBP | G12: AUD | H12: PLN | I12: HUF | J12: RON | K12: =B$12 -> EUR | L12: =C$12 -> CZK | M12: JPY | N12: USD | O12: GBP | P12: AUD | Q12: PLN | R12: HUF | S12: RON | T12: =B$12 -> EUR | U12: =C$12 -> CZK | V12: JPY | W12: USD | X12: GBP | Y12: AUD | Z12: PLN | AA12: HUF | AB12: RON
A13: Tenor | B13: Curve | C13: Curve | D13: Curve | E13: Curve | F13: Curve | G13: Curve | H13: Curve | I13: Curve | J13: Curve | K13: Curve | L13: Curve | M13: Curve | N13: Curve | O13: Curve | P13: Curve | Q13: Curve | R13: Curve | S13: Curve | T13: Curve | U13: Curve | V13: Curve | W13: Curve | X13: Curve | Y13: Curve | Z13: Curve | AA13: Curve | AB13: Curve
A14: 1 | B14: 0.02076 | C14: 0.034032 | D14: 0.009055 | E14: 0.034305 | F14: 0.0354055 | G14: 0.04078865629 | H14: 0.033113 | I14: 0.060562 | J14: 0.061114 | K14: 0.0548236 | L14: 0.07619152 | M14: 0.03597855 | N14: 0.07663105 | O14: 0.078402855 | P14: 0.08706973663 | Q14: 0.07471193 | R14: 0.11890482 | S14: 0.11979354 | T14: -0.0028808 | U14: 0.00269344 | V14: -0.0077969 | W14: 0.0028081 | X14: 0.00327031 | Y14: 0.005531235642 | Z14: 0.00230746 | AA14: 0.01383604 | AB14: 0.01406788
A15: 2 | B15: 0.02162930456 | C15: 0.03467801371 | D15: 0.0115302053 | E15: 0.03310039944 | F15: 0.03491712187 | G15: 0.04187840815 | H15: 0.036666 | I15: 0.060988 | J15: 0.062395 | K15: 0.05169283598 | L15: 0.07165736097 | M15: 0.03624121411 | N15: 0.06924361114 | O15: 0.07202319646 | P15: 0.08267396447 | Q15: 0.07469898 | R15: 0.11191164 | S15: 0.11406435 | T15: 0.0006983592342 | U15: 0.007092226717 | V15: -0.004250199404 | W15: 0.006319195726 | X15: 0.007209389715 | Y15: 0.01062041999 | Z15: 0.00806634 | AA15: 0.01998412 | AB15: 0.02067355
A16: 3 | B16: 0.02282859383 | C16: 0.0357252417 | D16: 0.01322820806 | E16: 0.0333755984 | F16: 0.03531601817 | G16: 0.04256876065 | H16: 0.03972 | I16: 0.06188 | J16: 0.063648 | K16: 0.05121460481 | L16: 0.07043061013 | M16: 0.03691003001 | N16: 0.06692964162 | O16: 0.06982086708 | P16: 0.08062745336 | Q16: 0.0763828 | R16: 0.1094012 | S16: 0.11203552 | T16: 0.004484012545 | U16: 0.01170613535 | V16: -0.0008922034874 | W16: 0.0103903351 | X16: 0.01147697018 | Y16: 0.01553850596 | Z16: 0.0139432 | AA16: 0.0263528 | AB16: 0.02734288
A17: 4 | B17: 0.02386292833 | C17: 0.03675931044 | D17: 0.01427931409 | E17: 0.0339710888 | F17: 0.03592296646 | G17: 0.04317694316 | H17: 0.042338 | I17: 0.062856 | J17: 0.064669 | K17: 0.05093987536 | L17: 0.06976859325 | M17: 0.03694779857 | N17: 0.06569778965 | O17: 0.06854753103 | P17: 0.07913833702 | Q17: 0.07791348 | R17: 0.10786976 | S17: 0.11051674 | T17: 0.006917756998 | U17: 0.01465558627 | V17: 0.001167588454 | W17: 0.01298265328 | X17: 0.01415377988 | Y17: 0.0185061659 | Z17: 0.0180028 | AA17: 0.0303136 | AB17: 0.0314014
A18: 5 | B18: 0.02478759707 | C18: 0.03738024718 | D18: 0.01512735214 | E18: 0.03465759453 | F18: 0.03665310754 | G18: 0.04384587353 | H18: 0.044556 | I18: 0.063826 | J18: 0.065419 | K18: 0.05174201576 | L18: 0.07000135841 | M18: 0.0377346606 | N18: 0.06605351206 | O18: 0.06894700594 | P18: 0.07937651662 | Q18: 0.0804062 | R18: 0.1083477 | S18: 0.11065755 | T18: 0.007772558244 | U18: 0.01532814831 | V18: 0.001976411284 | W18: 0.01369455672 | X18: 0.01489186453 | Y18: 0.01920752412 | Z18: 0.0196336 | AA18: 0.0311956 | AB18: 0.0321514
A19: 6 | B19: 0.02564868671 | C19: 0.03843290225 | D19: 0.01584720506 | E19: 0.03542903628 | F19: 0.03731037153 | G19: 0.0445285016 | H19: 0.046453 | I19: 0.064773 | J19: 0.065928 | K19: 0.05056464826 | L19: 0.06859039217 | M19: 0.03674455914 | N19: 0.06435494115 | O19: 0.06700762385 | P19: 0.07718518725 | Q19: 0.07989873 | R19: 0.10572993 | S19: 0.10735848 | T19: 0.009202185758 | U19: 0.01712839939 | V19: 0.003125267139 | W19: 0.01526600249 | X19: 0.01643243035 | Y19: 0.02090767099 | Z19: 0.02210086 | AA19: 0.03345926 | AB19: 0.03417536
A20: 7 | B20: 0.02651038902 | C20: 0.03918545264 | D20: 0.01667465707 | E20: 0.03619448933 | F20: 0.03811324798 | G20: 0.04526821379 | H20: 0.048092 | I20: 0.065688 | J20: 0.066245 | K20: 0.04931923296 | L20: 0.06668407011 | M20: 0.03584428018 | N20: 0.06258645038 | O20: 0.06521514973 | P20: 0.07501745289 | Q20: 0.07888604 | R20: 0.10299256 | S20: 0.10375565 | T20: 0.01040154508 | U20: 0.01838683516 | V20: 0.004205033953 | W20: 0.01650252828 | X20: 0.01771134623 | Y20: 0.02221897469 | Z20: 0.02399796 | AA20: 0.03508344 | AB20: 0.03543435
A21: 8 | B21: 0.02723990981 | C21: 0.0397502233 | D21: 0.0174247294 | E21: 0.03693772509 | F21: 0.03891790221 | G21: 0.04596257826 | H21: 0.049487 | I21: 0.066565 | J21: 0.066409 | K21: 0.04840147914 | L21: 0.06516529923 | M21: 0.0352491374 | N21: 0.06139655162 | O21: 0.06404998895 | P21: 0.07348985487 | Q21: 0.07821258 | R21: 0.1010971 | S21: 0.10088806 | T21: 0.01068874408 | U21: 0.01844513845 | V21: 0.004603332231 | W21: 0.01670138956 | X21: 0.01792909937 | Y21: 0.02229679852 | Z21: 0.02448194 | AA21: 0.0350703 | AB21: 0.03497358
A22: 9 | B22: 0.02792521567 | C22: 0.04018970157 | D22: 0.01819389347 | E22: 0.03766464513 | F22: 0.0397076996 | G22: 0.04661014119 | H22: 0.050661 | I22: 0.0674 | J22: 0.066467 | K22: 0.04806128469 | L22: 0.06425040608 | M22: 0.03521593938 | N22: 0.06091733158 | O22: 0.06361416348 | P22: 0.07272538637 | Q22: 0.07807252 | R22: 0.100168 | S22: 0.09893644 | T22: 0.01093438156 | U22: 0.01841571796 | V22: 0.004998275018 | W22: 0.01687543353 | X22: 0.01812169676 | Y22: 0.02233218613 | Z22: 0.02480321 | AA22: 0.035014 | AB22: 0.03444487
A23: 10 | B23: 0.02863084156 | C23: 0.04054141793 | D23: 0.01897762108 | E23: 0.03837525672 | F23: 0.04044632031 | G23: 0.04717695084 | H23: 0.051621 | I23: 0.068196 | J23: 0.066466 | K23: 0.04772009402 | L23: 0.06320384331 | M23: 0.03517090741 | N23: 0.06038783374 | O23: 0.0630802164 | P23: 0.07183003609 | Q23: 0.0776073 | R23: 0.0991548 | S23: 0.0969058 | T23: 0.01107850493 | U23: 0.01822485076 | V23: 0.005286572651 | W23: 0.01692515403 | X23: 0.01816779218 | Y23: 0.0222061705 | Z23: 0.0248726 | AA23: 0.0348176 | AB23: 0.0337796
A24: 11 | B24: 0.0292081741 | C24: 0.04105263184 | D24: 0.01988839236 | E24: 0.03912212463 | F24: 0.04119803769 | G24: 0.04773616075 | H24: 0.04989447472 | I24: 0.068941 | J24: 0.06335917168 | K24: 0.04847062633 | L24: 0.06386842139 | M24: 0.03635491007 | N24: 0.06135876202 | O24: 0.064057449 | P24: 0.07255700898 | Q24: 0.07703496557 | R24: 0.1001233 | S24: 0.09502575886 | T24: 0.01123282272 | U24: 0.01822105279 | V24: 0.005734151492 | W24: 0.01708205353 | X24: 0.01830684224 | Y24: 0.02216433485 | Z24: 0.02495821969 | AA24: 0.03467519 | AB24: 0.03325345343
A25: 12 | B25: 0.02974789095 | C25: 0.04147883528 | D25: 0.02064799024 | E25: 0.0397449249 | F25: 0.04182488371 | G25: 0.04820239713 | H25: 0.04845976924 | I25: 0.069647 | J25: 0.06077898542 | K25: 0.04917225823 | L25: 0.06442248587 | M25: 0.03734238731 | N25: 0.06216840237 | O25: 0.06487234882 | P25: 0.07316311627 | Q25: 0.0762314021 | R25: 0.1010411 | S25: 0.09308470897 | T25: 0.01125377675 | U25: 0.01805772446 | V25: 0.005975834338 | W25: 0.01705205644 | X25: 0.01825843255 | Y25: 0.02195739033 | Z25: 0.02507875238 | AA25: 0.03439526 | AB25: 0.03284561678
A26: 13 | B26: 0.03033330213 | C26: 0.04183960525 | D26: 0.02159187177 | E26: 0.04038164888 | F26: 0.04251102141 | G26: 0.04862618571 | H26: 0.04724888853 | I26: 0.070309 | J26: 0.05860222795 | K26: 0.04993329277 | L26: 0.06489148682 | M26: 0.0385694333 | N26: 0.06299614354 | O26: 0.06576432784 | P26: 0.07371404142 | Q26: 0.07528189729 | R26: 0.1019017 | S26: 0.09113394147 | T26: 0.01138998221 | U26: 0.01794857499 | V26: 0.006407366907 | W26: 0.01711753986 | X26: 0.01833128221 | Y26: 0.02181692585 | Z26: 0.02522142451 | AA26: 0.03417613 | AB26: 0.0325257925
A27: 14 | B27: 0.03072993256 | C27: 0.04214893611 | D27: 0.02240160779 | E27: 0.04092772262 | F27: 0.0430994991 | G27: 0.04898956943 | H27: 0.04621340812 | I27: 0.070929 | J27: 0.05674130872 | K27: 0.049841613 | L27: 0.06457212758 | M27: 0.03909807406 | N27: 0.06299676218 | O27: 0.06579835384 | P27: 0.07339654457 | Q27: 0.07424429696 | R27: 0.10169841 | S27: 0.08920636178 | T27: 0.01140876223 | U27: 0.01780340422 | V27: 0.006744900365 | W27: 0.01711952467 | X27: 0.0183357195 | Y27: 0.02163415888 | Z27: 0.02537756871 | AA27: 0.03392024 | AB27: 0.03227264587
A28: 15 | B28: 0.03107380243 | C28: 0.04241709715 | D28: 0.02310389816 | E28: 0.04140121838 | F28: 0.04360978179 | G28: 0.04930460385 | H28: 0.04531790952 | I28: 0.071511 | J28: 0.05513225816 | K28: 0.04957446712 | L28: 0.06409388435 | M28: 0.03937298964 | N28: 0.06279355952 | O28: 0.06562052069 | P28: 0.07290989293 | Q28: 0.07315841774 | R28: 0.10133408 | S28: 0.08732298701 | T28: 0.01139059134 | U28: 0.01762940343 | V28: 0.007007143987 | W28: 0.01707067011 | X28: 0.01828537999 | Y28: 0.02141753212 | Z28: 0.02554120985 | AA28: 0.03363105 | AB28: 0.03207078173
A29: 16 | B29: 0.03132792881 | C29: 0.04181242743 | D29: 0.02400960207 | E29: 0.04176001133 | F29: 0.0440486252 | G29: 0.04950807331 | H29: 0.0445358914 | I29: 0.06907933733 | J29: 0.05372727124 | K29: 0.04989974887 | L29: 0.06409979363 | M29: 0.04053229066 | N29: 0.0632528145 | O29: 0.06618224025 | P29: 0.07317033384 | Q29: 0.07205192169 | R29: 0.1008354335 | S29: 0.08549697541 | T29: 0.01100380227 | U29: 0.01760460947 | V29: 0.0071250891 | W29: 0.01653280601 | X29: 0.01774577135 | Y29: 0.02063927885 | Z29: 0.02570818622 | AA29: 0.03341417993 | AB29: 0.03190886069
A30: 17 | B30: 0.03155220997 | C30: 0.04128051868 | D30: 0.0248094184 | E30: 0.04207669601 | F30: 0.04443599321 | G30: 0.04968763795 | H30: 0.04384713169 | I30: 0.06699340593 | J30: 0.05248990743 | K30: 0.04957130667 | L30: 0.06392053946 | M30: 0.04100796137 | N30: 0.06293740393 | O30: 0.06593371138 | P30: 0.0726033002 | Q30: 0.07094410235 | R30: 0.1000808335 | S30: 0.08373620405 | T30: 0.01090714919 | U30: 0.0176695802 | V30: 0.007400897569 | W30: 0.01637988192 | X30: 0.01760671647 | Y30: 0.02033757173 | Z30: 0.0258755847 | AA30: 0.03328605218 | AB30: 0.03177838406
A31: 18 | B31: 0.03175161196 | C31: 0.04080906538 | D31: 0.02552089068 | E31: 0.04235827431 | F31: 0.04478044099 | G31: 0.04984727675 | H31: 0.04323593357 | I31: 0.06518917607 | J31: 0.05139190488 | K31: 0.04910703107 | L31: 0.06360520386 | M31: 0.04125632225 | N31: 0.06247142563 | O31: 0.06552335565 | P31: 0.07190756871 | Q31: 0.06984839221 | R31: 0.09914439887 | S31: 0.08204496092 | T31: 0.0107933221 | U31: 0.01780082386 | V31: 0.007615654246 | W31: 0.0162027199 | X31: 0.0174380249 | Y31: 0.02002211114 | Z31: 0.02604136744 | AA31: 0.03322563453 | AB31: 0.03167288665
A32: 19 | B32: 0.03193005693 | C32: 0.04038837534 | D32: 0.02615788981 | E32: 0.04261027729 | F32: 0.0450887274 | G32: 0.04999013205 | H32: 0.04268992803 | I32: 0.06361686927 | J32: 0.05041100923 | K32: 0.04933187173 | L32: 0.06319077862 | M32: 0.04205894116 | N32: 0.06278894938 | O32: 0.06591179652 | P32: 0.07208756638 | Q32: 0.06877406214 | R32: 0.09808158816 | S32: 0.08042507968 | T32: 0.01108432904 | U32: 0.01798064663 | V32: 0.008140523803 | W32: 0.01653124142 | X32: 0.01779525097 | Y32: 0.02029496735 | Z32: 0.02620411903 | AA32: 0.03321695042 | AB32: 0.03158738665
A33: 20 | B33: 0.03209068379 | C33: 0.0400107127 | D33: 0.02673152732 | E33: 0.04283713206 | F33: 0.04536626294 | G33: 0.05011871844 | H33: 0.04219923743 | I33: 0.06223728048 | J33: 0.04952945896 | K33: 0.04891335474 | L33: 0.0627053407 | M33: 0.04221440915 | N33: 0.06234641507 | O33: 0.06550782867 | P33: 0.07144839805 | Q33: 0.0677273963 | R33: 0.09693412531 | S33: 0.07887671422 | T33: 0.0110453419 | U33: 0.01819561366 | V33: 0.00836576366 | W33: 0.01641856603 | X33: 0.01768313147 | Y33: 0.02005935922 | Z33: 0.02636287188 | AA33: 0.03324774854 | AB33: 0.03151800224
A34: 21 | B34: 0.03212370532 | C34: 0.03966982947 | D34: 0.02727622291 | E34: 0.04286705106 | F34: 0.04552882359 | G34: 0.05004385093 | H34: 0.04175587912 | I34: 0.06101917421 | J34: 0.04873290692 | K34: 0.04853209862 | L34: 0.06217031325 | M34: 0.04279527864 | N34: 0.06228381383 | O34: 0.06561102948 | P34: 0.07125481367 | Q34: 0.06671251824 | R34: 0.09573350991 | S34: 0.07739887505 | T34: 0.01105712174 | U34: 0.01843546068 | V34: 0.009010873686 | W34: 0.01696219604 | X34: 0.01831970003 | Y34: 0.02062236398 | Z34: 0.02651698325 | AA34: 0.03330856062 | AB34: 0.03146167917
A35: 22 | B35: 0.0321547461 | C35: 0.03936062536 | D35: 0.02777165148 | E35: 0.0428942509 | F35: 0.04567662793 | G35: 0.0499757942 | H35: 0.04135333243 | I35: 0.0599374067 | J35: 0.04800963817 | K35: 0.04815484206 | L35: 0.06160210102 | M35: 0.04293684783 | N35: 0.06168887112 | O35: 0.06513901864 | P35: 0.0704699848 | Q35: 0.06573198027 | R35: 0.09450355634 | S35: 0.07598980507 | T35: 0.01116254836 | U35: 0.01869231094 | V35: 0.00898582574 | W35: 0.01654712545 | X35: 0.01793831397 | Y35: 0.0200878971 | Z35: 0.02666604755 | AA35: 0.03339202265 | AB35: 0.03141599365
A36: 23 | B36: 0.0321839628 | C36: 0.03907889666 | D36: 0.02822420797 | E36: 0.04291908616 | F36: 0.04581159797 | G36: 0.04991365929 | H36: 0.04098621916 | I36: 0.0589715493 | J36: 0.04734999331 | K36: 0.04778414315 | L36: 0.06101328969 | M36: 0.04319801788 | N36: 0.06141966684 | O36: 0.06500638149 | P36: 0.07009293752 | Q36: 0.06478718908 | R36: 0.09326225493 | S36: 0.074647245 | T36: 0.01133999388 | U36: 0.01896010336 | V36: 0.009029861904 | W36: 0.01623035222 | X36: 0.01764768301 | Y36: 0.01965769305 | Z36: 0.0268098328 | AA36: 0.03349237831 | AB36: 0.03137900779
A37: 24 | B37: 0.03221149612 | C37: 0.03882114829 | D37: 0.02863922647 | E37: 0.04294185233 | F37: 0.04593533581 | G37: 0.04985670552 | H37: 0.04065006426 | I37: 0.05810486429 | J37: 0.04674593697 | K37: 0.04742182359 | L37: 0.06041353619 | M37: 0.04322624856 | N37: 0.06081847837 | O37: 0.06450046305 | P37: 0.06932374779 | Q37: 0.06387871643 | R37: 0.09202315222 | S37: 0.07336862204 | T37: 0.01157238697 | U37: 0.01923416927 | V37: 0.00923322097 | W37: 0.01624150764 | X37: 0.01770831455 | Y37: 0.0196297857 | Z37: 0.02694823427 | AA37: 0.03360511079 | AB37: 0.03134916177
A38: 25 | B38: 0.03223747296 | C38: 0.03858445099 | D38: 0.02902119144 | E38: 0.04296279765 | F38: 0.04604918756 | G38: 0.04980431078 | H38: 0.0403411142 | I38: 0.05732353276 | J38: 0.04619073062 | K38: 0.04706914726 | L38: 0.05981023692 | M38: 0.04320585355 | N38: 0.06021461313 | O38: 0.06398000882 | P38: 0.06856125915 | Q38: 0.06300652777 | R38: 0.09079638497 | S38: 0.07215118439 | T38: 0.01184620066 | U38: 0.01951091555 | V38: 0.00923017189 | W38: 0.01592214287 | X38: 0.01740361003 | Y38: 0.01920606917 | Z38: 0.02708124019 | AA38: 0.03372666653 | AB38: 0.03132519272
A39: 26 | B39: 0.03226200824 | C39: 0.03836633176 | D39: 0.02937390037 | E39: 0.04281865284 | F39: 0.04601726406 | G39: 0.04958589197 | H39: 0.04005619743 | I39: 0.05661606541 | J39: 0.04567868135 | K39: 0.04672695438 | L39: 0.05920903403 | M39: 0.04343615845 | N39: 0.05983875646 | O39: 0.06374106215 | P39: 0.06809478821 | Q39: 0.06217015187 | R39: 0.08958946208 | S39: 0.07099209707 | T39: 0.01215068579 | U39: 0.01978758484 | V39: 0.009499472178 | W39: 0.01595295336 | X39: 0.01748828675 | Y39: 0.01920122815 | Z39: 0.02720890627 | AA39: 0.03385424567 | AB39: 0.03130607285
A40: 27 | B40: 0.03228520632 | C40: 0.03816468871 | D40: 0.02970059051 | E40: 0.04268520318 | F40: 0.04598770613 | G40: 0.04938369286 | H40: 0.03979261603 | I40: 0.05597284806 | J40: 0.0452049468 | K40: 0.04639576317 | L40: 0.05861420237 | M40: 0.04333771452 | N40: 0.05904909585 | O40: 0.06304512441 | P40: 0.06715426836 | Q40: 0.06136880712 | R40: 0.08840786048 | S40: 0.06988851 | T40: 0.01247728457 | U40: 0.02006207238 | V40: 0.00945927754 | W40: 0.01556204549 | X40: 0.01711422188 | Y40: 0.01871033564 | Z40: 0.02733133663 | AA40: 0.03398564163 | AB40: 0.03129096172
A41: 28 | B41: 0.03230716226 | C41: 0.03797772419 | D41: 0.03000403848 | E41: 0.04256130093 | F41: 0.04596026022 | G41: 0.04919597141 | H41: 0.03954806059 | I41: 0.05538578753 | J41: 0.04476538221 | K41: 0.04607584739 | L41: 0.05802894742 | M41: 0.04350488656 | N41: 0.05869917413 | O41: 0.06281191487 | P41: 0.06672712541 | Q41: 0.06060149613 | R41: 0.08725548249 | S41: 0.0688376059 | T41: 0.01281917789 | U41: 0.02033278507 | V41: 0.009701898084 | W41: 0.01560381144 | X41: 0.01720132231 | Y41: 0.01872210656 | Z41: 0.02744866953 | AA41: 0.03411911714 | AB41: 0.03127916934
A42: 29 | B42: 0.03232796286 | C42: 0.03780389195 | D42: 0.03028663938 | E42: 0.0424459569 | F42: 0.04593470779 | G42: 0.04902122646 | H42: 0.03932054287 | I42: 0.05484803314 | J42: 0.0443564193 | K42: 0.04576729579 | L42: 0.05745563628 | M42: 0.04334396726 | N42: 0.05793514828 | O42: 0.06212164935 | P42: 0.06582547175 | Q42: 0.05986707671 | R42: 0.08613500906 | S42: 0.06783663354 | T42: 0.01317093289 | U42: 0.02059853211 | V42: 0.01003472051 | W42: 0.01574959974 | X42: 0.01738931266 | Y42: 0.01883997644 | Z42: 0.02756106652 | AA42: 0.03425330785 | AB42: 0.0312701271
A43: 30 | B43: 0.03234768754 | C43: 0.03764185479 | D43: 0.03055047018 | E43: 0.04233831399 | F43: 0.04591085942 | G43: 0.04885815743 | H43: 0.03910834193 | I43: 0.05435375594 | J43: 0.04397496951 | K43: 0.0454700579 | L43: 0.05689597775 | M43: 0.04356056422 | N43: 0.05770597679 | O43: 0.0619930313 | P43: 0.06552978892 | Q43: 0.05916431502 | R43: 0.08504817402 | S43: 0.0668829302 | T43: 0.01352822676 | U43: 0.02085843969 | V43: 0.01025872099 | W43: 0.01579900758 | X43: 0.01747810393 | Y43: 0.01886333399 | Z43: 0.02766870436 | AA43: 0.03438714673 | AB43: 0.0312633649
A44: 31 | B44: 0.0323664091 | C44: 0.03749045058 | D44: 0.03062074782 | E44: 0.04202874671 | F44: 0.04571727742 | G44: 0.04833576374 | H44: 0.03890996074 | I44: 0.05389797222 | J44: 0.04361834607 | K44: 0.04518397947 | L44: 0.05635116352 | M44: 0.04362556578 | N44: 0.05728321131 | O44: 0.0618607329 | P44: 0.06501368019 | Q44: 0.0584919256 | R44: 0.08399597797 | S44: 0.06597393631 | T44: 0.01388762864 | U44: 0.02111188397 | V44: 0.01040877785 | W44: 0.01580685875 | X44: 0.01748712039 | Y44: 0.01883248228 | Z44: 0.02777176883 | AA44: 0.0345198045 | AB44: 0.03125849299
A45: 32 | B45: 0.03238419442 | C45: 0.03734866459 | D45: 0.03068426079 | E45: 0.04173931886 | F45: 0.04553582684 | G45: 0.04784696808 | H45: 0.03872409098 | I45: 0.05347640149 | J45: 0.04328420079 | K45: 0.04490882988 | L45: 0.05582197931 | M45: 0.04364703739 | N45: 0.05685333817 | O45: 0.06174299221 | P45: 0.06447968971 | Q45: 0.05784860109 | R45: 0.08297885575 | S45: 0.06510720426 | T45: 0.01424642654 | U45: 0.02135843831 | V45: 0.01059958854 | W45: 0.01586414763 | X45: 0.01750183861 | Y45: 0.01884755299 | Z45: 0.02787045015 | AA45: 0.0346506424 | AB45: 0.03125518742
A46: 33 | B46: 0.03240110501 | C46: 0.03721560694 | D46: 0.03074186337 | E46: 0.04146812016 | F46: 0.04536540194 | G46: 0.04738862234 | H46: 0.0385495843 | I46: 0.05308535143 | J46: 0.04297047243 | K46: 0.0446443235 | L46: 0.0553088927 | M46: 0.04363292064 | N46: 0.05642042835 | O46: 0.06153848233 | P46: 0.06393457675 | Q46: 0.05723303441 | R46: 0.081996808 | S46: 0.06428040301 | T46: 0.01460248923 | U46: 0.0215978314 | V46: 0.0108224093 | W46: 0.01596134383 | X46: 0.01716808489 | Y46: 0.01889992908 | Z46: 0.02796493952 | AA46: 0.03477917457 | AB46: 0.03125317832
A47: 34 | B47: 0.03241719751 | C47: 0.03709049404 | D47: 0.03079428518 | E47: 0.04121347329 | F47: 0.04520502742 | G47: 0.04695795868 | H47: 0.03838542855 | I47: 0.05272162407 | J47: 0.04267534416 | K47: 0.04439013621 | L47: 0.0548121228 | M47: 0.04358982331 | N47: 0.05598772483 | O47: 0.0613460329 | P47: 0.06338378191 | Q47: 0.05664393503 | R47: 0.08104950463 | S47: 0.06349131966 | T47: 0.01495415541 | U47: 0.02182991404 | V47: 0.01107003598 | W47: 0.01609055119 | X47: 0.01719431261 | Y47: 0.01898245995 | Z47: 0.02805542654 | AA47: 0.03490503794 | AB47: 0.03125224048
A48: 35 | B48: 0.03243252418 | C48: 0.03697263323 | D48: 0.03084215148 | E48: 0.0409738997 | F48: 0.04505383969 | G48: 0.04655253406 | H48: 0.03823072828 | I48: 0.05238243883 | J48: 0.04239720845 | K48: 0.04414591826 | L48: 0.05433169557 | M48: 0.04352324919 | N48: 0.05555779628 | O48: 0.06116460762 | P48: 0.06283166838 | Q48: 0.05608004073 | R48: 0.08013636652 | S48: 0.06273785871 | T48: 0.01530014457 | U48: 0.0220546326 | V48: 0.01133653121 | W48: 0.01624522091 | X48: 0.01722476626 | Y48: 0.01908920487 | Z48: 0.02814209732 | AA48: 0.0350279681 | AB48: 0.03125218562
A49: 36 | B49: 0.03244713329 | C49: 0.03686141001 | D49: 0.03088599974 | E49: 0.04074809128 | F49: 0.04491107135 | G49: 0.0461701842 | H49: 0.03808468838 | I49: 0.05206536917 | J49: 0.04213463777 | K49: 0.04391130424 | L49: 0.05386748795 | M49: 0.043437786 | N49: 0.0551326616 | O49: 0.06109328562 | P49: 0.06228171772 | Q49: 0.05554012601 | R49: 0.07925662994 | S49: 0.06201803984 | T49: 0.01563948486 | U49: 0.02227200787 | V49: 0.01161700287 | W49: 0.01641991824 | X49: 0.01725909282 | Y49: 0.01921522427 | Z49: 0.02822513318 | AA49: 0.03514777977 | AB49: 0.03125285617
A50: 37 | B50: 0.03246106946 | C50: 0.03675627736 | D50: 0.03092629334 | E50: 0.04053488666 | F50: 0.04477603818 | G50: 0.04580898512 | H50: 0.03794660044 | I50: 0.05176829 | J50: 0.04188636013 | K50: 0.04368592074 | L50: 0.05341926302 | M50: 0.04333725951 | N50: 0.05471389118 | O50: 0.0613790062 | P50: 0.06173668949 | Q50: 0.05502300774 | R50: 0.07840939742 | S50: 0.06132999453 | T50: 0.01597145468 | U50: 0.02248211812 | V50: 0.01190742329 | W50: 0.01661013214 | X50: 0.01684921718 | Y50: 0.01935640932 | Z50: 0.02830470964 | AA50: 0.03526435116 | AB50: 0.0312541201
A51: 38 | B51: 0.03247437397 | C51: 0.03665674673 | D51: 0.03096343297 | E51: 0.04033325134 | F51: 0.04464812811 | G51: 0.04546722079 | H51: 0.03781583125 | I51: 0.05148933395 | J51: 0.04165123843 | K51: 0.04346939229 | L51: 0.05298669801 | M51: 0.04322486046 | N51: 0.05430268941 | O51: 0.06122423501 | P51: 0.06119875148 | Q51: 0.05452754894 | R51: 0.07759367787 | S51: 0.06067196193 | T51: 0.01629553512 | U51: 0.02268508551 | V51: 0.01220448125 | W51: 0.01681211918 | X51: 0.01689165765 | Y51: 0.01950934209 | Z51: 0.02838099579 | AA51: 0.03537761113 | AB51: 0.0312558667
A52: 39 | B52: 0.03248708509 | C52: 0.03656238046 | D52: 0.03099776605 | E52: 0.04014226097 | F52: 0.04452679201 | G52: 0.04514335592 | H52: 0.03769181308 | I52: 0.0512268548 | J52: 0.04142825309 | K52: 0.04326134583 | L52: 0.05256940678 | M52: 0.04310324929 | N52: 0.05389996217 | O52: 0.06117741833 | P52: 0.06066958645 | Q52: 0.05405266091 | R52: 0.07680841818 | S52: 0.06004228433 | T52: 0.01661137124 | U52: 0.0228810652 | V52: 0.01250546028 | W52: 0.01702277511 | X52: 0.01649178848 | Y52: 0.01967118054 | Z52: 0.02845415394 | AA52: 0.03548752896 | AB52: 0.03125800312
A53: 40 | B53: 0.03249923831 | C53: 0.03647278536 | D53: 0.03102959463 | E53: 0.03996108711 | F53: 0.04441153577 | G53: 0.04483601284 | H53: 0.03757403548 | I53: 0.05097939676 | J53: 0.04121648726 | K53: 0.0430614141 | L53: 0.0521669576 | M53: 0.04297464288 | N53: 0.05350637207 | O53: 0.06103795828 | P53: 0.06015047968 | Q53: 0.05359730427 | R53: 0.07605252798 | S53: 0.05943940224 | T53: 0.01691874039 | U53: 0.02307023663 | V53: 0.0128081384 | W53: 0.01723952891 | X53: 0.01609696038 | Y53: 0.01983956343 | Z53: 0.02852433935 | AA53: 0.03559410585 | AB53: 0.03126045143
A54: 41 | B54: 0.03251086656 | C54: 0.03638760716 | D54: 0.031059182 | E54: 0.03978898523 | F54: 0.04415586007 | G54: 0.04454395185 | H54: 0.03746203818 | I54: 0.0507456686 | J54: 0.04101511415 | K54: 0.04286923818 | L54: 0.05177888743 | M54: 0.04284088663 | N54: 0.05312238377 | O54: 0.06082859069 | P54: 0.059642391 | Q54: 0.05316048907 | R54: 0.07532489906 | S54: 0.05886184946 | T54: 0.01721752636 | U54: 0.02325279657 | V54: 0.01311070514 | W54: 0.017460255 | X54: 0.01608701983 | Y54: 0.02001253167 | Z54: 0.02859170017 | AA54: 0.0356973682 | AB54: 0.03126314626
A55: 42 | B55: 0.03252200045 | C55: 0.03630652588 | D55: 0.03108675825 | E55: 0.03962528433 | F55: 0.0439124176 | G55: 0.04426605442 | H55: 0.03735540514 | I55: 0.05052452168 | J55: 0.04082338634 | K55: 0.04268446927 | L55: 0.0514047132 | M55: 0.04270351438 | N55: 0.05274830123 | O55: 0.06053402529 | P55: 0.05914601412 | Q55: 0.05274127428 | R55: 0.07462442042 | S55: 0.05830824806 | T55: 0.01750769818 | U55: 0.0234289535 | V55: 0.01341169282 | W55: 0.01768320039 | X55: 0.01564321539 | Y55: 0.02018846288 | Z55: 0.02865637749 | AA55: 0.03579736198 | AB55: 0.03126603279
A56: 43 | B56: 0.03253266842 | C56: 0.03622925174 | D56: 0.03111252493 | E56: 0.0394693782 | F56: 0.04368035089 | G56: 0.04400130875 | H56: 0.03725375932 | I56: 0.05031493141 | J56: 0.04064062636 | K56: 0.04250677003 | L56: 0.05104394072 | M56: 0.04256379843 | N56: 0.05238429837 | O56: 0.06035322458 | P56: 0.05866182554 | Q56: 0.0523387668 | R56: 0.07394998988 | S56: 0.05777730343 | T56: 0.01778929267 | U56: 0.02359892318 | V56: 0.01370991939 | W56: 0.01790692403 | X56: 0.01520894387 | Y56: 0.02036601697 | Z56: 0.02871850543 | AA56: 0.03589414824 | AB56: 0.03126906509
A57: 44 | B57: 0.03254289697 | C57: 0.03615552171 | D57: 0.03113665906 | E57: 0.03932071775 | F57: 0.0434588808 | G57: 0.0437487974 | H57: 0.03715675823 | I57: 0.05011598133 | J57: 0.04046621882 | K57: 0.04233581537 | L57: 0.05069607175 | M57: 0.04242279133 | N57: 0.05203044433 | O57: 0.06008524577 | P57: 0.05819012498 | Q57: 0.05195212006 | R57: 0.07330052289 | S57: 0.05726779948 | T57: 0.01806240026 | U57: 0.02376292515 | V57: 0.01400444087 | W57: 0.01813024621 | X57: 0.01434896351 | Y57: 0.02054409067 | Z57: 0.0287782113 | AA57: 0.03598779941 | AB57: 0.03127220472
A58: 45 | B58: 0.03255271076 | C58: 0.03608509648 | D58: 0.03115931645 | E58: 0.03917880448 | F58: 0.04324729773 | G58: 0.04350768653 | H58: 0.03706409006 | I58: 0.04992684956 | J58: 0.04029960337 | K58: 0.04217129303 | L58: 0.05036060947 | M58: 0.04228136094 | N58: 0.05168672422 | O58: 0.05982923025 | P58: 0.05773106878 | Q58: 0.05158053247 | R58: 0.07267495921 | S58: 0.05677859396 | T58: 0.01832715322 | U58: 0.02392117989 | V58: 0.01429451165 | W58: 0.0183522063 | X58: 0.01393397314 | Y58: 0.02072177949 | Z58: 0.02883561583 | AA58: 0.03607839635 | AB58: 0.03127541955
A59: 46 | B59: 0.03256213279 | C59: 0.03601775787 | D59: 0.03118063459 | E59: 0.03904318479 | F59: 0.04304495407 | G59: 0.04327721659 | H59: 0.03697547033 | I59: 0.04974679719 | J59: 0.04014026871 | K59: 0.04201290379 | L59: 0.05003706279 | M59: 0.04214021975 | N59: 0.0513530563 | O59: 0.05958439442 | P59: 0.05728469756 | Q59: 0.05122324565 | R59: 0.07207226777 | S59: 0.05630861401 | T59: 0.01858371613 | U59: 0.02407390669 | V59: 0.01457955135 | W59: 0.01857202727 | X59: 0.01405708255 | Y59: 0.02089834593 | Z59: 0.02889083339 | AA59: 0.0361660259 | AB59: 0.03127868281
A60: 47 | B60: 0.03257118451 | C60: 0.03595330651 | D60: 0.03120073507 | E60: 0.03891344505 | F60: 0.04285125755 | G60: 0.04305669427 | H60: 0.03689063897 | I60: 0.04957515826 | J60: 0.03998774736 | K60: 0.04186036156 | L60: 0.04972494954 | M60: 0.04199994958 | N60: 0.05102930613 | O60: 0.05935002164 | P60: 0.05685095904 | Q60: 0.05087954256 | R60: 0.07149145008 | S60: 0.05585685187 | T60: 0.01883227797 | U60: 0.02422132195 | V60: 0.01485911706 | W60: 0.01878908606 | X60: 0.01365496529 | Y60: 0.02107319265 | Z60: 0.02894397224 | AA60: 0.03625077893 | AB60: 0.03128197221
A61: 48 | B61: 0.03257988594 | C61: 0.03589155989 | D61: 0.03121972566 | E61: 0.03878920732 | F61: 0.04266566548 | G61: 0.04284548541 | H61: 0.03680935771 | I61: 0.04941133113 | J61: 0.03984161104 | K61: 0.04171339326 | L61: 0.049423799 | M61: 0.04186102235 | N61: 0.05071529815 | O61: 0.05902545523 | P61: 0.05642972697 | Q61: 0.05054874558 | R61: 0.07093154265 | S61: 0.05542236084 | T61: 0.01907304571 | U61: 0.02436363783 | V61: 0.01513288008 | W61: 0.01900288857 | X61: 0.01325963957 | Y61: 0.02124584006 | Z61: 0.02899513482 | AA61: 0.03633274875 | AB61: 0.03128526929
A62: 49 | B62: 0.03258825578 | C62: 0.03583235061 | D62: 0.0312377021 | E62: 0.03867012551 | F62: 0.04248767963 | G62: 0.04264300882 | H62: 0.03673140789 | I62: 0.04925477098 | J62: 0.03970146663 | K62: 0.04157173861 | L62: 0.04913315365 | M62: 0.04172381757 | N62: 0.05041082532 | O62: 0.05881009235 | P62: 0.05602081678 | Q62: 0.05023021463 | R62: 0.07039161839 | S62: 0.05500425139 | T62: 0.01930623906 | U62: 0.02450106136 | V62: 0.01540060647 | W62: 0.01921304868 | X62: 0.01339556467 | Y62: 0.02141590733 | Z62: 0.02904441799 | AA62: 0.03641202986 | AB62: 0.03128855881
A63: 50 | B63: 0.03259631154 | C63: 0.03577552482 | D63: 0.03125474966 | E63: 0.03855588219 | F63: 0.04231684179 | G63: 0.04244873089 | H63: 0.03665658849 | I63: 0.04910498338 | J63: 0.03956695269 | K63: 0.04143514982 | L63: 0.04885257046 | M63: 0.04158863708 | N63: 0.05011565697 | O63: 0.05850337857 | P63: 0.05562399851 | Q63: 0.04992334521 | R63: 0.0698707874 | S63: 0.05460168757 | T63: 0.01953208621 | U63: 0.02463379366 | V63: 0.01566214063 | W63: 0.01941927059 | X63: 0.01301089463 | Y63: 0.02158309651 | Z63: 0.02909191333 | AA63: 0.0364887169 | AB63: 0.03129182827
A64: 51 | B64: 0.03260406958 | C64: 0.03572094093 | D64: 0.0312709444 | E64: 0.03844618561 | F64: 0.04212908731 | G64: 0.04226216076 | H64: 0.03658471432 | I64: 0.04896151864 | J64: 0.03943773628 | K64: 0.04130339124 | L64: 0.04858162177 | M64: 0.04145571755 | N64: 0.04982954525 | O64: 0.05829012811 | P64: 0.05523900746 | Q64: 0.04962756657 | R64: 0.06936819717 | S64: 0.05421388357 | T64: 0.01975082033 | U64: 0.02476202944 | V64: 0.01591739164 | W64: 0.0196213339 | X64: 0.01280111229 | Y64: 0.02174717904 | Z64: 0.02913770739 | AA64: 0.0365629039 | AB64: 0.03129506745
A65: 52 | B65: 0.03261154521 | C65: 0.03566846835 | D65: 0.03128635435 | E65: 0.03834076717 | F65: 0.04194902181 | G65: 0.04208284619 | H65: 0.03651561456 | I65: 0.04882396687 | J65: 0.03931351021 | K65: 0.04117623892 | L65: 0.04831989581 | M65: 0.04132524094 | N65: 0.04955223045 | O65: 0.0580582826 | P65: 0.054865553 | Q65: 0.04934233984 | R65: 0.06888303235 | S65: 0.05384010051 | T65: 0.01996267681 | U65: 0.02488595671 | V65: 0.01616632167 | W65: 0.0198190811 | X65: 0.01265755492 | Y65: 0.02190798438 | Z65: 0.02918188195 | AA65: 0.0366346836 | AB65: 0.0312982681
A66: 53 | B66: 0.03261875279 | C66: 0.03561798648 | D66: 0.03130104049 | E66: 0.03823937918 | F66: 0.04177616354 | G66: 0.04191036977 | H66: 0.03644913136 | I66: 0.04869195373 | J66: 0.03919399062 | K66: 0.04105348016 | L66: 0.04806699693 | M66: 0.04119734346 | N66: 0.04928344528 | O66: 0.05781165113 | P66: 0.05450332582 | Q66: 0.0490671563 | R66: 0.06841451422 | S66: 0.05347964341 | T66: 0.02016789095 | U66: 0.02500575651 | V66: 0.01640893632 | W66: 0.0200124069 | X66: 0.0125705093 | Y66: 0.02206539045 | Z66: 0.0292245143 | AA66: 0.036704147 | AB66: 0.03130142361
A67: 54 | B67: 0.03262570579 | C67: 0.03556938375 | D67: 0.03131505758 | E67: 0.03814179282 | F67: 0.04161007118 | G67: 0.04174434565 | H67: 0.03638511865 | I67: 0.04856513664 | J67: 0.03907891479 | K67: 0.04093491308 | L67: 0.04782254568 | M67: 0.04107212303 | N67: 0.04902291841 | O67: 0.05755347853 | P67: 0.05415200386 | Q67: 0.04880153564 | R67: 0.06796189989 | S67: 0.05313185836 | T67: 0.02036669625 | U67: 0.02512160287 | V67: 0.01664527648 | W67: 0.02020124936 | X67: 0.01253160076 | Y67: 0.02221931549 | Z67: 0.02926567745 | AA67: 0.03677138296 | AB67: 0.03130452875
A68: 55 | B68: 0.03263241681 | C68: 0.03552255682 | D68: 0.03132845492 | E68: 0.03804779644 | F68: 0.04145033965 | G68: 0.04158441661 | H68: 0.03632344104 | I68: 0.04844320147 | J68: 0.03896803923 | K68: 0.04082034613 | L68: 0.0475861787 | M68: 0.04094964572 | N68: 0.04877037724 | O68: 0.05728652531 | P68: 0.05381125713 | Q68: 0.0485450244 | R68: 0.06752448135 | S68: 0.05279612988 | T68: 0.02055932292 | U68: 0.02523366276 | V68: 0.01687541147 | W68: 0.02038558229 | X68: 0.01253360565 | Y68: 0.02236971125 | Z68: 0.02930544042 | AA68: 0.03683647795 | AB68: 0.03130757947
A69: 56 | B69: 0.03263889773 | C69: 0.03547740979 | D69: 0.03134127697 | E69: 0.0379571939 | F69: 0.04129659645 | G69: 0.04143025144 | H69: 0.03626397285 | I69: 0.04832585967 | J69: 0.0388611379 | K69: 0.0407095976 | L69: 0.04735754845 | M69: 0.04082995108 | N69: 0.04852555027 | O69: 0.05701313614 | P69: 0.0534807517 | Q69: 0.04829719434 | R69: 0.06710158429 | S69: 0.05247187843 | T69: 0.02074599682 | U69: 0.02534209617 | V69: 0.01709943335 | W69: 0.02056540888 | X69: 0.01257029134 | Y69: 0.02251655713 | Z69: 0.02934386842 | AA69: 0.03689951581 | AB69: 0.0313105727
A70: 57 | B70: 0.03264515967 | C70: 0.03543385359 | D70: 0.03135356393 | E70: 0.0378698032 | F70: 0.04114849844 | G70: 0.04128154259 | H70: 0.0362065973 | I70: 0.04821284568 | J70: 0.03875800073 | K70: 0.04060249517 | L70: 0.04713632286 | M70: 0.04071305671 | N70: 0.04828816882 | O70: 0.05673529868 | P70: 0.0531601529 | Q70: 0.04805764101 | R70: 0.06669256698 | S70: 0.05215855812 | T70: 0.02092693862 | U70: 0.02544705622 | V70: 0.01731745208 | W70: 0.02074075634 | X70: 0.01263627935 | Y70: 0.02265985536 | Z70: 0.02938102306 | AA70: 0.03696057766 | AB70: 0.0313135062
A71: 58 | B71: 0.03265121309 | C71: 0.03539180533 | D71: 0.03136535219 | E71: 0.03778545524 | F71: 0.04100572899 | G71: 0.04113800415 | H71: 0.0361512057 | I71: 0.04810391467 | J71: 0.0386584322 | K71: 0.04049887545 | L71: 0.04692218496 | M71: 0.04059896216 | N71: 0.0480579685 | O71: 0.05645469397 | P71: 0.05284912784 | Q71: 0.04782598237 | R71: 0.06629681894 | S71: 0.0518556545 | T71: 0.02110236313 | U71: 0.0255486893 | V71: 0.01752959154 | W71: 0.02091167137 | X71: 0.01272692801 | Y71: 0.02279962679 | Z71: 0.02941696263 | AA71: 0.03701974179 | AB71: 0.03131637843
A72: 59 | B72: 0.03265706785 | C72: 0.03535118782 | D72: 0.0313766748 | E72: 0.03770399267 | F72: 0.04086799541 | G72: 0.04099936989 | H72: 0.03609769676 | I72: 0.04799884055 | J72: 0.03856225012 | K72: 0.04039858351 | L72: 0.04671483238 | M72: 0.04048765214 | N72: 0.04783469033 | O72: 0.05617273983 | P72: 0.05254734754 | Q72: 0.0476018574 | R72: 0.0659137597 | S72: 0.05156268257 | T72: 0.02127247888 | U72: 0.02564713526 | V72: 0.01773598613 | W72: 0.0210782163 | X72: 0.01283823189 | Y72: 0.02293590741 | Z72: 0.02945174219 | AA72: 0.03707708362 | AB72: 0.03131918841
A73: 60 | B73: 0.03266273321 | C73: 0.03531192905 | D73: 0.03138756181 | E73: 0.03762526888 | F73: 0.04073502674 | G73: 0.04086539166 | H73: 0.03604597599 | I73: 0.04789741418 | J73: 0.03846928448 | K73: 0.04030147246 | L73: 0.04651397686 | M73: 0.04037909933 | N73: 0.04761808157 | O73: 0.05589062802 | P73: 0.05225448847 | Q73: 0.04738492491 | R73: 0.06554283747 | S73: 0.05127918491 | T73: 0.02143748778 | U73: 0.02574252759 | V73: 0.01793677796 | W73: 0.02124046589 | X73: 0.01296673529 | Y73: 0.02306874545 | Z73: 0.02948541386 | AA73: 0.03713267569 | AB73: 0.03132193567
A74: 61 | B74: 0.03266821789 | C74: 0.03527396179 | D74: 0.03139804062 | E74: 0.03754914711 | F74: 0.04060657171 | G74: 0.04073583784 | H74: 0.03599595513 | I74: 0.04779944178 | J74: 0.03837937651 | K74: 0.04020740302 | L74: 0.04631934369 | M74: 0.04027326666 | N74: 0.04740789632 | O74: 0.05560935632 | P74: 0.05197023386 | Q74: 0.04717486233 | R74: 0.0651835278 | S74: 0.05100472987 | T74: 0.02159758494 | U74: 0.02583499366 | V74: 0.01813211458 | W74: 0.02139850461 | X74: 0.01310945784 | Y74: 0.02319819882 | Z74: 0.02951802692 | AA74: 0.03718658768 | AB74: 0.03132462011
A75: 62 | B75: 0.03267353012 | C75: 0.03523722318 | D75: 0.03140813622 | E75: 0.03747549962 | F75: 0.04048239697 | G75: 0.04061049199 | H75: 0.03594755162 | I75: 0.04770474352 | J75: 0.03829237769 | K75: 0.04011624311 | L75: 0.04613067122 | M75: 0.04017010932 | N75: 0.04720389603 | O75: 0.05532975609 | P75: 0.05169427461 | Q75: 0.04697136461 | R75: 0.06483533239 | S75: 0.05073890999 | T75: 0.02175295854 | U75: 0.02592465495 | V75: 0.01832214697 | W75: 0.0215524244 | X75: 0.01326383043 | Y75: 0.02332433304 | Z75: 0.02954962799 | AA75: 0.03723888645 | AB75: 0.03132724199
A76: 63 | B76: 0.03267867766 | C76: 0.03520165438 | D76: 0.03141787151 | E76: 0.03740420696 | F76: 0.0403622855 | G76: 0.04048915162 | H76: 0.0359006882 | I76: 0.0476131523 | J76: 0.038208149 | K76: 0.04002786748 | L76: 0.04594771027 | M76: 0.04006957642 | N76: 0.04700584977 | O76: 0.0550525159 | P76: 0.05142631006 | Q76: 0.04677414317 | R76: 0.06449777773 | S76: 0.05048134041 | T76: 0.02190378983 | U76: 0.02601162725 | V76: 0.01850702802 | W76: 0.02170232273 | X76: 0.01342763992 | Y76: 0.0234472195 | Z76: 0.02958026122 | AA76: 0.03728963607 | AB76: 0.03132980182
A77: 64 | B77: 0.03268366782 | C77: 0.03516720028 | D77: 0.03142726746 | E77: 0.0373351573 | F77: 0.04024603516 | G77: 0.0403716271 | H77: 0.03585529244 | I77: 0.04752451258 | J77: 0.03812656013 | K77: 0.03994215732 | L77: 0.0457702236 | M77: 0.03997161234 | N77: 0.0468135344 | O77: 0.05477820203 | P77: 0.05116604846 | Q77: 0.04658292489 | R77: 0.06417041394 | S77: 0.0502316575 | T77: 0.02205025315 | U77: 0.02609602092 | V77: 0.01868691114 | W77: 0.02184830101 | X77: 0.01359898144 | Y77: 0.02356693395 | Z77: 0.02960996841 | AA77: 0.03733889793 | AB77: 0.03133230033
A78: 65 | B78: 0.03268850751 | C78: 0.03513380915 | D78: 0.03143634333 | E78: 0.03726824583 | F78: 0.04013345742 | G78: 0.04025774062 | H78: 0.03581129639 | I78: 0.04743867939 | J78: 0.03804748883 | K78: 0.03985899991 | L78: 0.04559798537 | M78: 0.03987615796 | N78: 0.04662673469 | O78: 0.05450727598 | P78: 0.05091320731 | Q78: 0.04639745124 | R78: 0.06385281353 | S78: 0.04998951748 | T78: 0.02219251599 | U78: 0.02617794113 | V78: 0.01886194924 | W78: 0.02199046327 | X78: 0.01377621715 | Y78: 0.02368355528 | Z78: 0.02963878914 | AA78: 0.03738673077 | AB78: 0.03133473845
A79: 66 | B79: 0.03269320325 | C79: 0.03510143247 | D79: 0.03144511687 | E79: 0.03720337423 | F79: 0.04002437624 | G79: 0.04014732529 | H79: 0.03576863623 | I79: 0.04735551745 | J79: 0.03797082027 | K79: 0.03977828829 | L79: 0.04543078059 | M79: 0.0397831516 | N79: 0.04644524329 | O79: 0.05424010964 | P79: 0.05066751355 | Q79: 0.04621747736 | R79: 0.06354457033 | S79: 0.04975459521 | T79: 0.02233073917 | U79: 0.02625748807 | V79: 0.01903229387 | W79: 0.02212891506 | X79: 0.01395794057 | Y79: 0.02379716446 | Z79: 0.02966676093 | AA79: 0.03743319079 | AB79: 0.03133711723
A80: 67 | B80: 0.03269776122 | C80: 0.03507002459 | D80: 0.0314536044 | E80: 0.03714045013 | F80: 0.03991862697 | G80: 0.04004022432 | H80: 0.03572725199 | I80: 0.04727490032 | J80: 0.03789644654 | K80: 0.03969992095 | L80: 0.04526840464 | M80: 0.03969252987 | N80: 0.04626886071 | O80: 0.05397699836 | P80: 0.05042870372 | Q80: 0.04604277129 | R80: 0.06324529831 | S80: 0.04952658301 | T80: 0.02246507691 | U80: 0.02633475719 | V80: 0.01919809445 | W80: 0.02226376254 | X80: 0.01414294579 | Y80: 0.02390784373 | Z80: 0.02969391933 | AA80: 0.03747833172 | AB80: 0.03133943782
A81: 68 | B81: 0.03270218724 | C81: 0.0350395426 | D81: 0.03146182103 | E81: 0.03707938671 | F81: 0.03981605547 | G81: 0.03993629027 | H81: 0.0356870872 | I81: 0.04719670968 | J81: 0.03782426606 | K81: 0.0396238015 | L81: 0.04511066274 | M81: 0.03960422832 | N81: 0.04609739519 | O81: 0.05371817211 | P81: 0.05019652386 | Q81: 0.04587311314 | R81: 0.06295463058 | S81: 0.0493051896 | T81: 0.02259567709 | U81: 0.02640983943 | V81: 0.01935949781 | W81: 0.02239511172 | X81: 0.01433020066 | Y81: 0.02401567584 | Z81: 0.02972029805 | AA81: 0.03752220493 | AB81: 0.03134170149
A82: 69 | B82: 0.03270648684 | C82: 0.03500994607 | D82: 0.03146978073 | E82: 0.03702010227 | F82: 0.03971651724 | G82: 0.03983538433 | H82: 0.03564808873 | I82: 0.0471208347 | J82: 0.0377541832 | K82: 0.03954983842 | L82: 0.04495736945 | M82: 0.03951818205 | N82: 0.04593066256 | O82: 0.05346380527 | P82: 0.04997072952 | Q82: 0.04570829447 | R82: 0.06267221835 | S82: 0.0490901391 | T82: 0.02272268137 | U82: 0.02648282142 | V82: 0.01951664766 | W82: 0.02252306786 | X82: 0.0145188237 | Y82: 0.02412074349 | Z82: 0.02974592908 | AA82: 0.03756485951 | AB82: 0.03134390955
A83: 70 | B83: 0.03271066525 | C83: 0.03498119692 | D83: 0.03147749643 | E83: 0.03696251984 | F83: 0.03961987668 | G83: 0.03973737574 | H83: 0.03561020644 | I83: 0.04704717139 | J83: 0.03768610778 | K83: 0.03947794475 | L83: 0.04480834825 | M83: 0.03943432613 | N83: 0.04576848606 | O83: 0.05321402487 | P83: 0.04975108557 | Q83: 0.04554811751 | R83: 0.06239772999 | S83: 0.04888117005 | T83: 0.0228462254 | U83: 0.02655378569 | V83: 0.01966968433 | W83: 0.02264773497 | X83: 0.01470806396 | Y83: 0.02422312882 | Z83: 0.02977084275 | AA83: 0.03760634234 | AB83: 0.03134606334
A84: 71 | B84: 0.03271472741 | C84: 0.03495325919 | D84: 0.03148498014 | E84: 0.03690656687 | F84: 0.03952600637 | G84: 0.03964214117 | H84: 0.03557339308 | I84: 0.04697562213 | J84: 0.03761995474 | K84: 0.03940803787 | L84: 0.04466343106 | M84: 0.03935259604 | N84: 0.04561069617 | O84: 0.05296891785 | P84: 0.04953736608 | Q84: 0.04539239461 | R84: 0.0621308501 | S84: 0.04867803457 | T84: 0.02296643909 | U84: 0.02662281088 | V84: 0.01981874449 | W84: 0.02276921539 | X84: 0.01489728367 | Y84: 0.02432291308 | Z84: 0.02979506789 | AA84: 0.03764669822 | AB84: 0.03134816427
A85: 72 | B85: 0.03271867803 | C85: 0.03492609898 | D85: 0.03149224305 | E85: 0.03685217489 | F85: 0.03943478649 | G85: 0.03954956422 | H85: 0.03553760398 | I85: 0.04690609512 | J85: 0.03755564376 | K85: 0.03934003925 | L85: 0.0445224578 | M85: 0.03927292792 | N85: 0.04545713035 | O85: 0.05272853724 | P85: 0.04932935404 | Q85: 0.04524094762 | R85: 0.06187127868 | S85: 0.04848049752 | T85: 0.02308344672 | U85: 0.02668997193 | V85: 0.01996396096 | W85: 0.02288760952 | X85: 0.01508594304 | Y85: 0.02442017624 | Z85: 0.02981863186 | AA85: 0.03768596994 | AB85: 0.03135021373
A86: 73 | B86: 0.03272252155 | C86: 0.03489968421 | D86: 0.03149929556 | E86: 0.03679927923 | F86: 0.0393461042 | G86: 0.03945953494 | H86: 0.03550279697 | I86: 0.04683850397 | J86: 0.03749309892 | K86: 0.03927387419 | L86: 0.044385276 | M86: 0.03919525886 | N86: 0.04530763281 | O86: 0.05249290745 | P86: 0.0491268412 | Q86: 0.04509360734 | R86: 0.06161873024 | S86: 0.04828833576 | T86: 0.02319736726 | U86: 0.02675534028 | V86: 0.02010546262 | W86: 0.02300301554 | X86: 0.01527358718 | Y86: 0.02451499681 | Z86: 0.02984156066 | AA86: 0.03772419836 | AB86: 0.03135221312
A87: 74 | B87: 0.0327262622 | C87: 0.03487398459 | D87: 0.03150614737 | E87: 0.03674781878 | F87: 0.03925985315 | G87: 0.03937194937 | H87: 0.03546893215 | I87: 0.04677276728 | J87: 0.03743224843 | K87: 0.03920947167 | L87: 0.04425174042 | M87: 0.0391195271 | N87: 0.04516205435 | O87: 0.05226202891 | P87: 0.04892962774 | Q87: 0.044950213 | R87: 0.06137293307 | S87: 0.04810133741 | T87: 0.02330831451 | U87: 0.026818984 | V87: 0.0202433743 | W87: 0.02311552922 | X87: 0.01545983466 | Y87: 0.02460745159 | Z87: 0.02986387899 | AA87: 0.03776142253 | AB87: 0.03135416386
A88: 75 | B88: 0.032729904 | C88: 0.0348489714 | D88: 0.03151280756 | E88: 0.03669773571 | F88: 0.039175933 | G88: 0.03928670917 | H88: 0.03543597175 | I88: 0.04670880829 | J88: 0.03737302434 | K88: 0.03914676408 | L88: 0.04412171263 | M88: 0.03904567216 | N88: 0.04502025201 | O88: 0.05203588198 | P88: 0.04873752204 | Q88: 0.04481061175 | R88: 0.06113362849 | S88: 0.04791930121 | T88: 0.02341639734 | U88: 0.02688096801 | V88: 0.0203778168 | W88: 0.02322524383 | X88: 0.01564436764 | Y88: 0.02469761555 | Z88: 0.02988561037 | AA88: 0.03779767971 | AB88: 0.03135606734
A89: 76 | B89: 0.03273345074 | C89: 0.03482461749 | D89: 0.03151928459 | E89: 0.03664897529 | F89: 0.039094249 | G89: 0.0392037212 | H89: 0.03540387999 | I89: 0.04664655453 | J89: 0.0373153623 | K89: 0.03908568708 | L89: 0.04399506069 | M89: 0.038973635 | N89: 0.04488208894 | O89: 0.05181443036 | P89: 0.04855034039 | Q89: 0.04467465825 | R89: 0.06090057013 | S89: 0.04774203585 | T89: 0.02352171991 | U89: 0.02694135423 | V89: 0.02050890683 | W89: 0.02333224996 | X89: 0.01582692322 | Y89: 0.02478556172 | Z89: 0.02990677714 | AA89: 0.03783300554 | AB89: 0.03135792493
A90: 77 | B90: 0.03273690607 | C90: 0.0348008971 | D90: 0.03152558643 | E90: 0.03660148565 | F90: 0.0390147116 | G90: 0.03912289722 | H90: 0.03537262297 | I90: 0.04658593754 | J90: 0.03725920127 | K90: 0.03902617939 | L90: 0.04387165884 | M90: 0.03890335807 | N90: 0.04474743405 | O90: 0.05159762401 | P90: 0.04836790671 | Q90: 0.04454221423 | R90: 0.0606735233 | S90: 0.04756935945 | T90: 0.02362438185 | U90: 0.02700020172 | V90: 0.02063675711 | W90: 0.02343663554 | X90: 0.01600728597 | Y90: 0.02487136111 | Z90: 0.02992740059 | AA90: 0.03786743404 | AB90: 0.03135973798
A91: 78 | B91: 0.03274027341 | C91: 0.03477778579 | D91: 0.03153172053 | E91: 0.03655521763 | F91: 0.03893723607 | G91: 0.03904415352 | H91: 0.03534216852 | I91: 0.04652689256 | J91: 0.03720448341 | K91: 0.03896818264 | L91: 0.0437513871 | M91: 0.0388347854 | N91: 0.04461616187 | O91: 0.05138540161 | P91: 0.04819005224 | Q91: 0.04441314805 | R91: 0.06045226433 | S91: 0.04740109898 | T91: 0.02372447846 | U91: 0.02705756682 | V91: 0.02076147635 | W91: 0.02353848578 | X91: 0.01618528144 | Y91: 0.02495508264 | Z91: 0.02994750097 | AA91: 0.03790099771 | AB91: 0.03136150784
A92: 79 | B92: 0.03274355606 | C92: 0.03475526039 | D92: 0.0315376939 | E92: 0.03651012455 | F92: 0.03886174217 | G92: 0.03896741071 | H92: 0.03531248612 | I92: 0.04646935827 | J92: 0.03715115376 | K92: 0.03891164121 | L92: 0.04363413104 | M92: 0.03876786265 | N92: 0.04448815226 | O92: 0.05117769278 | P92: 0.04801661527 | Q92: 0.04428733438 | R92: 0.06023658 | S92: 0.04723708974 | T92: 0.02382210094 | U92: 0.02711350332 | V92: 0.02088316938 | W92: 0.02363788313 | X92: 0.01636077044 | Y92: 0.02503679313 | Z92: 0.02996709759 | AA92: 0.03793372762 | AB92: 0.0313632358
A93: 80 | B93: 0.03274675712 | C93: 0.03473329887 | D93: 0.03154351311 | E93: 0.03646616212 | F93: 0.03878815388 | G93: 0.03889259336 | H93: 0.03528354675 | I93: 0.04641327662 | J93: 0.03709916015 | K93: 0.03885650204 | L93: 0.04351978147 | M93: 0.0387025371 | N93: 0.04436329019 | O93: 0.05097441982 | P93: 0.04784744086 | Q93: 0.04416465381 | R93: 0.06002626698 | S93: 0.04707717492 | T93: 0.02391733654 | U93: 0.02716806255 | V93: 0.02100193718 | W93: 0.02373490734 | X93: 0.01653364421 | Y93: 0.0251165573 | Z93: 0.02998620884 | AA93: 0.03796565347 | AB93: 0.03136492313
A94: 81 | B94: 0.03274987958 | C94: 0.03471188031 | D94: 0.03154918439 | E94: 0.03642328825 | F94: 0.03871639909 | G94: 0.03881962982 | H94: 0.03525532285 | I94: 0.04635859252 | J94: 0.03704845299 | K94: 0.03880271458 | L94: 0.04340823415 | M94: 0.03863875769 | N94: 0.04424146554 | O94: 0.05077549935 | P94: 0.04768238058 | Q94: 0.04404499253 | R94: 0.05982113131 | S94: 0.0469212051 | T94: 0.02401026874 | U94: 0.02722129356 | V94: 0.02111787701 | W94: 0.02382963543 | X94: 0.01670382006 | Y94: 0.02519443775 | Z94: 0.03000485224 | AA94: 0.03799680365 | AB94: 0.03136657108
A95: 82 | B95: 0.03275292625 | C95: 0.03469098479 | D95: 0.03155471358 | E95: 0.03638146292 | F95: 0.03864640935 | G95: 0.03874845194 | H95: 0.03522778821 | I95: 0.04630525373 | J95: 0.0369989851 | K95: 0.03875023056 | L95: 0.04329938956 | M95: 0.03857647501 | N95: 0.04412257283 | O95: 0.05058084362 | P95: 0.04752129216 | Q95: 0.04392824202 | R95: 0.05962098786 | S95: 0.04676903792 | T95: 0.02410097744 | U95: 0.02727324317 | V95: 0.02123108248 | W95: 0.0239221418 | X95: 0.01687123771 | Y95: 0.02527049498 | Z95: 0.03002304453 | AA95: 0.0380272053 | AB95: 0.03136818085
A96: 83 | B96: 0.03275589986 | C96: 0.03467059337 | D96: 0.03156010621 | E96: 0.03634064805 | F96: 0.03857811965 | G96: 0.03867899488 | H96: 0.03520091787 | I96: 0.0462532106 | J96: 0.03695071159 | K96: 0.03869900391 | L96: 0.04319315263 | M96: 0.03851564127 | N96: 0.0440065111 | O96: 0.05039036163 | P96: 0.04736403933 | Q96: 0.04381429878 | R96: 0.05942565994 | S96: 0.04662053758 | T96: 0.02418953913 | U96: 0.02732395614 | V96: 0.02134164371 | W96: 0.02401249819 | X96: 0.01703585603 | Y96: 0.02534478744 | Z96: 0.03004080165 | AA96: 0.03805688438 | AB96: 0.03136975361
A97: 84 | B97: 0.03275880296 | C97: 0.03465068802 | D97: 0.0315653675 | E97: 0.03630080739 | F97: 0.03851146819 | G97: 0.03861119693 | H97: 0.03517468807 | I97: 0.04620241598 | J97: 0.03690358972 | K97: 0.03864899067 | L97: 0.04308943254 | M97: 0.03845621033 | N97: 0.04389318362 | O97: 0.05020396015 | P97: 0.04721049148 | Q97: 0.04370306402 | R97: 0.05923497878 | S97: 0.04647557455 | T97: 0.02427602702 | U97: 0.02737347526 | V97: 0.02144964735 | W97: 0.02410077382 | X97: 0.01719765026 | Y97: 0.02541737155 | Z97: 0.03005813885 | AA97: 0.03808586572 | AB97: 0.03137129051
A98: 85 | B98: 0.03276163803 | C98: 0.03463125156 | D98: 0.03157050238 | E98: 0.03626190642 | F98: 0.03844639616 | G98: 0.03854499928 | H98: 0.03514907616 | I98: 0.04615282499 | J98: 0.03685757875 | K98: 0.03860014881 | L98: 0.04298814246 | M98: 0.0383981376 | N98: 0.04378249774 | O98: 0.05002154446 | P98: 0.04706052345 | Q98: 0.04359444342 | R98: 0.05904878316 | S98: 0.04633402522 | T98: 0.02436051125 | U98: 0.02742184141 | V98: 0.02155517678 | W98: 0.0241870354 | X98: 0.01735660953 | Y98: 0.02548830174 | Z98: 0.03007507067 | AA98: 0.0381141731 | AB98: 0.03137279264
A99: 86 | B99: 0.03276440739 | C99: 0.03461226758 | D99: 0.03157551555 | E99: 0.03622391222 | F99: 0.03838284762 | G99: 0.03848034587 | H99: 0.03512406058 | I99: 0.04610439495 | J99: 0.03681263985 | K99: 0.03855243819 | L99: 0.04288919939 | M99: 0.03834138008 | N99: 0.0436743647 | O99: 0.04984301912 | P99: 0.04691401526 | Q99: 0.0434883469 | R99: 0.05886691899 | S99: 0.04619577155 | T99: 0.02444305896 | U99: 0.02746909374 | V99: 0.02165831219 | W99: 0.02427134722 | X99: 0.01751273479 | Y99: 0.02555763049 | Z99: 0.030091611 | AA99: 0.03814182925 | AB99: 0.03137426108
A100: 87 | B100: 0.03276711331 | C100: 0.03459372048 | D100: 0.03158041143 | E100: 0.0361867934 | F100: 0.03832076923 | G100: 0.03841718324 | H100: 0.03509962071 | I100: 0.04605708519 | J100: 0.03676873598 | K100: 0.03850582042 | L100: 0.04279252395 | M100: 0.03828589627 | N100: 0.04356869946 | O100: 0.04966828849 | P100: 0.04677085193 | Q100: 0.04338468838 | R100: 0.05868923897 | S100: 0.04606070077 | T100: 0.0245237345 | U100: 0.02751526966 | V100: 0.02175913066 | W100: 0.02435377119 | X100: 0.01766603694 | Y100: 0.02562540841 | Z100: 0.03010777314 | AA100: 0.03816885597 | AB100: 0.03137569685
A101: 88 | B101: 0.03276975791 | C101: 0.03457559532 | D101: 0.03158519424 | E101: 0.03615052002 | F101: 0.0382601102 | G101: 0.03835546038 | H101: 0.03507573691 | I101: 0.04601085695 | J101: 0.03672583178 | K101: 0.03846025882 | L101: 0.04269804016 | M101: 0.03823164616 | N101: 0.04346542049 | O101: 0.04949725725 | P101: 0.04663092319 | Q101: 0.04328338558 | R101: 0.0585156022 | S101: 0.04592870513 | T101: 0.02460259951 | U101: 0.027560405 | V101: 0.02185770633 | W101: 0.02443436698 | X101: 0.01781653528 | Y101: 0.02569168427 | Z101: 0.03012356977 | AA101: 0.03819527409 | AB101: 0.03137710097
A102: 89 | B102: 0.03277234325 | C102: 0.03455787787 | D102: 0.03158986797 | E102: 0.03611506348 | F102: 0.03820082205 | G102: 0.03829512858 | H102: 0.03505239042 | I102: 0.04596567326 | J102: 0.03668389348 | K102: 0.03841571825 | L102: 0.04260567534 | M102: 0.03817859119 | N102: 0.04336444965 | O102: 0.04932983077 | P102: 0.04649412331 | Q102: 0.04318435979 | R102: 0.05834587389 | S102: 0.04579968159 | T102: 0.02467971308 | U102: 0.02760453407 | V102: 0.02195411049 | W102: 0.02451319202 | X102: 0.01796425605 | Y102: 0.02575650506 | Z102: 0.03013901306 | AA102: 0.0382211036 | AB102: 0.03137847439
A103: 90 | B103: 0.03277487128 | C103: 0.03454055451 | D103: 0.03159443642 | E103: 0.03608039646 | F103: 0.03814285852 | G103: 0.0382361413 | H103: 0.03502956329 | I103: 0.04592149887 | J103: 0.03664288884 | K103: 0.03837216512 | L103: 0.04251535986 | M103: 0.03812669417 | N103: 0.04326571201 | O103: 0.04916591549 | P103: 0.04636035087 | Q103: 0.04308753573 | R103: 0.05817992501 | S103: 0.0456735316 | T103: 0.02475513188 | U103: 0.02764768972 | V103: 0.02204841168 | W103: 0.0245903016 | X103: 0.01810923135 | Y103: 0.02581991605 | Z103: 0.03015411462 | AA103: 0.03824636365 | AB103: 0.03137981806
A104: 91 | B104: 0.03277734388 | C104: 0.03452361224 | D104: 0.03159890322 | E104: 0.03604649285 | F104: 0.03808617545 | G104: 0.03817845407 | H104: 0.03500723838 | I104: 0.04587830008 | J104: 0.03660278701 | K104: 0.03832956724 | L104: 0.04242702706 | M104: 0.03807591928 | N104: 0.04316913572 | O104: 0.04900541913 | P104: 0.0462295086 | Q104: 0.04299284134 | R104: 0.05801763204 | S104: 0.04555016087 | T104: 0.02482891021 | U104: 0.02768990343 | V104: 0.02214067579 | W104: 0.02466574898 | X104: 0.01825149799 | Y104: 0.02588196084 | Z104: 0.03016888559 | AA104: 0.03827107259 | AB104: 0.03138113286
A105: 92 | B105: 0.03277976285 | C105: 0.03450703862 | D105: 0.03160327181 | E105: 0.03601332768 | F105: 0.03803073063 | G105: 0.03812202433 | H105: 0.0349853993 | I105: 0.04583604474 | J105: 0.03656355849 | K105: 0.03828789379 | L105: 0.04234061306 | M105: 0.03802623203 | N105: 0.04307465183 | O105: 0.04884825097 | P105: 0.04610150313 | Q105: 0.04290020762 | R105: 0.05785887665 | S105: 0.0454294791 | T105: 0.02490110021 | U105: 0.02773120536 | V105: 0.02223096621 | W105: 0.0247395854 | X105: 0.0183910967 | Y105: 0.02594268141 | Z105: 0.03018333663 | AA105: 0.03829524801 | AB105: 0.03138241969
A106: 93 | B106: 0.0327821299 | C106: 0.03449082173 | D106: 0.03160754548 | E106: 0.03598087706 | F106: 0.0379764837 | G106: 0.03806681141 | H106: 0.03496403036 | I106: 0.04579470207 | J106: 0.03652517507 | K106: 0.03824711524 | L106: 0.04225605663 | M106: 0.03797759916 | N106: 0.0429821942 | O106: 0.04869432198 | P106: 0.04597624488 | Q106: 0.04280956846 | R106: 0.05770354547 | S106: 0.04531139985 | T106: 0.02497175187 | U106: 0.02777162443 | V106: 0.02231934388 | W106: 0.02481186021 | X106: 0.01852807129 | Y106: 0.02600211823 | Z106: 0.03019747796 | AA106: 0.0383189068 | AB106: 0.03138367937
A107: 94 | B107: 0.03278444667 | C107: 0.03447495017 | D107: 0.03161172734 | E107: 0.03594911813 | F107: 0.03792339608 | G107: 0.03801277633 | H107: 0.03494311653 | I107: 0.04575424266 | J107: 0.03648760973 | K107: 0.03820720327 | L107: 0.04217329906 | M107: 0.03792998865 | N107: 0.04289169933 | O107: 0.04854354499 | P107: 0.04585364783 | Q107: 0.04272086054 | R107: 0.05755152981 | S107: 0.04519584028 | T107: 0.02504091319 | U107: 0.02781118839 | V107: 0.02240586741 | W107: 0.02488262092 | X107: 0.018662468 | Y107: 0.02606031023 | Z107: 0.03021131935 | AA107: 0.03834206513 | AB107: 0.03138491272
A108: 95 | B108: 0.03278671476 | C108: 0.03445941304 | D108: 0.0316158204 | E108: 0.03591802899 | F108: 0.03787143082 | G108: 0.0379598818 | H108: 0.03492264343 | I108: 0.04571463836 | J108: 0.03645083657 | K108: 0.03816813074 | L108: 0.04209228405 | M108: 0.03788336965 | N108: 0.04280310628 | O108: 0.04839583478 | P108: 0.04573362939 | Q108: 0.04263402312 | R108: 0.05740272548 | S108: 0.04508272098 | T108: 0.02510863024 | U108: 0.02784992385 | V108: 0.02249059319 | W108: 0.02495191326 | X108: 0.01879433498 | Y108: 0.02611729494 | Z108: 0.0302248702 | AA108: 0.03836473856 | AB108: 0.03138612053
A109: 96 | B109: 0.03278893567 | C109: 0.03444419986 | D109: 0.03161982751 | E109: 0.03588758864 | F109: 0.03782055254 | G109: 0.03790809204 | H109: 0.03490259727 | I109: 0.04567586221 | J109: 0.03641483081 | K109: 0.03812987161 | L109: 0.04201295757 | M109: 0.03783771245 | N109: 0.0427163565 | O109: 0.04825110815 | P109: 0.04561611023 | Q109: 0.04254899799 | R109: 0.05725703251 | S109: 0.04497196583 | T109: 0.02517494727 | U109: 0.02788785634 | V109: 0.02257357546 | W109: 0.02501978126 | X109: 0.01892372172 | Y109: 0.02617310846 | Z109: 0.03023813952 | AA109: 0.03838694199 | AB109: 0.03138730354
A110: 97 | B110: 0.03279111085 | C110: 0.0344293006 | D110: 0.0316237514 | E110: 0.03585777698 | F110: 0.03777072737 | G110: 0.03785737281 | H110: 0.03488296482 | I110: 0.04563788839 | J110: 0.03637956867 | K110: 0.03809240089 | L110: 0.04193526776 | M110: 0.03779298842 | N110: 0.04263139377 | O110: 0.04810928399 | P110: 0.04550101414 | Q110: 0.04246572927 | R110: 0.05711435499 | S110: 0.04486350179 | T110: 0.02523990679 | U110: 0.0279250104 | V110: 0.02265486641 | W110: 0.02508626732 | X110: 0.0190506787 | Y110: 0.02622778561 | Z110: 0.03025113594 | AA110: 0.03840868976 | AB110: 0.03138846248
A111: 98 | B111: 0.0327932417 | C111: 0.03441470565 | D111: 0.03162759467 | E111: 0.03582857471 | F111: 0.03772192282 | G111: 0.03780769123 | H111: 0.03486373342 | I111: 0.04560069214 | J111: 0.03634502735 | K111: 0.03805569459 | L111: 0.04185916485 | M111: 0.03774916998 | N111: 0.04254816405 | O111: 0.0479702833 | P111: 0.04538826788 | Q111: 0.04238416333 | R111: 0.05697460084 | S111: 0.04475725878 | T111: 0.02530354964 | U111: 0.02796140957 | V111: 0.02273451628 | W111: 0.02515141227 | X111: 0.019175257 | Y111: 0.0262813599 | Z111: 0.03026386776 | AA111: 0.03842999562 | AB111: 0.03138959807
A112: 99 | B112: 0.03279532955 | C112: 0.03440040578 | D112: 0.03163135983 | E112: 0.03579996333 | F112: 0.03767410774 | G112: 0.03775901576 | H112: 0.03484489089 | I112: 0.04556424974 | J112: 0.03631118496 | K112: 0.03801972966 | L112: 0.04178460102 | M112: 0.03770623056 | N112: 0.04246661542 | O112: 0.04783402923 | P112: 0.04527780105 | Q112: 0.04230424871 | R112: 0.05683768165 | S112: 0.04465316953 | T112: 0.02536591508 | U112: 0.02799707648 | V112: 0.0228125734 | W112: 0.02521525544 | X112: 0.019297508 | Y112: 0.02633386362 | Z112: 0.03027634293 | AA112: 0.03845087281 | AB112: 0.03139071097
A113: 100 | B113: 0.03279737569 | C113: 0.03438639212 | D113: 0.03163504928 | E113: 0.03577192507 | F113: 0.03762725225 | G113: 0.03771131615 | H113: 0.03482642556 | I113: 0.04552853841 | J113: 0.03627802051 | K113: 0.03798448399 | L113: 0.0417115303 | M113: 0.03766414458 | N113: 0.04238669796 | O113: 0.04770044706 | P113: 0.04516954594 | Q113: 0.04222593595 | R113: 0.05670351248 | S113: 0.04455116942 | T113: 0.02542704087 | U113: 0.02803203286 | V113: 0.02288908431 | W113: 0.0252778347 | X113: 0.01941748314 | Y113: 0.02638532787 | Z113: 0.03028856913 | AA113: 0.03847133403 | AB113: 0.03139180184
A114: 101 | B114: 0.03279938135 | C114: 0.03437265616 | D114: 0.0316386653 | E114: 0.03574444287 | F114: 0.03758132766 | G114: 0.03766456333 | H114: 0.03480832622 | I114: 0.04549353631 | J114: 0.03624551383 | K114: 0.03794993629 | L114: 0.04163990856 | M114: 0.03762288735 | N114: 0.04230836364 | O114: 0.0475694642 | P114: 0.04506343747 | Q114: 0.04214917754 | R114: 0.05657201171 | S114: 0.04445119639 | T114: 0.0254869633 | U114: 0.02806629962 | V114: 0.02296409384 | W114: 0.02533918654 | X114: 0.01953523367 | Y114: 0.02643578263 | Z114: 0.03030055369 | AA114: 0.03849139151 | AB114: 0.03139287132
A115: 102 | B115: 0.03280134773 | C115: 0.03435918973 | D115: 0.03164221008 | E115: 0.03571750035 | F115: 0.03753630644 | G115: 0.03761872937 | H115: 0.03479058208 | I115: 0.04545922243 | J115: 0.03621364552 | K115: 0.03791606613 | L115: 0.04156969333 | M115: 0.0375824351 | N115: 0.04223156629 | O115: 0.04744101017 | P115: 0.04495941298 | Q115: 0.04207392782 | R115: 0.0564431009 | S115: 0.04435319078 | T115: 0.0255457173 | U115: 0.02809989687 | V115: 0.02303764514 | W115: 0.02539934613 | X115: 0.01965081048 | Y115: 0.02648525678 | Z115: 0.03031230368 | AA115: 0.038511057 | AB115: 0.03139392
A116: 103 | B116: 0.03280327595 | C116: 0.03434598498 | D116: 0.03164568576 | E116: 0.03569108175 | F116: 0.03749216211 | G116: 0.03757378745 | H116: 0.03477318279 | I116: 0.04542557664 | J116: 0.03618239699 | K116: 0.03788285383 | L116: 0.04150084377 | M116: 0.03754276492 | N116: 0.04215626146 | O116: 0.0473150166 | P116: 0.04485741222 | Q116: 0.04200014287 | R116: 0.05631670459 | S116: 0.04425709523 | T116: 0.02560333649 | U116: 0.02813284394 | V116: 0.02310977978 | W116: 0.02545834736 | X116: 0.01976426399 | Y116: 0.02653377817 | Z116: 0.03032382591 | AA116: 0.03853034181 | AB116: 0.03139494849
A117: 104 | B117: 0.03280516713 | C117: 0.03433303434 | D117: 0.03164909433 | E117: 0.03566517194 | F117: 0.03744886924 | G117: 0.03752971176 | H117: 0.03475611839 | I117: 0.04539257955 | J117: 0.03615175031 | K117: 0.03785028048 | L117: 0.04143332061 | M117: 0.03750385471 | N117: 0.04208240637 | O117: 0.04719141714 | P117: 0.04475737715 | Q117: 0.04192778048 | R117: 0.05619275023 | S117: 0.04416285459 | T117: 0.02565985322 | U117: 0.02816515944 | V117: 0.02318053784 | W117: 0.02551622287 | X117: 0.01987564393 | Y117: 0.02658137364 | Z117: 0.03033512692 | AA117: 0.03854925684 | AB117: 0.03139595733
A118: 105 | B118: 0.03280702231 | C118: 0.03432033055 | D118: 0.03165243776 | E118: 0.03563975634 | F118: 0.03740640339 | G118: 0.0374864775 | H118: 0.03473937932 | I118: 0.04536021253 | J118: 0.03612168826 | K118: 0.03781832788 | L118: 0.04136708603 | M118: 0.03746568318 | N118: 0.04200995983 | O118: 0.04707014748 | P118: 0.04465925191 | Q118: 0.04185679999 | R118: 0.05607116797 | S118: 0.04407041579 | T118: 0.02571529865 | U118: 0.02819686128 | V118: 0.02324995791 | W118: 0.02557300418 | X118: 0.01998499935 | Y118: 0.02662806908 | Z118: 0.03034621299 | AA118: 0.03856781256 | AB118: 0.03139694709
A119: 106 | B119: 0.03280884251 | C119: 0.03430786661 | D119: 0.0316557179 | E119: 0.03561482096 | F119: 0.03736474103 | G119: 0.0374440608 | H119: 0.03472295634 | I119: 0.04532845767 | J119: 0.03609219428 | K119: 0.0377869785 | L119: 0.04130210363 | M119: 0.03742822977 | N119: 0.04193888218 | O119: 0.04695114529 | P119: 0.0445629827 | Q119: 0.0417871623 | R119: 0.05595189061 | S119: 0.04397972776 | T119: 0.02576970279 | U119: 0.02822796671 | V119: 0.02331807722 | W119: 0.02562872163 | X119: 0.02009237845 | Y119: 0.02667388944 | Z119: 0.03035709018 | AA119: 0.03858601906 | AB119: 0.03139791828
A120: 107 | B120: 0.0328106287 | C120: 0.03429563581 | D120: 0.03165893656 | E120: 0.03559035229 | F120: 0.03732385953 | G120: 0.03740243867 | H120: 0.0347068406 | I120: 0.04529729772 | J120: 0.03606325241 | K120: 0.03775621547 | L120: 0.04123833835 | M120: 0.03739147467 | N120: 0.0418691352 | O120: 0.04683435017 | P120: 0.04446851768 | Q120: 0.04171882974 | R120: 0.05583485341 | S120: 0.04389074132 | T120: 0.02582309455 | U120: 0.02825849235 | V120: 0.02338493164 | W120: 0.02568340451 | X120: 0.02019782854 | Y120: 0.02671885879 | Z120: 0.03036776434 | AA120: 0.03860388607 | AB120: 0.03139887142
A121: 108 | B121: 0.03281238184 | C121: 0.03428363165 | D121: 0.03166209545 | E121: 0.03556633736 | F121: 0.0372837371 | G121: 0.03736158899 | H121: 0.03469102354 | I121: 0.0452667161 | J121: 0.03603484729 | K121: 0.03772602252 | L121: 0.04117575644 | M121: 0.03735539877 | N121: 0.04180068207 | O121: 0.04671970358 | P121: 0.04437580689 | Q121: 0.04165176605 | R121: 0.05571999406 | S121: 0.04380340912 | T121: 0.0258755018 | U121: 0.02828845419 | V121: 0.02345055578 | W121: 0.02573708108 | X121: 0.020301396 | Y121: 0.02676300037 | Z121: 0.03037824107 | AA121: 0.03862142295 | AB121: 0.031399807
A122: 109 | B122: 0.03281410283 | C122: 0.0342718479 | D122: 0.03166519625 | E122: 0.03554276365 | F122: 0.03724435277 | G122: 0.03732149046 | H122: 0.03467549695 | I122: 0.04523669681 | J122: 0.03600696413 | K122: 0.037696384 | L122: 0.04111432534 | M122: 0.03731998362 | N122: 0.04173348729 | O122: 0.04660714885 | P122: 0.04428480217 | Q122: 0.04158593628 | R122: 0.05560725246 | S122: 0.04371768553 | T122: 0.02592695141 | U122: 0.02831786768 | V122: 0.02351498302 | W122: 0.02578977859 | X122: 0.02040312624 | Y122: 0.02680633658 | Z122: 0.0303885258 | AA122: 0.03863863875 | AB122: 0.03140072549
A123: 110 | B123: 0.03281579255 | C123: 0.03426027853 | D123: 0.03166824055 | E123: 0.03551961912 | F123: 0.03720568632 | G123: 0.03728212253 | H123: 0.03466025289 | I123: 0.04520722447 | J123: 0.03597958867 | K123: 0.0376672848 | L123: 0.04105401369 | M123: 0.03728521142 | N123: 0.04166751664 | O123: 0.04649663108 | P123: 0.04419545711 | Q123: 0.04152130674 | R123: 0.05549657075 | S123: 0.04363352658 | T123: 0.02597746929 | U123: 0.02834674769 | V123: 0.02357824559 | W123: 0.02584152336 | X123: 0.02050306363 | Y123: 0.02684888907 | Z123: 0.03039862375 | AA123: 0.03865554216 | AB123: 0.03140162735
A124: 111 | B124: 0.03281745183 | C124: 0.03424891775 | D124: 0.03167122989 | E124: 0.03549689214 | F124: 0.03716771827 | G124: 0.03724346543 | H124: 0.03464528372 | I124: 0.04517828424 | J124: 0.03595270717 | K124: 0.03763871037 | L124: 0.04099479124 | M124: 0.03725106497 | N124: 0.0416027371 | O124: 0.04638809709 | P124: 0.0441077269 | Q124: 0.04145784497 | R124: 0.0553878931 | S124: 0.04355088989 | T124: 0.02602708042 | U124: 0.02837510856 | V124: 0.02364037455 | W124: 0.02589234077 | X124: 0.02060125154 | Y124: 0.02689067871 | Z124: 0.03040853995 | AA124: 0.03867214159 | AB124: 0.03140251302
A125: 112 | B125: 0.03281908149 | C125: 0.03423775997 | D125: 0.03167416576 | E125: 0.03547457152 | F125: 0.03713042984 | G125: 0.03720550007 | H125: 0.03463058207 | I125: 0.04514986182 | J125: 0.03592630638 | K125: 0.03761064666 | L125: 0.04093662882 | M125: 0.03721752769 | N125: 0.04153911683 | O125: 0.0462814954 | P125: 0.04402156836 | Q125: 0.04139551963 | R125: 0.05528116568 | S125: 0.04346973457 | T125: 0.02607580891 | U125: 0.02840296413 | V125: 0.02370139992 | W125: 0.02594225535 | X125: 0.02069773229 | Y125: 0.02693172567 | Z125: 0.03041827926 | AA125: 0.03868844514 | AB125: 0.03140338293
A126: 113 | B126: 0.03282068233 | C126: 0.0342267998 | D126: 0.03167704958 | E126: 0.03545264645 | F126: 0.03709380294 | G126: 0.03716820804 | H126: 0.03461614083 | I126: 0.04512194341 | J126: 0.03590037351 | K126: 0.03758308013 | L126: 0.04087949829 | M126: 0.03718458354 | N126: 0.0414766251 | O126: 0.04617677616 | P126: 0.04393693978 | Q126: 0.04133430053 | R126: 0.05517633658 | S126: 0.04339002121 | T126: 0.02612367806 | U126: 0.02843032776 | V126: 0.02376135068 | W126: 0.02599129078 | X126: 0.02079254715 | Y126: 0.02697204944 | Z126: 0.03042784636 | AA126: 0.03870446063 | AB126: 0.0314042375
A127: 114 | B127: 0.03282225509 | C127: 0.03421603202 | D127: 0.03167988273 | E127: 0.03543110651 | F127: 0.03705782009 | G127: 0.03713157158 | H127: 0.03460195315 | I127: 0.04509451571 | J127: 0.03587489625 | K127: 0.0375559977 | L127: 0.04082337247 | M127: 0.03715221704 | N127: 0.04141523224 | O127: 0.0460738911 | P127: 0.04385380091 | Q127: 0.04127415851 | R127: 0.05507335568 | S127: 0.04331171176 | T127: 0.02617071031 | U127: 0.02845721234 | V127: 0.02382025482 | W127: 0.02603946994 | X127: 0.02088573635 | Y127: 0.02701166881 | Z127: 0.03043724577 | AA127: 0.0387201956 | AB127: 0.03140507711
A128: 115 | B128: 0.0328238005 | C128: 0.03420545163 | D128: 0.03168266655 | E128: 0.03540994163 | F128: 0.03702246444 | G128: 0.03709557356 | H128: 0.0345880124 | I128: 0.04506756588 | J128: 0.03584986268 | K128: 0.03752938674 | L128: 0.04076822515 | M128: 0.03712041324 | N128: 0.04135490961 | O128: 0.04597279346 | P128: 0.0437721129 | Q128: 0.04121506542 | R128: 0.05497217461 | S128: 0.04323476948 | T128: 0.02621692738 | U128: 0.02848363032 | V128: 0.02387813937 | W128: 0.02608681492 | X128: 0.02097733906 | Y128: 0.02705060198 | Z128: 0.03044648186 | AA128: 0.03873565735 | AB128: 0.03140590216
A129: 116 | B129: 0.03282531928 | C129: 0.03419505377 | D129: 0.03168540231 | E129: 0.0353891421 | F129: 0.03698771971 | G129: 0.03706019744 | H129: 0.03457431219 | I129: 0.04504108153 | J129: 0.03582526131 | K129: 0.03750323508 | L129: 0.040714031 | M129: 0.03708915769 | N129: 0.04129562953 | O129: 0.04587343799 | P129: 0.04369183821 | Q129: 0.0411569941 | R129: 0.05487274668 | S129: 0.04315915892 | T129: 0.02626235021 | U129: 0.02850959371 | V129: 0.02393503046 | W129: 0.02613334708 | X129: 0.02106739344 | Y129: 0.02708886651 | Z129: 0.03045555884 | AA129: 0.03875085292 | AB129: 0.03140671302
A130: 117 | B130: 0.0328268121 | C130: 0.03418483375 | D130: 0.03168809126 | E130: 0.03536869854 | F130: 0.0369535702 | G130: 0.03702542722 | H130: 0.03456084636 | I130: 0.04501505068 | J130: 0.03580108105 | K130: 0.03747753092 | L130: 0.04066076556 | M130: 0.0370584364 | N130: 0.04123736529 | O130: 0.04577578084 | P130: 0.04361294057 | Q130: 0.04109991829 | R130: 0.05477502676 | S130: 0.04308484583 | T130: 0.02630699907 | U130: 0.02853511414 | V130: 0.02399095334 | W130: 0.02617908709 | X130: 0.02115593661 | Y130: 0.02712647939 | Z130: 0.03046448078 | AA130: 0.0387657891 | AB130: 0.03140751005
A131: 118 | B131: 0.03282827963 | C131: 0.03417478705 | D131: 0.03169073459 | E131: 0.0353486019 | F131: 0.03692000072 | G131: 0.03699124749 | H131: 0.03454760893 | I131: 0.04498946179 | J131: 0.03577731118 | K131: 0.0374522629 | L131: 0.04060840519 | M131: 0.03702823587 | N131: 0.04118009106 | O131: 0.04567977957 | P131: 0.04353538496 | Q131: 0.04104381264 | R131: 0.05467897129 | S131: 0.04301179713 | T131: 0.02635089353 | U131: 0.02856020283 | V131: 0.02404593242 | W131: 0.02622405489 | X131: 0.02124300469 | Y131: 0.02716345705 | Z131: 0.03047325163 | AA131: 0.03878047248 | AB131: 0.0314082936
A132: 119 | B132: 0.03282972251 | C132: 0.03416490931 | D132: 0.03169333346 | E132: 0.0353288434 | F132: 0.03688699661 | G132: 0.03695764331 | H132: 0.03453459414 | I132: 0.04496430367 | J132: 0.03575394134 | K132: 0.03742742003 | L132: 0.04055692705 | M132: 0.03699854303 | N132: 0.04112378187 | O132: 0.04558539306 | P132: 0.04345913749 | Q132: 0.04098865264 | R132: 0.05458453815 | S132: 0.04293998085 | T132: 0.02639405251 | U132: 0.02858487062 | V132: 0.02409999132 | W132: 0.02626826979 | X132: 0.02132863282 | Y132: 0.02719981536 | Z132: 0.03048187517 | AA132: 0.0387949094 | AB132: 0.03140906401
A133: 120 | B133: 0.03283114134 | C133: 0.03415519628 | D133: 0.03169588898 | E133: 0.0353094146 | F133: 0.0368545437 | G133: 0.03692460028 | H133: 0.03452179643 | I133: 0.04493956554 | J133: 0.03573096151 | K133: 0.03740299166 | L133: 0.04050630905 | M133: 0.03696934525 | N133: 0.04106841358 | O133: 0.04549258148 | P133: 0.04338416543 | Q133: 0.04093441461 | R133: 0.05449168662 | S133: 0.04286936608 | T133: 0.02643649431 | U133: 0.028609128 | V133: 0.02415315286 | W133: 0.02631175048 | X133: 0.02141285514 | Y133: 0.0272355697 | Z133: 0.0304903551 | AA133: 0.038809106 | AB133: 0.03140982159
A134: 121 | B134: 0.03283253672 | C134: 0.0341456439 | D134: 0.03169840223 | E134: 0.03529030729 | F134: 0.03682262829 | G134: 0.03689210445 | H134: 0.03450921041 | I134: 0.04491523696 | J134: 0.03570836201 | K134: 0.03737896753 | L134: 0.04045652984 | M134: 0.0369406303 | N134: 0.04101396285 | O134: 0.04540130625 | P134: 0.04331043709 | Q134: 0.04088107563 | R134: 0.05440037735 | S134: 0.04279992293 | T134: 0.02647823663 | U134: 0.02863298513 | V134: 0.02420543915 | W134: 0.02635451503 | X134: 0.02149570487 | Y134: 0.02727073492 | Z134: 0.03049869496 | AA134: 0.03882306824 | AB134: 0.03141056668
A135: 122 | B135: 0.03283390923 | C135: 0.0341362482 | D135: 0.03170087425 | E135: 0.03527151358 | F135: 0.03679123713 | G135: 0.03686014234 | H135: 0.03449683086 | I135: 0.04489130783 | J135: 0.03568613347 | K135: 0.03735533769 | L135: 0.04040756877 | M135: 0.03691238634 | N135: 0.04096040709 | O135: 0.04531153 | P135: 0.04323792185 | Q135: 0.04082861356 | R135: 0.05431057226 | S135: 0.04273162252 | T135: 0.0265192966 | U135: 0.02865645182 | V135: 0.02425687155 | W135: 0.02639658092 | X135: 0.02157721428 | Y135: 0.02730532543 | Z135: 0.03050689819 | AA135: 0.03883680186 | AB135: 0.03141129956
A136: 123 | B136: 0.03283525943 | C136: 0.03412700535 | D136: 0.03170330606 | E136: 0.03525302579 | F136: 0.03676035739 | G136: 0.03682870091 | H136: 0.03448465276 | I136: 0.04486776839 | J136: 0.03566426684 | K136: 0.03733209252 | L136: 0.04035940585 | M136: 0.03688460193 | N136: 0.04090772446 | O136: 0.0452232165 | P136: 0.04316659006 | Q136: 0.04077700696 | R136: 0.05422223452 | S136: 0.04266443687 | T136: 0.02655969078 | U136: 0.02867953756 | V136: 0.02430747077 | W136: 0.02643796508 | X136: 0.02165741473 | Y136: 0.02733935514 | Z136: 0.03051496813 | AA136: 0.03885031242 | AB136: 0.03141202054
A137: 124 | B137: 0.03283658786 | C137: 0.03411791167 | D137: 0.03170569862 | E137: 0.03523483653 | F137: 0.03672997667 | G137: 0.03679776754 | H137: 0.03447267122 | I137: 0.0448446092 | J137: 0.03564275335 | K137: 0.0373092227 | L137: 0.04031202173 | M137: 0.03685726597 | N137: 0.04085589381 | O137: 0.04513633065 | P137: 0.04309641302 | Q137: 0.04072623508 | R137: 0.05413532848 | S137: 0.04259833893 | T137: 0.02659943523 | U137: 0.02870225155 | V137: 0.02435725684 | W137: 0.02647868391 | X137: 0.02173633671 | Y137: 0.02737283755 | Z137: 0.03052290798 | AA137: 0.0388636053 | AB137: 0.03141272991
A138: 125 | B138: 0.03283789503 | C138: 0.03410896357 | D138: 0.03170805289 | E138: 0.03521693861 | F138: 0.03670008298 | G138: 0.03676733001 | H138: 0.03446088151 | I138: 0.0448218211 | J138: 0.03562158451 | K138: 0.03728671923 | L138: 0.04026539769 | M138: 0.03683036773 | N138: 0.04080489466 | O138: 0.04505083843 | P138: 0.04302736298 | Q138: 0.04067627785 | R138: 0.05404981965 | S138: 0.0425333025 | T138: 0.02663854547 | U138: 0.02872460269 | V138: 0.02440624917 | W138: 0.02651875328 | X138: 0.02181400983 | Y138: 0.02740578571 | Z138: 0.03053072088 | AA138: 0.03887668573 | AB138: 0.03141342795
A139: 126 | B139: 0.03283918147 | C139: 0.03410015758 | D139: 0.03171036977 | E139: 0.03519932509 | F139: 0.03667066468 | G139: 0.03673737649 | H139: 0.03444927908 | I139: 0.04479939525 | J139: 0.03560075211 | K139: 0.03726457338 | L139: 0.04021951561 | M139: 0.0368038968 | N139: 0.04075470719 | O139: 0.04496670687 | P139: 0.04295941302 | Q139: 0.04062711582 | R139: 0.05396567462 | S139: 0.04246930225 | T139: 0.02667703654 | U139: 0.0287465996 | V139: 0.02445446654 | W139: 0.02655818857 | X139: 0.02189046287 | Y139: 0.02743821228 | Z139: 0.03053840984 | AA139: 0.03888955874 | AB139: 0.03141411491
A140: 127 | B140: 0.03284044764 | C140: 0.03409149034 | D140: 0.03171265016 | E140: 0.03518198925 | F140: 0.03664171052 | G140: 0.03670789554 | H140: 0.03443785949 | I140: 0.04477732307 | J140: 0.03558024819 | K140: 0.03724277669 | L140: 0.04017435792 | M140: 0.03677784312 | N140: 0.0407053122 | O140: 0.044883904 | P140: 0.04289253711 | Q140: 0.04057873017 | R140: 0.05388286105 | S140: 0.04240631359 | T140: 0.02671492303 | U140: 0.02876825062 | V140: 0.02450192717 | W140: 0.02659700468 | X140: 0.02196572378 | Y140: 0.02747012952 | Z140: 0.03054597779 | AA140: 0.03890222923 | AB140: 0.03141479106
A141: 128 | B141: 0.03284169403 | C141: 0.03408295859 | D141: 0.0317148949 | E141: 0.03516492457 | F141: 0.0366132096 | G141: 0.03667887604 | H141: 0.03442661846 | I141: 0.04475559626 | J141: 0.03556006504 | K141: 0.03722132098 | L141: 0.04012990762 | M141: 0.03675219691 | N141: 0.04065669107 | O141: 0.04480239881 | P141: 0.04282671 | Q141: 0.04053110266 | R141: 0.05380134759 | S141: 0.04234431276 | T141: 0.02675221905 | U141: 0.02878956385 | V141: 0.02454864871 | W141: 0.02663521605 | X141: 0.02203981973 | Y141: 0.02750154931 | Z141: 0.03055342755 | AA141: 0.03891470194 | AB141: 0.03141545666
A142: 129 | B142: 0.03284292111 | C142: 0.03407455919 | D142: 0.03171710483 | E142: 0.03514812473 | F142: 0.03658515136 | G142: 0.03665030726 | H142: 0.03441555182 | I142: 0.04473420678 | J142: 0.03554019519 | K142: 0.0372001983 | L142: 0.04008614821 | M142: 0.0367269487 | N142: 0.04060882579 | O142: 0.04472216123 | P142: 0.04276190723 | Q142: 0.04048421562 | R142: 0.05372110389 | S142: 0.04228327669 | T142: 0.02678893829 | U142: 0.02881054712 | V142: 0.02459464825 | W142: 0.02667283667 | X142: 0.02211277711 | Y142: 0.02753248317 | Z142: 0.03056076188 | AA142: 0.03892698146 | AB142: 0.03141611194
A143: 130 | B143: 0.03284412931 | C143: 0.03406628908 | D143: 0.03171928076 | E143: 0.03513158363 | F143: 0.03655752556 | G143: 0.03662217877 | H143: 0.03440465556 | I143: 0.04471314682 | J143: 0.0355206314 | K143: 0.03717940098 | L143: 0.04004306374 | M143: 0.03670208933 | N143: 0.04056169888 | O143: 0.04464316211 | P143: 0.04269810512 | Q143: 0.04043805191 | R143: 0.05364210052 | S143: 0.04222318306 | T143: 0.02682509401 | U143: 0.02883120804 | V143: 0.02463994239 | W143: 0.02670988012 | X143: 0.02218462156 | Y143: 0.02756294225 | Z143: 0.03056798343 | AA143: 0.03893907224 | AB143: 0.03141675715
A144: 131 | B144: 0.03284531906 | C144: 0.0340581453 | D144: 0.03172142346 | E144: 0.03511529532 | F144: 0.03653032228 | G144: 0.03659448047 | H144: 0.03439392576 | I144: 0.04469240882 | J144: 0.03550136666 | K144: 0.03715892155 | L144: 0.0400006387 | M144: 0.0366776099 | N144: 0.0405152934 | O144: 0.04456537316 | P144: 0.04263528068 | Q144: 0.04039259493 | R144: 0.05356430896 | S144: 0.0421640102 | T144: 0.02686069908 | U144: 0.02885155397 | V144: 0.0246845472 | W144: 0.02674635956 | X144: 0.02225537801 | Y144: 0.0275929374 | Z144: 0.03057509479 | AA144: 0.03895097859 | AB144: 0.03141739252
A145: 132 | B145: 0.03284649079 | C145: 0.03405012497 | D145: 0.03172353368 | E145: 0.03509925406 | F145: 0.03650353189 | G145: 0.03656720257 | H145: 0.03438335865 | I145: 0.04467198547 | J145: 0.03548239416 | K145: 0.03713875278 | L145: 0.03995885808 | M145: 0.03665350177 | N145: 0.04046959292 | O145: 0.04448876691 | P145: 0.04257341162 | Q145: 0.04034782858 | R145: 0.05348770155 | S145: 0.04210573713 | T145: 0.02689576598 | U145: 0.02887159206 | V145: 0.02472847829 | W145: 0.02678228775 | X145: 0.02232507066 | Y145: 0.02762247911 | Z145: 0.03058209846 | AA145: 0.0389627047 | AB145: 0.03141801827
A146: 133 | B146: 0.0328476449 | C146: 0.03404222531 | D146: 0.03172561218 | E146: 0.03508345427 | F146: 0.03647714506 | G146: 0.03654033557 | H146: 0.03437295054 | I146: 0.04465186964 | J146: 0.0354637073 | K146: 0.03711888765 | L146: 0.03991770732 | M146: 0.03662975658 | N146: 0.04042458151 | O146: 0.04441331673 | P146: 0.04251247633 | Q146: 0.04030373724 | R146: 0.05341225146 | S146: 0.04204834347 | T146: 0.0269303068 | U146: 0.02889132923 | V146: 0.02477175078 | W146: 0.02681767707 | X146: 0.02239372305 | Y146: 0.02765157758 | Z146: 0.03058899686 | AA146: 0.03897425463 | AB146: 0.03141863461
A147: 134 | B147: 0.03284878179 | C147: 0.03403444361 | D147: 0.03172765964 | E147: 0.03506789053 | F147: 0.03645115275 | G147: 0.03651387025 | H147: 0.03436269789 | I147: 0.04463205444 | J147: 0.03544529968 | K147: 0.03709931937 | L147: 0.03987717228 | M147: 0.0366063662 | N147: 0.04038024371 | O147: 0.04433899675 | P147: 0.04245245385 | Q147: 0.04026030577 | R147: 0.05333793268 | S147: 0.04199180948 | T147: 0.02696433329 | U147: 0.02891077223 | V147: 0.02481437937 | W147: 0.02685253956 | X147: 0.02246135803 | Y147: 0.02768024268 | Z147: 0.03059579236 | AA147: 0.03898563232 | AB147: 0.03141924175
A148: 135 | B148: 0.03284990184 | C148: 0.03402677725 | D148: 0.03172967677 | E148: 0.0350525576 | F148: 0.03642554616 | G148: 0.03648779767 | H148: 0.03435259722 | I148: 0.04461253319 | J148: 0.03542716508 | K148: 0.03708004134 | L148: 0.03983723925 | M148: 0.03658332275 | N148: 0.04033656452 | O148: 0.04426578188 | P148: 0.04239332383 | Q148: 0.04021751947 | R148: 0.05326471995 | S148: 0.04193611599 | T148: 0.02699785686 | U148: 0.02892992756 | V148: 0.02485637829 | W148: 0.02688688686 | X148: 0.02252799784 | Y148: 0.02770848403 | Z148: 0.03060248722 | AA148: 0.0389968416 | AB148: 0.03141983991
A149: 136 | B149: 0.03285100542 | C149: 0.03401922369 | D149: 0.03173166424 | E149: 0.03503745037 | F149: 0.03640031677 | G149: 0.03646210916 | H149: 0.03434264519 | I149: 0.04459329938 | J149: 0.03540929748 | K149: 0.03706104713 | L149: 0.03979789493 | M149: 0.03656061858 | N149: 0.04029352938 | O149: 0.04419364773 | P149: 0.04233506652 | Q149: 0.04017536406 | R149: 0.05319258879 | S149: 0.04188124439 | T149: 0.02703088855 | U149: 0.02894880157 | V149: 0.0248977614 | W149: 0.02692073031 | X149: 0.02259366408 | Y149: 0.02773631094 | Z149: 0.03060908369 | AA149: 0.03900788616 | AB149: 0.03142042927
A150: 137 | B150: 0.03285209289 | C150: 0.03401178046 | D150: 0.03173362268 | E150: 0.03502256391 | F150: 0.03637545631 | G150: 0.03643679628 | H150: 0.03433283854 | I150: 0.04457434672 | J150: 0.03539169102 | K150: 0.03704233054 | L150: 0.03975912639 | M150: 0.03653824625 | N150: 0.04025112416 | O150: 0.04412257064 | P150: 0.04227766276 | Q150: 0.0401338257 | R150: 0.05312151539 | S150: 0.04182717663 | T150: 0.02706343913 | U150: 0.0289674004 | V150: 0.02493854213 | W150: 0.02695408089 | X150: 0.02265837775 | Y150: 0.02776373244 | Z150: 0.0306155839 | AA150: 0.03901876962 | AB150: 0.03142101003
